Workbook

Sheet Personalize (hidden)
A1: 260 | D1: FORM RESULTS | F1: 0 | G1: CBS Sportsline | H1: ESPN (T. Cockcroft) | I1: Cairo | J1: Teams | K1: Starters | L1: More Starters | N1: Proj. $ Value | O1: =E2 -> TRUE | P1: =O1&"."&COUNTIF($O$1:$O1,O1) -> TRUE.1 | Q1: Runs
A2: 25 | D2: R | E2: TRUE | F2: 1 | G2: RotoChamp | H2: Roto Summit | I2: RotoChamp | J2: 6 | K2: 0 | L2: 0 | M2: Proj. $ Value | O2: TRUE | P2: =O2&"."&COUNTIF($O$1:$O2,O2) -> TRUE.2 | Q2: HR
A3: =(A1-(A2*A4))*E18 -> 2820 | B3: Team 1 | D3: HR | E3: TRUE | F3: 2 | G3: Clubhouse GM | H3: RotoChamp | I3: Fangraphs | J3: 7 | K3: 1 | L3: 1 | M3: By Position | O3: TRUE | P3: =O3&"."&COUNTIF($O$1:$O3,O3) -> TRUE.3 | Q3: AVG
A4: 1 | B4: Team 2 | D4: AVG | E4: TRUE | F4: 3 | G4: ESPN | H4: USA Today | I4: ZiPS | J4: 8 | K4: 2 | L4: 2 | M4: Exp. Rank | O4: TRUE | P4: =O4&"."&COUNTIF($O$1:$O4,O4) -> TRUE.4 | Q4: RBI
B5: Team 3 | D5: RBI | E5: TRUE | F5: 4 | G5: Yahoo Projected | H5: Fantasy Baseball Café | I5: Steamer | J5: 9 | K5: 3 | L5: 3 | M5: WERTH Rank | O5: TRUE | P5: =O5&"."&COUNTIF($O$1:$O5,O5) -> TRUE.5 | Q5: SB
B6: Team 4 | D6: SB | E6: TRUE | F6: 5 | G6: Yahoo Public Avg | H6: ESPN (Main) | I6: Marcel | J6: 10 | L6: 4 | M6: =IFERROR(VLOOKUP("TRUE."&ROW(A1),$P$1:$Q$20,2,FALSE),"") -> Runs | O6: FALSE | P6: =O6&"."&COUNTIF($O$1:$O6,O6) -> FALSE.1 | Q6: SLG
B7: Team 5 | D7: SLG | E7: FALSE | F7: 6 | G7: Avg of Experts | H7: Razzball | I7: Combined (MSCZ) | J7: 11 | L7: 5 | M7: =IFERROR(VLOOKUP("TRUE."&ROW(A2),$P$1:$Q$20,2,FALSE),"") -> HR | O7: FALSE | P7: =O7&"."&COUNTIF($O$1:$O7,O7) -> FALSE.2 | Q7: OBP
B8: Team 6 | D8: OBP | E8: FALSE | F8: 7 | H8: Composite | J8: 12 | L8: 6 | M8: AVG | O8: FALSE | P8: =O8&"."&COUNTIF($O$1:$O8,O8) -> FALSE.3 | Q8: OPS
B9: Team 7 | D9: OPS | E9: FALSE | F9: 8 | J9: 13 | L9: 7 | M9: RBI | O9: TRUE | P9: =O9&"."&COUNTIF($O$1:$O9,O9) -> TRUE.6 | Q9: Wins
B10: Team 8 | D10: W | E10: TRUE | F10: 9 | J10: 14 | L10: 8 | M10: SB | O10: TRUE | P10: =O10&"."&COUNTIF($O$1:$O10,O10) -> TRUE.7 | Q10: K's
B11: Team 9 | D11: K | E11: TRUE | F11: 10 | J11: 15 | L11: 9 | M11: Wins | O11: TRUE | P11: =O11&"."&COUNTIF($O$1:$O11,O11) -> TRUE.8 | Q11: Saves
B12: Team 10 | D12: S | E12: TRUE | F12: 11 | J12: 16 | M12: K's | O12: TRUE | P12: =O12&"."&COUNTIF($O$1:$O12,O12) -> TRUE.9 | Q12: ERA
B13: Team 11 | D13: ERA | E13: TRUE | F13: 12 | J13: 17 | M13: Saves | O13: TRUE | P13: =O13&"."&COUNTIF($O$1:$O13,O13) -> TRUE.10 | Q13: WHIP
B14: Team 12 | D14: WHIP | E14: TRUE | F14: 13 | J14: 18 | M14: ERA | O14: FALSE | P14: =O14&"."&COUNTIF($O$1:$O14,O14) -> FALSE.4 | Q14: K/9
B15: Team 13 | D15: K/9 | E15: FALSE | F15: 14 | J15: 19 | M15: WHIP | O15: FALSE | P15: =O15&"."&COUNTIF($O$1:$O15,O15) -> FALSE.5 | Q15: Losses
A16: =IF((Personalize!$E$18+1)<14,"","Team 14") ->  | B16: Team 14 | D16: L | E16: FALSE | F16: 15 | J16: 20 | O16: FALSE | P16: =O16&"."&COUNTIF($O$1:$O16,O16) -> FALSE.6 | Q16: QS
A17: =IF((Personalize!$E$18+1)<15,"","Team 15") ->  | B17: Team 15 | D17: QS | E17: FALSE | F17: 16 | J17: 21 | O17: =E37 -> FALSE | P17: =O17&"."&COUNTIF($O$1:$O17,O17) -> FALSE.7 | Q17: Holds
A18: =IF((Personalize!$E$18+1)<16,"","Team 16") ->  | B18: Team 16 | D18: # of Teams | E18: 12 | F18: 17 | J18: 22 | O18: =E38 -> FALSE | P18: =O18&"."&COUNTIF($O$1:$O18,O18) -> FALSE.8 | Q18: Saves + Holds
B19: Team 17 | D19: C | E19: 1 | F19: 18 | J19: 23 | O19: =E39 -> FALSE | P19: =O19&"."&COUNTIF($O$1:$O19,O19) -> FALSE.9 | Q19: BB
B20: Team 18 | D20: 1B | E20: 1 | F20: 19 | J20: 24 | O20: =E40 -> FALSE | P20: =O20&"."&COUNTIF($O$1:$O20,O20) -> FALSE.10 | Q20: Hits
B21: Team 19 | D21: 2B | E21: 1 | F21: 20
B22: Team 20 | D22: 3B | E22: 1 | F22: 21
B23: Team 21 | D23: SS | E23: 1 | F23: 22
B24: Team 22 | D24: CI | E24: 1 | F24: 23
B25: Team 23 | D25: MI | E25: 1 | F25: 24
B26: Team 24 | D26: OF | E26: 5
D27: DH | E27: 1
B28: TRUE | D28: RP | E28: 5
B29: TRUE | D29: SP | E29: 2
B30: FALSE | D30: P | E30: 1
B31: FALSE | D31: ADP Site: | E31: =IF(F31=G1,1,IF(F31=G2,2,IF(F31=G3,3,IF(F31=G4,4,IF(F31=G5,5,IF(F31=G6,6,IF(F31=G7,7,0))))))) -> 7 | F31: Avg of Experts
D32: Rankings: | E32: =IF(F32=H1,1,IF(F32=H2,2,IF(F32=H3,3,IF(F32=H4,4,IF(F32=H5,5,IF(F32=H6,6,IF(F32=H7,7,IF(F32=H8,8,0)))))))) -> 8 | F32: Composite
D33: Projections: | E33: =IF(F33=I1,1,IF(F33=I2,2,IF(F33=I3,3,IF(F33=I4,4,IF(F33=I5,5,IF(F33=I6,6,IF(F33=I7,7,0))))))) -> 7 | F33: Combined (MSCZ)
D34: LF | E34: 0
D35: CF | E35: 0
D36: RF | E36: 0
D37: Holds | E37: FALSE
D38: Saves + Holds | E38: FALSE
D39: BB | E39: FALSE
D40: Hits | E40: FALSE
D41: Total Bases | E41: FALSE
D42: Doubles | E42: FALSE
D43: Triples | E43: FALSE
D44: TB+BB | E44: FALSE
D45: IP | E45: FALSE
D46: K-BB | E46: FALSE
D47: BB-P | E47: FALSE
D48: H-P | E48: FALSE

Sheet Draft Central
B1: Sort By: | N1: W | O1: S | P1: K | Q1: ERA | R1: WHIP | S1: L | T1: K/9 | U1: QS | V1: HLD | W1: H+S | X1: IP | Y1: K-BB | Z1: BB | AA1: H | AQ1: =SUM(B4:B600) -> 0 | AR1: =IFERROR(SMALL(IF($AQ$4:$AQ$600="Yes",$AR$4:$AR$600,""),1),"") -> -1.937073257 | AS1: =SUMIF($AQ$4:$AQ$600,"Yes",$AS$4:$AS$600) -> 1175.077038
A2: Drafted By (click box to select team) | B2: Winning Bid | C2: Name | D2: Pos | E2: OF Elig | F2: Tm | G2: Age | H2: Curr Proj $ Value | I2: Expert Rank | J2: Expert Adj $ Val | K2: WERTH Rank | L2: Werth Total | M2: Pos Avg | N2: AVG | O2: HR | P2: R | Q2: RBI | R2: SB | S2: SLG | T2: OBP | U2: OPS | V2: BB | W2: H | X2: TB | Y2: TB+BB | Z2: 2B | AA2: 3B | AB2: W | AC2: S | AD2: K | AE2: ERA | AF2: WHIP | AG2: AVG | AH2: HR | AI2: RBI | AJ2: R | AK2: SB | AL2: Drafted | AQ2: Proj Starter | AR2: WERTH+RL | AS2: W+RL+SM
A3: A | B3: B
C4: Albert Pujols | D4: =IFERROR(IF(VLOOKUP(C4,'ADP-Rank'!$A$2:$B$600,2,FALSE)="OF",VLOOKUP(C4,'Starter Calc'!$B$2:$AN$600,39,FALSE),(VLOOKUP(C4,'ADP-Rank'!$A$2:$B$600,2,FALSE))),"") -> 1B | E4: =IFERROR(IF(VLOOKUP(C4,'Starter Calc'!$B$2:$E$600,4,FALSE)="","",VLOOKUP(C4,'Starter Calc'!$B$2:$E$600,4,FALSE)),"") ->  | F4: =IFERROR(VLOOKUP($C4,'ADP-Rank'!$A$2:$D$600,3,FALSE),"") -> ANA | G4: =IFERROR(VLOOKUP($C4,'ADP-Rank'!$A$2:$W$600,23,FALSE),"") -> 32 | H4: =IFERROR(IF(ISBLANK($B4),ROUND(((AS4/$AS$1)*(Personalize!$A$3-$AQ$1))+1,0),""),"") -> 39 | I4: =IFERROR(CHOOSE(Personalize!$E$32,VLOOKUP($C4,'ADP-Rank'!$A$2:$U$600,13,FALSE),VLOOKUP($C4,'ADP-Rank'!$A$2:$U$600,14,FALSE),VLOOKUP($C4,'ADP-Rank'!$A$2:$U$600,15,FALSE),VLOOKUP($C4,'ADP-Rank'!$A$2:$U$600,16,FALSE),VLOOKUP($C4,'ADP-Rank'!$A$2:$U$600,17,FALSE),VLOOKUP($C4,'ADP-Rank'!$A$2:$U$600,18,FALSE),VLOOKUP($C4,'ADP-Rank'!$A$2:$U$600,19,FALSE),VLOOKUP($C4,'ADP-Rank'!$A$2:$U$600,20,FALSE)),"") -> 2.857142857 | J4: =IF(ISBLANK($B4),IFERROR(CHOOSE(Personalize!$E$31,(VLOOKUP(C4,'ADP-Rank'!$A$2:$E$600,5,FALSE)*(Personalize!$A$3-$AQ$1)+1),(VLOOKUP(C4,'ADP-Rank'!$A$2:$E$600,4,FALSE)*(Personalize!$A$3-$AQ$1)+1),(VLOOKUP(C4,'ADP-Rank'!$A$2:$G$600,6,FALSE)*(Personalize!$A$3-$AQ$1)+1),(VLOOKUP(C4,'ADP-Rank'!$A$2:$Z$600,7,FALSE)*(Personalize!$A$3-$AQ$1)+1),(VLOOKUP(C4,'ADP-Rank'!$A$2:$Z$600,8,FALSE)*(Personalize!$A$3-$AQ$1)+1),(VLOOKUP(C4,'ADP-Rank'!$A$2:$Z$600,9,FALSE)*(Personalize!$A$3-$AQ$1)+1),(VLOOKUP(C4,'ADP-Rank'!$A$2:$Z$600,10,FALSE)*(Personalize!$A$3-$AQ$1)+1)),""),"") -> 42.0280488 | K4: =IFERROR(RANK($L4,$L$4:$L$600,0),"") -> 1 | L4: =IF((SUM(N4:AA4)=0),"",SUM(N4:AA4)) -> 9.813190538 | M4: =IFERROR(IF((OR($D4="RP",$D4="SP")),VLOOKUP($D4,'Filtered-P'!$V$3:$Y$4,4,FALSE), VLOOKUP($D4,Filtered!$AE$3:$AH$14,4,FALSE)),"") -> 1.344129608 | N4: =IFERROR(IF((OR($D4="RP",$D4="SP")),IF(Personalize!$E$10=TRUE,(((VLOOKUP($C4,Pitcher!$A$1:$P$600,2,FALSE))-'Filtered-P'!$W$8)/'Filtered-P'!$X$8),""),IF(Personalize!$E$4=TRUE,(((VLOOKUP($C4,Hitter!$A$1:$AD$600,21,FALSE))-Filtered!$AF$35)/Filtered!$AG$35),"")),"") -> 2.179107376 | O4: =IFERROR(IF((OR($D4="RP",$D4="SP")),IF(Personalize!$E$12=TRUE,(((VLOOKUP($C4,Pitcher!$A$1:$P$600,9,FALSE))-'Filtered-P'!$W$15)/'Filtered-P'!$X$15),""),IF(Personalize!$E$3=TRUE,(((VLOOKUP($C4,Hitter!$A$1:$AB$600,9,FALSE))-Filtered!$AF$25)/Filtered!$AG$25),"")),"") -> 2.681864588 | P4: =IFERROR(IF((OR($D4="RP",$D4="SP")),IF(Personalize!$E$11=TRUE,(((VLOOKUP($C4,Pitcher!$A$1:$P$600,7,FALSE))-'Filtered-P'!$W$13)/'Filtered-P'!$X$13),""),IF(Personalize!$E$2=TRUE,(((VLOOKUP($C4,Hitter!$A$1:$AB$600,4,FALSE))-Filtered!$AF$20)/Filtered!$AG$20),"")),"") -> 2.639019007 | Q4: =IFERROR(IF((OR($D4="RP",$D4="SP")),IF(Personalize!$E$13=TRUE,(((VLOOKUP($C4,Pitcher!$A$1:$P$600,13,FALSE))-'Filtered-P'!$W$19)/'Filtered-P'!$X$19),""),IF(Personalize!$E$5=TRUE,(((VLOOKUP($C4,Hitter!$A$1:$AB$600,10,FALSE))-Filtered!$AF$26)/Filtered!$AG$26),"")),"") -> 2.429555666 | R4: =IFERROR(IF((OR($D4="RP",$D4="SP")),IF(Personalize!$E$14=TRUE,(((VLOOKUP($C4,Pitcher!$A$1:$P$600,14,FALSE))-'Filtered-P'!$W$20)/'Filtered-P'!$X$20),""),IF(Personalize!$E$6=TRUE,(((VLOOKUP($C4,Hitter!$A$1:$AB$600,11,FALSE))-Filtered!$AF$27)/Filtered!$AG$27),"")),"") -> -0.1163560997 | S4: =IFERROR(IF((OR($D4="RP",$D4="SP")),IF(Personalize!$E$16=TRUE,(((VLOOKUP($C4,Pitcher!$A$1:$P$600,3,FALSE))-'Filtered-P'!$W$9)/'Filtered-P'!$X$9),""),IF(Personalize!$E$7=TRUE,(((VLOOKUP($C4,Hitter!$A$1:$AD$600,23,FALSE))-Filtered!$AF$37)/Filtered!$AG$37),"")),"") ->  | T4: =IFERROR(IF((OR($D4="RP",$D4="SP")),IF(Personalize!$E$15=TRUE,(((VLOOKUP($C4,Pitcher!$A$1:$P$600,15,FALSE))-'Filtered-P'!$W$21)/'Filtered-P'!$X$21),""),IF(Personalize!$E$8=TRUE,(((VLOOKUP($C4,Hitter!$A$1:$AD$600,22,FALSE))-Filtered!$AF$36)/Filtered!$AG$36),"")),"") ->  | U4: =IFERROR(IF((OR($D4="RP",$D4="SP")),IF(Personalize!$E$17=TRUE,(((VLOOKUP($C4,Pitcher!$A$1:$P$600,16,FALSE))-'Filtered-P'!$W$22)/'Filtered-P'!$X$22),""),IF(Personalize!$E$9=TRUE,(((VLOOKUP($C4,Hitter!$A$1:$AD$600,24,FALSE))-Filtered!$AF$38)/Filtered!$AG$38),"")),"") ->  | V4: =IFERROR(IF((OR($D4="RP",$D4="SP")),IF(Personalize!$E$37=TRUE,(((VLOOKUP($C4,Pitcher!$A$1:$Z$600,17,FALSE))-'Filtered-P'!$W$25)/'Filtered-P'!$X$25),""),IF(Personalize!$E$39=TRUE,(((VLOOKUP($C4,Hitter!$A$1:$X$600,5,FALSE))-Filtered!$AF$21)/Filtered!$AG$21),"")),"") ->  | W4: =IFERROR(IF((OR($D4="RP",$D4="SP")),IF(Personalize!$E$38=TRUE,(((VLOOKUP($C4,Pitcher!$A$1:$Z$600,18,FALSE))-'Filtered-P'!$W$26)/'Filtered-P'!$X$26),""),IF(Personalize!$E$40=TRUE,(((VLOOKUP($C4,Hitter!$A$1:$X$600,13,FALSE))-Filtered!$AF$29)/Filtered!$AG$29),"")),"") ->  | X4: =IFERROR(IF((OR($D4="RP",$D4="SP")),IF(Personalize!$E$45=TRUE,(((VLOOKUP($C4,Pitcher!$A$1:$Z$600,4,FALSE))-'Filtered-P'!$W$10)/'Filtered-P'!$X$10),""),IF(Personalize!$E$41=TRUE,(((VLOOKUP($C4,Hitter!$A$1:$AD$600,19,FALSE))-Filtered!$AF$43)/Filtered!$AG$43),"")),"") ->  | Y4: =IFERROR(IF((OR($D4="RP",$D4="SP")),IF(Personalize!$E$46=TRUE,(((VLOOKUP($C4,Pitcher!$A$1:$Z$600,19,FALSE))-'Filtered-P'!$W$27)/'Filtered-P'!$X$27),""),IF(Personalize!$E$44=TRUE,(((VLOOKUP($C4,Hitter!$A$1:$AD$600,20,FALSE))-Filtered!$AF$44)/Filtered!$AG$44),"")),"") ->  | Z4: =IFERROR(IF((OR($D4="RP",$D4="SP")),IF(Personalize!$E$47=TRUE,(((VLOOKUP($C4,Pitcher!$A$1:$Z$600,6,FALSE))-'Filtered-P'!$W$12)/'Filtered-P'!$X$12),""),IF(Personalize!$E$42=TRUE,(((VLOOKUP($C4,Hitter!$A$1:$AD$600,7,FALSE))-Filtered!$AF$23)/Filtered!$AG$23),"")),"") ->  | AA4: =IFERROR(IF((OR($D4="RP",$D4="SP")),IF(Personalize!$E$48=TRUE,(((VLOOKUP($C4,Pitcher!$A$1:$Z$600,5,FALSE))-'Filtered-P'!$W$11)/'Filtered-P'!$X$11),""),IF(Personalize!$E$43=TRUE,(((VLOOKUP($C4,Hitter!$A$1:$AD$600,8,FALSE))-Filtered!$AF$24)/Filtered!$AG$24),"")),"") ->  | AB4: =IFERROR(IF((OR($D4="RP",$D4="SP")),VLOOKUP($C4,Pitcher!$A$1:$P$600,2,FALSE),""),"") ->  | AC4: =IFERROR(IF((OR($D4="RP",$D4="SP")),VLOOKUP($C4,Pitcher!$A$1:$P$600,9,FALSE),""),"") ->  | AD4: =IFERROR(IF((OR($D4="RP",$D4="SP")),VLOOKUP($C4,Pitcher!$A$1:$P$600,7,FALSE),""),"") ->  | AE4: =IFERROR(IF((OR($D4="RP",$D4="SP")),VLOOKUP($C4,Pitcher!$A$1:$P$600,10,FALSE),""),"") ->  | AF4: =IFERROR(IF((OR($D4="RP",$D4="SP")),VLOOKUP($C4,Pitcher!$A$1:$P$600,11,FALSE),""),"") ->  | AG4: =IFERROR(IF((OR($D4="RP",$D4="SP")),"",VLOOKUP($C4,Hitter!$A$1:$X$600,15,FALSE)),"") -> 0.3048280136 | AH4: =IFERROR(IF((OR($D4="RP",$D4="SP")),"",VLOOKUP($C4,Hitter!$A$1:$X$600,9,FALSE)),"") -> 36.31872358 | AI4: =IFERROR(IF((OR($D4="RP",$D4="SP")),"",VLOOKUP($C4,Hitter!$A$1:$X$600,10,FALSE)),"") -> 106.1642373 | AJ4: =IFERROR(IF((OR($D4="RP",$D4="SP")),"",VLOOKUP($C4,Hitter!$A$1:$X$600,4,FALSE)),"") -> 101.6684309 | AK4: =IFERROR(IF((OR($D4="RP",$D4="SP")),"",VLOOKUP($C4,Hitter!$A$1:$X$600,11,FALSE)),"") -> 10.05489303 | AL4: =IF(ISBLANK(A4),0,1) -> 0 | AM4: =IF(L4="",0,1) -> 1 | AN4: =A4 -> 0 | AO4: =IF(D4="C",1,IF(D4="1B",2,IF(D4="2B",3,IF(D4="3B",4,IF(D4="SS",5,IF(D4="CI",6,IF(D4="MI",7,IF(D4="OF",11,IF(D4="LF",8,IF(D4="CF",9,IF(D4="RF",10,IF(D4="DH",12,IF(D4="SP",13,IF(D4="RP",14,IF(D4="P",15,16))))))))))))))) -> 2 | AP4: =VLOOKUP(C4,'Starter Calc'!$B$2:$BO$600,66,FALSE) -> Bench | AQ4: =VLOOKUP(C4,'Starter Calc'!$B$2:$AM$600,38,FALSE) -> Yes | AR4: =IFERROR(IF(ISTEXT($A4),"",IF((OR($D4="RP",$D4="SP")),ABS(VLOOKUP(D4,'Filtered-P'!$V$3:$Z$4,5,FALSE))+L4,ABS(VLOOKUP(D4,Filtered!$AE$3:$AI$14,5,FALSE))+L4)),"") -> 13.76440027 | AS4: =IFERROR(AR4+ABS($AR$1),"") -> 15.70147353 | AT4: =IF(AND($A4<>"",$B4<>""),B4,"N") -> N
C5: Miguel Cabrera | D5: =IFERROR(IF(VLOOKUP(C5,'ADP-Rank'!$A$2:$B$600,2,FALSE)="OF",VLOOKUP(C5,'Starter Calc'!$B$2:$AN$600,39,FALSE),(VLOOKUP(C5,'ADP-Rank'!$A$2:$B$600,2,FALSE))),"") -> 1B | E5: =IFERROR(IF(VLOOKUP(C5,'Starter Calc'!$B$2:$E$600,4,FALSE)="","",VLOOKUP(C5,'Starter Calc'!$B$2:$E$600,4,FALSE)),"") ->  | F5: =IFERROR(VLOOKUP($C5,'ADP-Rank'!$A$2:$D$600,3,FALSE),"") -> DET | G5: =IFERROR(VLOOKUP($C5,'ADP-Rank'!$A$2:$W$600,23,FALSE),"") -> 29 | H5: =IFERROR(IF(ISBLANK($B5),ROUND(((AS5/$AS$1)*(Personalize!$A$3-$AQ$1))+1,0),""),"") -> 36 | I5: =IFERROR(CHOOSE(Personalize!$E$32,VLOOKUP($C5,'ADP-Rank'!$A$2:$U$600,13,FALSE),VLOOKUP($C5,'ADP-Rank'!$A$2:$U$600,14,FALSE),VLOOKUP($C5,'ADP-Rank'!$A$2:$U$600,15,FALSE),VLOOKUP($C5,'ADP-Rank'!$A$2:$U$600,16,FALSE),VLOOKUP($C5,'ADP-Rank'!$A$2:$U$600,17,FALSE),VLOOKUP($C5,'ADP-Rank'!$A$2:$U$600,18,FALSE),VLOOKUP($C5,'ADP-Rank'!$A$2:$U$600,19,FALSE),VLOOKUP($C5,'ADP-Rank'!$A$2:$U$600,20,FALSE)),"") -> 2.428571429 | J5: =IF(ISBLANK($B5),IFERROR(CHOOSE(Personalize!$E$31,(VLOOKUP(C5,'ADP-Rank'!$A$2:$E$600,5,FALSE)*(Personalize!$A$3-$AQ$1)+1),(VLOOKUP(C5,'ADP-Rank'!$A$2:$E$600,4,FALSE)*(Personalize!$A$3-$AQ$1)+1),(VLOOKUP(C5,'ADP-Rank'!$A$2:$G$600,6,FALSE)*(Personalize!$A$3-$AQ$1)+1),(VLOOKUP(C5,'ADP-Rank'!$A$2:$Z$600,7,FALSE)*(Personalize!$A$3-$AQ$1)+1),(VLOOKUP(C5,'ADP-Rank'!$A$2:$Z$600,8,FALSE)*(Personalize!$A$3-$AQ$1)+1),(VLOOKUP(C5,'ADP-Rank'!$A$2:$Z$600,9,FALSE)*(Personalize!$A$3-$AQ$1)+1),(VLOOKUP(C5,'ADP-Rank'!$A$2:$Z$600,10,FALSE)*(Personalize!$A$3-$AQ$1)+1)),""),"") -> 44.31817048 | K5: 5 | L5: 8.670100309 | M5: =IFERROR(IF((OR($D5="RP",$D5="SP")),VLOOKUP($D5,'Filtered-P'!$V$3:$Y$4,4,FALSE), VLOOKUP($D5,Filtered!$AE$3:$AH$14,4,FALSE)),"") -> 1.344129608 | N5: =IFERROR(IF((OR($D5="RP",$D5="SP")),IF(Personalize!$E$10=TRUE,(((VLOOKUP($C5,Pitcher!$A$1:$P$600,2,FALSE))-'Filtered-P'!$W$8)/'Filtered-P'!$X$8),""),IF(Personalize!$E$4=TRUE,(((VLOOKUP($C5,Hitter!$A$1:$AD$600,21,FALSE))-Filtered!$AF$35)/Filtered!$AG$35),"")),"") -> 2.89516596 | O5: =IFERROR(IF((OR($D5="RP",$D5="SP")),IF(Personalize!$E$12=TRUE,(((VLOOKUP($C5,Pitcher!$A$1:$P$600,9,FALSE))-'Filtered-P'!$W$15)/'Filtered-P'!$X$15),""),IF(Personalize!$E$3=TRUE,(((VLOOKUP($C5,Hitter!$A$1:$AB$600,9,FALSE))-Filtered!$AF$25)/Filtered!$AG$25),"")),"") -> 1.914482314 | P5: =IFERROR(IF((OR($D5="RP",$D5="SP")),IF(Personalize!$E$11=TRUE,(((VLOOKUP($C5,Pitcher!$A$1:$P$600,7,FALSE))-'Filtered-P'!$W$13)/'Filtered-P'!$X$13),""),IF(Personalize!$E$2=TRUE,(((VLOOKUP($C5,Hitter!$A$1:$AB$600,4,FALSE))-Filtered!$AF$20)/Filtered!$AG$20),"")),"") -> 2.389802963 | Q5: =IFERROR(IF((OR($D5="RP",$D5="SP")),IF(Personalize!$E$13=TRUE,(((VLOOKUP($C5,Pitcher!$A$1:$P$600,13,FALSE))-'Filtered-P'!$W$19)/'Filtered-P'!$X$19),""),IF(Personalize!$E$5=TRUE,(((VLOOKUP($C5,Hitter!$A$1:$AB$600,10,FALSE))-Filtered!$AF$26)/Filtered!$AG$26),"")),"") -> 2.29752596 | R5: =IFERROR(IF((OR($D5="RP",$D5="SP")),IF(Personalize!$E$14=TRUE,(((VLOOKUP($C5,Pitcher!$A$1:$P$600,14,FALSE))-'Filtered-P'!$W$20)/'Filtered-P'!$X$20),""),IF(Personalize!$E$6=TRUE,(((VLOOKUP($C5,Hitter!$A$1:$AB$600,11,FALSE))-Filtered!$AF$27)/Filtered!$AG$27),"")),"") -> -0.8268768872 | S5: =IFERROR(IF((OR($D5="RP",$D5="SP")),IF(Personalize!$E$16=TRUE,(((VLOOKUP($C5,Pitcher!$A$1:$P$600,3,FALSE))-'Filtered-P'!$W$9)/'Filtered-P'!$X$9),""),IF(Personalize!$E$7=TRUE,(((VLOOKUP($C5,Hitter!$A$1:$AD$600,23,FALSE))-Filtered!$AF$37)/Filtered!$AG$37),"")),"") ->  | T5: =IFERROR(IF((OR($D5="RP",$D5="SP")),IF(Personalize!$E$15=TRUE,(((VLOOKUP($C5,Pitcher!$A$1:$P$600,15,FALSE))-'Filtered-P'!$W$21)/'Filtered-P'!$X$21),""),IF(Personalize!$E$8=TRUE,(((VLOOKUP($C5,Hitter!$A$1:$AD$600,22,FALSE))-Filtered!$AF$36)/Filtered!$AG$36),"")),"") ->  | U5: =IFERROR(IF((OR($D5="RP",$D5="SP")),IF(Personalize!$E$17=TRUE,(((VLOOKUP($C5,Pitcher!$A$1:$P$600,16,FALSE))-'Filtered-P'!$W$22)/'Filtered-P'!$X$22),""),IF(Personalize!$E$9=TRUE,(((VLOOKUP($C5,Hitter!$A$1:$AD$600,24,FALSE))-Filtered!$AF$38)/Filtered!$AG$38),"")),"") ->  | V5: =IFERROR(IF((OR($D5="RP",$D5="SP")),IF(Personalize!$E$37=TRUE,(((VLOOKUP($C5,Pitcher!$A$1:$Z$600,17,FALSE))-'Filtered-P'!$W$25)/'Filtered-P'!$X$25),""),IF(Personalize!$E$39=TRUE,(((VLOOKUP($C5,Hitter!$A$1:$X$600,5,FALSE))-Filtered!$AF$21)/Filtered!$AG$21),"")),"") ->  | W5: =IFERROR(IF((OR($D5="RP",$D5="SP")),IF(Personalize!$E$38=TRUE,(((VLOOKUP($C5,Pitcher!$A$1:$Z$600,18,FALSE))-'Filtered-P'!$W$26)/'Filtered-P'!$X$26),""),IF(Personalize!$E$40=TRUE,(((VLOOKUP($C5,Hitter!$A$1:$X$600,13,FALSE))-Filtered!$AF$29)/Filtered!$AG$29),"")),"") ->  | X5: =IFERROR(IF((OR($D5="RP",$D5="SP")),IF(Personalize!$E$45=TRUE,(((VLOOKUP($C5,Pitcher!$A$1:$Z$600,4,FALSE))-'Filtered-P'!$W$10)/'Filtered-P'!$X$10),""),IF(Personalize!$E$41=TRUE,(((VLOOKUP($C5,Hitter!$A$1:$AD$600,19,FALSE))-Filtered!$AF$43)/Filtered!$AG$43),"")),"") ->  | Y5: =IFERROR(IF((OR($D5="RP",$D5="SP")),IF(Personalize!$E$46=TRUE,(((VLOOKUP($C5,Pitcher!$A$1:$Z$600,19,FALSE))-'Filtered-P'!$W$27)/'Filtered-P'!$X$27),""),IF(Personalize!$E$44=TRUE,(((VLOOKUP($C5,Hitter!$A$1:$AD$600,20,FALSE))-Filtered!$AF$44)/Filtered!$AG$44),"")),"") ->  | Z5: =IFERROR(IF((OR($D5="RP",$D5="SP")),IF(Personalize!$E$47=TRUE,(((VLOOKUP($C5,Pitcher!$A$1:$Z$600,6,FALSE))-'Filtered-P'!$W$12)/'Filtered-P'!$X$12),""),IF(Personalize!$E$42=TRUE,(((VLOOKUP($C5,Hitter!$A$1:$AD$600,7,FALSE))-Filtered!$AF$23)/Filtered!$AG$23),"")),"") ->  | AA5: =IFERROR(IF((OR($D5="RP",$D5="SP")),IF(Personalize!$E$48=TRUE,(((VLOOKUP($C5,Pitcher!$A$1:$Z$600,5,FALSE))-'Filtered-P'!$W$11)/'Filtered-P'!$X$11),""),IF(Personalize!$E$43=TRUE,(((VLOOKUP($C5,Hitter!$A$1:$AD$600,8,FALSE))-Filtered!$AF$24)/Filtered!$AG$24),"")),"") ->  | AB5: =IFERROR(IF((OR($D5="RP",$D5="SP")),VLOOKUP($C5,Pitcher!$A$1:$P$600,2,FALSE),""),"") ->  | AC5: =IFERROR(IF((OR($D5="RP",$D5="SP")),VLOOKUP($C5,Pitcher!$A$1:$P$600,9,FALSE),""),"") ->  | AD5: =IFERROR(IF((OR($D5="RP",$D5="SP")),VLOOKUP($C5,Pitcher!$A$1:$P$600,7,FALSE),""),"") ->  | AE5: =IFERROR(IF((OR($D5="RP",$D5="SP")),VLOOKUP($C5,Pitcher!$A$1:$P$600,10,FALSE),""),"") ->  | AF5: =IFERROR(IF((OR($D5="RP",$D5="SP")),VLOOKUP($C5,Pitcher!$A$1:$P$600,11,FALSE),""),"") ->  | AG5: =IFERROR(IF((OR($D5="RP",$D5="SP")),"",VLOOKUP($C5,Hitter!$A$1:$X$600,15,FALSE)),"") -> 0.3153110755 | AH5: =IFERROR(IF((OR($D5="RP",$D5="SP")),"",VLOOKUP($C5,Hitter!$A$1:$X$600,9,FALSE)),"") -> 30.91551592 | AI5: =IFERROR(IF((OR($D5="RP",$D5="SP")),"",VLOOKUP($C5,Hitter!$A$1:$X$600,10,FALSE)),"") -> 104.0978802 | AJ5: =IFERROR(IF((OR($D5="RP",$D5="SP")),"",VLOOKUP($C5,Hitter!$A$1:$X$600,4,FALSE)),"") -> 98.79660728 | AK5: =IFERROR(IF((OR($D5="RP",$D5="SP")),"",VLOOKUP($C5,Hitter!$A$1:$X$600,11,FALSE)),"") -> 3.26408184 | AL5: 0 | AM5: 1 | AN5: 0 | AO5: 2 | AP5: =VLOOKUP(C5,'Starter Calc'!$B$2:$BO$600,66,FALSE) -> Bench | AQ5: =VLOOKUP(C5,'Starter Calc'!$B$2:$AM$600,38,FALSE) -> Yes | AR5: =IFERROR(IF(ISTEXT($A5),"",IF((OR($D5="RP",$D5="SP")),ABS(VLOOKUP(D5,'Filtered-P'!$V$3:$Z$4,5,FALSE))+L5,ABS(VLOOKUP(D5,Filtered!$AE$3:$AI$14,5,FALSE))+L5)),"") -> 12.62131004 | AS5: 14.5583833 | AT5: N
C6: Clayton Kershaw | D6: =IFERROR(IF(VLOOKUP(C6,'ADP-Rank'!$A$2:$B$600,2,FALSE)="OF",VLOOKUP(C6,'Starter Calc'!$B$2:$AN$600,39,FALSE),(VLOOKUP(C6,'ADP-Rank'!$A$2:$B$600,2,FALSE))),"") -> SP | E6: =IFERROR(IF(VLOOKUP(C6,'Starter Calc'!$B$2:$E$600,4,FALSE)="","",VLOOKUP(C6,'Starter Calc'!$B$2:$E$600,4,FALSE)),"") ->  | F6: =IFERROR(VLOOKUP($C6,'ADP-Rank'!$A$2:$D$600,3,FALSE),"") -> LA | G6: =IFERROR(VLOOKUP($C6,'ADP-Rank'!$A$2:$W$600,23,FALSE),"") -> 24 | H6: =IFERROR(IF(ISBLANK($B6),ROUND(((AS6/$AS$1)*(Personalize!$A$3-$AQ$1))+1,0),""),"") -> 34 | I6: =IFERROR(CHOOSE(Personalize!$E$32,VLOOKUP($C6,'ADP-Rank'!$A$2:$U$600,13,FALSE),VLOOKUP($C6,'ADP-Rank'!$A$2:$U$600,14,FALSE),VLOOKUP($C6,'ADP-Rank'!$A$2:$U$600,15,FALSE),VLOOKUP($C6,'ADP-Rank'!$A$2:$U$600,16,FALSE),VLOOKUP($C6,'ADP-Rank'!$A$2:$U$600,17,FALSE),VLOOKUP($C6,'ADP-Rank'!$A$2:$U$600,18,FALSE),VLOOKUP($C6,'ADP-Rank'!$A$2:$U$600,19,FALSE),VLOOKUP($C6,'ADP-Rank'!$A$2:$U$600,20,FALSE)),"") -> 18 | J6: =IF(ISBLANK($B6),IFERROR(CHOOSE(Personalize!$E$31,(VLOOKUP(C6,'ADP-Rank'!$A$2:$E$600,5,FALSE)*(Personalize!$A$3-$AQ$1)+1),(VLOOKUP(C6,'ADP-Rank'!$A$2:$E$600,4,FALSE)*(Personalize!$A$3-$AQ$1)+1),(VLOOKUP(C6,'ADP-Rank'!$A$2:$G$600,6,FALSE)*(Personalize!$A$3-$AQ$1)+1),(VLOOKUP(C6,'ADP-Rank'!$A$2:$Z$600,7,FALSE)*(Personalize!$A$3-$AQ$1)+1),(VLOOKUP(C6,'ADP-Rank'!$A$2:$Z$600,8,FALSE)*(Personalize!$A$3-$AQ$1)+1),(VLOOKUP(C6,'ADP-Rank'!$A$2:$Z$600,9,FALSE)*(Personalize!$A$3-$AQ$1)+1),(VLOOKUP(C6,'ADP-Rank'!$A$2:$Z$600,10,FALSE)*(Personalize!$A$3-$AQ$1)+1)),""),"") -> 33.20109467 | K6: 2 | L6: 9.042405737 | M6: =IFERROR(IF((OR($D6="RP",$D6="SP")),VLOOKUP($D6,'Filtered-P'!$V$3:$Y$4,4,FALSE), VLOOKUP($D6,Filtered!$AE$3:$AH$14,4,FALSE)),"") -> 0.655283346 | N6: =IFERROR(IF((OR($D6="RP",$D6="SP")),IF(Personalize!$E$10=TRUE,(((VLOOKUP($C6,Pitcher!$A$1:$P$600,2,FALSE))-'Filtered-P'!$W$8)/'Filtered-P'!$X$8),""),IF(Personalize!$E$4=TRUE,(((VLOOKUP($C6,Hitter!$A$1:$AD$600,21,FALSE))-Filtered!$AF$35)/Filtered!$AG$35),"")),"") -> 1.563883656 | O6: =IFERROR(IF((OR($D6="RP",$D6="SP")),IF(Personalize!$E$12=TRUE,(((VLOOKUP($C6,Pitcher!$A$1:$P$600,9,FALSE))-'Filtered-P'!$W$15)/'Filtered-P'!$X$15),""),IF(Personalize!$E$3=TRUE,(((VLOOKUP($C6,Hitter!$A$1:$AB$600,9,FALSE))-Filtered!$AF$25)/Filtered!$AG$25),"")),"") -> -0.5372019451 | P6: =IFERROR(IF((OR($D6="RP",$D6="SP")),IF(Personalize!$E$11=TRUE,(((VLOOKUP($C6,Pitcher!$A$1:$P$600,7,FALSE))-'Filtered-P'!$W$13)/'Filtered-P'!$X$13),""),IF(Personalize!$E$2=TRUE,(((VLOOKUP($C6,Hitter!$A$1:$AB$600,4,FALSE))-Filtered!$AF$20)/Filtered!$AG$20),"")),"") -> 2.054487857 | Q6: =IFERROR(IF((OR($D6="RP",$D6="SP")),IF(Personalize!$E$13=TRUE,(((VLOOKUP($C6,Pitcher!$A$1:$P$600,13,FALSE))-'Filtered-P'!$W$19)/'Filtered-P'!$X$19),""),IF(Personalize!$E$5=TRUE,(((VLOOKUP($C6,Hitter!$A$1:$AB$600,10,FALSE))-Filtered!$AF$26)/Filtered!$AG$26),"")),"") -> 3.539199695 | R6: =IFERROR(IF((OR($D6="RP",$D6="SP")),IF(Personalize!$E$14=TRUE,(((VLOOKUP($C6,Pitcher!$A$1:$P$600,14,FALSE))-'Filtered-P'!$W$20)/'Filtered-P'!$X$20),""),IF(Personalize!$E$6=TRUE,(((VLOOKUP($C6,Hitter!$A$1:$AB$600,11,FALSE))-Filtered!$AF$27)/Filtered!$AG$27),"")),"") -> 2.422036475 | S6: =IFERROR(IF((OR($D6="RP",$D6="SP")),IF(Personalize!$E$16=TRUE,(((VLOOKUP($C6,Pitcher!$A$1:$P$600,3,FALSE))-'Filtered-P'!$W$9)/'Filtered-P'!$X$9),""),IF(Personalize!$E$7=TRUE,(((VLOOKUP($C6,Hitter!$A$1:$AD$600,23,FALSE))-Filtered!$AF$37)/Filtered!$AG$37),"")),"") ->  | T6: =IFERROR(IF((OR($D6="RP",$D6="SP")),IF(Personalize!$E$15=TRUE,(((VLOOKUP($C6,Pitcher!$A$1:$P$600,15,FALSE))-'Filtered-P'!$W$21)/'Filtered-P'!$X$21),""),IF(Personalize!$E$8=TRUE,(((VLOOKUP($C6,Hitter!$A$1:$AD$600,22,FALSE))-Filtered!$AF$36)/Filtered!$AG$36),"")),"") ->  | U6: =IFERROR(IF((OR($D6="RP",$D6="SP")),IF(Personalize!$E$17=TRUE,(((VLOOKUP($C6,Pitcher!$A$1:$P$600,16,FALSE))-'Filtered-P'!$W$22)/'Filtered-P'!$X$22),""),IF(Personalize!$E$9=TRUE,(((VLOOKUP($C6,Hitter!$A$1:$AD$600,24,FALSE))-Filtered!$AF$38)/Filtered!$AG$38),"")),"") ->  | V6: =IFERROR(IF((OR($D6="RP",$D6="SP")),IF(Personalize!$E$37=TRUE,(((VLOOKUP($C6,Pitcher!$A$1:$Z$600,17,FALSE))-'Filtered-P'!$W$25)/'Filtered-P'!$X$25),""),IF(Personalize!$E$39=TRUE,(((VLOOKUP($C6,Hitter!$A$1:$X$600,5,FALSE))-Filtered!$AF$21)/Filtered!$AG$21),"")),"") ->  | W6: =IFERROR(IF((OR($D6="RP",$D6="SP")),IF(Personalize!$E$38=TRUE,(((VLOOKUP($C6,Pitcher!$A$1:$Z$600,18,FALSE))-'Filtered-P'!$W$26)/'Filtered-P'!$X$26),""),IF(Personalize!$E$40=TRUE,(((VLOOKUP($C6,Hitter!$A$1:$X$600,13,FALSE))-Filtered!$AF$29)/Filtered!$AG$29),"")),"") ->  | X6: =IFERROR(IF((OR($D6="RP",$D6="SP")),IF(Personalize!$E$45=TRUE,(((VLOOKUP($C6,Pitcher!$A$1:$Z$600,4,FALSE))-'Filtered-P'!$W$10)/'Filtered-P'!$X$10),""),IF(Personalize!$E$41=TRUE,(((VLOOKUP($C6,Hitter!$A$1:$AD$600,19,FALSE))-Filtered!$AF$43)/Filtered!$AG$43),"")),"") ->  | Y6: =IFERROR(IF((OR($D6="RP",$D6="SP")),IF(Personalize!$E$46=TRUE,(((VLOOKUP($C6,Pitcher!$A$1:$Z$600,19,FALSE))-'Filtered-P'!$W$27)/'Filtered-P'!$X$27),""),IF(Personalize!$E$44=TRUE,(((VLOOKUP($C6,Hitter!$A$1:$AD$600,20,FALSE))-Filtered!$AF$44)/Filtered!$AG$44),"")),"") ->  | Z6: =IFERROR(IF((OR($D6="RP",$D6="SP")),IF(Personalize!$E$47=TRUE,(((VLOOKUP($C6,Pitcher!$A$1:$Z$600,6,FALSE))-'Filtered-P'!$W$12)/'Filtered-P'!$X$12),""),IF(Personalize!$E$42=TRUE,(((VLOOKUP($C6,Hitter!$A$1:$AD$600,7,FALSE))-Filtered!$AF$23)/Filtered!$AG$23),"")),"") ->  | AA6: =IFERROR(IF((OR($D6="RP",$D6="SP")),IF(Personalize!$E$48=TRUE,(((VLOOKUP($C6,Pitcher!$A$1:$Z$600,5,FALSE))-'Filtered-P'!$W$11)/'Filtered-P'!$X$11),""),IF(Personalize!$E$43=TRUE,(((VLOOKUP($C6,Hitter!$A$1:$AD$600,8,FALSE))-Filtered!$AF$24)/Filtered!$AG$24),"")),"") ->  | AB6: =IFERROR(IF((OR($D6="RP",$D6="SP")),VLOOKUP($C6,Pitcher!$A$1:$P$600,2,FALSE),""),"") -> 15.13459003 | AC6: =IFERROR(IF((OR($D6="RP",$D6="SP")),VLOOKUP($C6,Pitcher!$A$1:$P$600,9,FALSE),""),"") -> 0 | AD6: =IFERROR(IF((OR($D6="RP",$D6="SP")),VLOOKUP($C6,Pitcher!$A$1:$P$600,7,FALSE),""),"") -> 221.9012233 | AE6: =IFERROR(IF((OR($D6="RP",$D6="SP")),VLOOKUP($C6,Pitcher!$A$1:$P$600,10,FALSE),""),"") -> 2.775329483 | AF6: =IFERROR(IF((OR($D6="RP",$D6="SP")),VLOOKUP($C6,Pitcher!$A$1:$P$600,11,FALSE),""),"") -> 1.108239522 | AG6: =IFERROR(IF((OR($D6="RP",$D6="SP")),"",VLOOKUP($C6,Hitter!$A$1:$X$600,15,FALSE)),"") ->  | AH6: =IFERROR(IF((OR($D6="RP",$D6="SP")),"",VLOOKUP($C6,Hitter!$A$1:$X$600,9,FALSE)),"") ->  | AI6: =IFERROR(IF((OR($D6="RP",$D6="SP")),"",VLOOKUP($C6,Hitter!$A$1:$X$600,10,FALSE)),"") ->  | AJ6: =IFERROR(IF((OR($D6="RP",$D6="SP")),"",VLOOKUP($C6,Hitter!$A$1:$X$600,4,FALSE)),"") ->  | AK6: =IFERROR(IF((OR($D6="RP",$D6="SP")),"",VLOOKUP($C6,Hitter!$A$1:$X$600,11,FALSE)),"") ->  | AL6: 0 | AM6: 1 | AN6: 0 | AO6: 13 | AP6: =VLOOKUP(C6,'Starter Calc'!$B$2:$BO$600,66,FALSE) -> Bench | AQ6: =VLOOKUP(C6,'Starter Calc'!$B$2:$AM$600,38,FALSE) -> Yes | AR6: =IFERROR(IF(ISTEXT($A6),"",IF((OR($D6="RP",$D6="SP")),ABS(VLOOKUP(D6,'Filtered-P'!$V$3:$Z$4,5,FALSE))+L6,ABS(VLOOKUP(D6,Filtered!$AE$3:$AI$14,5,FALSE))+L6)),"") -> 11.6610631 | AS6: 13.59813635 | AT6: N
C7: Roy Halladay | D7: =IFERROR(IF(VLOOKUP(C7,'ADP-Rank'!$A$2:$B$600,2,FALSE)="OF",VLOOKUP(C7,'Starter Calc'!$B$2:$AN$600,39,FALSE),(VLOOKUP(C7,'ADP-Rank'!$A$2:$B$600,2,FALSE))),"") -> SP | E7: =IFERROR(IF(VLOOKUP(C7,'Starter Calc'!$B$2:$E$600,4,FALSE)="","",VLOOKUP(C7,'Starter Calc'!$B$2:$E$600,4,FALSE)),"") ->  | F7: =IFERROR(VLOOKUP($C7,'ADP-Rank'!$A$2:$D$600,3,FALSE),"") -> PHI | G7: =IFERROR(VLOOKUP($C7,'ADP-Rank'!$A$2:$W$600,23,FALSE),"") -> 35 | H7: =IFERROR(IF(ISBLANK($B7),ROUND(((AS7/$AS$1)*(Personalize!$A$3-$AQ$1))+1,0),""),"") -> 33 | I7: =IFERROR(CHOOSE(Personalize!$E$32,VLOOKUP($C7,'ADP-Rank'!$A$2:$U$600,13,FALSE),VLOOKUP($C7,'ADP-Rank'!$A$2:$U$600,14,FALSE),VLOOKUP($C7,'ADP-Rank'!$A$2:$U$600,15,FALSE),VLOOKUP($C7,'ADP-Rank'!$A$2:$U$600,16,FALSE),VLOOKUP($C7,'ADP-Rank'!$A$2:$U$600,17,FALSE),VLOOKUP($C7,'ADP-Rank'!$A$2:$U$600,18,FALSE),VLOOKUP($C7,'ADP-Rank'!$A$2:$U$600,19,FALSE),VLOOKUP($C7,'ADP-Rank'!$A$2:$U$600,20,FALSE)),"") -> 15.42857143 | J7: =IF(ISBLANK($B7),IFERROR(CHOOSE(Personalize!$E$31,(VLOOKUP(C7,'ADP-Rank'!$A$2:$E$600,5,FALSE)*(Personalize!$A$3-$AQ$1)+1),(VLOOKUP(C7,'ADP-Rank'!$A$2:$E$600,4,FALSE)*(Personalize!$A$3-$AQ$1)+1),(VLOOKUP(C7,'ADP-Rank'!$A$2:$G$600,6,FALSE)*(Personalize!$A$3-$AQ$1)+1),(VLOOKUP(C7,'ADP-Rank'!$A$2:$Z$600,7,FALSE)*(Personalize!$A$3-$AQ$1)+1),(VLOOKUP(C7,'ADP-Rank'!$A$2:$Z$600,8,FALSE)*(Personalize!$A$3-$AQ$1)+1),(VLOOKUP(C7,'ADP-Rank'!$A$2:$Z$600,9,FALSE)*(Personalize!$A$3-$AQ$1)+1),(VLOOKUP(C7,'ADP-Rank'!$A$2:$Z$600,10,FALSE)*(Personalize!$A$3-$AQ$1)+1)),""),"") -> 34.04084882 | K7: 3 | L7: 8.923869111 | M7: =IFERROR(IF((OR($D7="RP",$D7="SP")),VLOOKUP($D7,'Filtered-P'!$V$3:$Y$4,4,FALSE), VLOOKUP($D7,Filtered!$AE$3:$AH$14,4,FALSE)),"") -> 0.655283346 | N7: =IFERROR(IF((OR($D7="RP",$D7="SP")),IF(Personalize!$E$10=TRUE,(((VLOOKUP($C7,Pitcher!$A$1:$P$600,2,FALSE))-'Filtered-P'!$W$8)/'Filtered-P'!$X$8),""),IF(Personalize!$E$4=TRUE,(((VLOOKUP($C7,Hitter!$A$1:$AD$600,21,FALSE))-Filtered!$AF$35)/Filtered!$AG$35),"")),"") -> 1.814778347 | O7: =IFERROR(IF((OR($D7="RP",$D7="SP")),IF(Personalize!$E$12=TRUE,(((VLOOKUP($C7,Pitcher!$A$1:$P$600,9,FALSE))-'Filtered-P'!$W$15)/'Filtered-P'!$X$15),""),IF(Personalize!$E$3=TRUE,(((VLOOKUP($C7,Hitter!$A$1:$AB$600,9,FALSE))-Filtered!$AF$25)/Filtered!$AG$25),"")),"") -> -0.5372019451 | P7: =IFERROR(IF((OR($D7="RP",$D7="SP")),IF(Personalize!$E$11=TRUE,(((VLOOKUP($C7,Pitcher!$A$1:$P$600,7,FALSE))-'Filtered-P'!$W$13)/'Filtered-P'!$X$13),""),IF(Personalize!$E$2=TRUE,(((VLOOKUP($C7,Hitter!$A$1:$AB$600,4,FALSE))-Filtered!$AF$20)/Filtered!$AG$20),"")),"") -> 1.462537038 | Q7: =IFERROR(IF((OR($D7="RP",$D7="SP")),IF(Personalize!$E$13=TRUE,(((VLOOKUP($C7,Pitcher!$A$1:$P$600,13,FALSE))-'Filtered-P'!$W$19)/'Filtered-P'!$X$19),""),IF(Personalize!$E$5=TRUE,(((VLOOKUP($C7,Hitter!$A$1:$AB$600,10,FALSE))-Filtered!$AF$26)/Filtered!$AG$26),"")),"") -> 3.149965129 | R7: =IFERROR(IF((OR($D7="RP",$D7="SP")),IF(Personalize!$E$14=TRUE,(((VLOOKUP($C7,Pitcher!$A$1:$P$600,14,FALSE))-'Filtered-P'!$W$20)/'Filtered-P'!$X$20),""),IF(Personalize!$E$6=TRUE,(((VLOOKUP($C7,Hitter!$A$1:$AB$600,11,FALSE))-Filtered!$AF$27)/Filtered!$AG$27),"")),"") -> 3.033790543 | S7: =IFERROR(IF((OR($D7="RP",$D7="SP")),IF(Personalize!$E$16=TRUE,(((VLOOKUP($C7,Pitcher!$A$1:$P$600,3,FALSE))-'Filtered-P'!$W$9)/'Filtered-P'!$X$9),""),IF(Personalize!$E$7=TRUE,(((VLOOKUP($C7,Hitter!$A$1:$AD$600,23,FALSE))-Filtered!$AF$37)/Filtered!$AG$37),"")),"") ->  | T7: =IFERROR(IF((OR($D7="RP",$D7="SP")),IF(Personalize!$E$15=TRUE,(((VLOOKUP($C7,Pitcher!$A$1:$P$600,15,FALSE))-'Filtered-P'!$W$21)/'Filtered-P'!$X$21),""),IF(Personalize!$E$8=TRUE,(((VLOOKUP($C7,Hitter!$A$1:$AD$600,22,FALSE))-Filtered!$AF$36)/Filtered!$AG$36),"")),"") ->  | U7: =IFERROR(IF((OR($D7="RP",$D7="SP")),IF(Personalize!$E$17=TRUE,(((VLOOKUP($C7,Pitcher!$A$1:$P$600,16,FALSE))-'Filtered-P'!$W$22)/'Filtered-P'!$X$22),""),IF(Personalize!$E$9=TRUE,(((VLOOKUP($C7,Hitter!$A$1:$AD$600,24,FALSE))-Filtered!$AF$38)/Filtered!$AG$38),"")),"") ->  | V7: =IFERROR(IF((OR($D7="RP",$D7="SP")),IF(Personalize!$E$37=TRUE,(((VLOOKUP($C7,Pitcher!$A$1:$Z$600,17,FALSE))-'Filtered-P'!$W$25)/'Filtered-P'!$X$25),""),IF(Personalize!$E$39=TRUE,(((VLOOKUP($C7,Hitter!$A$1:$X$600,5,FALSE))-Filtered!$AF$21)/Filtered!$AG$21),"")),"") ->  | W7: =IFERROR(IF((OR($D7="RP",$D7="SP")),IF(Personalize!$E$38=TRUE,(((VLOOKUP($C7,Pitcher!$A$1:$Z$600,18,FALSE))-'Filtered-P'!$W$26)/'Filtered-P'!$X$26),""),IF(Personalize!$E$40=TRUE,(((VLOOKUP($C7,Hitter!$A$1:$X$600,13,FALSE))-Filtered!$AF$29)/Filtered!$AG$29),"")),"") ->  | X7: =IFERROR(IF((OR($D7="RP",$D7="SP")),IF(Personalize!$E$45=TRUE,(((VLOOKUP($C7,Pitcher!$A$1:$Z$600,4,FALSE))-'Filtered-P'!$W$10)/'Filtered-P'!$X$10),""),IF(Personalize!$E$41=TRUE,(((VLOOKUP($C7,Hitter!$A$1:$AD$600,19,FALSE))-Filtered!$AF$43)/Filtered!$AG$43),"")),"") ->  | Y7: =IFERROR(IF((OR($D7="RP",$D7="SP")),IF(Personalize!$E$46=TRUE,(((VLOOKUP($C7,Pitcher!$A$1:$Z$600,19,FALSE))-'Filtered-P'!$W$27)/'Filtered-P'!$X$27),""),IF(Personalize!$E$44=TRUE,(((VLOOKUP($C7,Hitter!$A$1:$AD$600,20,FALSE))-Filtered!$AF$44)/Filtered!$AG$44),"")),"") ->  | Z7: =IFERROR(IF((OR($D7="RP",$D7="SP")),IF(Personalize!$E$47=TRUE,(((VLOOKUP($C7,Pitcher!$A$1:$Z$600,6,FALSE))-'Filtered-P'!$W$12)/'Filtered-P'!$X$12),""),IF(Personalize!$E$42=TRUE,(((VLOOKUP($C7,Hitter!$A$1:$AD$600,7,FALSE))-Filtered!$AF$23)/Filtered!$AG$23),"")),"") ->  | AA7: =IFERROR(IF((OR($D7="RP",$D7="SP")),IF(Personalize!$E$48=TRUE,(((VLOOKUP($C7,Pitcher!$A$1:$Z$600,5,FALSE))-'Filtered-P'!$W$11)/'Filtered-P'!$X$11),""),IF(Personalize!$E$43=TRUE,(((VLOOKUP($C7,Hitter!$A$1:$AD$600,8,FALSE))-Filtered!$AF$24)/Filtered!$AG$24),"")),"") ->  | AB7: =IFERROR(IF((OR($D7="RP",$D7="SP")),VLOOKUP($C7,Pitcher!$A$1:$P$600,2,FALSE),""),"") -> 16.14541997 | AC7: =IFERROR(IF((OR($D7="RP",$D7="SP")),VLOOKUP($C7,Pitcher!$A$1:$P$600,9,FALSE),""),"") -> 0 | AD7: =IFERROR(IF((OR($D7="RP",$D7="SP")),VLOOKUP($C7,Pitcher!$A$1:$P$600,7,FALSE),""),"") -> 193.3776989 | AE7: =IFERROR(IF((OR($D7="RP",$D7="SP")),VLOOKUP($C7,Pitcher!$A$1:$P$600,10,FALSE),""),"") -> 2.906841436 | AF7: =IFERROR(IF((OR($D7="RP",$D7="SP")),VLOOKUP($C7,Pitcher!$A$1:$P$600,11,FALSE),""),"") -> 1.083849821 | AG7: =IFERROR(IF((OR($D7="RP",$D7="SP")),"",VLOOKUP($C7,Hitter!$A$1:$X$600,15,FALSE)),"") ->  | AH7: =IFERROR(IF((OR($D7="RP",$D7="SP")),"",VLOOKUP($C7,Hitter!$A$1:$X$600,9,FALSE)),"") ->  | AI7: =IFERROR(IF((OR($D7="RP",$D7="SP")),"",VLOOKUP($C7,Hitter!$A$1:$X$600,10,FALSE)),"") ->  | AJ7: =IFERROR(IF((OR($D7="RP",$D7="SP")),"",VLOOKUP($C7,Hitter!$A$1:$X$600,4,FALSE)),"") ->  | AK7: =IFERROR(IF((OR($D7="RP",$D7="SP")),"",VLOOKUP($C7,Hitter!$A$1:$X$600,11,FALSE)),"") ->  | AL7: 0 | AM7: 1 | AN7: 0 | AO7: 13 | AP7: =VLOOKUP(C7,'Starter Calc'!$B$2:$BO$600,66,FALSE) -> Bench | AQ7: =VLOOKUP(C7,'Starter Calc'!$B$2:$AM$600,38,FALSE) -> Yes | AR7: =IFERROR(IF(ISTEXT($A7),"",IF((OR($D7="RP",$D7="SP")),ABS(VLOOKUP(D7,'Filtered-P'!$V$3:$Z$4,5,FALSE))+L7,ABS(VLOOKUP(D7,Filtered!$AE$3:$AI$14,5,FALSE))+L7)),"") -> 11.54252647 | AS7: 13.47959973 | AT7: N
C8: Cliff Lee | D8: =IFERROR(IF(VLOOKUP(C8,'ADP-Rank'!$A$2:$B$600,2,FALSE)="OF",VLOOKUP(C8,'Starter Calc'!$B$2:$AN$600,39,FALSE),(VLOOKUP(C8,'ADP-Rank'!$A$2:$B$600,2,FALSE))),"") -> SP | E8: =IFERROR(IF(VLOOKUP(C8,'Starter Calc'!$B$2:$E$600,4,FALSE)="","",VLOOKUP(C8,'Starter Calc'!$B$2:$E$600,4,FALSE)),"") ->  | F8: =IFERROR(VLOOKUP($C8,'ADP-Rank'!$A$2:$D$600,3,FALSE),"") -> PHI | G8: =IFERROR(VLOOKUP($C8,'ADP-Rank'!$A$2:$W$600,23,FALSE),"") -> 34 | H8: =IFERROR(IF(ISBLANK($B8),ROUND(((AS8/$AS$1)*(Personalize!$A$3-$AQ$1))+1,0),""),"") -> 32 | I8: =IFERROR(CHOOSE(Personalize!$E$32,VLOOKUP($C8,'ADP-Rank'!$A$2:$U$600,13,FALSE),VLOOKUP($C8,'ADP-Rank'!$A$2:$U$600,14,FALSE),VLOOKUP($C8,'ADP-Rank'!$A$2:$U$600,15,FALSE),VLOOKUP($C8,'ADP-Rank'!$A$2:$U$600,16,FALSE),VLOOKUP($C8,'ADP-Rank'!$A$2:$U$600,17,FALSE),VLOOKUP($C8,'ADP-Rank'!$A$2:$U$600,18,FALSE),VLOOKUP($C8,'ADP-Rank'!$A$2:$U$600,19,FALSE),VLOOKUP($C8,'ADP-Rank'!$A$2:$U$600,20,FALSE)),"") -> 21.42857143 | J8: =IF(ISBLANK($B8),IFERROR(CHOOSE(Personalize!$E$31,(VLOOKUP(C8,'ADP-Rank'!$A$2:$E$600,5,FALSE)*(Personalize!$A$3-$AQ$1)+1),(VLOOKUP(C8,'ADP-Rank'!$A$2:$E$600,4,FALSE)*(Personalize!$A$3-$AQ$1)+1),(VLOOKUP(C8,'ADP-Rank'!$A$2:$G$600,6,FALSE)*(Personalize!$A$3-$AQ$1)+1),(VLOOKUP(C8,'ADP-Rank'!$A$2:$Z$600,7,FALSE)*(Personalize!$A$3-$AQ$1)+1),(VLOOKUP(C8,'ADP-Rank'!$A$2:$Z$600,8,FALSE)*(Personalize!$A$3-$AQ$1)+1),(VLOOKUP(C8,'ADP-Rank'!$A$2:$Z$600,9,FALSE)*(Personalize!$A$3-$AQ$1)+1),(VLOOKUP(C8,'ADP-Rank'!$A$2:$Z$600,10,FALSE)*(Personalize!$A$3-$AQ$1)+1)),""),"") -> 29.98320847 | K8: 6 | L8: 8.525954863 | M8: =IFERROR(IF((OR($D8="RP",$D8="SP")),VLOOKUP($D8,'Filtered-P'!$V$3:$Y$4,4,FALSE), VLOOKUP($D8,Filtered!$AE$3:$AH$14,4,FALSE)),"") -> 0.655283346 | N8: =IFERROR(IF((OR($D8="RP",$D8="SP")),IF(Personalize!$E$10=TRUE,(((VLOOKUP($C8,Pitcher!$A$1:$P$600,2,FALSE))-'Filtered-P'!$W$8)/'Filtered-P'!$X$8),""),IF(Personalize!$E$4=TRUE,(((VLOOKUP($C8,Hitter!$A$1:$AD$600,21,FALSE))-Filtered!$AF$35)/Filtered!$AG$35),"")),"") -> 1.466099785 | O8: =IFERROR(IF((OR($D8="RP",$D8="SP")),IF(Personalize!$E$12=TRUE,(((VLOOKUP($C8,Pitcher!$A$1:$P$600,9,FALSE))-'Filtered-P'!$W$15)/'Filtered-P'!$X$15),""),IF(Personalize!$E$3=TRUE,(((VLOOKUP($C8,Hitter!$A$1:$AB$600,9,FALSE))-Filtered!$AF$25)/Filtered!$AG$25),"")),"") -> -0.5372019451 | P8: =IFERROR(IF((OR($D8="RP",$D8="SP")),IF(Personalize!$E$11=TRUE,(((VLOOKUP($C8,Pitcher!$A$1:$P$600,7,FALSE))-'Filtered-P'!$W$13)/'Filtered-P'!$X$13),""),IF(Personalize!$E$2=TRUE,(((VLOOKUP($C8,Hitter!$A$1:$AB$600,4,FALSE))-Filtered!$AF$20)/Filtered!$AG$20),"")),"") -> 1.585100996 | Q8: =IFERROR(IF((OR($D8="RP",$D8="SP")),IF(Personalize!$E$13=TRUE,(((VLOOKUP($C8,Pitcher!$A$1:$P$600,13,FALSE))-'Filtered-P'!$W$19)/'Filtered-P'!$X$19),""),IF(Personalize!$E$5=TRUE,(((VLOOKUP($C8,Hitter!$A$1:$AB$600,10,FALSE))-Filtered!$AF$26)/Filtered!$AG$26),"")),"") -> 2.936106673 | R8: =IFERROR(IF((OR($D8="RP",$D8="SP")),IF(Personalize!$E$14=TRUE,(((VLOOKUP($C8,Pitcher!$A$1:$P$600,14,FALSE))-'Filtered-P'!$W$20)/'Filtered-P'!$X$20),""),IF(Personalize!$E$6=TRUE,(((VLOOKUP($C8,Hitter!$A$1:$AB$600,11,FALSE))-Filtered!$AF$27)/Filtered!$AG$27),"")),"") -> 3.075849354 | S8: =IFERROR(IF((OR($D8="RP",$D8="SP")),IF(Personalize!$E$16=TRUE,(((VLOOKUP($C8,Pitcher!$A$1:$P$600,3,FALSE))-'Filtered-P'!$W$9)/'Filtered-P'!$X$9),""),IF(Personalize!$E$7=TRUE,(((VLOOKUP($C8,Hitter!$A$1:$AD$600,23,FALSE))-Filtered!$AF$37)/Filtered!$AG$37),"")),"") ->  | T8: =IFERROR(IF((OR($D8="RP",$D8="SP")),IF(Personalize!$E$15=TRUE,(((VLOOKUP($C8,Pitcher!$A$1:$P$600,15,FALSE))-'Filtered-P'!$W$21)/'Filtered-P'!$X$21),""),IF(Personalize!$E$8=TRUE,(((VLOOKUP($C8,Hitter!$A$1:$AD$600,22,FALSE))-Filtered!$AF$36)/Filtered!$AG$36),"")),"") ->  | U8: =IFERROR(IF((OR($D8="RP",$D8="SP")),IF(Personalize!$E$17=TRUE,(((VLOOKUP($C8,Pitcher!$A$1:$P$600,16,FALSE))-'Filtered-P'!$W$22)/'Filtered-P'!$X$22),""),IF(Personalize!$E$9=TRUE,(((VLOOKUP($C8,Hitter!$A$1:$AD$600,24,FALSE))-Filtered!$AF$38)/Filtered!$AG$38),"")),"") ->  | V8: =IFERROR(IF((OR($D8="RP",$D8="SP")),IF(Personalize!$E$37=TRUE,(((VLOOKUP($C8,Pitcher!$A$1:$Z$600,17,FALSE))-'Filtered-P'!$W$25)/'Filtered-P'!$X$25),""),IF(Personalize!$E$39=TRUE,(((VLOOKUP($C8,Hitter!$A$1:$X$600,5,FALSE))-Filtered!$AF$21)/Filtered!$AG$21),"")),"") ->  | W8: =IFERROR(IF((OR($D8="RP",$D8="SP")),IF(Personalize!$E$38=TRUE,(((VLOOKUP($C8,Pitcher!$A$1:$Z$600,18,FALSE))-'Filtered-P'!$W$26)/'Filtered-P'!$X$26),""),IF(Personalize!$E$40=TRUE,(((VLOOKUP($C8,Hitter!$A$1:$X$600,13,FALSE))-Filtered!$AF$29)/Filtered!$AG$29),"")),"") ->  | X8: =IFERROR(IF((OR($D8="RP",$D8="SP")),IF(Personalize!$E$45=TRUE,(((VLOOKUP($C8,Pitcher!$A$1:$Z$600,4,FALSE))-'Filtered-P'!$W$10)/'Filtered-P'!$X$10),""),IF(Personalize!$E$41=TRUE,(((VLOOKUP($C8,Hitter!$A$1:$AD$600,19,FALSE))-Filtered!$AF$43)/Filtered!$AG$43),"")),"") ->  | Y8: =IFERROR(IF((OR($D8="RP",$D8="SP")),IF(Personalize!$E$46=TRUE,(((VLOOKUP($C8,Pitcher!$A$1:$Z$600,19,FALSE))-'Filtered-P'!$W$27)/'Filtered-P'!$X$27),""),IF(Personalize!$E$44=TRUE,(((VLOOKUP($C8,Hitter!$A$1:$AD$600,20,FALSE))-Filtered!$AF$44)/Filtered!$AG$44),"")),"") ->  | Z8: =IFERROR(IF((OR($D8="RP",$D8="SP")),IF(Personalize!$E$47=TRUE,(((VLOOKUP($C8,Pitcher!$A$1:$Z$600,6,FALSE))-'Filtered-P'!$W$12)/'Filtered-P'!$X$12),""),IF(Personalize!$E$42=TRUE,(((VLOOKUP($C8,Hitter!$A$1:$AD$600,7,FALSE))-Filtered!$AF$23)/Filtered!$AG$23),"")),"") ->  | AA8: =IFERROR(IF((OR($D8="RP",$D8="SP")),IF(Personalize!$E$48=TRUE,(((VLOOKUP($C8,Pitcher!$A$1:$Z$600,5,FALSE))-'Filtered-P'!$W$11)/'Filtered-P'!$X$11),""),IF(Personalize!$E$43=TRUE,(((VLOOKUP($C8,Hitter!$A$1:$AD$600,8,FALSE))-Filtered!$AF$24)/Filtered!$AG$24),"")),"") ->  | AB8: =IFERROR(IF((OR($D8="RP",$D8="SP")),VLOOKUP($C8,Pitcher!$A$1:$P$600,2,FALSE),""),"") -> 14.74062847 | AC8: =IFERROR(IF((OR($D8="RP",$D8="SP")),VLOOKUP($C8,Pitcher!$A$1:$P$600,9,FALSE),""),"") -> 0 | AD8: =IFERROR(IF((OR($D8="RP",$D8="SP")),VLOOKUP($C8,Pitcher!$A$1:$P$600,7,FALSE),""),"") -> 199.2835207 | AE8: =IFERROR(IF((OR($D8="RP",$D8="SP")),VLOOKUP($C8,Pitcher!$A$1:$P$600,10,FALSE),""),"") -> 2.933346542 | AF8: =IFERROR(IF((OR($D8="RP",$D8="SP")),VLOOKUP($C8,Pitcher!$A$1:$P$600,11,FALSE),""),"") -> 1.078031147 | AG8: =IFERROR(IF((OR($D8="RP",$D8="SP")),"",VLOOKUP($C8,Hitter!$A$1:$X$600,15,FALSE)),"") ->  | AH8: =IFERROR(IF((OR($D8="RP",$D8="SP")),"",VLOOKUP($C8,Hitter!$A$1:$X$600,9,FALSE)),"") ->  | AI8: =IFERROR(IF((OR($D8="RP",$D8="SP")),"",VLOOKUP($C8,Hitter!$A$1:$X$600,10,FALSE)),"") ->  | AJ8: =IFERROR(IF((OR($D8="RP",$D8="SP")),"",VLOOKUP($C8,Hitter!$A$1:$X$600,4,FALSE)),"") ->  | AK8: =IFERROR(IF((OR($D8="RP",$D8="SP")),"",VLOOKUP($C8,Hitter!$A$1:$X$600,11,FALSE)),"") ->  | AL8: 0 | AM8: 1 | AN8: 0 | AO8: 13 | AP8: =VLOOKUP(C8,'Starter Calc'!$B$2:$BO$600,66,FALSE) -> Bench | AQ8: =VLOOKUP(C8,'Starter Calc'!$B$2:$AM$600,38,FALSE) -> Yes | AR8: =IFERROR(IF(ISTEXT($A8),"",IF((OR($D8="RP",$D8="SP")),ABS(VLOOKUP(D8,'Filtered-P'!$V$3:$Z$4,5,FALSE))+L8,ABS(VLOOKUP(D8,Filtered!$AE$3:$AI$14,5,FALSE))+L8)),"") -> 11.14461222 | AS8: 13.08168548 | AT8: N
C9: Justin Verlander | D9: =IFERROR(IF(VLOOKUP(C9,'ADP-Rank'!$A$2:$B$600,2,FALSE)="OF",VLOOKUP(C9,'Starter Calc'!$B$2:$AN$600,39,FALSE),(VLOOKUP(C9,'ADP-Rank'!$A$2:$B$600,2,FALSE))),"") -> SP | E9: =IFERROR(IF(VLOOKUP(C9,'Starter Calc'!$B$2:$E$600,4,FALSE)="","",VLOOKUP(C9,'Starter Calc'!$B$2:$E$600,4,FALSE)),"") ->  | F9: =IFERROR(VLOOKUP($C9,'ADP-Rank'!$A$2:$D$600,3,FALSE),"") -> DET | G9: =IFERROR(VLOOKUP($C9,'ADP-Rank'!$A$2:$W$600,23,FALSE),"") -> 29 | H9: =IFERROR(IF(ISBLANK($B9),ROUND(((AS9/$AS$1)*(Personalize!$A$3-$AQ$1))+1,0),""),"") -> 32 | I9: =IFERROR(CHOOSE(Personalize!$E$32,VLOOKUP($C9,'ADP-Rank'!$A$2:$U$600,13,FALSE),VLOOKUP($C9,'ADP-Rank'!$A$2:$U$600,14,FALSE),VLOOKUP($C9,'ADP-Rank'!$A$2:$U$600,15,FALSE),VLOOKUP($C9,'ADP-Rank'!$A$2:$U$600,16,FALSE),VLOOKUP($C9,'ADP-Rank'!$A$2:$U$600,17,FALSE),VLOOKUP($C9,'ADP-Rank'!$A$2:$U$600,18,FALSE),VLOOKUP($C9,'ADP-Rank'!$A$2:$U$600,19,FALSE),VLOOKUP($C9,'ADP-Rank'!$A$2:$U$600,20,FALSE)),"") -> 19.14285714 | J9: =IF(ISBLANK($B9),IFERROR(CHOOSE(Personalize!$E$31,(VLOOKUP(C9,'ADP-Rank'!$A$2:$E$600,5,FALSE)*(Personalize!$A$3-$AQ$1)+1),(VLOOKUP(C9,'ADP-Rank'!$A$2:$E$600,4,FALSE)*(Personalize!$A$3-$AQ$1)+1),(VLOOKUP(C9,'ADP-Rank'!$A$2:$G$600,6,FALSE)*(Personalize!$A$3-$AQ$1)+1),(VLOOKUP(C9,'ADP-Rank'!$A$2:$Z$600,7,FALSE)*(Personalize!$A$3-$AQ$1)+1),(VLOOKUP(C9,'ADP-Rank'!$A$2:$Z$600,8,FALSE)*(Personalize!$A$3-$AQ$1)+1),(VLOOKUP(C9,'ADP-Rank'!$A$2:$Z$600,9,FALSE)*(Personalize!$A$3-$AQ$1)+1),(VLOOKUP(C9,'ADP-Rank'!$A$2:$Z$600,10,FALSE)*(Personalize!$A$3-$AQ$1)+1)),""),"") -> 31.92922895 | K9: 7 | L9: 8.247785771 | M9: =IFERROR(IF((OR($D9="RP",$D9="SP")),VLOOKUP($D9,'Filtered-P'!$V$3:$Y$4,4,FALSE), VLOOKUP($D9,Filtered!$AE$3:$AH$14,4,FALSE)),"") -> 0.655283346 | N9: =IFERROR(IF((OR($D9="RP",$D9="SP")),IF(Personalize!$E$10=TRUE,(((VLOOKUP($C9,Pitcher!$A$1:$P$600,2,FALSE))-'Filtered-P'!$W$8)/'Filtered-P'!$X$8),""),IF(Personalize!$E$4=TRUE,(((VLOOKUP($C9,Hitter!$A$1:$AD$600,21,FALSE))-Filtered!$AF$35)/Filtered!$AG$35),"")),"") -> 2.117663176 | O9: =IFERROR(IF((OR($D9="RP",$D9="SP")),IF(Personalize!$E$12=TRUE,(((VLOOKUP($C9,Pitcher!$A$1:$P$600,9,FALSE))-'Filtered-P'!$W$15)/'Filtered-P'!$X$15),""),IF(Personalize!$E$3=TRUE,(((VLOOKUP($C9,Hitter!$A$1:$AB$600,9,FALSE))-Filtered!$AF$25)/Filtered!$AG$25),"")),"") -> -0.5372019451 | P9: =IFERROR(IF((OR($D9="RP",$D9="SP")),IF(Personalize!$E$11=TRUE,(((VLOOKUP($C9,Pitcher!$A$1:$P$600,7,FALSE))-'Filtered-P'!$W$13)/'Filtered-P'!$X$13),""),IF(Personalize!$E$2=TRUE,(((VLOOKUP($C9,Hitter!$A$1:$AB$600,4,FALSE))-Filtered!$AF$20)/Filtered!$AG$20),"")),"") -> 2.023710502 | Q9: =IFERROR(IF((OR($D9="RP",$D9="SP")),IF(Personalize!$E$13=TRUE,(((VLOOKUP($C9,Pitcher!$A$1:$P$600,13,FALSE))-'Filtered-P'!$W$19)/'Filtered-P'!$X$19),""),IF(Personalize!$E$5=TRUE,(((VLOOKUP($C9,Hitter!$A$1:$AB$600,10,FALSE))-Filtered!$AF$26)/Filtered!$AG$26),"")),"") -> 2.319833384 | R9: =IFERROR(IF((OR($D9="RP",$D9="SP")),IF(Personalize!$E$14=TRUE,(((VLOOKUP($C9,Pitcher!$A$1:$P$600,14,FALSE))-'Filtered-P'!$W$20)/'Filtered-P'!$X$20),""),IF(Personalize!$E$6=TRUE,(((VLOOKUP($C9,Hitter!$A$1:$AB$600,11,FALSE))-Filtered!$AF$27)/Filtered!$AG$27),"")),"") -> 2.323780655 | S9: =IFERROR(IF((OR($D9="RP",$D9="SP")),IF(Personalize!$E$16=TRUE,(((VLOOKUP($C9,Pitcher!$A$1:$P$600,3,FALSE))-'Filtered-P'!$W$9)/'Filtered-P'!$X$9),""),IF(Personalize!$E$7=TRUE,(((VLOOKUP($C9,Hitter!$A$1:$AD$600,23,FALSE))-Filtered!$AF$37)/Filtered!$AG$37),"")),"") ->  | T9: =IFERROR(IF((OR($D9="RP",$D9="SP")),IF(Personalize!$E$15=TRUE,(((VLOOKUP($C9,Pitcher!$A$1:$P$600,15,FALSE))-'Filtered-P'!$W$21)/'Filtered-P'!$X$21),""),IF(Personalize!$E$8=TRUE,(((VLOOKUP($C9,Hitter!$A$1:$AD$600,22,FALSE))-Filtered!$AF$36)/Filtered!$AG$36),"")),"") ->  | U9: =IFERROR(IF((OR($D9="RP",$D9="SP")),IF(Personalize!$E$17=TRUE,(((VLOOKUP($C9,Pitcher!$A$1:$P$600,16,FALSE))-'Filtered-P'!$W$22)/'Filtered-P'!$X$22),""),IF(Personalize!$E$9=TRUE,(((VLOOKUP($C9,Hitter!$A$1:$AD$600,24,FALSE))-Filtered!$AF$38)/Filtered!$AG$38),"")),"") ->  | V9: =IFERROR(IF((OR($D9="RP",$D9="SP")),IF(Personalize!$E$37=TRUE,(((VLOOKUP($C9,Pitcher!$A$1:$Z$600,17,FALSE))-'Filtered-P'!$W$25)/'Filtered-P'!$X$25),""),IF(Personalize!$E$39=TRUE,(((VLOOKUP($C9,Hitter!$A$1:$X$600,5,FALSE))-Filtered!$AF$21)/Filtered!$AG$21),"")),"") ->  | W9: =IFERROR(IF((OR($D9="RP",$D9="SP")),IF(Personalize!$E$38=TRUE,(((VLOOKUP($C9,Pitcher!$A$1:$Z$600,18,FALSE))-'Filtered-P'!$W$26)/'Filtered-P'!$X$26),""),IF(Personalize!$E$40=TRUE,(((VLOOKUP($C9,Hitter!$A$1:$X$600,13,FALSE))-Filtered!$AF$29)/Filtered!$AG$29),"")),"") ->  | X9: =IFERROR(IF((OR($D9="RP",$D9="SP")),IF(Personalize!$E$45=TRUE,(((VLOOKUP($C9,Pitcher!$A$1:$Z$600,4,FALSE))-'Filtered-P'!$W$10)/'Filtered-P'!$X$10),""),IF(Personalize!$E$41=TRUE,(((VLOOKUP($C9,Hitter!$A$1:$AD$600,19,FALSE))-Filtered!$AF$43)/Filtered!$AG$43),"")),"") ->  | Y9: =IFERROR(IF((OR($D9="RP",$D9="SP")),IF(Personalize!$E$46=TRUE,(((VLOOKUP($C9,Pitcher!$A$1:$Z$600,19,FALSE))-'Filtered-P'!$W$27)/'Filtered-P'!$X$27),""),IF(Personalize!$E$44=TRUE,(((VLOOKUP($C9,Hitter!$A$1:$AD$600,20,FALSE))-Filtered!$AF$44)/Filtered!$AG$44),"")),"") ->  | Z9: =IFERROR(IF((OR($D9="RP",$D9="SP")),IF(Personalize!$E$47=TRUE,(((VLOOKUP($C9,Pitcher!$A$1:$Z$600,6,FALSE))-'Filtered-P'!$W$12)/'Filtered-P'!$X$12),""),IF(Personalize!$E$42=TRUE,(((VLOOKUP($C9,Hitter!$A$1:$AD$600,7,FALSE))-Filtered!$AF$23)/Filtered!$AG$23),"")),"") ->  | AA9: =IFERROR(IF((OR($D9="RP",$D9="SP")),IF(Personalize!$E$48=TRUE,(((VLOOKUP($C9,Pitcher!$A$1:$Z$600,5,FALSE))-'Filtered-P'!$W$11)/'Filtered-P'!$X$11),""),IF(Personalize!$E$43=TRUE,(((VLOOKUP($C9,Hitter!$A$1:$AD$600,8,FALSE))-Filtered!$AF$24)/Filtered!$AG$24),"")),"") ->  | AB9: =IFERROR(IF((OR($D9="RP",$D9="SP")),VLOOKUP($C9,Pitcher!$A$1:$P$600,2,FALSE),""),"") -> 17.36571305 | AC9: =IFERROR(IF((OR($D9="RP",$D9="SP")),VLOOKUP($C9,Pitcher!$A$1:$P$600,9,FALSE),""),"") -> 0 | AD9: =IFERROR(IF((OR($D9="RP",$D9="SP")),VLOOKUP($C9,Pitcher!$A$1:$P$600,7,FALSE),""),"") -> 220.418197 | AE9: =IFERROR(IF((OR($D9="RP",$D9="SP")),VLOOKUP($C9,Pitcher!$A$1:$P$600,10,FALSE),""),"") -> 3.116423212 | AF9: =IFERROR(IF((OR($D9="RP",$D9="SP")),VLOOKUP($C9,Pitcher!$A$1:$P$600,11,FALSE),""),"") -> 1.119602658 | AG9: =IFERROR(IF((OR($D9="RP",$D9="SP")),"",VLOOKUP($C9,Hitter!$A$1:$X$600,15,FALSE)),"") ->  | AH9: =IFERROR(IF((OR($D9="RP",$D9="SP")),"",VLOOKUP($C9,Hitter!$A$1:$X$600,9,FALSE)),"") ->  | AI9: =IFERROR(IF((OR($D9="RP",$D9="SP")),"",VLOOKUP($C9,Hitter!$A$1:$X$600,10,FALSE)),"") ->  | AJ9: =IFERROR(IF((OR($D9="RP",$D9="SP")),"",VLOOKUP($C9,Hitter!$A$1:$X$600,4,FALSE)),"") ->  | AK9: =IFERROR(IF((OR($D9="RP",$D9="SP")),"",VLOOKUP($C9,Hitter!$A$1:$X$600,11,FALSE)),"") ->  | AL9: 0 | AM9: 1 | AN9: 0 | AO9: 13 | AP9: =VLOOKUP(C9,'Starter Calc'!$B$2:$BO$600,66,FALSE) -> Bench | AQ9: =VLOOKUP(C9,'Starter Calc'!$B$2:$AM$600,38,FALSE) -> Yes | AR9: =IFERROR(IF(ISTEXT($A9),"",IF((OR($D9="RP",$D9="SP")),ABS(VLOOKUP(D9,'Filtered-P'!$V$3:$Z$4,5,FALSE))+L9,ABS(VLOOKUP(D9,Filtered!$AE$3:$AI$14,5,FALSE))+L9)),"") -> 10.86644313 | AS9: 12.80351639 | AT9: N
C10: Adrian Gonzalez | D10: =IFERROR(IF(VLOOKUP(C10,'ADP-Rank'!$A$2:$B$600,2,FALSE)="OF",VLOOKUP(C10,'Starter Calc'!$B$2:$AN$600,39,FALSE),(VLOOKUP(C10,'ADP-Rank'!$A$2:$B$600,2,FALSE))),"") -> 1B | E10: =IFERROR(IF(VLOOKUP(C10,'Starter Calc'!$B$2:$E$600,4,FALSE)="","",VLOOKUP(C10,'Starter Calc'!$B$2:$E$600,4,FALSE)),"") ->  | F10: =IFERROR(VLOOKUP($C10,'ADP-Rank'!$A$2:$D$600,3,FALSE),"") -> BOS | G10: =IFERROR(VLOOKUP($C10,'ADP-Rank'!$A$2:$W$600,23,FALSE),"") -> 30 | H10: =IFERROR(IF(ISBLANK($B10),ROUND(((AS10/$AS$1)*(Personalize!$A$3-$AQ$1))+1,0),""),"") -> 32 | I10: =IFERROR(CHOOSE(Personalize!$E$32,VLOOKUP($C10,'ADP-Rank'!$A$2:$U$600,13,FALSE),VLOOKUP($C10,'ADP-Rank'!$A$2:$U$600,14,FALSE),VLOOKUP($C10,'ADP-Rank'!$A$2:$U$600,15,FALSE),VLOOKUP($C10,'ADP-Rank'!$A$2:$U$600,16,FALSE),VLOOKUP($C10,'ADP-Rank'!$A$2:$U$600,17,FALSE),VLOOKUP($C10,'ADP-Rank'!$A$2:$U$600,18,FALSE),VLOOKUP($C10,'ADP-Rank'!$A$2:$U$600,19,FALSE),VLOOKUP($C10,'ADP-Rank'!$A$2:$U$600,20,FALSE)),"") -> 12.42857143 | J10: =IF(ISBLANK($B10),IFERROR(CHOOSE(Personalize!$E$31,(VLOOKUP(C10,'ADP-Rank'!$A$2:$E$600,5,FALSE)*(Personalize!$A$3-$AQ$1)+1),(VLOOKUP(C10,'ADP-Rank'!$A$2:$E$600,4,FALSE)*(Personalize!$A$3-$AQ$1)+1),(VLOOKUP(C10,'ADP-Rank'!$A$2:$G$600,6,FALSE)*(Personalize!$A$3-$AQ$1)+1),(VLOOKUP(C10,'ADP-Rank'!$A$2:$Z$600,7,FALSE)*(Personalize!$A$3-$AQ$1)+1),(VLOOKUP(C10,'ADP-Rank'!$A$2:$Z$600,8,FALSE)*(Personalize!$A$3-$AQ$1)+1),(VLOOKUP(C10,'ADP-Rank'!$A$2:$Z$600,9,FALSE)*(Personalize!$A$3-$AQ$1)+1),(VLOOKUP(C10,'ADP-Rank'!$A$2:$Z$600,10,FALSE)*(Personalize!$A$3-$AQ$1)+1)),""),"") -> 34.97999859 | K10: 10 | L10: 6.982091977 | M10: =IFERROR(IF((OR($D10="RP",$D10="SP")),VLOOKUP($D10,'Filtered-P'!$V$3:$Y$4,4,FALSE), VLOOKUP($D10,Filtered!$AE$3:$AH$14,4,FALSE)),"") -> 1.344129608 | N10: =IFERROR(IF((OR($D10="RP",$D10="SP")),IF(Personalize!$E$10=TRUE,(((VLOOKUP($C10,Pitcher!$A$1:$P$600,2,FALSE))-'Filtered-P'!$W$8)/'Filtered-P'!$X$8),""),IF(Personalize!$E$4=TRUE,(((VLOOKUP($C10,Hitter!$A$1:$AD$600,21,FALSE))-Filtered!$AF$35)/Filtered!$AG$35),"")),"") -> 2.189212784 | O10: =IFERROR(IF((OR($D10="RP",$D10="SP")),IF(Personalize!$E$12=TRUE,(((VLOOKUP($C10,Pitcher!$A$1:$P$600,9,FALSE))-'Filtered-P'!$W$15)/'Filtered-P'!$X$15),""),IF(Personalize!$E$3=TRUE,(((VLOOKUP($C10,Hitter!$A$1:$AB$600,9,FALSE))-Filtered!$AF$25)/Filtered!$AG$25),"")),"") -> 1.706617576 | P10: =IFERROR(IF((OR($D10="RP",$D10="SP")),IF(Personalize!$E$11=TRUE,(((VLOOKUP($C10,Pitcher!$A$1:$P$600,7,FALSE))-'Filtered-P'!$W$13)/'Filtered-P'!$X$13),""),IF(Personalize!$E$2=TRUE,(((VLOOKUP($C10,Hitter!$A$1:$AB$600,4,FALSE))-Filtered!$AF$20)/Filtered!$AG$20),"")),"") -> 1.923827164 | Q10: =IFERROR(IF((OR($D10="RP",$D10="SP")),IF(Personalize!$E$13=TRUE,(((VLOOKUP($C10,Pitcher!$A$1:$P$600,13,FALSE))-'Filtered-P'!$W$19)/'Filtered-P'!$X$19),""),IF(Personalize!$E$5=TRUE,(((VLOOKUP($C10,Hitter!$A$1:$AB$600,10,FALSE))-Filtered!$AF$26)/Filtered!$AG$26),"")),"") -> 2.194587859 | R10: =IFERROR(IF((OR($D10="RP",$D10="SP")),IF(Personalize!$E$14=TRUE,(((VLOOKUP($C10,Pitcher!$A$1:$P$600,14,FALSE))-'Filtered-P'!$W$20)/'Filtered-P'!$X$20),""),IF(Personalize!$E$6=TRUE,(((VLOOKUP($C10,Hitter!$A$1:$AB$600,11,FALSE))-Filtered!$AF$27)/Filtered!$AG$27),"")),"") -> -1.032153406 | S10: =IFERROR(IF((OR($D10="RP",$D10="SP")),IF(Personalize!$E$16=TRUE,(((VLOOKUP($C10,Pitcher!$A$1:$P$600,3,FALSE))-'Filtered-P'!$W$9)/'Filtered-P'!$X$9),""),IF(Personalize!$E$7=TRUE,(((VLOOKUP($C10,Hitter!$A$1:$AD$600,23,FALSE))-Filtered!$AF$37)/Filtered!$AG$37),"")),"") ->  | T10: =IFERROR(IF((OR($D10="RP",$D10="SP")),IF(Personalize!$E$15=TRUE,(((VLOOKUP($C10,Pitcher!$A$1:$P$600,15,FALSE))-'Filtered-P'!$W$21)/'Filtered-P'!$X$21),""),IF(Personalize!$E$8=TRUE,(((VLOOKUP($C10,Hitter!$A$1:$AD$600,22,FALSE))-Filtered!$AF$36)/Filtered!$AG$36),"")),"") ->  | U10: =IFERROR(IF((OR($D10="RP",$D10="SP")),IF(Personalize!$E$17=TRUE,(((VLOOKUP($C10,Pitcher!$A$1:$P$600,16,FALSE))-'Filtered-P'!$W$22)/'Filtered-P'!$X$22),""),IF(Personalize!$E$9=TRUE,(((VLOOKUP($C10,Hitter!$A$1:$AD$600,24,FALSE))-Filtered!$AF$38)/Filtered!$AG$38),"")),"") ->  | V10: =IFERROR(IF((OR($D10="RP",$D10="SP")),IF(Personalize!$E$37=TRUE,(((VLOOKUP($C10,Pitcher!$A$1:$Z$600,17,FALSE))-'Filtered-P'!$W$25)/'Filtered-P'!$X$25),""),IF(Personalize!$E$39=TRUE,(((VLOOKUP($C10,Hitter!$A$1:$X$600,5,FALSE))-Filtered!$AF$21)/Filtered!$AG$21),"")),"") ->  | W10: =IFERROR(IF((OR($D10="RP",$D10="SP")),IF(Personalize!$E$38=TRUE,(((VLOOKUP($C10,Pitcher!$A$1:$Z$600,18,FALSE))-'Filtered-P'!$W$26)/'Filtered-P'!$X$26),""),IF(Personalize!$E$40=TRUE,(((VLOOKUP($C10,Hitter!$A$1:$X$600,13,FALSE))-Filtered!$AF$29)/Filtered!$AG$29),"")),"") ->  | X10: =IFERROR(IF((OR($D10="RP",$D10="SP")),IF(Personalize!$E$45=TRUE,(((VLOOKUP($C10,Pitcher!$A$1:$Z$600,4,FALSE))-'Filtered-P'!$W$10)/'Filtered-P'!$X$10),""),IF(Personalize!$E$41=TRUE,(((VLOOKUP($C10,Hitter!$A$1:$AD$600,19,FALSE))-Filtered!$AF$43)/Filtered!$AG$43),"")),"") ->  | Y10: =IFERROR(IF((OR($D10="RP",$D10="SP")),IF(Personalize!$E$46=TRUE,(((VLOOKUP($C10,Pitcher!$A$1:$Z$600,19,FALSE))-'Filtered-P'!$W$27)/'Filtered-P'!$X$27),""),IF(Personalize!$E$44=TRUE,(((VLOOKUP($C10,Hitter!$A$1:$AD$600,20,FALSE))-Filtered!$AF$44)/Filtered!$AG$44),"")),"") ->  | Z10: =IFERROR(IF((OR($D10="RP",$D10="SP")),IF(Personalize!$E$47=TRUE,(((VLOOKUP($C10,Pitcher!$A$1:$Z$600,6,FALSE))-'Filtered-P'!$W$12)/'Filtered-P'!$X$12),""),IF(Personalize!$E$42=TRUE,(((VLOOKUP($C10,Hitter!$A$1:$AD$600,7,FALSE))-Filtered!$AF$23)/Filtered!$AG$23),"")),"") ->  | AA10: =IFERROR(IF((OR($D10="RP",$D10="SP")),IF(Personalize!$E$48=TRUE,(((VLOOKUP($C10,Pitcher!$A$1:$Z$600,5,FALSE))-'Filtered-P'!$W$11)/'Filtered-P'!$X$11),""),IF(Personalize!$E$43=TRUE,(((VLOOKUP($C10,Hitter!$A$1:$AD$600,8,FALSE))-Filtered!$AF$24)/Filtered!$AG$24),"")),"") ->  | AB10: =IFERROR(IF((OR($D10="RP",$D10="SP")),VLOOKUP($C10,Pitcher!$A$1:$P$600,2,FALSE),""),"") ->  | AC10: =IFERROR(IF((OR($D10="RP",$D10="SP")),VLOOKUP($C10,Pitcher!$A$1:$P$600,9,FALSE),""),"") ->  | AD10: =IFERROR(IF((OR($D10="RP",$D10="SP")),VLOOKUP($C10,Pitcher!$A$1:$P$600,7,FALSE),""),"") ->  | AE10: =IFERROR(IF((OR($D10="RP",$D10="SP")),VLOOKUP($C10,Pitcher!$A$1:$P$600,10,FALSE),""),"") ->  | AF10: =IFERROR(IF((OR($D10="RP",$D10="SP")),VLOOKUP($C10,Pitcher!$A$1:$P$600,11,FALSE),""),"") ->  | AG10: =IFERROR(IF((OR($D10="RP",$D10="SP")),"",VLOOKUP($C10,Hitter!$A$1:$X$600,15,FALSE)),"") -> 0.303272801 | AH10: =IFERROR(IF((OR($D10="RP",$D10="SP")),"",VLOOKUP($C10,Hitter!$A$1:$X$600,9,FALSE)),"") -> 29.45192159 | AI10: =IFERROR(IF((OR($D10="RP",$D10="SP")),"",VLOOKUP($C10,Hitter!$A$1:$X$600,10,FALSE)),"") -> 102.486827 | AJ10: =IFERROR(IF((OR($D10="RP",$D10="SP")),"",VLOOKUP($C10,Hitter!$A$1:$X$600,4,FALSE)),"") -> 93.42696787 | AK10: =IFERROR(IF((OR($D10="RP",$D10="SP")),"",VLOOKUP($C10,Hitter!$A$1:$X$600,11,FALSE)),"") -> 1.302148986 | AL10: 0 | AM10: 1 | AN10: 0 | AO10: 2 | AP10: =VLOOKUP(C10,'Starter Calc'!$B$2:$BO$600,66,FALSE) -> Bench | AQ10: =VLOOKUP(C10,'Starter Calc'!$B$2:$AM$600,38,FALSE) -> Yes | AR10: =IFERROR(IF(ISTEXT($A10),"",IF((OR($D10="RP",$D10="SP")),ABS(VLOOKUP(D10,'Filtered-P'!$V$3:$Z$4,5,FALSE))+L10,ABS(VLOOKUP(D10,Filtered!$AE$3:$AI$14,5,FALSE))+L10)),"") -> 10.93330171 | AS10: 12.87037496 | AT10: N
C11: Joey Votto | D11: =IFERROR(IF(VLOOKUP(C11,'ADP-Rank'!$A$2:$B$600,2,FALSE)="OF",VLOOKUP(C11,'Starter Calc'!$B$2:$AN$600,39,FALSE),(VLOOKUP(C11,'ADP-Rank'!$A$2:$B$600,2,FALSE))),"") -> 1B | E11: =IFERROR(IF(VLOOKUP(C11,'Starter Calc'!$B$2:$E$600,4,FALSE)="","",VLOOKUP(C11,'Starter Calc'!$B$2:$E$600,4,FALSE)),"") ->  | F11: =IFERROR(VLOOKUP($C11,'ADP-Rank'!$A$2:$D$600,3,FALSE),"") -> CIN | G11: =IFERROR(VLOOKUP($C11,'ADP-Rank'!$A$2:$W$600,23,FALSE),"") -> 29 | H11: =IFERROR(IF(ISBLANK($B11),ROUND(((AS11/$AS$1)*(Personalize!$A$3-$AQ$1))+1,0),""),"") -> 32 | I11: =IFERROR(CHOOSE(Personalize!$E$32,VLOOKUP($C11,'ADP-Rank'!$A$2:$U$600,13,FALSE),VLOOKUP($C11,'ADP-Rank'!$A$2:$U$600,14,FALSE),VLOOKUP($C11,'ADP-Rank'!$A$2:$U$600,15,FALSE),VLOOKUP($C11,'ADP-Rank'!$A$2:$U$600,16,FALSE),VLOOKUP($C11,'ADP-Rank'!$A$2:$U$600,17,FALSE),VLOOKUP($C11,'ADP-Rank'!$A$2:$U$600,18,FALSE),VLOOKUP($C11,'ADP-Rank'!$A$2:$U$600,19,FALSE),VLOOKUP($C11,'ADP-Rank'!$A$2:$U$600,20,FALSE)),"") -> 7 | J11: =IF(ISBLANK($B11),IFERROR(CHOOSE(Personalize!$E$31,(VLOOKUP(C11,'ADP-Rank'!$A$2:$E$600,5,FALSE)*(Personalize!$A$3-$AQ$1)+1),(VLOOKUP(C11,'ADP-Rank'!$A$2:$E$600,4,FALSE)*(Personalize!$A$3-$AQ$1)+1),(VLOOKUP(C11,'ADP-Rank'!$A$2:$G$600,6,FALSE)*(Personalize!$A$3-$AQ$1)+1),(VLOOKUP(C11,'ADP-Rank'!$A$2:$Z$600,7,FALSE)*(Personalize!$A$3-$AQ$1)+1),(VLOOKUP(C11,'ADP-Rank'!$A$2:$Z$600,8,FALSE)*(Personalize!$A$3-$AQ$1)+1),(VLOOKUP(C11,'ADP-Rank'!$A$2:$Z$600,9,FALSE)*(Personalize!$A$3-$AQ$1)+1),(VLOOKUP(C11,'ADP-Rank'!$A$2:$Z$600,10,FALSE)*(Personalize!$A$3-$AQ$1)+1)),""),"") -> 37.29515004 | K11: 9 | L11: 7.19855622 | M11: =IFERROR(IF((OR($D11="RP",$D11="SP")),VLOOKUP($D11,'Filtered-P'!$V$3:$Y$4,4,FALSE), VLOOKUP($D11,Filtered!$AE$3:$AH$14,4,FALSE)),"") -> 1.344129608 | N11: =IFERROR(IF((OR($D11="RP",$D11="SP")),IF(Personalize!$E$10=TRUE,(((VLOOKUP($C11,Pitcher!$A$1:$P$600,2,FALSE))-'Filtered-P'!$W$8)/'Filtered-P'!$X$8),""),IF(Personalize!$E$4=TRUE,(((VLOOKUP($C11,Hitter!$A$1:$AD$600,21,FALSE))-Filtered!$AF$35)/Filtered!$AG$35),"")),"") -> 1.924216896 | O11: =IFERROR(IF((OR($D11="RP",$D11="SP")),IF(Personalize!$E$12=TRUE,(((VLOOKUP($C11,Pitcher!$A$1:$P$600,9,FALSE))-'Filtered-P'!$W$15)/'Filtered-P'!$X$15),""),IF(Personalize!$E$3=TRUE,(((VLOOKUP($C11,Hitter!$A$1:$AB$600,9,FALSE))-Filtered!$AF$25)/Filtered!$AG$25),"")),"") -> 1.654386738 | P11: =IFERROR(IF((OR($D11="RP",$D11="SP")),IF(Personalize!$E$11=TRUE,(((VLOOKUP($C11,Pitcher!$A$1:$P$600,7,FALSE))-'Filtered-P'!$W$13)/'Filtered-P'!$X$13),""),IF(Personalize!$E$2=TRUE,(((VLOOKUP($C11,Hitter!$A$1:$AB$600,4,FALSE))-Filtered!$AF$20)/Filtered!$AG$20),"")),"") -> 2.003745265 | Q11: =IFERROR(IF((OR($D11="RP",$D11="SP")),IF(Personalize!$E$13=TRUE,(((VLOOKUP($C11,Pitcher!$A$1:$P$600,13,FALSE))-'Filtered-P'!$W$19)/'Filtered-P'!$X$19),""),IF(Personalize!$E$5=TRUE,(((VLOOKUP($C11,Hitter!$A$1:$AB$600,10,FALSE))-Filtered!$AF$26)/Filtered!$AG$26),"")),"") -> 1.784535996 | R11: =IFERROR(IF((OR($D11="RP",$D11="SP")),IF(Personalize!$E$14=TRUE,(((VLOOKUP($C11,Pitcher!$A$1:$P$600,14,FALSE))-'Filtered-P'!$W$20)/'Filtered-P'!$X$20),""),IF(Personalize!$E$6=TRUE,(((VLOOKUP($C11,Hitter!$A$1:$AB$600,11,FALSE))-Filtered!$AF$27)/Filtered!$AG$27),"")),"") -> -0.1683286754 | S11: =IFERROR(IF((OR($D11="RP",$D11="SP")),IF(Personalize!$E$16=TRUE,(((VLOOKUP($C11,Pitcher!$A$1:$P$600,3,FALSE))-'Filtered-P'!$W$9)/'Filtered-P'!$X$9),""),IF(Personalize!$E$7=TRUE,(((VLOOKUP($C11,Hitter!$A$1:$AD$600,23,FALSE))-Filtered!$AF$37)/Filtered!$AG$37),"")),"") ->  | T11: =IFERROR(IF((OR($D11="RP",$D11="SP")),IF(Personalize!$E$15=TRUE,(((VLOOKUP($C11,Pitcher!$A$1:$P$600,15,FALSE))-'Filtered-P'!$W$21)/'Filtered-P'!$X$21),""),IF(Personalize!$E$8=TRUE,(((VLOOKUP($C11,Hitter!$A$1:$AD$600,22,FALSE))-Filtered!$AF$36)/Filtered!$AG$36),"")),"") ->  | U11: =IFERROR(IF((OR($D11="RP",$D11="SP")),IF(Personalize!$E$17=TRUE,(((VLOOKUP($C11,Pitcher!$A$1:$P$600,16,FALSE))-'Filtered-P'!$W$22)/'Filtered-P'!$X$22),""),IF(Personalize!$E$9=TRUE,(((VLOOKUP($C11,Hitter!$A$1:$AD$600,24,FALSE))-Filtered!$AF$38)/Filtered!$AG$38),"")),"") ->  | V11: =IFERROR(IF((OR($D11="RP",$D11="SP")),IF(Personalize!$E$37=TRUE,(((VLOOKUP($C11,Pitcher!$A$1:$Z$600,17,FALSE))-'Filtered-P'!$W$25)/'Filtered-P'!$X$25),""),IF(Personalize!$E$39=TRUE,(((VLOOKUP($C11,Hitter!$A$1:$X$600,5,FALSE))-Filtered!$AF$21)/Filtered!$AG$21),"")),"") ->  | W11: =IFERROR(IF((OR($D11="RP",$D11="SP")),IF(Personalize!$E$38=TRUE,(((VLOOKUP($C11,Pitcher!$A$1:$Z$600,18,FALSE))-'Filtered-P'!$W$26)/'Filtered-P'!$X$26),""),IF(Personalize!$E$40=TRUE,(((VLOOKUP($C11,Hitter!$A$1:$X$600,13,FALSE))-Filtered!$AF$29)/Filtered!$AG$29),"")),"") ->  | X11: =IFERROR(IF((OR($D11="RP",$D11="SP")),IF(Personalize!$E$45=TRUE,(((VLOOKUP($C11,Pitcher!$A$1:$Z$600,4,FALSE))-'Filtered-P'!$W$10)/'Filtered-P'!$X$10),""),IF(Personalize!$E$41=TRUE,(((VLOOKUP($C11,Hitter!$A$1:$AD$600,19,FALSE))-Filtered!$AF$43)/Filtered!$AG$43),"")),"") ->  | Y11: =IFERROR(IF((OR($D11="RP",$D11="SP")),IF(Personalize!$E$46=TRUE,(((VLOOKUP($C11,Pitcher!$A$1:$Z$600,19,FALSE))-'Filtered-P'!$W$27)/'Filtered-P'!$X$27),""),IF(Personalize!$E$44=TRUE,(((VLOOKUP($C11,Hitter!$A$1:$AD$600,20,FALSE))-Filtered!$AF$44)/Filtered!$AG$44),"")),"") ->  | Z11: =IFERROR(IF((OR($D11="RP",$D11="SP")),IF(Personalize!$E$47=TRUE,(((VLOOKUP($C11,Pitcher!$A$1:$Z$600,6,FALSE))-'Filtered-P'!$W$12)/'Filtered-P'!$X$12),""),IF(Personalize!$E$42=TRUE,(((VLOOKUP($C11,Hitter!$A$1:$AD$600,7,FALSE))-Filtered!$AF$23)/Filtered!$AG$23),"")),"") ->  | AA11: =IFERROR(IF((OR($D11="RP",$D11="SP")),IF(Personalize!$E$48=TRUE,(((VLOOKUP($C11,Pitcher!$A$1:$Z$600,5,FALSE))-'Filtered-P'!$W$11)/'Filtered-P'!$X$11),""),IF(Personalize!$E$43=TRUE,(((VLOOKUP($C11,Hitter!$A$1:$AD$600,8,FALSE))-Filtered!$AF$24)/Filtered!$AG$24),"")),"") ->  | AB11: =IFERROR(IF((OR($D11="RP",$D11="SP")),VLOOKUP($C11,Pitcher!$A$1:$P$600,2,FALSE),""),"") ->  | AC11: =IFERROR(IF((OR($D11="RP",$D11="SP")),VLOOKUP($C11,Pitcher!$A$1:$P$600,9,FALSE),""),"") ->  | AD11: =IFERROR(IF((OR($D11="RP",$D11="SP")),VLOOKUP($C11,Pitcher!$A$1:$P$600,7,FALSE),""),"") ->  | AE11: =IFERROR(IF((OR($D11="RP",$D11="SP")),VLOOKUP($C11,Pitcher!$A$1:$P$600,10,FALSE),""),"") ->  | AF11: =IFERROR(IF((OR($D11="RP",$D11="SP")),VLOOKUP($C11,Pitcher!$A$1:$P$600,11,FALSE),""),"") ->  | AG11: =IFERROR(IF((OR($D11="RP",$D11="SP")),"",VLOOKUP($C11,Hitter!$A$1:$X$600,15,FALSE)),"") -> 0.300684654 | AH11: =IFERROR(IF((OR($D11="RP",$D11="SP")),"",VLOOKUP($C11,Hitter!$A$1:$X$600,9,FALSE)),"") -> 29.08415956 | AI11: =IFERROR(IF((OR($D11="RP",$D11="SP")),"",VLOOKUP($C11,Hitter!$A$1:$X$600,10,FALSE)),"") -> 96.06922885 | AJ11: =IFERROR(IF((OR($D11="RP",$D11="SP")),"",VLOOKUP($C11,Hitter!$A$1:$X$600,4,FALSE)),"") -> 94.34789851 | AK11: =IFERROR(IF((OR($D11="RP",$D11="SP")),"",VLOOKUP($C11,Hitter!$A$1:$X$600,11,FALSE)),"") -> 9.558164494 | AL11: 0 | AM11: 1 | AN11: 0 | AO11: 2 | AP11: =VLOOKUP(C11,'Starter Calc'!$B$2:$BO$600,66,FALSE) -> Bench | AQ11: =VLOOKUP(C11,'Starter Calc'!$B$2:$AM$600,38,FALSE) -> Yes | AR11: =IFERROR(IF(ISTEXT($A11),"",IF((OR($D11="RP",$D11="SP")),ABS(VLOOKUP(D11,'Filtered-P'!$V$3:$Z$4,5,FALSE))+L11,ABS(VLOOKUP(D11,Filtered!$AE$3:$AI$14,5,FALSE))+L11)),"") -> 11.14976595 | AS11: 13.08683921 | AT11: N
C12: Ryan Braun | D12: =IFERROR(IF(VLOOKUP(C12,'ADP-Rank'!$A$2:$B$600,2,FALSE)="OF",VLOOKUP(C12,'Starter Calc'!$B$2:$AN$600,39,FALSE),(VLOOKUP(C12,'ADP-Rank'!$A$2:$B$600,2,FALSE))),"") -> OF | E12: =IFERROR(IF(VLOOKUP(C12,'Starter Calc'!$B$2:$E$600,4,FALSE)="","",VLOOKUP(C12,'Starter Calc'!$B$2:$E$600,4,FALSE)),"") -> LF | F12: =IFERROR(VLOOKUP($C12,'ADP-Rank'!$A$2:$D$600,3,FALSE),"") -> MIL | G12: =IFERROR(VLOOKUP($C12,'ADP-Rank'!$A$2:$W$600,23,FALSE),"") -> 29 | H12: =IFERROR(IF(ISBLANK($B12),ROUND(((AS12/$AS$1)*(Personalize!$A$3-$AQ$1))+1,0),""),"") -> 31 | I12: =IFERROR(CHOOSE(Personalize!$E$32,VLOOKUP($C12,'ADP-Rank'!$A$2:$U$600,13,FALSE),VLOOKUP($C12,'ADP-Rank'!$A$2:$U$600,14,FALSE),VLOOKUP($C12,'ADP-Rank'!$A$2:$U$600,15,FALSE),VLOOKUP($C12,'ADP-Rank'!$A$2:$U$600,16,FALSE),VLOOKUP($C12,'ADP-Rank'!$A$2:$U$600,17,FALSE),VLOOKUP($C12,'ADP-Rank'!$A$2:$U$600,18,FALSE),VLOOKUP($C12,'ADP-Rank'!$A$2:$U$600,19,FALSE),VLOOKUP($C12,'ADP-Rank'!$A$2:$U$600,20,FALSE)),"") -> 1.714285714 | J12: =IF(ISBLANK($B12),IFERROR(CHOOSE(Personalize!$E$31,(VLOOKUP(C12,'ADP-Rank'!$A$2:$E$600,5,FALSE)*(Personalize!$A$3-$AQ$1)+1),(VLOOKUP(C12,'ADP-Rank'!$A$2:$E$600,4,FALSE)*(Personalize!$A$3-$AQ$1)+1),(VLOOKUP(C12,'ADP-Rank'!$A$2:$G$600,6,FALSE)*(Personalize!$A$3-$AQ$1)+1),(VLOOKUP(C12,'ADP-Rank'!$A$2:$Z$600,7,FALSE)*(Personalize!$A$3-$AQ$1)+1),(VLOOKUP(C12,'ADP-Rank'!$A$2:$Z$600,8,FALSE)*(Personalize!$A$3-$AQ$1)+1),(VLOOKUP(C12,'ADP-Rank'!$A$2:$Z$600,9,FALSE)*(Personalize!$A$3-$AQ$1)+1),(VLOOKUP(C12,'ADP-Rank'!$A$2:$Z$600,10,FALSE)*(Personalize!$A$3-$AQ$1)+1)),""),"") -> 36.34193228 | K12: 4 | L12: 8.883959081 | M12: =IFERROR(IF((OR($D12="RP",$D12="SP")),VLOOKUP($D12,'Filtered-P'!$V$3:$Y$4,4,FALSE), VLOOKUP($D12,Filtered!$AE$3:$AH$14,4,FALSE)),"") -> 0.337703352 | N12: =IFERROR(IF((OR($D12="RP",$D12="SP")),IF(Personalize!$E$10=TRUE,(((VLOOKUP($C12,Pitcher!$A$1:$P$600,2,FALSE))-'Filtered-P'!$W$8)/'Filtered-P'!$X$8),""),IF(Personalize!$E$4=TRUE,(((VLOOKUP($C12,Hitter!$A$1:$AD$600,21,FALSE))-Filtered!$AF$35)/Filtered!$AG$35),"")),"") -> 2.236801086 | O12: =IFERROR(IF((OR($D12="RP",$D12="SP")),IF(Personalize!$E$12=TRUE,(((VLOOKUP($C12,Pitcher!$A$1:$P$600,9,FALSE))-'Filtered-P'!$W$15)/'Filtered-P'!$X$15),""),IF(Personalize!$E$3=TRUE,(((VLOOKUP($C12,Hitter!$A$1:$AB$600,9,FALSE))-Filtered!$AF$25)/Filtered!$AG$25),"")),"") -> 1.583455015 | P12: =IFERROR(IF((OR($D12="RP",$D12="SP")),IF(Personalize!$E$11=TRUE,(((VLOOKUP($C12,Pitcher!$A$1:$P$600,7,FALSE))-'Filtered-P'!$W$13)/'Filtered-P'!$X$13),""),IF(Personalize!$E$2=TRUE,(((VLOOKUP($C12,Hitter!$A$1:$AB$600,4,FALSE))-Filtered!$AF$20)/Filtered!$AG$20),"")),"") -> 2.119904863 | Q12: =IFERROR(IF((OR($D12="RP",$D12="SP")),IF(Personalize!$E$13=TRUE,(((VLOOKUP($C12,Pitcher!$A$1:$P$600,13,FALSE))-'Filtered-P'!$W$19)/'Filtered-P'!$X$19),""),IF(Personalize!$E$5=TRUE,(((VLOOKUP($C12,Hitter!$A$1:$AB$600,10,FALSE))-Filtered!$AF$26)/Filtered!$AG$26),"")),"") -> 1.971430451 | R12: =IFERROR(IF((OR($D12="RP",$D12="SP")),IF(Personalize!$E$14=TRUE,(((VLOOKUP($C12,Pitcher!$A$1:$P$600,14,FALSE))-'Filtered-P'!$W$20)/'Filtered-P'!$X$20),""),IF(Personalize!$E$6=TRUE,(((VLOOKUP($C12,Hitter!$A$1:$AB$600,11,FALSE))-Filtered!$AF$27)/Filtered!$AG$27),"")),"") -> 0.972367665 | S12: =IFERROR(IF((OR($D12="RP",$D12="SP")),IF(Personalize!$E$16=TRUE,(((VLOOKUP($C12,Pitcher!$A$1:$P$600,3,FALSE))-'Filtered-P'!$W$9)/'Filtered-P'!$X$9),""),IF(Personalize!$E$7=TRUE,(((VLOOKUP($C12,Hitter!$A$1:$AD$600,23,FALSE))-Filtered!$AF$37)/Filtered!$AG$37),"")),"") ->  | T12: =IFERROR(IF((OR($D12="RP",$D12="SP")),IF(Personalize!$E$15=TRUE,(((VLOOKUP($C12,Pitcher!$A$1:$P$600,15,FALSE))-'Filtered-P'!$W$21)/'Filtered-P'!$X$21),""),IF(Personalize!$E$8=TRUE,(((VLOOKUP($C12,Hitter!$A$1:$AD$600,22,FALSE))-Filtered!$AF$36)/Filtered!$AG$36),"")),"") ->  | U12: =IFERROR(IF((OR($D12="RP",$D12="SP")),IF(Personalize!$E$17=TRUE,(((VLOOKUP($C12,Pitcher!$A$1:$P$600,16,FALSE))-'Filtered-P'!$W$22)/'Filtered-P'!$X$22),""),IF(Personalize!$E$9=TRUE,(((VLOOKUP($C12,Hitter!$A$1:$AD$600,24,FALSE))-Filtered!$AF$38)/Filtered!$AG$38),"")),"") ->  | V12: =IFERROR(IF((OR($D12="RP",$D12="SP")),IF(Personalize!$E$37=TRUE,(((VLOOKUP($C12,Pitcher!$A$1:$Z$600,17,FALSE))-'Filtered-P'!$W$25)/'Filtered-P'!$X$25),""),IF(Personalize!$E$39=TRUE,(((VLOOKUP($C12,Hitter!$A$1:$X$600,5,FALSE))-Filtered!$AF$21)/Filtered!$AG$21),"")),"") ->  | W12: =IFERROR(IF((OR($D12="RP",$D12="SP")),IF(Personalize!$E$38=TRUE,(((VLOOKUP($C12,Pitcher!$A$1:$Z$600,18,FALSE))-'Filtered-P'!$W$26)/'Filtered-P'!$X$26),""),IF(Personalize!$E$40=TRUE,(((VLOOKUP($C12,Hitter!$A$1:$X$600,13,FALSE))-Filtered!$AF$29)/Filtered!$AG$29),"")),"") ->  | X12: =IFERROR(IF((OR($D12="RP",$D12="SP")),IF(Personalize!$E$45=TRUE,(((VLOOKUP($C12,Pitcher!$A$1:$Z$600,4,FALSE))-'Filtered-P'!$W$10)/'Filtered-P'!$X$10),""),IF(Personalize!$E$41=TRUE,(((VLOOKUP($C12,Hitter!$A$1:$AD$600,19,FALSE))-Filtered!$AF$43)/Filtered!$AG$43),"")),"") ->  | Y12: =IFERROR(IF((OR($D12="RP",$D12="SP")),IF(Personalize!$E$46=TRUE,(((VLOOKUP($C12,Pitcher!$A$1:$Z$600,19,FALSE))-'Filtered-P'!$W$27)/'Filtered-P'!$X$27),""),IF(Personalize!$E$44=TRUE,(((VLOOKUP($C12,Hitter!$A$1:$AD$600,20,FALSE))-Filtered!$AF$44)/Filtered!$AG$44),"")),"") ->  | Z12: =IFERROR(IF((OR($D12="RP",$D12="SP")),IF(Personalize!$E$47=TRUE,(((VLOOKUP($C12,Pitcher!$A$1:$Z$600,6,FALSE))-'Filtered-P'!$W$12)/'Filtered-P'!$X$12),""),IF(Personalize!$E$42=TRUE,(((VLOOKUP($C12,Hitter!$A$1:$AD$600,7,FALSE))-Filtered!$AF$23)/Filtered!$AG$23),"")),"") ->  | AA12: =IFERROR(IF((OR($D12="RP",$D12="SP")),IF(Personalize!$E$48=TRUE,(((VLOOKUP($C12,Pitcher!$A$1:$Z$600,5,FALSE))-'Filtered-P'!$W$11)/'Filtered-P'!$X$11),""),IF(Personalize!$E$43=TRUE,(((VLOOKUP($C12,Hitter!$A$1:$AD$600,8,FALSE))-Filtered!$AF$24)/Filtered!$AG$24),"")),"") ->  | AB12: =IFERROR(IF((OR($D12="RP",$D12="SP")),VLOOKUP($C12,Pitcher!$A$1:$P$600,2,FALSE),""),"") ->  | AC12: =IFERROR(IF((OR($D12="RP",$D12="SP")),VLOOKUP($C12,Pitcher!$A$1:$P$600,9,FALSE),""),"") ->  | AD12: =IFERROR(IF((OR($D12="RP",$D12="SP")),VLOOKUP($C12,Pitcher!$A$1:$P$600,7,FALSE),""),"") ->  | AE12: =IFERROR(IF((OR($D12="RP",$D12="SP")),VLOOKUP($C12,Pitcher!$A$1:$P$600,10,FALSE),""),"") ->  | AF12: =IFERROR(IF((OR($D12="RP",$D12="SP")),VLOOKUP($C12,Pitcher!$A$1:$P$600,11,FALSE),""),"") ->  | AG12: =IFERROR(IF((OR($D12="RP",$D12="SP")),"",VLOOKUP($C12,Hitter!$A$1:$X$600,15,FALSE)),"") -> 0.3040156225 | AH12: =IFERROR(IF((OR($D12="RP",$D12="SP")),"",VLOOKUP($C12,Hitter!$A$1:$X$600,9,FALSE)),"") -> 28.58472291 | AI12: =IFERROR(IF((OR($D12="RP",$D12="SP")),"",VLOOKUP($C12,Hitter!$A$1:$X$600,10,FALSE)),"") -> 98.99425765 | AJ12: =IFERROR(IF((OR($D12="RP",$D12="SP")),"",VLOOKUP($C12,Hitter!$A$1:$X$600,4,FALSE)),"") -> 95.68645548 | AK12: =IFERROR(IF((OR($D12="RP",$D12="SP")),"",VLOOKUP($C12,Hitter!$A$1:$X$600,11,FALSE)),"") -> 20.46038383 | AL12: 0 | AM12: 1 | AN12: 0 | AO12: 11 | AP12: =VLOOKUP(C12,'Starter Calc'!$B$2:$BO$600,66,FALSE) -> Bench | AQ12: =VLOOKUP(C12,'Starter Calc'!$B$2:$AM$600,38,FALSE) -> Yes | AR12: =IFERROR(IF(ISTEXT($A12),"",IF((OR($D12="RP",$D12="SP")),ABS(VLOOKUP(D12,'Filtered-P'!$V$3:$Z$4,5,FALSE))+L12,ABS(VLOOKUP(D12,Filtered!$AE$3:$AI$14,5,FALSE))+L12)),"") -> 10.59584691 | AS12: 12.53292016 | AT12: N
C13: Robinson Cano | D13: =IFERROR(IF(VLOOKUP(C13,'ADP-Rank'!$A$2:$B$600,2,FALSE)="OF",VLOOKUP(C13,'Starter Calc'!$B$2:$AN$600,39,FALSE),(VLOOKUP(C13,'ADP-Rank'!$A$2:$B$600,2,FALSE))),"") -> 2B | E13: =IFERROR(IF(VLOOKUP(C13,'Starter Calc'!$B$2:$E$600,4,FALSE)="","",VLOOKUP(C13,'Starter Calc'!$B$2:$E$600,4,FALSE)),"") ->  | F13: =IFERROR(VLOOKUP($C13,'ADP-Rank'!$A$2:$D$600,3,FALSE),"") -> NYY | G13: =IFERROR(VLOOKUP($C13,'ADP-Rank'!$A$2:$W$600,23,FALSE),"") -> 30 | H13: =IFERROR(IF(ISBLANK($B13),ROUND(((AS13/$AS$1)*(Personalize!$A$3-$AQ$1))+1,0),""),"") -> 30 | I13: =IFERROR(CHOOSE(Personalize!$E$32,VLOOKUP($C13,'ADP-Rank'!$A$2:$U$600,13,FALSE),VLOOKUP($C13,'ADP-Rank'!$A$2:$U$600,14,FALSE),VLOOKUP($C13,'ADP-Rank'!$A$2:$U$600,15,FALSE),VLOOKUP($C13,'ADP-Rank'!$A$2:$U$600,16,FALSE),VLOOKUP($C13,'ADP-Rank'!$A$2:$U$600,17,FALSE),VLOOKUP($C13,'ADP-Rank'!$A$2:$U$600,18,FALSE),VLOOKUP($C13,'ADP-Rank'!$A$2:$U$600,19,FALSE),VLOOKUP($C13,'ADP-Rank'!$A$2:$U$600,20,FALSE)),"") -> 9.142857143 | J13: =IF(ISBLANK($B13),IFERROR(CHOOSE(Personalize!$E$31,(VLOOKUP(C13,'ADP-Rank'!$A$2:$E$600,5,FALSE)*(Personalize!$A$3-$AQ$1)+1),(VLOOKUP(C13,'ADP-Rank'!$A$2:$E$600,4,FALSE)*(Personalize!$A$3-$AQ$1)+1),(VLOOKUP(C13,'ADP-Rank'!$A$2:$G$600,6,FALSE)*(Personalize!$A$3-$AQ$1)+1),(VLOOKUP(C13,'ADP-Rank'!$A$2:$Z$600,7,FALSE)*(Personalize!$A$3-$AQ$1)+1),(VLOOKUP(C13,'ADP-Rank'!$A$2:$Z$600,8,FALSE)*(Personalize!$A$3-$AQ$1)+1),(VLOOKUP(C13,'ADP-Rank'!$A$2:$Z$600,9,FALSE)*(Personalize!$A$3-$AQ$1)+1),(VLOOKUP(C13,'ADP-Rank'!$A$2:$Z$600,10,FALSE)*(Personalize!$A$3-$AQ$1)+1)),""),"") -> 35.53945561 | K13: 11 | L13: 6.067331252 | M13: =IFERROR(IF((OR($D13="RP",$D13="SP")),VLOOKUP($D13,'Filtered-P'!$V$3:$Y$4,4,FALSE), VLOOKUP($D13,Filtered!$AE$3:$AH$14,4,FALSE)),"") -> -0.2209507435 | N13: =IFERROR(IF((OR($D13="RP",$D13="SP")),IF(Personalize!$E$10=TRUE,(((VLOOKUP($C13,Pitcher!$A$1:$P$600,2,FALSE))-'Filtered-P'!$W$8)/'Filtered-P'!$X$8),""),IF(Personalize!$E$4=TRUE,(((VLOOKUP($C13,Hitter!$A$1:$AD$600,21,FALSE))-Filtered!$AF$35)/Filtered!$AG$35),"")),"") -> 1.995568438 | O13: =IFERROR(IF((OR($D13="RP",$D13="SP")),IF(Personalize!$E$12=TRUE,(((VLOOKUP($C13,Pitcher!$A$1:$P$600,9,FALSE))-'Filtered-P'!$W$15)/'Filtered-P'!$X$15),""),IF(Personalize!$E$3=TRUE,(((VLOOKUP($C13,Hitter!$A$1:$AB$600,9,FALSE))-Filtered!$AF$25)/Filtered!$AG$25),"")),"") -> 0.939829302 | P13: =IFERROR(IF((OR($D13="RP",$D13="SP")),IF(Personalize!$E$11=TRUE,(((VLOOKUP($C13,Pitcher!$A$1:$P$600,7,FALSE))-'Filtered-P'!$W$13)/'Filtered-P'!$X$13),""),IF(Personalize!$E$2=TRUE,(((VLOOKUP($C13,Hitter!$A$1:$AB$600,4,FALSE))-Filtered!$AF$20)/Filtered!$AG$20),"")),"") -> 1.786572308 | Q13: =IFERROR(IF((OR($D13="RP",$D13="SP")),IF(Personalize!$E$13=TRUE,(((VLOOKUP($C13,Pitcher!$A$1:$P$600,13,FALSE))-'Filtered-P'!$W$19)/'Filtered-P'!$X$19),""),IF(Personalize!$E$5=TRUE,(((VLOOKUP($C13,Hitter!$A$1:$AB$600,10,FALSE))-Filtered!$AF$26)/Filtered!$AG$26),"")),"") -> 1.94411092 | R13: =IFERROR(IF((OR($D13="RP",$D13="SP")),IF(Personalize!$E$14=TRUE,(((VLOOKUP($C13,Pitcher!$A$1:$P$600,14,FALSE))-'Filtered-P'!$W$20)/'Filtered-P'!$X$20),""),IF(Personalize!$E$6=TRUE,(((VLOOKUP($C13,Hitter!$A$1:$AB$600,11,FALSE))-Filtered!$AF$27)/Filtered!$AG$27),"")),"") -> -0.5987497153 | S13: =IFERROR(IF((OR($D13="RP",$D13="SP")),IF(Personalize!$E$16=TRUE,(((VLOOKUP($C13,Pitcher!$A$1:$P$600,3,FALSE))-'Filtered-P'!$W$9)/'Filtered-P'!$X$9),""),IF(Personalize!$E$7=TRUE,(((VLOOKUP($C13,Hitter!$A$1:$AD$600,23,FALSE))-Filtered!$AF$37)/Filtered!$AG$37),"")),"") ->  | T13: =IFERROR(IF((OR($D13="RP",$D13="SP")),IF(Personalize!$E$15=TRUE,(((VLOOKUP($C13,Pitcher!$A$1:$P$600,15,FALSE))-'Filtered-P'!$W$21)/'Filtered-P'!$X$21),""),IF(Personalize!$E$8=TRUE,(((VLOOKUP($C13,Hitter!$A$1:$AD$600,22,FALSE))-Filtered!$AF$36)/Filtered!$AG$36),"")),"") ->  | U13: =IFERROR(IF((OR($D13="RP",$D13="SP")),IF(Personalize!$E$17=TRUE,(((VLOOKUP($C13,Pitcher!$A$1:$P$600,16,FALSE))-'Filtered-P'!$W$22)/'Filtered-P'!$X$22),""),IF(Personalize!$E$9=TRUE,(((VLOOKUP($C13,Hitter!$A$1:$AD$600,24,FALSE))-Filtered!$AF$38)/Filtered!$AG$38),"")),"") ->  | V13: =IFERROR(IF((OR($D13="RP",$D13="SP")),IF(Personalize!$E$37=TRUE,(((VLOOKUP($C13,Pitcher!$A$1:$Z$600,17,FALSE))-'Filtered-P'!$W$25)/'Filtered-P'!$X$25),""),IF(Personalize!$E$39=TRUE,(((VLOOKUP($C13,Hitter!$A$1:$X$600,5,FALSE))-Filtered!$AF$21)/Filtered!$AG$21),"")),"") ->  | W13: =IFERROR(IF((OR($D13="RP",$D13="SP")),IF(Personalize!$E$38=TRUE,(((VLOOKUP($C13,Pitcher!$A$1:$Z$600,18,FALSE))-'Filtered-P'!$W$26)/'Filtered-P'!$X$26),""),IF(Personalize!$E$40=TRUE,(((VLOOKUP($C13,Hitter!$A$1:$X$600,13,FALSE))-Filtered!$AF$29)/Filtered!$AG$29),"")),"") ->  | X13: =IFERROR(IF((OR($D13="RP",$D13="SP")),IF(Personalize!$E$45=TRUE,(((VLOOKUP($C13,Pitcher!$A$1:$Z$600,4,FALSE))-'Filtered-P'!$W$10)/'Filtered-P'!$X$10),""),IF(Personalize!$E$41=TRUE,(((VLOOKUP($C13,Hitter!$A$1:$AD$600,19,FALSE))-Filtered!$AF$43)/Filtered!$AG$43),"")),"") ->  | Y13: =IFERROR(IF((OR($D13="RP",$D13="SP")),IF(Personalize!$E$46=TRUE,(((VLOOKUP($C13,Pitcher!$A$1:$Z$600,19,FALSE))-'Filtered-P'!$W$27)/'Filtered-P'!$X$27),""),IF(Personalize!$E$44=TRUE,(((VLOOKUP($C13,Hitter!$A$1:$AD$600,20,FALSE))-Filtered!$AF$44)/Filtered!$AG$44),"")),"") ->  | Z13: =IFERROR(IF((OR($D13="RP",$D13="SP")),IF(Personalize!$E$47=TRUE,(((VLOOKUP($C13,Pitcher!$A$1:$Z$600,6,FALSE))-'Filtered-P'!$W$12)/'Filtered-P'!$X$12),""),IF(Personalize!$E$42=TRUE,(((VLOOKUP($C13,Hitter!$A$1:$AD$600,7,FALSE))-Filtered!$AF$23)/Filtered!$AG$23),"")),"") ->  | AA13: =IFERROR(IF((OR($D13="RP",$D13="SP")),IF(Personalize!$E$48=TRUE,(((VLOOKUP($C13,Pitcher!$A$1:$Z$600,5,FALSE))-'Filtered-P'!$W$11)/'Filtered-P'!$X$11),""),IF(Personalize!$E$43=TRUE,(((VLOOKUP($C13,Hitter!$A$1:$AD$600,8,FALSE))-Filtered!$AF$24)/Filtered!$AG$24),"")),"") ->  | AB13: =IFERROR(IF((OR($D13="RP",$D13="SP")),VLOOKUP($C13,Pitcher!$A$1:$P$600,2,FALSE),""),"") ->  | AC13: =IFERROR(IF((OR($D13="RP",$D13="SP")),VLOOKUP($C13,Pitcher!$A$1:$P$600,9,FALSE),""),"") ->  | AD13: =IFERROR(IF((OR($D13="RP",$D13="SP")),VLOOKUP($C13,Pitcher!$A$1:$P$600,7,FALSE),""),"") ->  | AE13: =IFERROR(IF((OR($D13="RP",$D13="SP")),VLOOKUP($C13,Pitcher!$A$1:$P$600,10,FALSE),""),"") ->  | AF13: =IFERROR(IF((OR($D13="RP",$D13="SP")),VLOOKUP($C13,Pitcher!$A$1:$P$600,11,FALSE),""),"") ->  | AG13: =IFERROR(IF((OR($D13="RP",$D13="SP")),"",VLOOKUP($C13,Hitter!$A$1:$X$600,15,FALSE)),"") -> 0.2992243025 | AH13: =IFERROR(IF((OR($D13="RP",$D13="SP")),"",VLOOKUP($C13,Hitter!$A$1:$X$600,9,FALSE)),"") -> 24.05289633 | AI13: =IFERROR(IF((OR($D13="RP",$D13="SP")),"",VLOOKUP($C13,Hitter!$A$1:$X$600,10,FALSE)),"") -> 98.5666879 | AJ13: =IFERROR(IF((OR($D13="RP",$D13="SP")),"",VLOOKUP($C13,Hitter!$A$1:$X$600,4,FALSE)),"") -> 91.84532119 | AK13: =IFERROR(IF((OR($D13="RP",$D13="SP")),"",VLOOKUP($C13,Hitter!$A$1:$X$600,11,FALSE)),"") -> 5.444410099 | AL13: 0 | AM13: 1 | AN13: 0 | AO13: 3 | AP13: =VLOOKUP(C13,'Starter Calc'!$B$2:$BO$600,66,FALSE) -> Bench | AQ13: =VLOOKUP(C13,'Starter Calc'!$B$2:$AM$600,38,FALSE) -> Yes | AR13: =IFERROR(IF(ISTEXT($A13),"",IF((OR($D13="RP",$D13="SP")),ABS(VLOOKUP(D13,'Filtered-P'!$V$3:$Z$4,5,FALSE))+L13,ABS(VLOOKUP(D13,Filtered!$AE$3:$AI$14,5,FALSE))+L13)),"") -> 10.21779473 | AS13: 12.15486799 | AT13: N
C14: Matt Kemp | D14: =IFERROR(IF(VLOOKUP(C14,'ADP-Rank'!$A$2:$B$600,2,FALSE)="OF",VLOOKUP(C14,'Starter Calc'!$B$2:$AN$600,39,FALSE),(VLOOKUP(C14,'ADP-Rank'!$A$2:$B$600,2,FALSE))),"") -> OF | E14: =IFERROR(IF(VLOOKUP(C14,'Starter Calc'!$B$2:$E$600,4,FALSE)="","",VLOOKUP(C14,'Starter Calc'!$B$2:$E$600,4,FALSE)),"") -> CF | F14: =IFERROR(VLOOKUP($C14,'ADP-Rank'!$A$2:$D$600,3,FALSE),"") -> LA | G14: =IFERROR(VLOOKUP($C14,'ADP-Rank'!$A$2:$W$600,23,FALSE),"") -> 28 | H14: =IFERROR(IF(ISBLANK($B14),ROUND(((AS14/$AS$1)*(Personalize!$A$3-$AQ$1))+1,0),""),"") -> 29 | I14: =IFERROR(CHOOSE(Personalize!$E$32,VLOOKUP($C14,'ADP-Rank'!$A$2:$U$600,13,FALSE),VLOOKUP($C14,'ADP-Rank'!$A$2:$U$600,14,FALSE),VLOOKUP($C14,'ADP-Rank'!$A$2:$U$600,15,FALSE),VLOOKUP($C14,'ADP-Rank'!$A$2:$U$600,16,FALSE),VLOOKUP($C14,'ADP-Rank'!$A$2:$U$600,17,FALSE),VLOOKUP($C14,'ADP-Rank'!$A$2:$U$600,18,FALSE),VLOOKUP($C14,'ADP-Rank'!$A$2:$U$600,19,FALSE),VLOOKUP($C14,'ADP-Rank'!$A$2:$U$600,20,FALSE)),"") -> 3.428571429 | J14: =IF(ISBLANK($B14),IFERROR(CHOOSE(Personalize!$E$31,(VLOOKUP(C14,'ADP-Rank'!$A$2:$E$600,5,FALSE)*(Personalize!$A$3-$AQ$1)+1),(VLOOKUP(C14,'ADP-Rank'!$A$2:$E$600,4,FALSE)*(Personalize!$A$3-$AQ$1)+1),(VLOOKUP(C14,'ADP-Rank'!$A$2:$G$600,6,FALSE)*(Personalize!$A$3-$AQ$1)+1),(VLOOKUP(C14,'ADP-Rank'!$A$2:$Z$600,7,FALSE)*(Personalize!$A$3-$AQ$1)+1),(VLOOKUP(C14,'ADP-Rank'!$A$2:$Z$600,8,FALSE)*(Personalize!$A$3-$AQ$1)+1),(VLOOKUP(C14,'ADP-Rank'!$A$2:$Z$600,9,FALSE)*(Personalize!$A$3-$AQ$1)+1),(VLOOKUP(C14,'ADP-Rank'!$A$2:$Z$600,10,FALSE)*(Personalize!$A$3-$AQ$1)+1)),""),"") -> 41.93559482 | K14: 8 | L14: 8.160436187 | M14: =IFERROR(IF((OR($D14="RP",$D14="SP")),VLOOKUP($D14,'Filtered-P'!$V$3:$Y$4,4,FALSE), VLOOKUP($D14,Filtered!$AE$3:$AH$14,4,FALSE)),"") -> 0.337703352 | N14: =IFERROR(IF((OR($D14="RP",$D14="SP")),IF(Personalize!$E$10=TRUE,(((VLOOKUP($C14,Pitcher!$A$1:$P$600,2,FALSE))-'Filtered-P'!$W$8)/'Filtered-P'!$X$8),""),IF(Personalize!$E$4=TRUE,(((VLOOKUP($C14,Hitter!$A$1:$AD$600,21,FALSE))-Filtered!$AF$35)/Filtered!$AG$35),"")),"") -> 0.85107906 | O14: =IFERROR(IF((OR($D14="RP",$D14="SP")),IF(Personalize!$E$12=TRUE,(((VLOOKUP($C14,Pitcher!$A$1:$P$600,9,FALSE))-'Filtered-P'!$W$15)/'Filtered-P'!$X$15),""),IF(Personalize!$E$3=TRUE,(((VLOOKUP($C14,Hitter!$A$1:$AB$600,9,FALSE))-Filtered!$AF$25)/Filtered!$AG$25),"")),"") -> 1.609974857 | P14: =IFERROR(IF((OR($D14="RP",$D14="SP")),IF(Personalize!$E$11=TRUE,(((VLOOKUP($C14,Pitcher!$A$1:$P$600,7,FALSE))-'Filtered-P'!$W$13)/'Filtered-P'!$X$13),""),IF(Personalize!$E$2=TRUE,(((VLOOKUP($C14,Hitter!$A$1:$AB$600,4,FALSE))-Filtered!$AF$20)/Filtered!$AG$20),"")),"") -> 1.926223424 | Q14: =IFERROR(IF((OR($D14="RP",$D14="SP")),IF(Personalize!$E$13=TRUE,(((VLOOKUP($C14,Pitcher!$A$1:$P$600,13,FALSE))-'Filtered-P'!$W$19)/'Filtered-P'!$X$19),""),IF(Personalize!$E$5=TRUE,(((VLOOKUP($C14,Hitter!$A$1:$AB$600,10,FALSE))-Filtered!$AF$26)/Filtered!$AG$26),"")),"") -> 1.933818414 | R14: =IFERROR(IF((OR($D14="RP",$D14="SP")),IF(Personalize!$E$14=TRUE,(((VLOOKUP($C14,Pitcher!$A$1:$P$600,14,FALSE))-'Filtered-P'!$W$20)/'Filtered-P'!$X$20),""),IF(Personalize!$E$6=TRUE,(((VLOOKUP($C14,Hitter!$A$1:$AB$600,11,FALSE))-Filtered!$AF$27)/Filtered!$AG$27),"")),"") -> 1.839340433 | S14: =IFERROR(IF((OR($D14="RP",$D14="SP")),IF(Personalize!$E$16=TRUE,(((VLOOKUP($C14,Pitcher!$A$1:$P$600,3,FALSE))-'Filtered-P'!$W$9)/'Filtered-P'!$X$9),""),IF(Personalize!$E$7=TRUE,(((VLOOKUP($C14,Hitter!$A$1:$AD$600,23,FALSE))-Filtered!$AF$37)/Filtered!$AG$37),"")),"") ->  | T14: =IFERROR(IF((OR($D14="RP",$D14="SP")),IF(Personalize!$E$15=TRUE,(((VLOOKUP($C14,Pitcher!$A$1:$P$600,15,FALSE))-'Filtered-P'!$W$21)/'Filtered-P'!$X$21),""),IF(Personalize!$E$8=TRUE,(((VLOOKUP($C14,Hitter!$A$1:$AD$600,22,FALSE))-Filtered!$AF$36)/Filtered!$AG$36),"")),"") ->  | U14: =IFERROR(IF((OR($D14="RP",$D14="SP")),IF(Personalize!$E$17=TRUE,(((VLOOKUP($C14,Pitcher!$A$1:$P$600,16,FALSE))-'Filtered-P'!$W$22)/'Filtered-P'!$X$22),""),IF(Personalize!$E$9=TRUE,(((VLOOKUP($C14,Hitter!$A$1:$AD$600,24,FALSE))-Filtered!$AF$38)/Filtered!$AG$38),"")),"") ->  | V14: =IFERROR(IF((OR($D14="RP",$D14="SP")),IF(Personalize!$E$37=TRUE,(((VLOOKUP($C14,Pitcher!$A$1:$Z$600,17,FALSE))-'Filtered-P'!$W$25)/'Filtered-P'!$X$25),""),IF(Personalize!$E$39=TRUE,(((VLOOKUP($C14,Hitter!$A$1:$X$600,5,FALSE))-Filtered!$AF$21)/Filtered!$AG$21),"")),"") ->  | W14: =IFERROR(IF((OR($D14="RP",$D14="SP")),IF(Personalize!$E$38=TRUE,(((VLOOKUP($C14,Pitcher!$A$1:$Z$600,18,FALSE))-'Filtered-P'!$W$26)/'Filtered-P'!$X$26),""),IF(Personalize!$E$40=TRUE,(((VLOOKUP($C14,Hitter!$A$1:$X$600,13,FALSE))-Filtered!$AF$29)/Filtered!$AG$29),"")),"") ->  | X14: =IFERROR(IF((OR($D14="RP",$D14="SP")),IF(Personalize!$E$45=TRUE,(((VLOOKUP($C14,Pitcher!$A$1:$Z$600,4,FALSE))-'Filtered-P'!$W$10)/'Filtered-P'!$X$10),""),IF(Personalize!$E$41=TRUE,(((VLOOKUP($C14,Hitter!$A$1:$AD$600,19,FALSE))-Filtered!$AF$43)/Filtered!$AG$43),"")),"") ->  | Y14: =IFERROR(IF((OR($D14="RP",$D14="SP")),IF(Personalize!$E$46=TRUE,(((VLOOKUP($C14,Pitcher!$A$1:$Z$600,19,FALSE))-'Filtered-P'!$W$27)/'Filtered-P'!$X$27),""),IF(Personalize!$E$44=TRUE,(((VLOOKUP($C14,Hitter!$A$1:$AD$600,20,FALSE))-Filtered!$AF$44)/Filtered!$AG$44),"")),"") ->  | Z14: =IFERROR(IF((OR($D14="RP",$D14="SP")),IF(Personalize!$E$47=TRUE,(((VLOOKUP($C14,Pitcher!$A$1:$Z$600,6,FALSE))-'Filtered-P'!$W$12)/'Filtered-P'!$X$12),""),IF(Personalize!$E$42=TRUE,(((VLOOKUP($C14,Hitter!$A$1:$AD$600,7,FALSE))-Filtered!$AF$23)/Filtered!$AG$23),"")),"") ->  | AA14: =IFERROR(IF((OR($D14="RP",$D14="SP")),IF(Personalize!$E$48=TRUE,(((VLOOKUP($C14,Pitcher!$A$1:$Z$600,5,FALSE))-'Filtered-P'!$W$11)/'Filtered-P'!$X$11),""),IF(Personalize!$E$43=TRUE,(((VLOOKUP($C14,Hitter!$A$1:$AD$600,8,FALSE))-Filtered!$AF$24)/Filtered!$AG$24),"")),"") ->  | AB14: =IFERROR(IF((OR($D14="RP",$D14="SP")),VLOOKUP($C14,Pitcher!$A$1:$P$600,2,FALSE),""),"") ->  | AC14: =IFERROR(IF((OR($D14="RP",$D14="SP")),VLOOKUP($C14,Pitcher!$A$1:$P$600,9,FALSE),""),"") ->  | AD14: =IFERROR(IF((OR($D14="RP",$D14="SP")),VLOOKUP($C14,Pitcher!$A$1:$P$600,7,FALSE),""),"") ->  | AE14: =IFERROR(IF((OR($D14="RP",$D14="SP")),VLOOKUP($C14,Pitcher!$A$1:$P$600,10,FALSE),""),"") ->  | AF14: =IFERROR(IF((OR($D14="RP",$D14="SP")),VLOOKUP($C14,Pitcher!$A$1:$P$600,11,FALSE),""),"") ->  | AG14: =IFERROR(IF((OR($D14="RP",$D14="SP")),"",VLOOKUP($C14,Hitter!$A$1:$X$600,15,FALSE)),"") -> 0.2828682054 | AH14: =IFERROR(IF((OR($D14="RP",$D14="SP")),"",VLOOKUP($C14,Hitter!$A$1:$X$600,9,FALSE)),"") -> 28.77145151 | AI14: =IFERROR(IF((OR($D14="RP",$D14="SP")),"",VLOOKUP($C14,Hitter!$A$1:$X$600,10,FALSE)),"") -> 98.40560299 | AJ14: =IFERROR(IF((OR($D14="RP",$D14="SP")),"",VLOOKUP($C14,Hitter!$A$1:$X$600,4,FALSE)),"") -> 93.45458101 | AK14: =IFERROR(IF((OR($D14="RP",$D14="SP")),"",VLOOKUP($C14,Hitter!$A$1:$X$600,11,FALSE)),"") -> 28.74648674 | AL14: 0 | AM14: 1 | AN14: 0 | AO14: 11 | AP14: =VLOOKUP(C14,'Starter Calc'!$B$2:$BO$600,66,FALSE) -> Bench | AQ14: =VLOOKUP(C14,'Starter Calc'!$B$2:$AM$600,38,FALSE) -> Yes | AR14: =IFERROR(IF(ISTEXT($A14),"",IF((OR($D14="RP",$D14="SP")),ABS(VLOOKUP(D14,'Filtered-P'!$V$3:$Z$4,5,FALSE))+L14,ABS(VLOOKUP(D14,Filtered!$AE$3:$AI$14,5,FALSE))+L14)),"") -> 9.872324012 | AS14: 11.80939727 | AT14: N
C15: Prince Fielder | D15: =IFERROR(IF(VLOOKUP(C15,'ADP-Rank'!$A$2:$B$600,2,FALSE)="OF",VLOOKUP(C15,'Starter Calc'!$B$2:$AN$600,39,FALSE),(VLOOKUP(C15,'ADP-Rank'!$A$2:$B$600,2,FALSE))),"") -> 1B | E15: =IFERROR(IF(VLOOKUP(C15,'Starter Calc'!$B$2:$E$600,4,FALSE)="","",VLOOKUP(C15,'Starter Calc'!$B$2:$E$600,4,FALSE)),"") ->  | F15: =IFERROR(VLOOKUP($C15,'ADP-Rank'!$A$2:$D$600,3,FALSE),"") -> DET | G15: =IFERROR(VLOOKUP($C15,'ADP-Rank'!$A$2:$W$600,23,FALSE),"") -> 28 | H15: =IFERROR(IF(ISBLANK($B15),ROUND(((AS15/$AS$1)*(Personalize!$A$3-$AQ$1))+1,0),""),"") -> 28 | I15: =IFERROR(CHOOSE(Personalize!$E$32,VLOOKUP($C15,'ADP-Rank'!$A$2:$U$600,13,FALSE),VLOOKUP($C15,'ADP-Rank'!$A$2:$U$600,14,FALSE),VLOOKUP($C15,'ADP-Rank'!$A$2:$U$600,15,FALSE),VLOOKUP($C15,'ADP-Rank'!$A$2:$U$600,16,FALSE),VLOOKUP($C15,'ADP-Rank'!$A$2:$U$600,17,FALSE),VLOOKUP($C15,'ADP-Rank'!$A$2:$U$600,18,FALSE),VLOOKUP($C15,'ADP-Rank'!$A$2:$U$600,19,FALSE),VLOOKUP($C15,'ADP-Rank'!$A$2:$U$600,20,FALSE)),"") -> 13.71428571 | J15: =IF(ISBLANK($B15),IFERROR(CHOOSE(Personalize!$E$31,(VLOOKUP(C15,'ADP-Rank'!$A$2:$E$600,5,FALSE)*(Personalize!$A$3-$AQ$1)+1),(VLOOKUP(C15,'ADP-Rank'!$A$2:$E$600,4,FALSE)*(Personalize!$A$3-$AQ$1)+1),(VLOOKUP(C15,'ADP-Rank'!$A$2:$G$600,6,FALSE)*(Personalize!$A$3-$AQ$1)+1),(VLOOKUP(C15,'ADP-Rank'!$A$2:$Z$600,7,FALSE)*(Personalize!$A$3-$AQ$1)+1),(VLOOKUP(C15,'ADP-Rank'!$A$2:$Z$600,8,FALSE)*(Personalize!$A$3-$AQ$1)+1),(VLOOKUP(C15,'ADP-Rank'!$A$2:$Z$600,9,FALSE)*(Personalize!$A$3-$AQ$1)+1),(VLOOKUP(C15,'ADP-Rank'!$A$2:$Z$600,10,FALSE)*(Personalize!$A$3-$AQ$1)+1)),""),"") -> 33.07647973 | K15: 15 | L15: 5.497774201 | M15: =IFERROR(IF((OR($D15="RP",$D15="SP")),VLOOKUP($D15,'Filtered-P'!$V$3:$Y$4,4,FALSE), VLOOKUP($D15,Filtered!$AE$3:$AH$14,4,FALSE)),"") -> 1.344129608 | N15: =IFERROR(IF((OR($D15="RP",$D15="SP")),IF(Personalize!$E$10=TRUE,(((VLOOKUP($C15,Pitcher!$A$1:$P$600,2,FALSE))-'Filtered-P'!$W$8)/'Filtered-P'!$X$8),""),IF(Personalize!$E$4=TRUE,(((VLOOKUP($C15,Hitter!$A$1:$AD$600,21,FALSE))-Filtered!$AF$35)/Filtered!$AG$35),"")),"") -> 0.4208265452 | O15: =IFERROR(IF((OR($D15="RP",$D15="SP")),IF(Personalize!$E$12=TRUE,(((VLOOKUP($C15,Pitcher!$A$1:$P$600,9,FALSE))-'Filtered-P'!$W$15)/'Filtered-P'!$X$15),""),IF(Personalize!$E$3=TRUE,(((VLOOKUP($C15,Hitter!$A$1:$AB$600,9,FALSE))-Filtered!$AF$25)/Filtered!$AG$25),"")),"") -> 2.154083669 | P15: =IFERROR(IF((OR($D15="RP",$D15="SP")),IF(Personalize!$E$11=TRUE,(((VLOOKUP($C15,Pitcher!$A$1:$P$600,7,FALSE))-'Filtered-P'!$W$13)/'Filtered-P'!$X$13),""),IF(Personalize!$E$2=TRUE,(((VLOOKUP($C15,Hitter!$A$1:$AB$600,4,FALSE))-Filtered!$AF$20)/Filtered!$AG$20),"")),"") -> 1.651262593 | Q15: =IFERROR(IF((OR($D15="RP",$D15="SP")),IF(Personalize!$E$13=TRUE,(((VLOOKUP($C15,Pitcher!$A$1:$P$600,13,FALSE))-'Filtered-P'!$W$19)/'Filtered-P'!$X$19),""),IF(Personalize!$E$5=TRUE,(((VLOOKUP($C15,Hitter!$A$1:$AB$600,10,FALSE))-Filtered!$AF$26)/Filtered!$AG$26),"")),"") -> 2.242431803 | R15: =IFERROR(IF((OR($D15="RP",$D15="SP")),IF(Personalize!$E$14=TRUE,(((VLOOKUP($C15,Pitcher!$A$1:$P$600,14,FALSE))-'Filtered-P'!$W$20)/'Filtered-P'!$X$20),""),IF(Personalize!$E$6=TRUE,(((VLOOKUP($C15,Hitter!$A$1:$AB$600,11,FALSE))-Filtered!$AF$27)/Filtered!$AG$27),"")),"") -> -0.9708304083 | S15: =IFERROR(IF((OR($D15="RP",$D15="SP")),IF(Personalize!$E$16=TRUE,(((VLOOKUP($C15,Pitcher!$A$1:$P$600,3,FALSE))-'Filtered-P'!$W$9)/'Filtered-P'!$X$9),""),IF(Personalize!$E$7=TRUE,(((VLOOKUP($C15,Hitter!$A$1:$AD$600,23,FALSE))-Filtered!$AF$37)/Filtered!$AG$37),"")),"") ->  | T15: =IFERROR(IF((OR($D15="RP",$D15="SP")),IF(Personalize!$E$15=TRUE,(((VLOOKUP($C15,Pitcher!$A$1:$P$600,15,FALSE))-'Filtered-P'!$W$21)/'Filtered-P'!$X$21),""),IF(Personalize!$E$8=TRUE,(((VLOOKUP($C15,Hitter!$A$1:$AD$600,22,FALSE))-Filtered!$AF$36)/Filtered!$AG$36),"")),"") ->  | U15: =IFERROR(IF((OR($D15="RP",$D15="SP")),IF(Personalize!$E$17=TRUE,(((VLOOKUP($C15,Pitcher!$A$1:$P$600,16,FALSE))-'Filtered-P'!$W$22)/'Filtered-P'!$X$22),""),IF(Personalize!$E$9=TRUE,(((VLOOKUP($C15,Hitter!$A$1:$AD$600,24,FALSE))-Filtered!$AF$38)/Filtered!$AG$38),"")),"") ->  | V15: =IFERROR(IF((OR($D15="RP",$D15="SP")),IF(Personalize!$E$37=TRUE,(((VLOOKUP($C15,Pitcher!$A$1:$Z$600,17,FALSE))-'Filtered-P'!$W$25)/'Filtered-P'!$X$25),""),IF(Personalize!$E$39=TRUE,(((VLOOKUP($C15,Hitter!$A$1:$X$600,5,FALSE))-Filtered!$AF$21)/Filtered!$AG$21),"")),"") ->  | W15: =IFERROR(IF((OR($D15="RP",$D15="SP")),IF(Personalize!$E$38=TRUE,(((VLOOKUP($C15,Pitcher!$A$1:$Z$600,18,FALSE))-'Filtered-P'!$W$26)/'Filtered-P'!$X$26),""),IF(Personalize!$E$40=TRUE,(((VLOOKUP($C15,Hitter!$A$1:$X$600,13,FALSE))-Filtered!$AF$29)/Filtered!$AG$29),"")),"") ->  | X15: =IFERROR(IF((OR($D15="RP",$D15="SP")),IF(Personalize!$E$45=TRUE,(((VLOOKUP($C15,Pitcher!$A$1:$Z$600,4,FALSE))-'Filtered-P'!$W$10)/'Filtered-P'!$X$10),""),IF(Personalize!$E$41=TRUE,(((VLOOKUP($C15,Hitter!$A$1:$AD$600,19,FALSE))-Filtered!$AF$43)/Filtered!$AG$43),"")),"") ->  | Y15: =IFERROR(IF((OR($D15="RP",$D15="SP")),IF(Personalize!$E$46=TRUE,(((VLOOKUP($C15,Pitcher!$A$1:$Z$600,19,FALSE))-'Filtered-P'!$W$27)/'Filtered-P'!$X$27),""),IF(Personalize!$E$44=TRUE,(((VLOOKUP($C15,Hitter!$A$1:$AD$600,20,FALSE))-Filtered!$AF$44)/Filtered!$AG$44),"")),"") ->  | Z15: =IFERROR(IF((OR($D15="RP",$D15="SP")),IF(Personalize!$E$47=TRUE,(((VLOOKUP($C15,Pitcher!$A$1:$Z$600,6,FALSE))-'Filtered-P'!$W$12)/'Filtered-P'!$X$12),""),IF(Personalize!$E$42=TRUE,(((VLOOKUP($C15,Hitter!$A$1:$AD$600,7,FALSE))-Filtered!$AF$23)/Filtered!$AG$23),"")),"") ->  | AA15: =IFERROR(IF((OR($D15="RP",$D15="SP")),IF(Personalize!$E$48=TRUE,(((VLOOKUP($C15,Pitcher!$A$1:$Z$600,5,FALSE))-'Filtered-P'!$W$11)/'Filtered-P'!$X$11),""),IF(Personalize!$E$43=TRUE,(((VLOOKUP($C15,Hitter!$A$1:$AD$600,8,FALSE))-Filtered!$AF$24)/Filtered!$AG$24),"")),"") ->  | AB15: =IFERROR(IF((OR($D15="RP",$D15="SP")),VLOOKUP($C15,Pitcher!$A$1:$P$600,2,FALSE),""),"") ->  | AC15: =IFERROR(IF((OR($D15="RP",$D15="SP")),VLOOKUP($C15,Pitcher!$A$1:$P$600,9,FALSE),""),"") ->  | AD15: =IFERROR(IF((OR($D15="RP",$D15="SP")),VLOOKUP($C15,Pitcher!$A$1:$P$600,7,FALSE),""),"") ->  | AE15: =IFERROR(IF((OR($D15="RP",$D15="SP")),VLOOKUP($C15,Pitcher!$A$1:$P$600,10,FALSE),""),"") ->  | AF15: =IFERROR(IF((OR($D15="RP",$D15="SP")),VLOOKUP($C15,Pitcher!$A$1:$P$600,11,FALSE),""),"") ->  | AG15: =IFERROR(IF((OR($D15="RP",$D15="SP")),"",VLOOKUP($C15,Hitter!$A$1:$X$600,15,FALSE)),"") -> 0.2767183852 | AH15: =IFERROR(IF((OR($D15="RP",$D15="SP")),"",VLOOKUP($C15,Hitter!$A$1:$X$600,9,FALSE)),"") -> 32.60257062 | AI15: =IFERROR(IF((OR($D15="RP",$D15="SP")),"",VLOOKUP($C15,Hitter!$A$1:$X$600,10,FALSE)),"") -> 103.2356181 | AJ15: =IFERROR(IF((OR($D15="RP",$D15="SP")),"",VLOOKUP($C15,Hitter!$A$1:$X$600,4,FALSE)),"") -> 90.28608918 | AK15: =IFERROR(IF((OR($D15="RP",$D15="SP")),"",VLOOKUP($C15,Hitter!$A$1:$X$600,11,FALSE)),"") -> 1.888244288 | AL15: 0 | AM15: 1 | AN15: 0 | AO15: 2 | AP15: =VLOOKUP(C15,'Starter Calc'!$B$2:$BO$600,66,FALSE) -> Bench | AQ15: =VLOOKUP(C15,'Starter Calc'!$B$2:$AM$600,38,FALSE) -> Yes | AR15: =IFERROR(IF(ISTEXT($A15),"",IF((OR($D15="RP",$D15="SP")),ABS(VLOOKUP(D15,'Filtered-P'!$V$3:$Z$4,5,FALSE))+L15,ABS(VLOOKUP(D15,Filtered!$AE$3:$AI$14,5,FALSE))+L15)),"") -> 9.448983932 | AS15: 11.38605719 | AT15: N
C16: Troy Tulowitzki | D16: =IFERROR(IF(VLOOKUP(C16,'ADP-Rank'!$A$2:$B$600,2,FALSE)="OF",VLOOKUP(C16,'Starter Calc'!$B$2:$AN$600,39,FALSE),(VLOOKUP(C16,'ADP-Rank'!$A$2:$B$600,2,FALSE))),"") -> SS | E16: =IFERROR(IF(VLOOKUP(C16,'Starter Calc'!$B$2:$E$600,4,FALSE)="","",VLOOKUP(C16,'Starter Calc'!$B$2:$E$600,4,FALSE)),"") ->  | F16: =IFERROR(VLOOKUP($C16,'ADP-Rank'!$A$2:$D$600,3,FALSE),"") -> COL | G16: =IFERROR(VLOOKUP($C16,'ADP-Rank'!$A$2:$W$600,23,FALSE),"") -> 28 | H16: =IFERROR(IF(ISBLANK($B16),ROUND(((AS16/$AS$1)*(Personalize!$A$3-$AQ$1))+1,0),""),"") -> 27 | I16: =IFERROR(CHOOSE(Personalize!$E$32,VLOOKUP($C16,'ADP-Rank'!$A$2:$U$600,13,FALSE),VLOOKUP($C16,'ADP-Rank'!$A$2:$U$600,14,FALSE),VLOOKUP($C16,'ADP-Rank'!$A$2:$U$600,15,FALSE),VLOOKUP($C16,'ADP-Rank'!$A$2:$U$600,16,FALSE),VLOOKUP($C16,'ADP-Rank'!$A$2:$U$600,17,FALSE),VLOOKUP($C16,'ADP-Rank'!$A$2:$U$600,18,FALSE),VLOOKUP($C16,'ADP-Rank'!$A$2:$U$600,19,FALSE),VLOOKUP($C16,'ADP-Rank'!$A$2:$U$600,20,FALSE)),"") -> 8 | J16: =IF(ISBLANK($B16),IFERROR(CHOOSE(Personalize!$E$31,(VLOOKUP(C16,'ADP-Rank'!$A$2:$E$600,5,FALSE)*(Personalize!$A$3-$AQ$1)+1),(VLOOKUP(C16,'ADP-Rank'!$A$2:$E$600,4,FALSE)*(Personalize!$A$3-$AQ$1)+1),(VLOOKUP(C16,'ADP-Rank'!$A$2:$G$600,6,FALSE)*(Personalize!$A$3-$AQ$1)+1),(VLOOKUP(C16,'ADP-Rank'!$A$2:$Z$600,7,FALSE)*(Personalize!$A$3-$AQ$1)+1),(VLOOKUP(C16,'ADP-Rank'!$A$2:$Z$600,8,FALSE)*(Personalize!$A$3-$AQ$1)+1),(VLOOKUP(C16,'ADP-Rank'!$A$2:$Z$600,9,FALSE)*(Personalize!$A$3-$AQ$1)+1),(VLOOKUP(C16,'ADP-Rank'!$A$2:$Z$600,10,FALSE)*(Personalize!$A$3-$AQ$1)+1)),""),"") -> 38.2054438 | K16: 16 | L16: 5.461313383 | M16: =IFERROR(IF((OR($D16="RP",$D16="SP")),VLOOKUP($D16,'Filtered-P'!$V$3:$Y$4,4,FALSE), VLOOKUP($D16,Filtered!$AE$3:$AH$14,4,FALSE)),"") -> -0.505851952 | N16: =IFERROR(IF((OR($D16="RP",$D16="SP")),IF(Personalize!$E$10=TRUE,(((VLOOKUP($C16,Pitcher!$A$1:$P$600,2,FALSE))-'Filtered-P'!$W$8)/'Filtered-P'!$X$8),""),IF(Personalize!$E$4=TRUE,(((VLOOKUP($C16,Hitter!$A$1:$AD$600,21,FALSE))-Filtered!$AF$35)/Filtered!$AG$35),"")),"") -> 1.352562786 | O16: =IFERROR(IF((OR($D16="RP",$D16="SP")),IF(Personalize!$E$12=TRUE,(((VLOOKUP($C16,Pitcher!$A$1:$P$600,9,FALSE))-'Filtered-P'!$W$15)/'Filtered-P'!$X$15),""),IF(Personalize!$E$3=TRUE,(((VLOOKUP($C16,Hitter!$A$1:$AB$600,9,FALSE))-Filtered!$AF$25)/Filtered!$AG$25),"")),"") -> 1.333144326 | P16: =IFERROR(IF((OR($D16="RP",$D16="SP")),IF(Personalize!$E$11=TRUE,(((VLOOKUP($C16,Pitcher!$A$1:$P$600,7,FALSE))-'Filtered-P'!$W$13)/'Filtered-P'!$X$13),""),IF(Personalize!$E$2=TRUE,(((VLOOKUP($C16,Hitter!$A$1:$AB$600,4,FALSE))-Filtered!$AF$20)/Filtered!$AG$20),"")),"") -> 1.080523902 | Q16: =IFERROR(IF((OR($D16="RP",$D16="SP")),IF(Personalize!$E$13=TRUE,(((VLOOKUP($C16,Pitcher!$A$1:$P$600,13,FALSE))-'Filtered-P'!$W$19)/'Filtered-P'!$X$19),""),IF(Personalize!$E$5=TRUE,(((VLOOKUP($C16,Hitter!$A$1:$AB$600,10,FALSE))-Filtered!$AF$26)/Filtered!$AG$26),"")),"") -> 1.70084424 | R16: =IFERROR(IF((OR($D16="RP",$D16="SP")),IF(Personalize!$E$14=TRUE,(((VLOOKUP($C16,Pitcher!$A$1:$P$600,14,FALSE))-'Filtered-P'!$W$20)/'Filtered-P'!$X$20),""),IF(Personalize!$E$6=TRUE,(((VLOOKUP($C16,Hitter!$A$1:$AB$600,11,FALSE))-Filtered!$AF$27)/Filtered!$AG$27),"")),"") -> -0.005761871581 | S16: =IFERROR(IF((OR($D16="RP",$D16="SP")),IF(Personalize!$E$16=TRUE,(((VLOOKUP($C16,Pitcher!$A$1:$P$600,3,FALSE))-'Filtered-P'!$W$9)/'Filtered-P'!$X$9),""),IF(Personalize!$E$7=TRUE,(((VLOOKUP($C16,Hitter!$A$1:$AD$600,23,FALSE))-Filtered!$AF$37)/Filtered!$AG$37),"")),"") ->  | T16: =IFERROR(IF((OR($D16="RP",$D16="SP")),IF(Personalize!$E$15=TRUE,(((VLOOKUP($C16,Pitcher!$A$1:$P$600,15,FALSE))-'Filtered-P'!$W$21)/'Filtered-P'!$X$21),""),IF(Personalize!$E$8=TRUE,(((VLOOKUP($C16,Hitter!$A$1:$AD$600,22,FALSE))-Filtered!$AF$36)/Filtered!$AG$36),"")),"") ->  | U16: =IFERROR(IF((OR($D16="RP",$D16="SP")),IF(Personalize!$E$17=TRUE,(((VLOOKUP($C16,Pitcher!$A$1:$P$600,16,FALSE))-'Filtered-P'!$W$22)/'Filtered-P'!$X$22),""),IF(Personalize!$E$9=TRUE,(((VLOOKUP($C16,Hitter!$A$1:$AD$600,24,FALSE))-Filtered!$AF$38)/Filtered!$AG$38),"")),"") ->  | V16: =IFERROR(IF((OR($D16="RP",$D16="SP")),IF(Personalize!$E$37=TRUE,(((VLOOKUP($C16,Pitcher!$A$1:$Z$600,17,FALSE))-'Filtered-P'!$W$25)/'Filtered-P'!$X$25),""),IF(Personalize!$E$39=TRUE,(((VLOOKUP($C16,Hitter!$A$1:$X$600,5,FALSE))-Filtered!$AF$21)/Filtered!$AG$21),"")),"") ->  | W16: =IFERROR(IF((OR($D16="RP",$D16="SP")),IF(Personalize!$E$38=TRUE,(((VLOOKUP($C16,Pitcher!$A$1:$Z$600,18,FALSE))-'Filtered-P'!$W$26)/'Filtered-P'!$X$26),""),IF(Personalize!$E$40=TRUE,(((VLOOKUP($C16,Hitter!$A$1:$X$600,13,FALSE))-Filtered!$AF$29)/Filtered!$AG$29),"")),"") ->  | X16: =IFERROR(IF((OR($D16="RP",$D16="SP")),IF(Personalize!$E$45=TRUE,(((VLOOKUP($C16,Pitcher!$A$1:$Z$600,4,FALSE))-'Filtered-P'!$W$10)/'Filtered-P'!$X$10),""),IF(Personalize!$E$41=TRUE,(((VLOOKUP($C16,Hitter!$A$1:$AD$600,19,FALSE))-Filtered!$AF$43)/Filtered!$AG$43),"")),"") ->  | Y16: =IFERROR(IF((OR($D16="RP",$D16="SP")),IF(Personalize!$E$46=TRUE,(((VLOOKUP($C16,Pitcher!$A$1:$Z$600,19,FALSE))-'Filtered-P'!$W$27)/'Filtered-P'!$X$27),""),IF(Personalize!$E$44=TRUE,(((VLOOKUP($C16,Hitter!$A$1:$AD$600,20,FALSE))-Filtered!$AF$44)/Filtered!$AG$44),"")),"") ->  | Z16: =IFERROR(IF((OR($D16="RP",$D16="SP")),IF(Personalize!$E$47=TRUE,(((VLOOKUP($C16,Pitcher!$A$1:$Z$600,6,FALSE))-'Filtered-P'!$W$12)/'Filtered-P'!$X$12),""),IF(Personalize!$E$42=TRUE,(((VLOOKUP($C16,Hitter!$A$1:$AD$600,7,FALSE))-Filtered!$AF$23)/Filtered!$AG$23),"")),"") ->  | AA16: =IFERROR(IF((OR($D16="RP",$D16="SP")),IF(Personalize!$E$48=TRUE,(((VLOOKUP($C16,Pitcher!$A$1:$Z$600,5,FALSE))-'Filtered-P'!$W$11)/'Filtered-P'!$X$11),""),IF(Personalize!$E$43=TRUE,(((VLOOKUP($C16,Hitter!$A$1:$AD$600,8,FALSE))-Filtered!$AF$24)/Filtered!$AG$24),"")),"") ->  | AB16: =IFERROR(IF((OR($D16="RP",$D16="SP")),VLOOKUP($C16,Pitcher!$A$1:$P$600,2,FALSE),""),"") ->  | AC16: =IFERROR(IF((OR($D16="RP",$D16="SP")),VLOOKUP($C16,Pitcher!$A$1:$P$600,9,FALSE),""),"") ->  | AD16: =IFERROR(IF((OR($D16="RP",$D16="SP")),VLOOKUP($C16,Pitcher!$A$1:$P$600,7,FALSE),""),"") ->  | AE16: =IFERROR(IF((OR($D16="RP",$D16="SP")),VLOOKUP($C16,Pitcher!$A$1:$P$600,10,FALSE),""),"") ->  | AF16: =IFERROR(IF((OR($D16="RP",$D16="SP")),VLOOKUP($C16,Pitcher!$A$1:$P$600,11,FALSE),""),"") ->  | AG16: =IFERROR(IF((OR($D16="RP",$D16="SP")),"",VLOOKUP($C16,Hitter!$A$1:$X$600,15,FALSE)),"") -> 0.2928194234 | AH16: =IFERROR(IF((OR($D16="RP",$D16="SP")),"",VLOOKUP($C16,Hitter!$A$1:$X$600,9,FALSE)),"") -> 26.82226282 | AI16: =IFERROR(IF((OR($D16="RP",$D16="SP")),"",VLOOKUP($C16,Hitter!$A$1:$X$600,10,FALSE)),"") -> 94.75939441 | AJ16: =IFERROR(IF((OR($D16="RP",$D16="SP")),"",VLOOKUP($C16,Hitter!$A$1:$X$600,4,FALSE)),"") -> 83.70922195 | AK16: =IFERROR(IF((OR($D16="RP",$D16="SP")),"",VLOOKUP($C16,Hitter!$A$1:$X$600,11,FALSE)),"") -> 11.11189873 | AL16: 0 | AM16: 1 | AN16: 0 | AO16: 5 | AP16: =VLOOKUP(C16,'Starter Calc'!$B$2:$BO$600,66,FALSE) -> Bench | AQ16: =VLOOKUP(C16,'Starter Calc'!$B$2:$AM$600,38,FALSE) -> Yes | AR16: =IFERROR(IF(ISTEXT($A16),"",IF((OR($D16="RP",$D16="SP")),ABS(VLOOKUP(D16,'Filtered-P'!$V$3:$Z$4,5,FALSE))+L16,ABS(VLOOKUP(D16,Filtered!$AE$3:$AI$14,5,FALSE))+L16)),"") -> 8.929044331 | AS16: 10.86611759 | AT16: N
C17: Ian Kinsler | D17: =IFERROR(IF(VLOOKUP(C17,'ADP-Rank'!$A$2:$B$600,2,FALSE)="OF",VLOOKUP(C17,'Starter Calc'!$B$2:$AN$600,39,FALSE),(VLOOKUP(C17,'ADP-Rank'!$A$2:$B$600,2,FALSE))),"") -> 2B | E17: =IFERROR(IF(VLOOKUP(C17,'Starter Calc'!$B$2:$E$600,4,FALSE)="","",VLOOKUP(C17,'Starter Calc'!$B$2:$E$600,4,FALSE)),"") ->  | F17: =IFERROR(VLOOKUP($C17,'ADP-Rank'!$A$2:$D$600,3,FALSE),"") -> TEX | G17: =IFERROR(VLOOKUP($C17,'ADP-Rank'!$A$2:$W$600,23,FALSE),"") -> 30 | H17: =IFERROR(IF(ISBLANK($B17),ROUND(((AS17/$AS$1)*(Personalize!$A$3-$AQ$1))+1,0),""),"") -> 26 | I17: =IFERROR(CHOOSE(Personalize!$E$32,VLOOKUP($C17,'ADP-Rank'!$A$2:$U$600,13,FALSE),VLOOKUP($C17,'ADP-Rank'!$A$2:$U$600,14,FALSE),VLOOKUP($C17,'ADP-Rank'!$A$2:$U$600,15,FALSE),VLOOKUP($C17,'ADP-Rank'!$A$2:$U$600,16,FALSE),VLOOKUP($C17,'ADP-Rank'!$A$2:$U$600,17,FALSE),VLOOKUP($C17,'ADP-Rank'!$A$2:$U$600,18,FALSE),VLOOKUP($C17,'ADP-Rank'!$A$2:$U$600,19,FALSE),VLOOKUP($C17,'ADP-Rank'!$A$2:$U$600,20,FALSE)),"") -> 21 | J17: =IF(ISBLANK($B17),IFERROR(CHOOSE(Personalize!$E$31,(VLOOKUP(C17,'ADP-Rank'!$A$2:$E$600,5,FALSE)*(Personalize!$A$3-$AQ$1)+1),(VLOOKUP(C17,'ADP-Rank'!$A$2:$E$600,4,FALSE)*(Personalize!$A$3-$AQ$1)+1),(VLOOKUP(C17,'ADP-Rank'!$A$2:$G$600,6,FALSE)*(Personalize!$A$3-$AQ$1)+1),(VLOOKUP(C17,'ADP-Rank'!$A$2:$Z$600,7,FALSE)*(Personalize!$A$3-$AQ$1)+1),(VLOOKUP(C17,'ADP-Rank'!$A$2:$Z$600,8,FALSE)*(Personalize!$A$3-$AQ$1)+1),(VLOOKUP(C17,'ADP-Rank'!$A$2:$Z$600,9,FALSE)*(Personalize!$A$3-$AQ$1)+1),(VLOOKUP(C17,'ADP-Rank'!$A$2:$Z$600,10,FALSE)*(Personalize!$A$3-$AQ$1)+1)),""),"") -> 27.30275961 | K17: 24 | L17: 4.465367379 | M17: =IFERROR(IF((OR($D17="RP",$D17="SP")),VLOOKUP($D17,'Filtered-P'!$V$3:$Y$4,4,FALSE), VLOOKUP($D17,Filtered!$AE$3:$AH$14,4,FALSE)),"") -> -0.2209507435 | N17: =IFERROR(IF((OR($D17="RP",$D17="SP")),IF(Personalize!$E$10=TRUE,(((VLOOKUP($C17,Pitcher!$A$1:$P$600,2,FALSE))-'Filtered-P'!$W$8)/'Filtered-P'!$X$8),""),IF(Personalize!$E$4=TRUE,(((VLOOKUP($C17,Hitter!$A$1:$AD$600,21,FALSE))-Filtered!$AF$35)/Filtered!$AG$35),"")),"") -> -0.2638046452 | O17: =IFERROR(IF((OR($D17="RP",$D17="SP")),IF(Personalize!$E$12=TRUE,(((VLOOKUP($C17,Pitcher!$A$1:$P$600,9,FALSE))-'Filtered-P'!$W$15)/'Filtered-P'!$X$15),""),IF(Personalize!$E$3=TRUE,(((VLOOKUP($C17,Hitter!$A$1:$AB$600,9,FALSE))-Filtered!$AF$25)/Filtered!$AG$25),"")),"") -> 0.7596952913 | P17: =IFERROR(IF((OR($D17="RP",$D17="SP")),IF(Personalize!$E$11=TRUE,(((VLOOKUP($C17,Pitcher!$A$1:$P$600,7,FALSE))-'Filtered-P'!$W$13)/'Filtered-P'!$X$13),""),IF(Personalize!$E$2=TRUE,(((VLOOKUP($C17,Hitter!$A$1:$AB$600,4,FALSE))-Filtered!$AF$20)/Filtered!$AG$20),"")),"") -> 2.389593888 | Q17: =IFERROR(IF((OR($D17="RP",$D17="SP")),IF(Personalize!$E$13=TRUE,(((VLOOKUP($C17,Pitcher!$A$1:$P$600,13,FALSE))-'Filtered-P'!$W$19)/'Filtered-P'!$X$19),""),IF(Personalize!$E$5=TRUE,(((VLOOKUP($C17,Hitter!$A$1:$AB$600,10,FALSE))-Filtered!$AF$26)/Filtered!$AG$26),"")),"") -> 0.2644277506 | R17: =IFERROR(IF((OR($D17="RP",$D17="SP")),IF(Personalize!$E$14=TRUE,(((VLOOKUP($C17,Pitcher!$A$1:$P$600,14,FALSE))-'Filtered-P'!$W$20)/'Filtered-P'!$X$20),""),IF(Personalize!$E$6=TRUE,(((VLOOKUP($C17,Hitter!$A$1:$AB$600,11,FALSE))-Filtered!$AF$27)/Filtered!$AG$27),"")),"") -> 1.315455095 | S17: =IFERROR(IF((OR($D17="RP",$D17="SP")),IF(Personalize!$E$16=TRUE,(((VLOOKUP($C17,Pitcher!$A$1:$P$600,3,FALSE))-'Filtered-P'!$W$9)/'Filtered-P'!$X$9),""),IF(Personalize!$E$7=TRUE,(((VLOOKUP($C17,Hitter!$A$1:$AD$600,23,FALSE))-Filtered!$AF$37)/Filtered!$AG$37),"")),"") ->  | T17: =IFERROR(IF((OR($D17="RP",$D17="SP")),IF(Personalize!$E$15=TRUE,(((VLOOKUP($C17,Pitcher!$A$1:$P$600,15,FALSE))-'Filtered-P'!$W$21)/'Filtered-P'!$X$21),""),IF(Personalize!$E$8=TRUE,(((VLOOKUP($C17,Hitter!$A$1:$AD$600,22,FALSE))-Filtered!$AF$36)/Filtered!$AG$36),"")),"") ->  | U17: =IFERROR(IF((OR($D17="RP",$D17="SP")),IF(Personalize!$E$17=TRUE,(((VLOOKUP($C17,Pitcher!$A$1:$P$600,16,FALSE))-'Filtered-P'!$W$22)/'Filtered-P'!$X$22),""),IF(Personalize!$E$9=TRUE,(((VLOOKUP($C17,Hitter!$A$1:$AD$600,24,FALSE))-Filtered!$AF$38)/Filtered!$AG$38),"")),"") ->  | V17: =IFERROR(IF((OR($D17="RP",$D17="SP")),IF(Personalize!$E$37=TRUE,(((VLOOKUP($C17,Pitcher!$A$1:$Z$600,17,FALSE))-'Filtered-P'!$W$25)/'Filtered-P'!$X$25),""),IF(Personalize!$E$39=TRUE,(((VLOOKUP($C17,Hitter!$A$1:$X$600,5,FALSE))-Filtered!$AF$21)/Filtered!$AG$21),"")),"") ->  | W17: =IFERROR(IF((OR($D17="RP",$D17="SP")),IF(Personalize!$E$38=TRUE,(((VLOOKUP($C17,Pitcher!$A$1:$Z$600,18,FALSE))-'Filtered-P'!$W$26)/'Filtered-P'!$X$26),""),IF(Personalize!$E$40=TRUE,(((VLOOKUP($C17,Hitter!$A$1:$X$600,13,FALSE))-Filtered!$AF$29)/Filtered!$AG$29),"")),"") ->  | X17: =IFERROR(IF((OR($D17="RP",$D17="SP")),IF(Personalize!$E$45=TRUE,(((VLOOKUP($C17,Pitcher!$A$1:$Z$600,4,FALSE))-'Filtered-P'!$W$10)/'Filtered-P'!$X$10),""),IF(Personalize!$E$41=TRUE,(((VLOOKUP($C17,Hitter!$A$1:$AD$600,19,FALSE))-Filtered!$AF$43)/Filtered!$AG$43),"")),"") ->  | Y17: =IFERROR(IF((OR($D17="RP",$D17="SP")),IF(Personalize!$E$46=TRUE,(((VLOOKUP($C17,Pitcher!$A$1:$Z$600,19,FALSE))-'Filtered-P'!$W$27)/'Filtered-P'!$X$27),""),IF(Personalize!$E$44=TRUE,(((VLOOKUP($C17,Hitter!$A$1:$AD$600,20,FALSE))-Filtered!$AF$44)/Filtered!$AG$44),"")),"") ->  | Z17: =IFERROR(IF((OR($D17="RP",$D17="SP")),IF(Personalize!$E$47=TRUE,(((VLOOKUP($C17,Pitcher!$A$1:$Z$600,6,FALSE))-'Filtered-P'!$W$12)/'Filtered-P'!$X$12),""),IF(Personalize!$E$42=TRUE,(((VLOOKUP($C17,Hitter!$A$1:$AD$600,7,FALSE))-Filtered!$AF$23)/Filtered!$AG$23),"")),"") ->  | AA17: =IFERROR(IF((OR($D17="RP",$D17="SP")),IF(Personalize!$E$48=TRUE,(((VLOOKUP($C17,Pitcher!$A$1:$Z$600,5,FALSE))-'Filtered-P'!$W$11)/'Filtered-P'!$X$11),""),IF(Personalize!$E$43=TRUE,(((VLOOKUP($C17,Hitter!$A$1:$AD$600,8,FALSE))-Filtered!$AF$24)/Filtered!$AG$24),"")),"") ->  | AB17: =IFERROR(IF((OR($D17="RP",$D17="SP")),VLOOKUP($C17,Pitcher!$A$1:$P$600,2,FALSE),""),"") ->  | AC17: =IFERROR(IF((OR($D17="RP",$D17="SP")),VLOOKUP($C17,Pitcher!$A$1:$P$600,9,FALSE),""),"") ->  | AD17: =IFERROR(IF((OR($D17="RP",$D17="SP")),VLOOKUP($C17,Pitcher!$A$1:$P$600,7,FALSE),""),"") ->  | AE17: =IFERROR(IF((OR($D17="RP",$D17="SP")),VLOOKUP($C17,Pitcher!$A$1:$P$600,10,FALSE),""),"") ->  | AF17: =IFERROR(IF((OR($D17="RP",$D17="SP")),VLOOKUP($C17,Pitcher!$A$1:$P$600,11,FALSE),""),"") ->  | AG17: =IFERROR(IF((OR($D17="RP",$D17="SP")),"",VLOOKUP($C17,Hitter!$A$1:$X$600,15,FALSE)),"") -> 0.2658125076 | AH17: =IFERROR(IF((OR($D17="RP",$D17="SP")),"",VLOOKUP($C17,Hitter!$A$1:$X$600,9,FALSE)),"") -> 22.78455655 | AI17: =IFERROR(IF((OR($D17="RP",$D17="SP")),"",VLOOKUP($C17,Hitter!$A$1:$X$600,10,FALSE)),"") -> 72.27847276 | AJ17: =IFERROR(IF((OR($D17="RP",$D17="SP")),"",VLOOKUP($C17,Hitter!$A$1:$X$600,4,FALSE)),"") -> 98.79419802 | AK17: =IFERROR(IF((OR($D17="RP",$D17="SP")),"",VLOOKUP($C17,Hitter!$A$1:$X$600,11,FALSE)),"") -> 23.73944617 | AL17: 0 | AM17: 1 | AN17: 0 | AO17: 3 | AP17: =VLOOKUP(C17,'Starter Calc'!$B$2:$BO$600,66,FALSE) -> Bench | AQ17: =VLOOKUP(C17,'Starter Calc'!$B$2:$AM$600,38,FALSE) -> Yes | AR17: =IFERROR(IF(ISTEXT($A17),"",IF((OR($D17="RP",$D17="SP")),ABS(VLOOKUP(D17,'Filtered-P'!$V$3:$Z$4,5,FALSE))+L17,ABS(VLOOKUP(D17,Filtered!$AE$3:$AI$14,5,FALSE))+L17)),"") -> 8.61583086 | AS17: 10.55290412 | AT17: N
C18: Dustin Pedroia | D18: =IFERROR(IF(VLOOKUP(C18,'ADP-Rank'!$A$2:$B$600,2,FALSE)="OF",VLOOKUP(C18,'Starter Calc'!$B$2:$AN$600,39,FALSE),(VLOOKUP(C18,'ADP-Rank'!$A$2:$B$600,2,FALSE))),"") -> 2B | E18: =IFERROR(IF(VLOOKUP(C18,'Starter Calc'!$B$2:$E$600,4,FALSE)="","",VLOOKUP(C18,'Starter Calc'!$B$2:$E$600,4,FALSE)),"") ->  | F18: =IFERROR(VLOOKUP($C18,'ADP-Rank'!$A$2:$D$600,3,FALSE),"") -> BOS | G18: =IFERROR(VLOOKUP($C18,'ADP-Rank'!$A$2:$W$600,23,FALSE),"") -> 29 | H18: =IFERROR(IF(ISBLANK($B18),ROUND(((AS18/$AS$1)*(Personalize!$A$3-$AQ$1))+1,0),""),"") -> 26 | I18: =IFERROR(CHOOSE(Personalize!$E$32,VLOOKUP($C18,'ADP-Rank'!$A$2:$U$600,13,FALSE),VLOOKUP($C18,'ADP-Rank'!$A$2:$U$600,14,FALSE),VLOOKUP($C18,'ADP-Rank'!$A$2:$U$600,15,FALSE),VLOOKUP($C18,'ADP-Rank'!$A$2:$U$600,16,FALSE),VLOOKUP($C18,'ADP-Rank'!$A$2:$U$600,17,FALSE),VLOOKUP($C18,'ADP-Rank'!$A$2:$U$600,18,FALSE),VLOOKUP($C18,'ADP-Rank'!$A$2:$U$600,19,FALSE),VLOOKUP($C18,'ADP-Rank'!$A$2:$U$600,20,FALSE)),"") -> 16.57142857 | J18: =IF(ISBLANK($B18),IFERROR(CHOOSE(Personalize!$E$31,(VLOOKUP(C18,'ADP-Rank'!$A$2:$E$600,5,FALSE)*(Personalize!$A$3-$AQ$1)+1),(VLOOKUP(C18,'ADP-Rank'!$A$2:$E$600,4,FALSE)*(Personalize!$A$3-$AQ$1)+1),(VLOOKUP(C18,'ADP-Rank'!$A$2:$G$600,6,FALSE)*(Personalize!$A$3-$AQ$1)+1),(VLOOKUP(C18,'ADP-Rank'!$A$2:$Z$600,7,FALSE)*(Personalize!$A$3-$AQ$1)+1),(VLOOKUP(C18,'ADP-Rank'!$A$2:$Z$600,8,FALSE)*(Personalize!$A$3-$AQ$1)+1),(VLOOKUP(C18,'ADP-Rank'!$A$2:$Z$600,9,FALSE)*(Personalize!$A$3-$AQ$1)+1),(VLOOKUP(C18,'ADP-Rank'!$A$2:$Z$600,10,FALSE)*(Personalize!$A$3-$AQ$1)+1)),""),"") -> 32.42984632 | K18: 26 | L18: 4.179922112 | M18: =IFERROR(IF((OR($D18="RP",$D18="SP")),VLOOKUP($D18,'Filtered-P'!$V$3:$Y$4,4,FALSE), VLOOKUP($D18,Filtered!$AE$3:$AH$14,4,FALSE)),"") -> -0.2209507435 | N18: =IFERROR(IF((OR($D18="RP",$D18="SP")),IF(Personalize!$E$10=TRUE,(((VLOOKUP($C18,Pitcher!$A$1:$P$600,2,FALSE))-'Filtered-P'!$W$8)/'Filtered-P'!$X$8),""),IF(Personalize!$E$4=TRUE,(((VLOOKUP($C18,Hitter!$A$1:$AD$600,21,FALSE))-Filtered!$AF$35)/Filtered!$AG$35),"")),"") -> 1.514824668 | O18: =IFERROR(IF((OR($D18="RP",$D18="SP")),IF(Personalize!$E$12=TRUE,(((VLOOKUP($C18,Pitcher!$A$1:$P$600,9,FALSE))-'Filtered-P'!$W$15)/'Filtered-P'!$X$15),""),IF(Personalize!$E$3=TRUE,(((VLOOKUP($C18,Hitter!$A$1:$AB$600,9,FALSE))-Filtered!$AF$25)/Filtered!$AG$25),"")),"") -> -0.08252425937 | P18: =IFERROR(IF((OR($D18="RP",$D18="SP")),IF(Personalize!$E$11=TRUE,(((VLOOKUP($C18,Pitcher!$A$1:$P$600,7,FALSE))-'Filtered-P'!$W$13)/'Filtered-P'!$X$13),""),IF(Personalize!$E$2=TRUE,(((VLOOKUP($C18,Hitter!$A$1:$AB$600,4,FALSE))-Filtered!$AF$20)/Filtered!$AG$20),"")),"") -> 1.655969594 | Q18: =IFERROR(IF((OR($D18="RP",$D18="SP")),IF(Personalize!$E$13=TRUE,(((VLOOKUP($C18,Pitcher!$A$1:$P$600,13,FALSE))-'Filtered-P'!$W$19)/'Filtered-P'!$X$19),""),IF(Personalize!$E$5=TRUE,(((VLOOKUP($C18,Hitter!$A$1:$AB$600,10,FALSE))-Filtered!$AF$26)/Filtered!$AG$26),"")),"") -> 0.297482151 | R18: =IFERROR(IF((OR($D18="RP",$D18="SP")),IF(Personalize!$E$14=TRUE,(((VLOOKUP($C18,Pitcher!$A$1:$P$600,14,FALSE))-'Filtered-P'!$W$20)/'Filtered-P'!$X$20),""),IF(Personalize!$E$6=TRUE,(((VLOOKUP($C18,Hitter!$A$1:$AB$600,11,FALSE))-Filtered!$AF$27)/Filtered!$AG$27),"")),"") -> 0.794169958 | S18: =IFERROR(IF((OR($D18="RP",$D18="SP")),IF(Personalize!$E$16=TRUE,(((VLOOKUP($C18,Pitcher!$A$1:$P$600,3,FALSE))-'Filtered-P'!$W$9)/'Filtered-P'!$X$9),""),IF(Personalize!$E$7=TRUE,(((VLOOKUP($C18,Hitter!$A$1:$AD$600,23,FALSE))-Filtered!$AF$37)/Filtered!$AG$37),"")),"") ->  | T18: =IFERROR(IF((OR($D18="RP",$D18="SP")),IF(Personalize!$E$15=TRUE,(((VLOOKUP($C18,Pitcher!$A$1:$P$600,15,FALSE))-'Filtered-P'!$W$21)/'Filtered-P'!$X$21),""),IF(Personalize!$E$8=TRUE,(((VLOOKUP($C18,Hitter!$A$1:$AD$600,22,FALSE))-Filtered!$AF$36)/Filtered!$AG$36),"")),"") ->  | U18: =IFERROR(IF((OR($D18="RP",$D18="SP")),IF(Personalize!$E$17=TRUE,(((VLOOKUP($C18,Pitcher!$A$1:$P$600,16,FALSE))-'Filtered-P'!$W$22)/'Filtered-P'!$X$22),""),IF(Personalize!$E$9=TRUE,(((VLOOKUP($C18,Hitter!$A$1:$AD$600,24,FALSE))-Filtered!$AF$38)/Filtered!$AG$38),"")),"") ->  | V18: =IFERROR(IF((OR($D18="RP",$D18="SP")),IF(Personalize!$E$37=TRUE,(((VLOOKUP($C18,Pitcher!$A$1:$Z$600,17,FALSE))-'Filtered-P'!$W$25)/'Filtered-P'!$X$25),""),IF(Personalize!$E$39=TRUE,(((VLOOKUP($C18,Hitter!$A$1:$X$600,5,FALSE))-Filtered!$AF$21)/Filtered!$AG$21),"")),"") ->  | W18: =IFERROR(IF((OR($D18="RP",$D18="SP")),IF(Personalize!$E$38=TRUE,(((VLOOKUP($C18,Pitcher!$A$1:$Z$600,18,FALSE))-'Filtered-P'!$W$26)/'Filtered-P'!$X$26),""),IF(Personalize!$E$40=TRUE,(((VLOOKUP($C18,Hitter!$A$1:$X$600,13,FALSE))-Filtered!$AF$29)/Filtered!$AG$29),"")),"") ->  | X18: =IFERROR(IF((OR($D18="RP",$D18="SP")),IF(Personalize!$E$45=TRUE,(((VLOOKUP($C18,Pitcher!$A$1:$Z$600,4,FALSE))-'Filtered-P'!$W$10)/'Filtered-P'!$X$10),""),IF(Personalize!$E$41=TRUE,(((VLOOKUP($C18,Hitter!$A$1:$AD$600,19,FALSE))-Filtered!$AF$43)/Filtered!$AG$43),"")),"") ->  | Y18: =IFERROR(IF((OR($D18="RP",$D18="SP")),IF(Personalize!$E$46=TRUE,(((VLOOKUP($C18,Pitcher!$A$1:$Z$600,19,FALSE))-'Filtered-P'!$W$27)/'Filtered-P'!$X$27),""),IF(Personalize!$E$44=TRUE,(((VLOOKUP($C18,Hitter!$A$1:$AD$600,20,FALSE))-Filtered!$AF$44)/Filtered!$AG$44),"")),"") ->  | Z18: =IFERROR(IF((OR($D18="RP",$D18="SP")),IF(Personalize!$E$47=TRUE,(((VLOOKUP($C18,Pitcher!$A$1:$Z$600,6,FALSE))-'Filtered-P'!$W$12)/'Filtered-P'!$X$12),""),IF(Personalize!$E$42=TRUE,(((VLOOKUP($C18,Hitter!$A$1:$AD$600,7,FALSE))-Filtered!$AF$23)/Filtered!$AG$23),"")),"") ->  | AA18: =IFERROR(IF((OR($D18="RP",$D18="SP")),IF(Personalize!$E$48=TRUE,(((VLOOKUP($C18,Pitcher!$A$1:$Z$600,5,FALSE))-'Filtered-P'!$W$11)/'Filtered-P'!$X$11),""),IF(Personalize!$E$43=TRUE,(((VLOOKUP($C18,Hitter!$A$1:$AD$600,8,FALSE))-Filtered!$AF$24)/Filtered!$AG$24),"")),"") ->  | AB18: =IFERROR(IF((OR($D18="RP",$D18="SP")),VLOOKUP($C18,Pitcher!$A$1:$P$600,2,FALSE),""),"") ->  | AC18: =IFERROR(IF((OR($D18="RP",$D18="SP")),VLOOKUP($C18,Pitcher!$A$1:$P$600,9,FALSE),""),"") ->  | AD18: =IFERROR(IF((OR($D18="RP",$D18="SP")),VLOOKUP($C18,Pitcher!$A$1:$P$600,7,FALSE),""),"") ->  | AE18: =IFERROR(IF((OR($D18="RP",$D18="SP")),VLOOKUP($C18,Pitcher!$A$1:$P$600,10,FALSE),""),"") ->  | AF18: =IFERROR(IF((OR($D18="RP",$D18="SP")),VLOOKUP($C18,Pitcher!$A$1:$P$600,11,FALSE),""),"") ->  | AG18: =IFERROR(IF((OR($D18="RP",$D18="SP")),"",VLOOKUP($C18,Hitter!$A$1:$X$600,15,FALSE)),"") -> 0.2939765228 | AH18: =IFERROR(IF((OR($D18="RP",$D18="SP")),"",VLOOKUP($C18,Hitter!$A$1:$X$600,9,FALSE)),"") -> 16.85441288 | AI18: =IFERROR(IF((OR($D18="RP",$D18="SP")),"",VLOOKUP($C18,Hitter!$A$1:$X$600,10,FALSE)),"") -> 72.79579722 | AJ18: =IFERROR(IF((OR($D18="RP",$D18="SP")),"",VLOOKUP($C18,Hitter!$A$1:$X$600,4,FALSE)),"") -> 90.34032998 | AK18: =IFERROR(IF((OR($D18="RP",$D18="SP")),"",VLOOKUP($C18,Hitter!$A$1:$X$600,11,FALSE)),"") -> 18.75725705 | AL18: 0 | AM18: 1 | AN18: 0 | AO18: 3 | AP18: =VLOOKUP(C18,'Starter Calc'!$B$2:$BO$600,66,FALSE) -> Bench | AQ18: =VLOOKUP(C18,'Starter Calc'!$B$2:$AM$600,38,FALSE) -> Yes | AR18: =IFERROR(IF(ISTEXT($A18),"",IF((OR($D18="RP",$D18="SP")),ABS(VLOOKUP(D18,'Filtered-P'!$V$3:$Z$4,5,FALSE))+L18,ABS(VLOOKUP(D18,Filtered!$AE$3:$AI$14,5,FALSE))+L18)),"") -> 8.330385593 | AS18: 10.26745885 | AT18: N
C19: Mark Teixeira | D19: =IFERROR(IF(VLOOKUP(C19,'ADP-Rank'!$A$2:$B$600,2,FALSE)="OF",VLOOKUP(C19,'Starter Calc'!$B$2:$AN$600,39,FALSE),(VLOOKUP(C19,'ADP-Rank'!$A$2:$B$600,2,FALSE))),"") -> 1B | E19: =IFERROR(IF(VLOOKUP(C19,'Starter Calc'!$B$2:$E$600,4,FALSE)="","",VLOOKUP(C19,'Starter Calc'!$B$2:$E$600,4,FALSE)),"") ->  | F19: =IFERROR(VLOOKUP($C19,'ADP-Rank'!$A$2:$D$600,3,FALSE),"") -> NYY | G19: =IFERROR(VLOOKUP($C19,'ADP-Rank'!$A$2:$W$600,23,FALSE),"") -> 32 | H19: =IFERROR(IF(ISBLANK($B19),ROUND(((AS19/$AS$1)*(Personalize!$A$3-$AQ$1))+1,0),""),"") -> 26 | I19: =IFERROR(CHOOSE(Personalize!$E$32,VLOOKUP($C19,'ADP-Rank'!$A$2:$U$600,13,FALSE),VLOOKUP($C19,'ADP-Rank'!$A$2:$U$600,14,FALSE),VLOOKUP($C19,'ADP-Rank'!$A$2:$U$600,15,FALSE),VLOOKUP($C19,'ADP-Rank'!$A$2:$U$600,16,FALSE),VLOOKUP($C19,'ADP-Rank'!$A$2:$U$600,17,FALSE),VLOOKUP($C19,'ADP-Rank'!$A$2:$U$600,18,FALSE),VLOOKUP($C19,'ADP-Rank'!$A$2:$U$600,19,FALSE),VLOOKUP($C19,'ADP-Rank'!$A$2:$U$600,20,FALSE)),"") -> 26.14285714 | J19: =IF(ISBLANK($B19),IFERROR(CHOOSE(Personalize!$E$31,(VLOOKUP(C19,'ADP-Rank'!$A$2:$E$600,5,FALSE)*(Personalize!$A$3-$AQ$1)+1),(VLOOKUP(C19,'ADP-Rank'!$A$2:$E$600,4,FALSE)*(Personalize!$A$3-$AQ$1)+1),(VLOOKUP(C19,'ADP-Rank'!$A$2:$G$600,6,FALSE)*(Personalize!$A$3-$AQ$1)+1),(VLOOKUP(C19,'ADP-Rank'!$A$2:$Z$600,7,FALSE)*(Personalize!$A$3-$AQ$1)+1),(VLOOKUP(C19,'ADP-Rank'!$A$2:$Z$600,8,FALSE)*(Personalize!$A$3-$AQ$1)+1),(VLOOKUP(C19,'ADP-Rank'!$A$2:$Z$600,9,FALSE)*(Personalize!$A$3-$AQ$1)+1),(VLOOKUP(C19,'ADP-Rank'!$A$2:$Z$600,10,FALSE)*(Personalize!$A$3-$AQ$1)+1)),""),"") -> 27.81782387 | K19: 22 | L19: 4.690147955 | M19: =IFERROR(IF((OR($D19="RP",$D19="SP")),VLOOKUP($D19,'Filtered-P'!$V$3:$Y$4,4,FALSE), VLOOKUP($D19,Filtered!$AE$3:$AH$14,4,FALSE)),"") -> 1.344129608 | N19: =IFERROR(IF((OR($D19="RP",$D19="SP")),IF(Personalize!$E$10=TRUE,(((VLOOKUP($C19,Pitcher!$A$1:$P$600,2,FALSE))-'Filtered-P'!$W$8)/'Filtered-P'!$X$8),""),IF(Personalize!$E$4=TRUE,(((VLOOKUP($C19,Hitter!$A$1:$AD$600,21,FALSE))-Filtered!$AF$35)/Filtered!$AG$35),"")),"") -> -0.5034459661 | O19: =IFERROR(IF((OR($D19="RP",$D19="SP")),IF(Personalize!$E$12=TRUE,(((VLOOKUP($C19,Pitcher!$A$1:$P$600,9,FALSE))-'Filtered-P'!$W$15)/'Filtered-P'!$X$15),""),IF(Personalize!$E$3=TRUE,(((VLOOKUP($C19,Hitter!$A$1:$AB$600,9,FALSE))-Filtered!$AF$25)/Filtered!$AG$25),"")),"") -> 2.03636875 | P19: =IFERROR(IF((OR($D19="RP",$D19="SP")),IF(Personalize!$E$11=TRUE,(((VLOOKUP($C19,Pitcher!$A$1:$P$600,7,FALSE))-'Filtered-P'!$W$13)/'Filtered-P'!$X$13),""),IF(Personalize!$E$2=TRUE,(((VLOOKUP($C19,Hitter!$A$1:$AB$600,4,FALSE))-Filtered!$AF$20)/Filtered!$AG$20),"")),"") -> 1.761319846 | Q19: =IFERROR(IF((OR($D19="RP",$D19="SP")),IF(Personalize!$E$13=TRUE,(((VLOOKUP($C19,Pitcher!$A$1:$P$600,13,FALSE))-'Filtered-P'!$W$19)/'Filtered-P'!$X$19),""),IF(Personalize!$E$5=TRUE,(((VLOOKUP($C19,Hitter!$A$1:$AB$600,10,FALSE))-Filtered!$AF$26)/Filtered!$AG$26),"")),"") -> 2.298950149 | R19: =IFERROR(IF((OR($D19="RP",$D19="SP")),IF(Personalize!$E$14=TRUE,(((VLOOKUP($C19,Pitcher!$A$1:$P$600,14,FALSE))-'Filtered-P'!$W$20)/'Filtered-P'!$X$20),""),IF(Personalize!$E$6=TRUE,(((VLOOKUP($C19,Hitter!$A$1:$AB$600,11,FALSE))-Filtered!$AF$27)/Filtered!$AG$27),"")),"") -> -0.9030448239 | S19: =IFERROR(IF((OR($D19="RP",$D19="SP")),IF(Personalize!$E$16=TRUE,(((VLOOKUP($C19,Pitcher!$A$1:$P$600,3,FALSE))-'Filtered-P'!$W$9)/'Filtered-P'!$X$9),""),IF(Personalize!$E$7=TRUE,(((VLOOKUP($C19,Hitter!$A$1:$AD$600,23,FALSE))-Filtered!$AF$37)/Filtered!$AG$37),"")),"") ->  | T19: =IFERROR(IF((OR($D19="RP",$D19="SP")),IF(Personalize!$E$15=TRUE,(((VLOOKUP($C19,Pitcher!$A$1:$P$600,15,FALSE))-'Filtered-P'!$W$21)/'Filtered-P'!$X$21),""),IF(Personalize!$E$8=TRUE,(((VLOOKUP($C19,Hitter!$A$1:$AD$600,22,FALSE))-Filtered!$AF$36)/Filtered!$AG$36),"")),"") ->  | U19: =IFERROR(IF((OR($D19="RP",$D19="SP")),IF(Personalize!$E$17=TRUE,(((VLOOKUP($C19,Pitcher!$A$1:$P$600,16,FALSE))-'Filtered-P'!$W$22)/'Filtered-P'!$X$22),""),IF(Personalize!$E$9=TRUE,(((VLOOKUP($C19,Hitter!$A$1:$AD$600,24,FALSE))-Filtered!$AF$38)/Filtered!$AG$38),"")),"") ->  | V19: =IFERROR(IF((OR($D19="RP",$D19="SP")),IF(Personalize!$E$37=TRUE,(((VLOOKUP($C19,Pitcher!$A$1:$Z$600,17,FALSE))-'Filtered-P'!$W$25)/'Filtered-P'!$X$25),""),IF(Personalize!$E$39=TRUE,(((VLOOKUP($C19,Hitter!$A$1:$X$600,5,FALSE))-Filtered!$AF$21)/Filtered!$AG$21),"")),"") ->  | W19: =IFERROR(IF((OR($D19="RP",$D19="SP")),IF(Personalize!$E$38=TRUE,(((VLOOKUP($C19,Pitcher!$A$1:$Z$600,18,FALSE))-'Filtered-P'!$W$26)/'Filtered-P'!$X$26),""),IF(Personalize!$E$40=TRUE,(((VLOOKUP($C19,Hitter!$A$1:$X$600,13,FALSE))-Filtered!$AF$29)/Filtered!$AG$29),"")),"") ->  | X19: =IFERROR(IF((OR($D19="RP",$D19="SP")),IF(Personalize!$E$45=TRUE,(((VLOOKUP($C19,Pitcher!$A$1:$Z$600,4,FALSE))-'Filtered-P'!$W$10)/'Filtered-P'!$X$10),""),IF(Personalize!$E$41=TRUE,(((VLOOKUP($C19,Hitter!$A$1:$AD$600,19,FALSE))-Filtered!$AF$43)/Filtered!$AG$43),"")),"") ->  | Y19: =IFERROR(IF((OR($D19="RP",$D19="SP")),IF(Personalize!$E$46=TRUE,(((VLOOKUP($C19,Pitcher!$A$1:$Z$600,19,FALSE))-'Filtered-P'!$W$27)/'Filtered-P'!$X$27),""),IF(Personalize!$E$44=TRUE,(((VLOOKUP($C19,Hitter!$A$1:$AD$600,20,FALSE))-Filtered!$AF$44)/Filtered!$AG$44),"")),"") ->  | Z19: =IFERROR(IF((OR($D19="RP",$D19="SP")),IF(Personalize!$E$47=TRUE,(((VLOOKUP($C19,Pitcher!$A$1:$Z$600,6,FALSE))-'Filtered-P'!$W$12)/'Filtered-P'!$X$12),""),IF(Personalize!$E$42=TRUE,(((VLOOKUP($C19,Hitter!$A$1:$AD$600,7,FALSE))-Filtered!$AF$23)/Filtered!$AG$23),"")),"") ->  | AA19: =IFERROR(IF((OR($D19="RP",$D19="SP")),IF(Personalize!$E$48=TRUE,(((VLOOKUP($C19,Pitcher!$A$1:$Z$600,5,FALSE))-'Filtered-P'!$W$11)/'Filtered-P'!$X$11),""),IF(Personalize!$E$43=TRUE,(((VLOOKUP($C19,Hitter!$A$1:$AD$600,8,FALSE))-Filtered!$AF$24)/Filtered!$AG$24),"")),"") ->  | AB19: =IFERROR(IF((OR($D19="RP",$D19="SP")),VLOOKUP($C19,Pitcher!$A$1:$P$600,2,FALSE),""),"") ->  | AC19: =IFERROR(IF((OR($D19="RP",$D19="SP")),VLOOKUP($C19,Pitcher!$A$1:$P$600,9,FALSE),""),"") ->  | AD19: =IFERROR(IF((OR($D19="RP",$D19="SP")),VLOOKUP($C19,Pitcher!$A$1:$P$600,7,FALSE),""),"") ->  | AE19: =IFERROR(IF((OR($D19="RP",$D19="SP")),VLOOKUP($C19,Pitcher!$A$1:$P$600,10,FALSE),""),"") ->  | AF19: =IFERROR(IF((OR($D19="RP",$D19="SP")),VLOOKUP($C19,Pitcher!$A$1:$P$600,11,FALSE),""),"") ->  | AG19: =IFERROR(IF((OR($D19="RP",$D19="SP")),"",VLOOKUP($C19,Hitter!$A$1:$X$600,15,FALSE)),"") -> 0.2622007792 | AH19: =IFERROR(IF((OR($D19="RP",$D19="SP")),"",VLOOKUP($C19,Hitter!$A$1:$X$600,9,FALSE)),"") -> 31.77372929 | AI19: =IFERROR(IF((OR($D19="RP",$D19="SP")),"",VLOOKUP($C19,Hitter!$A$1:$X$600,10,FALSE)),"") -> 104.1201698 | AJ19: =IFERROR(IF((OR($D19="RP",$D19="SP")),"",VLOOKUP($C19,Hitter!$A$1:$X$600,4,FALSE)),"") -> 91.5543262 | AK19: =IFERROR(IF((OR($D19="RP",$D19="SP")),"",VLOOKUP($C19,Hitter!$A$1:$X$600,11,FALSE)),"") -> 2.536105847 | AL19: 0 | AM19: 1 | AN19: 0 | AO19: 2 | AP19: =VLOOKUP(C19,'Starter Calc'!$B$2:$BO$600,66,FALSE) -> Bench | AQ19: =VLOOKUP(C19,'Starter Calc'!$B$2:$AM$600,38,FALSE) -> Yes | AR19: =IFERROR(IF(ISTEXT($A19),"",IF((OR($D19="RP",$D19="SP")),ABS(VLOOKUP(D19,'Filtered-P'!$V$3:$Z$4,5,FALSE))+L19,ABS(VLOOKUP(D19,Filtered!$AE$3:$AI$14,5,FALSE))+L19)),"") -> 8.641357686 | AS19: 10.57843094 | AT19: N
C20: Evan Longoria | D20: =IFERROR(IF(VLOOKUP(C20,'ADP-Rank'!$A$2:$B$600,2,FALSE)="OF",VLOOKUP(C20,'Starter Calc'!$B$2:$AN$600,39,FALSE),(VLOOKUP(C20,'ADP-Rank'!$A$2:$B$600,2,FALSE))),"") -> 3B | E20: =IFERROR(IF(VLOOKUP(C20,'Starter Calc'!$B$2:$E$600,4,FALSE)="","",VLOOKUP(C20,'Starter Calc'!$B$2:$E$600,4,FALSE)),"") ->  | F20: =IFERROR(VLOOKUP($C20,'ADP-Rank'!$A$2:$D$600,3,FALSE),"") -> TB | G20: =IFERROR(VLOOKUP($C20,'ADP-Rank'!$A$2:$W$600,23,FALSE),"") -> 27 | H20: =IFERROR(IF(ISBLANK($B20),ROUND(((AS20/$AS$1)*(Personalize!$A$3-$AQ$1))+1,0),""),"") -> 25 | I20: =IFERROR(CHOOSE(Personalize!$E$32,VLOOKUP($C20,'ADP-Rank'!$A$2:$U$600,13,FALSE),VLOOKUP($C20,'ADP-Rank'!$A$2:$U$600,14,FALSE),VLOOKUP($C20,'ADP-Rank'!$A$2:$U$600,15,FALSE),VLOOKUP($C20,'ADP-Rank'!$A$2:$U$600,16,FALSE),VLOOKUP($C20,'ADP-Rank'!$A$2:$U$600,17,FALSE),VLOOKUP($C20,'ADP-Rank'!$A$2:$U$600,18,FALSE),VLOOKUP($C20,'ADP-Rank'!$A$2:$U$600,19,FALSE),VLOOKUP($C20,'ADP-Rank'!$A$2:$U$600,20,FALSE)),"") -> 14.14285714 | J20: =IF(ISBLANK($B20),IFERROR(CHOOSE(Personalize!$E$31,(VLOOKUP(C20,'ADP-Rank'!$A$2:$E$600,5,FALSE)*(Personalize!$A$3-$AQ$1)+1),(VLOOKUP(C20,'ADP-Rank'!$A$2:$E$600,4,FALSE)*(Personalize!$A$3-$AQ$1)+1),(VLOOKUP(C20,'ADP-Rank'!$A$2:$G$600,6,FALSE)*(Personalize!$A$3-$AQ$1)+1),(VLOOKUP(C20,'ADP-Rank'!$A$2:$Z$600,7,FALSE)*(Personalize!$A$3-$AQ$1)+1),(VLOOKUP(C20,'ADP-Rank'!$A$2:$Z$600,8,FALSE)*(Personalize!$A$3-$AQ$1)+1),(VLOOKUP(C20,'ADP-Rank'!$A$2:$Z$600,9,FALSE)*(Personalize!$A$3-$AQ$1)+1),(VLOOKUP(C20,'ADP-Rank'!$A$2:$Z$600,10,FALSE)*(Personalize!$A$3-$AQ$1)+1)),""),"") -> 32.4190471 | K20: 27 | L20: 4.053950268 | M20: =IFERROR(IF((OR($D20="RP",$D20="SP")),VLOOKUP($D20,'Filtered-P'!$V$3:$Y$4,4,FALSE), VLOOKUP($D20,Filtered!$AE$3:$AH$14,4,FALSE)),"") -> -0.4103695081 | N20: =IFERROR(IF((OR($D20="RP",$D20="SP")),IF(Personalize!$E$10=TRUE,(((VLOOKUP($C20,Pitcher!$A$1:$P$600,2,FALSE))-'Filtered-P'!$W$8)/'Filtered-P'!$X$8),""),IF(Personalize!$E$4=TRUE,(((VLOOKUP($C20,Hitter!$A$1:$AD$600,21,FALSE))-Filtered!$AF$35)/Filtered!$AG$35),"")),"") -> 0.1511056498 | O20: =IFERROR(IF((OR($D20="RP",$D20="SP")),IF(Personalize!$E$12=TRUE,(((VLOOKUP($C20,Pitcher!$A$1:$P$600,9,FALSE))-'Filtered-P'!$W$15)/'Filtered-P'!$X$15),""),IF(Personalize!$E$3=TRUE,(((VLOOKUP($C20,Hitter!$A$1:$AB$600,9,FALSE))-Filtered!$AF$25)/Filtered!$AG$25),"")),"") -> 1.419844133 | P20: =IFERROR(IF((OR($D20="RP",$D20="SP")),IF(Personalize!$E$11=TRUE,(((VLOOKUP($C20,Pitcher!$A$1:$P$600,7,FALSE))-'Filtered-P'!$W$13)/'Filtered-P'!$X$13),""),IF(Personalize!$E$2=TRUE,(((VLOOKUP($C20,Hitter!$A$1:$AB$600,4,FALSE))-Filtered!$AF$20)/Filtered!$AG$20),"")),"") -> 1.100989323 | Q20: =IFERROR(IF((OR($D20="RP",$D20="SP")),IF(Personalize!$E$13=TRUE,(((VLOOKUP($C20,Pitcher!$A$1:$P$600,13,FALSE))-'Filtered-P'!$W$19)/'Filtered-P'!$X$19),""),IF(Personalize!$E$5=TRUE,(((VLOOKUP($C20,Hitter!$A$1:$AB$600,10,FALSE))-Filtered!$AF$26)/Filtered!$AG$26),"")),"") -> 1.763963926 | R20: =IFERROR(IF((OR($D20="RP",$D20="SP")),IF(Personalize!$E$14=TRUE,(((VLOOKUP($C20,Pitcher!$A$1:$P$600,14,FALSE))-'Filtered-P'!$W$20)/'Filtered-P'!$X$20),""),IF(Personalize!$E$6=TRUE,(((VLOOKUP($C20,Hitter!$A$1:$AB$600,11,FALSE))-Filtered!$AF$27)/Filtered!$AG$27),"")),"") -> -0.3819527629 | S20: =IFERROR(IF((OR($D20="RP",$D20="SP")),IF(Personalize!$E$16=TRUE,(((VLOOKUP($C20,Pitcher!$A$1:$P$600,3,FALSE))-'Filtered-P'!$W$9)/'Filtered-P'!$X$9),""),IF(Personalize!$E$7=TRUE,(((VLOOKUP($C20,Hitter!$A$1:$AD$600,23,FALSE))-Filtered!$AF$37)/Filtered!$AG$37),"")),"") ->  | T20: =IFERROR(IF((OR($D20="RP",$D20="SP")),IF(Personalize!$E$15=TRUE,(((VLOOKUP($C20,Pitcher!$A$1:$P$600,15,FALSE))-'Filtered-P'!$W$21)/'Filtered-P'!$X$21),""),IF(Personalize!$E$8=TRUE,(((VLOOKUP($C20,Hitter!$A$1:$AD$600,22,FALSE))-Filtered!$AF$36)/Filtered!$AG$36),"")),"") ->  | U20: =IFERROR(IF((OR($D20="RP",$D20="SP")),IF(Personalize!$E$17=TRUE,(((VLOOKUP($C20,Pitcher!$A$1:$P$600,16,FALSE))-'Filtered-P'!$W$22)/'Filtered-P'!$X$22),""),IF(Personalize!$E$9=TRUE,(((VLOOKUP($C20,Hitter!$A$1:$AD$600,24,FALSE))-Filtered!$AF$38)/Filtered!$AG$38),"")),"") ->  | V20: =IFERROR(IF((OR($D20="RP",$D20="SP")),IF(Personalize!$E$37=TRUE,(((VLOOKUP($C20,Pitcher!$A$1:$Z$600,17,FALSE))-'Filtered-P'!$W$25)/'Filtered-P'!$X$25),""),IF(Personalize!$E$39=TRUE,(((VLOOKUP($C20,Hitter!$A$1:$X$600,5,FALSE))-Filtered!$AF$21)/Filtered!$AG$21),"")),"") ->  | W20: =IFERROR(IF((OR($D20="RP",$D20="SP")),IF(Personalize!$E$38=TRUE,(((VLOOKUP($C20,Pitcher!$A$1:$Z$600,18,FALSE))-'Filtered-P'!$W$26)/'Filtered-P'!$X$26),""),IF(Personalize!$E$40=TRUE,(((VLOOKUP($C20,Hitter!$A$1:$X$600,13,FALSE))-Filtered!$AF$29)/Filtered!$AG$29),"")),"") ->  | X20: =IFERROR(IF((OR($D20="RP",$D20="SP")),IF(Personalize!$E$45=TRUE,(((VLOOKUP($C20,Pitcher!$A$1:$Z$600,4,FALSE))-'Filtered-P'!$W$10)/'Filtered-P'!$X$10),""),IF(Personalize!$E$41=TRUE,(((VLOOKUP($C20,Hitter!$A$1:$AD$600,19,FALSE))-Filtered!$AF$43)/Filtered!$AG$43),"")),"") ->  | Y20: =IFERROR(IF((OR($D20="RP",$D20="SP")),IF(Personalize!$E$46=TRUE,(((VLOOKUP($C20,Pitcher!$A$1:$Z$600,19,FALSE))-'Filtered-P'!$W$27)/'Filtered-P'!$X$27),""),IF(Personalize!$E$44=TRUE,(((VLOOKUP($C20,Hitter!$A$1:$AD$600,20,FALSE))-Filtered!$AF$44)/Filtered!$AG$44),"")),"") ->  | Z20: =IFERROR(IF((OR($D20="RP",$D20="SP")),IF(Personalize!$E$47=TRUE,(((VLOOKUP($C20,Pitcher!$A$1:$Z$600,6,FALSE))-'Filtered-P'!$W$12)/'Filtered-P'!$X$12),""),IF(Personalize!$E$42=TRUE,(((VLOOKUP($C20,Hitter!$A$1:$AD$600,7,FALSE))-Filtered!$AF$23)/Filtered!$AG$23),"")),"") ->  | AA20: =IFERROR(IF((OR($D20="RP",$D20="SP")),IF(Personalize!$E$48=TRUE,(((VLOOKUP($C20,Pitcher!$A$1:$Z$600,5,FALSE))-'Filtered-P'!$W$11)/'Filtered-P'!$X$11),""),IF(Personalize!$E$43=TRUE,(((VLOOKUP($C20,Hitter!$A$1:$AD$600,8,FALSE))-Filtered!$AF$24)/Filtered!$AG$24),"")),"") ->  | AB20: =IFERROR(IF((OR($D20="RP",$D20="SP")),VLOOKUP($C20,Pitcher!$A$1:$P$600,2,FALSE),""),"") ->  | AC20: =IFERROR(IF((OR($D20="RP",$D20="SP")),VLOOKUP($C20,Pitcher!$A$1:$P$600,9,FALSE),""),"") ->  | AD20: =IFERROR(IF((OR($D20="RP",$D20="SP")),VLOOKUP($C20,Pitcher!$A$1:$P$600,7,FALSE),""),"") ->  | AE20: =IFERROR(IF((OR($D20="RP",$D20="SP")),VLOOKUP($C20,Pitcher!$A$1:$P$600,10,FALSE),""),"") ->  | AF20: =IFERROR(IF((OR($D20="RP",$D20="SP")),VLOOKUP($C20,Pitcher!$A$1:$P$600,11,FALSE),""),"") ->  | AG20: =IFERROR(IF((OR($D20="RP",$D20="SP")),"",VLOOKUP($C20,Hitter!$A$1:$X$600,15,FALSE)),"") -> 0.2726521721 | AH20: =IFERROR(IF((OR($D20="RP",$D20="SP")),"",VLOOKUP($C20,Hitter!$A$1:$X$600,9,FALSE)),"") -> 27.43272396 | AI20: =IFERROR(IF((OR($D20="RP",$D20="SP")),"",VLOOKUP($C20,Hitter!$A$1:$X$600,10,FALSE)),"") -> 95.74726158 | AJ20: =IFERROR(IF((OR($D20="RP",$D20="SP")),"",VLOOKUP($C20,Hitter!$A$1:$X$600,4,FALSE)),"") -> 83.94505379 | AK20: =IFERROR(IF((OR($D20="RP",$D20="SP")),"",VLOOKUP($C20,Hitter!$A$1:$X$600,11,FALSE)),"") -> 7.516449644 | AL20: 0 | AM20: 1 | AN20: 0 | AO20: 4 | AP20: =VLOOKUP(C20,'Starter Calc'!$B$2:$BO$600,66,FALSE) -> Bench | AQ20: =VLOOKUP(C20,'Starter Calc'!$B$2:$AM$600,38,FALSE) -> Yes | AR20: =IFERROR(IF(ISTEXT($A20),"",IF((OR($D20="RP",$D20="SP")),ABS(VLOOKUP(D20,'Filtered-P'!$V$3:$Z$4,5,FALSE))+L20,ABS(VLOOKUP(D20,Filtered!$AE$3:$AI$14,5,FALSE))+L20)),"") -> 8.264026516 | AS20: 10.20109977 | AT20: N
C21: Felix Hernandez | D21: =IFERROR(IF(VLOOKUP(C21,'ADP-Rank'!$A$2:$B$600,2,FALSE)="OF",VLOOKUP(C21,'Starter Calc'!$B$2:$AN$600,39,FALSE),(VLOOKUP(C21,'ADP-Rank'!$A$2:$B$600,2,FALSE))),"") -> SP | E21: =IFERROR(IF(VLOOKUP(C21,'Starter Calc'!$B$2:$E$600,4,FALSE)="","",VLOOKUP(C21,'Starter Calc'!$B$2:$E$600,4,FALSE)),"") ->  | F21: =IFERROR(VLOOKUP($C21,'ADP-Rank'!$A$2:$D$600,3,FALSE),"") -> SEA | G21: =IFERROR(VLOOKUP($C21,'ADP-Rank'!$A$2:$W$600,23,FALSE),"") -> 26 | H21: =IFERROR(IF(ISBLANK($B21),ROUND(((AS21/$AS$1)*(Personalize!$A$3-$AQ$1))+1,0),""),"") -> 25 | I21: =IFERROR(CHOOSE(Personalize!$E$32,VLOOKUP($C21,'ADP-Rank'!$A$2:$U$600,13,FALSE),VLOOKUP($C21,'ADP-Rank'!$A$2:$U$600,14,FALSE),VLOOKUP($C21,'ADP-Rank'!$A$2:$U$600,15,FALSE),VLOOKUP($C21,'ADP-Rank'!$A$2:$U$600,16,FALSE),VLOOKUP($C21,'ADP-Rank'!$A$2:$U$600,17,FALSE),VLOOKUP($C21,'ADP-Rank'!$A$2:$U$600,18,FALSE),VLOOKUP($C21,'ADP-Rank'!$A$2:$U$600,19,FALSE),VLOOKUP($C21,'ADP-Rank'!$A$2:$U$600,20,FALSE)),"") -> 32.85714286 | J21: =IF(ISBLANK($B21),IFERROR(CHOOSE(Personalize!$E$31,(VLOOKUP(C21,'ADP-Rank'!$A$2:$E$600,5,FALSE)*(Personalize!$A$3-$AQ$1)+1),(VLOOKUP(C21,'ADP-Rank'!$A$2:$E$600,4,FALSE)*(Personalize!$A$3-$AQ$1)+1),(VLOOKUP(C21,'ADP-Rank'!$A$2:$G$600,6,FALSE)*(Personalize!$A$3-$AQ$1)+1),(VLOOKUP(C21,'ADP-Rank'!$A$2:$Z$600,7,FALSE)*(Personalize!$A$3-$AQ$1)+1),(VLOOKUP(C21,'ADP-Rank'!$A$2:$Z$600,8,FALSE)*(Personalize!$A$3-$AQ$1)+1),(VLOOKUP(C21,'ADP-Rank'!$A$2:$Z$600,9,FALSE)*(Personalize!$A$3-$AQ$1)+1),(VLOOKUP(C21,'ADP-Rank'!$A$2:$Z$600,10,FALSE)*(Personalize!$A$3-$AQ$1)+1)),""),"") -> 25.82484499 | K21: 14 | L21: 5.612896522 | M21: =IFERROR(IF((OR($D21="RP",$D21="SP")),VLOOKUP($D21,'Filtered-P'!$V$3:$Y$4,4,FALSE), VLOOKUP($D21,Filtered!$AE$3:$AH$14,4,FALSE)),"") -> 0.655283346 | N21: =IFERROR(IF((OR($D21="RP",$D21="SP")),IF(Personalize!$E$10=TRUE,(((VLOOKUP($C21,Pitcher!$A$1:$P$600,2,FALSE))-'Filtered-P'!$W$8)/'Filtered-P'!$X$8),""),IF(Personalize!$E$4=TRUE,(((VLOOKUP($C21,Hitter!$A$1:$AD$600,21,FALSE))-Filtered!$AF$35)/Filtered!$AG$35),"")),"") -> 1.247512904 | O21: =IFERROR(IF((OR($D21="RP",$D21="SP")),IF(Personalize!$E$12=TRUE,(((VLOOKUP($C21,Pitcher!$A$1:$P$600,9,FALSE))-'Filtered-P'!$W$15)/'Filtered-P'!$X$15),""),IF(Personalize!$E$3=TRUE,(((VLOOKUP($C21,Hitter!$A$1:$AB$600,9,FALSE))-Filtered!$AF$25)/Filtered!$AG$25),"")),"") -> -0.5372019451 | P21: =IFERROR(IF((OR($D21="RP",$D21="SP")),IF(Personalize!$E$11=TRUE,(((VLOOKUP($C21,Pitcher!$A$1:$P$600,7,FALSE))-'Filtered-P'!$W$13)/'Filtered-P'!$X$13),""),IF(Personalize!$E$2=TRUE,(((VLOOKUP($C21,Hitter!$A$1:$AB$600,4,FALSE))-Filtered!$AF$20)/Filtered!$AG$20),"")),"") -> 1.75961023 | Q21: =IFERROR(IF((OR($D21="RP",$D21="SP")),IF(Personalize!$E$13=TRUE,(((VLOOKUP($C21,Pitcher!$A$1:$P$600,13,FALSE))-'Filtered-P'!$W$19)/'Filtered-P'!$X$19),""),IF(Personalize!$E$5=TRUE,(((VLOOKUP($C21,Hitter!$A$1:$AB$600,10,FALSE))-Filtered!$AF$26)/Filtered!$AG$26),"")),"") -> 2.147342498 | R21: =IFERROR(IF((OR($D21="RP",$D21="SP")),IF(Personalize!$E$14=TRUE,(((VLOOKUP($C21,Pitcher!$A$1:$P$600,14,FALSE))-'Filtered-P'!$W$20)/'Filtered-P'!$X$20),""),IF(Personalize!$E$6=TRUE,(((VLOOKUP($C21,Hitter!$A$1:$AB$600,11,FALSE))-Filtered!$AF$27)/Filtered!$AG$27),"")),"") -> 0.9956328351 | S21: =IFERROR(IF((OR($D21="RP",$D21="SP")),IF(Personalize!$E$16=TRUE,(((VLOOKUP($C21,Pitcher!$A$1:$P$600,3,FALSE))-'Filtered-P'!$W$9)/'Filtered-P'!$X$9),""),IF(Personalize!$E$7=TRUE,(((VLOOKUP($C21,Hitter!$A$1:$AD$600,23,FALSE))-Filtered!$AF$37)/Filtered!$AG$37),"")),"") ->  | T21: =IFERROR(IF((OR($D21="RP",$D21="SP")),IF(Personalize!$E$15=TRUE,(((VLOOKUP($C21,Pitcher!$A$1:$P$600,15,FALSE))-'Filtered-P'!$W$21)/'Filtered-P'!$X$21),""),IF(Personalize!$E$8=TRUE,(((VLOOKUP($C21,Hitter!$A$1:$AD$600,22,FALSE))-Filtered!$AF$36)/Filtered!$AG$36),"")),"") ->  | U21: =IFERROR(IF((OR($D21="RP",$D21="SP")),IF(Personalize!$E$17=TRUE,(((VLOOKUP($C21,Pitcher!$A$1:$P$600,16,FALSE))-'Filtered-P'!$W$22)/'Filtered-P'!$X$22),""),IF(Personalize!$E$9=TRUE,(((VLOOKUP($C21,Hitter!$A$1:$AD$600,24,FALSE))-Filtered!$AF$38)/Filtered!$AG$38),"")),"") ->  | V21: =IFERROR(IF((OR($D21="RP",$D21="SP")),IF(Personalize!$E$37=TRUE,(((VLOOKUP($C21,Pitcher!$A$1:$Z$600,17,FALSE))-'Filtered-P'!$W$25)/'Filtered-P'!$X$25),""),IF(Personalize!$E$39=TRUE,(((VLOOKUP($C21,Hitter!$A$1:$X$600,5,FALSE))-Filtered!$AF$21)/Filtered!$AG$21),"")),"") ->  | W21: =IFERROR(IF((OR($D21="RP",$D21="SP")),IF(Personalize!$E$38=TRUE,(((VLOOKUP($C21,Pitcher!$A$1:$Z$600,18,FALSE))-'Filtered-P'!$W$26)/'Filtered-P'!$X$26),""),IF(Personalize!$E$40=TRUE,(((VLOOKUP($C21,Hitter!$A$1:$X$600,13,FALSE))-Filtered!$AF$29)/Filtered!$AG$29),"")),"") ->  | X21: =IFERROR(IF((OR($D21="RP",$D21="SP")),IF(Personalize!$E$45=TRUE,(((VLOOKUP($C21,Pitcher!$A$1:$Z$600,4,FALSE))-'Filtered-P'!$W$10)/'Filtered-P'!$X$10),""),IF(Personalize!$E$41=TRUE,(((VLOOKUP($C21,Hitter!$A$1:$AD$600,19,FALSE))-Filtered!$AF$43)/Filtered!$AG$43),"")),"") ->  | Y21: =IFERROR(IF((OR($D21="RP",$D21="SP")),IF(Personalize!$E$46=TRUE,(((VLOOKUP($C21,Pitcher!$A$1:$Z$600,19,FALSE))-'Filtered-P'!$W$27)/'Filtered-P'!$X$27),""),IF(Personalize!$E$44=TRUE,(((VLOOKUP($C21,Hitter!$A$1:$AD$600,20,FALSE))-Filtered!$AF$44)/Filtered!$AG$44),"")),"") ->  | Z21: =IFERROR(IF((OR($D21="RP",$D21="SP")),IF(Personalize!$E$47=TRUE,(((VLOOKUP($C21,Pitcher!$A$1:$Z$600,6,FALSE))-'Filtered-P'!$W$12)/'Filtered-P'!$X$12),""),IF(Personalize!$E$42=TRUE,(((VLOOKUP($C21,Hitter!$A$1:$AD$600,7,FALSE))-Filtered!$AF$23)/Filtered!$AG$23),"")),"") ->  | AA21: =IFERROR(IF((OR($D21="RP",$D21="SP")),IF(Personalize!$E$48=TRUE,(((VLOOKUP($C21,Pitcher!$A$1:$Z$600,5,FALSE))-'Filtered-P'!$W$11)/'Filtered-P'!$X$11),""),IF(Personalize!$E$43=TRUE,(((VLOOKUP($C21,Hitter!$A$1:$AD$600,8,FALSE))-Filtered!$AF$24)/Filtered!$AG$24),"")),"") ->  | AB21: =IFERROR(IF((OR($D21="RP",$D21="SP")),VLOOKUP($C21,Pitcher!$A$1:$P$600,2,FALSE),""),"") -> 13.8599635 | AC21: =IFERROR(IF((OR($D21="RP",$D21="SP")),VLOOKUP($C21,Pitcher!$A$1:$P$600,9,FALSE),""),"") -> 0 | AD21: =IFERROR(IF((OR($D21="RP",$D21="SP")),VLOOKUP($C21,Pitcher!$A$1:$P$600,7,FALSE),""),"") -> 207.6923584 | AE21: =IFERROR(IF((OR($D21="RP",$D21="SP")),VLOOKUP($C21,Pitcher!$A$1:$P$600,10,FALSE),""),"") -> 3.160601395 | AF21: =IFERROR(IF((OR($D21="RP",$D21="SP")),VLOOKUP($C21,Pitcher!$A$1:$P$600,11,FALSE),""),"") -> 1.181295165 | AG21: =IFERROR(IF((OR($D21="RP",$D21="SP")),"",VLOOKUP($C21,Hitter!$A$1:$X$600,15,FALSE)),"") ->  | AH21: =IFERROR(IF((OR($D21="RP",$D21="SP")),"",VLOOKUP($C21,Hitter!$A$1:$X$600,9,FALSE)),"") ->  | AI21: =IFERROR(IF((OR($D21="RP",$D21="SP")),"",VLOOKUP($C21,Hitter!$A$1:$X$600,10,FALSE)),"") ->  | AJ21: =IFERROR(IF((OR($D21="RP",$D21="SP")),"",VLOOKUP($C21,Hitter!$A$1:$X$600,4,FALSE)),"") ->  | AK21: =IFERROR(IF((OR($D21="RP",$D21="SP")),"",VLOOKUP($C21,Hitter!$A$1:$X$600,11,FALSE)),"") ->  | AL21: 0 | AM21: 1 | AN21: 0 | AO21: 13 | AP21: =VLOOKUP(C21,'Starter Calc'!$B$2:$BO$600,66,FALSE) -> Bench | AQ21: =VLOOKUP(C21,'Starter Calc'!$B$2:$AM$600,38,FALSE) -> Yes | AR21: =IFERROR(IF(ISTEXT($A21),"",IF((OR($D21="RP",$D21="SP")),ABS(VLOOKUP(D21,'Filtered-P'!$V$3:$Z$4,5,FALSE))+L21,ABS(VLOOKUP(D21,Filtered!$AE$3:$AI$14,5,FALSE))+L21)),"") -> 8.23155388 | AS21: 10.16862714 | AT21: N
C22: Carlos Gonzalez | D22: =IFERROR(IF(VLOOKUP(C22,'ADP-Rank'!$A$2:$B$600,2,FALSE)="OF",VLOOKUP(C22,'Starter Calc'!$B$2:$AN$600,39,FALSE),(VLOOKUP(C22,'ADP-Rank'!$A$2:$B$600,2,FALSE))),"") -> OF | E22: =IFERROR(IF(VLOOKUP(C22,'Starter Calc'!$B$2:$E$600,4,FALSE)="","",VLOOKUP(C22,'Starter Calc'!$B$2:$E$600,4,FALSE)),"") -> RF,CF,LF | F22: =IFERROR(VLOOKUP($C22,'ADP-Rank'!$A$2:$D$600,3,FALSE),"") -> COL | G22: =IFERROR(VLOOKUP($C22,'ADP-Rank'!$A$2:$W$600,23,FALSE),"") -> 27 | H22: =IFERROR(IF(ISBLANK($B22),ROUND(((AS22/$AS$1)*(Personalize!$A$3-$AQ$1))+1,0),""),"") -> 24 | I22: =IFERROR(CHOOSE(Personalize!$E$32,VLOOKUP($C22,'ADP-Rank'!$A$2:$U$600,13,FALSE),VLOOKUP($C22,'ADP-Rank'!$A$2:$U$600,14,FALSE),VLOOKUP($C22,'ADP-Rank'!$A$2:$U$600,15,FALSE),VLOOKUP($C22,'ADP-Rank'!$A$2:$U$600,16,FALSE),VLOOKUP($C22,'ADP-Rank'!$A$2:$U$600,17,FALSE),VLOOKUP($C22,'ADP-Rank'!$A$2:$U$600,18,FALSE),VLOOKUP($C22,'ADP-Rank'!$A$2:$U$600,19,FALSE),VLOOKUP($C22,'ADP-Rank'!$A$2:$U$600,20,FALSE)),"") -> 14.14285714 | J22: =IF(ISBLANK($B22),IFERROR(CHOOSE(Personalize!$E$31,(VLOOKUP(C22,'ADP-Rank'!$A$2:$E$600,5,FALSE)*(Personalize!$A$3-$AQ$1)+1),(VLOOKUP(C22,'ADP-Rank'!$A$2:$E$600,4,FALSE)*(Personalize!$A$3-$AQ$1)+1),(VLOOKUP(C22,'ADP-Rank'!$A$2:$G$600,6,FALSE)*(Personalize!$A$3-$AQ$1)+1),(VLOOKUP(C22,'ADP-Rank'!$A$2:$Z$600,7,FALSE)*(Personalize!$A$3-$AQ$1)+1),(VLOOKUP(C22,'ADP-Rank'!$A$2:$Z$600,8,FALSE)*(Personalize!$A$3-$AQ$1)+1),(VLOOKUP(C22,'ADP-Rank'!$A$2:$Z$600,9,FALSE)*(Personalize!$A$3-$AQ$1)+1),(VLOOKUP(C22,'ADP-Rank'!$A$2:$Z$600,10,FALSE)*(Personalize!$A$3-$AQ$1)+1)),""),"") -> 33.40388527 | K22: 12 | L22: 5.80126089 | M22: =IFERROR(IF((OR($D22="RP",$D22="SP")),VLOOKUP($D22,'Filtered-P'!$V$3:$Y$4,4,FALSE), VLOOKUP($D22,Filtered!$AE$3:$AH$14,4,FALSE)),"") -> 0.337703352 | N22: =IFERROR(IF((OR($D22="RP",$D22="SP")),IF(Personalize!$E$10=TRUE,(((VLOOKUP($C22,Pitcher!$A$1:$P$600,2,FALSE))-'Filtered-P'!$W$8)/'Filtered-P'!$X$8),""),IF(Personalize!$E$4=TRUE,(((VLOOKUP($C22,Hitter!$A$1:$AD$600,21,FALSE))-Filtered!$AF$35)/Filtered!$AG$35),"")),"") -> 1.610679889 | O22: =IFERROR(IF((OR($D22="RP",$D22="SP")),IF(Personalize!$E$12=TRUE,(((VLOOKUP($C22,Pitcher!$A$1:$P$600,9,FALSE))-'Filtered-P'!$W$15)/'Filtered-P'!$X$15),""),IF(Personalize!$E$3=TRUE,(((VLOOKUP($C22,Hitter!$A$1:$AB$600,9,FALSE))-Filtered!$AF$25)/Filtered!$AG$25),"")),"") -> 1.054044398 | P22: =IFERROR(IF((OR($D22="RP",$D22="SP")),IF(Personalize!$E$11=TRUE,(((VLOOKUP($C22,Pitcher!$A$1:$P$600,7,FALSE))-'Filtered-P'!$W$13)/'Filtered-P'!$X$13),""),IF(Personalize!$E$2=TRUE,(((VLOOKUP($C22,Hitter!$A$1:$AB$600,4,FALSE))-Filtered!$AF$20)/Filtered!$AG$20),"")),"") -> 1.196123323 | Q22: =IFERROR(IF((OR($D22="RP",$D22="SP")),IF(Personalize!$E$13=TRUE,(((VLOOKUP($C22,Pitcher!$A$1:$P$600,13,FALSE))-'Filtered-P'!$W$19)/'Filtered-P'!$X$19),""),IF(Personalize!$E$5=TRUE,(((VLOOKUP($C22,Hitter!$A$1:$AB$600,10,FALSE))-Filtered!$AF$26)/Filtered!$AG$26),"")),"") -> 1.10712897 | R22: =IFERROR(IF((OR($D22="RP",$D22="SP")),IF(Personalize!$E$14=TRUE,(((VLOOKUP($C22,Pitcher!$A$1:$P$600,14,FALSE))-'Filtered-P'!$W$20)/'Filtered-P'!$X$20),""),IF(Personalize!$E$6=TRUE,(((VLOOKUP($C22,Hitter!$A$1:$AB$600,11,FALSE))-Filtered!$AF$27)/Filtered!$AG$27),"")),"") -> 0.833284311 | S22: =IFERROR(IF((OR($D22="RP",$D22="SP")),IF(Personalize!$E$16=TRUE,(((VLOOKUP($C22,Pitcher!$A$1:$P$600,3,FALSE))-'Filtered-P'!$W$9)/'Filtered-P'!$X$9),""),IF(Personalize!$E$7=TRUE,(((VLOOKUP($C22,Hitter!$A$1:$AD$600,23,FALSE))-Filtered!$AF$37)/Filtered!$AG$37),"")),"") ->  | T22: =IFERROR(IF((OR($D22="RP",$D22="SP")),IF(Personalize!$E$15=TRUE,(((VLOOKUP($C22,Pitcher!$A$1:$P$600,15,FALSE))-'Filtered-P'!$W$21)/'Filtered-P'!$X$21),""),IF(Personalize!$E$8=TRUE,(((VLOOKUP($C22,Hitter!$A$1:$AD$600,22,FALSE))-Filtered!$AF$36)/Filtered!$AG$36),"")),"") ->  | U22: =IFERROR(IF((OR($D22="RP",$D22="SP")),IF(Personalize!$E$17=TRUE,(((VLOOKUP($C22,Pitcher!$A$1:$P$600,16,FALSE))-'Filtered-P'!$W$22)/'Filtered-P'!$X$22),""),IF(Personalize!$E$9=TRUE,(((VLOOKUP($C22,Hitter!$A$1:$AD$600,24,FALSE))-Filtered!$AF$38)/Filtered!$AG$38),"")),"") ->  | V22: =IFERROR(IF((OR($D22="RP",$D22="SP")),IF(Personalize!$E$37=TRUE,(((VLOOKUP($C22,Pitcher!$A$1:$Z$600,17,FALSE))-'Filtered-P'!$W$25)/'Filtered-P'!$X$25),""),IF(Personalize!$E$39=TRUE,(((VLOOKUP($C22,Hitter!$A$1:$X$600,5,FALSE))-Filtered!$AF$21)/Filtered!$AG$21),"")),"") ->  | W22: =IFERROR(IF((OR($D22="RP",$D22="SP")),IF(Personalize!$E$38=TRUE,(((VLOOKUP($C22,Pitcher!$A$1:$Z$600,18,FALSE))-'Filtered-P'!$W$26)/'Filtered-P'!$X$26),""),IF(Personalize!$E$40=TRUE,(((VLOOKUP($C22,Hitter!$A$1:$X$600,13,FALSE))-Filtered!$AF$29)/Filtered!$AG$29),"")),"") ->  | X22: =IFERROR(IF((OR($D22="RP",$D22="SP")),IF(Personalize!$E$45=TRUE,(((VLOOKUP($C22,Pitcher!$A$1:$Z$600,4,FALSE))-'Filtered-P'!$W$10)/'Filtered-P'!$X$10),""),IF(Personalize!$E$41=TRUE,(((VLOOKUP($C22,Hitter!$A$1:$AD$600,19,FALSE))-Filtered!$AF$43)/Filtered!$AG$43),"")),"") ->  | Y22: =IFERROR(IF((OR($D22="RP",$D22="SP")),IF(Personalize!$E$46=TRUE,(((VLOOKUP($C22,Pitcher!$A$1:$Z$600,19,FALSE))-'Filtered-P'!$W$27)/'Filtered-P'!$X$27),""),IF(Personalize!$E$44=TRUE,(((VLOOKUP($C22,Hitter!$A$1:$AD$600,20,FALSE))-Filtered!$AF$44)/Filtered!$AG$44),"")),"") ->  | Z22: =IFERROR(IF((OR($D22="RP",$D22="SP")),IF(Personalize!$E$47=TRUE,(((VLOOKUP($C22,Pitcher!$A$1:$Z$600,6,FALSE))-'Filtered-P'!$W$12)/'Filtered-P'!$X$12),""),IF(Personalize!$E$42=TRUE,(((VLOOKUP($C22,Hitter!$A$1:$AD$600,7,FALSE))-Filtered!$AF$23)/Filtered!$AG$23),"")),"") ->  | AA22: =IFERROR(IF((OR($D22="RP",$D22="SP")),IF(Personalize!$E$48=TRUE,(((VLOOKUP($C22,Pitcher!$A$1:$Z$600,5,FALSE))-'Filtered-P'!$W$11)/'Filtered-P'!$X$11),""),IF(Personalize!$E$43=TRUE,(((VLOOKUP($C22,Hitter!$A$1:$AD$600,8,FALSE))-Filtered!$AF$24)/Filtered!$AG$24),"")),"") ->  | AB22: =IFERROR(IF((OR($D22="RP",$D22="SP")),VLOOKUP($C22,Pitcher!$A$1:$P$600,2,FALSE),""),"") ->  | AC22: =IFERROR(IF((OR($D22="RP",$D22="SP")),VLOOKUP($C22,Pitcher!$A$1:$P$600,9,FALSE),""),"") ->  | AD22: =IFERROR(IF((OR($D22="RP",$D22="SP")),VLOOKUP($C22,Pitcher!$A$1:$P$600,7,FALSE),""),"") ->  | AE22: =IFERROR(IF((OR($D22="RP",$D22="SP")),VLOOKUP($C22,Pitcher!$A$1:$P$600,10,FALSE),""),"") ->  | AF22: =IFERROR(IF((OR($D22="RP",$D22="SP")),VLOOKUP($C22,Pitcher!$A$1:$P$600,11,FALSE),""),"") ->  | AG22: =IFERROR(IF((OR($D22="RP",$D22="SP")),"",VLOOKUP($C22,Hitter!$A$1:$X$600,15,FALSE)),"") -> 0.2985465641 | AH22: =IFERROR(IF((OR($D22="RP",$D22="SP")),"",VLOOKUP($C22,Hitter!$A$1:$X$600,9,FALSE)),"") -> 24.8570951 | AI22: =IFERROR(IF((OR($D22="RP",$D22="SP")),"",VLOOKUP($C22,Hitter!$A$1:$X$600,10,FALSE)),"") -> 85.46733561 | AJ22: =IFERROR(IF((OR($D22="RP",$D22="SP")),"",VLOOKUP($C22,Hitter!$A$1:$X$600,4,FALSE)),"") -> 85.04132375 | AK22: =IFERROR(IF((OR($D22="RP",$D22="SP")),"",VLOOKUP($C22,Hitter!$A$1:$X$600,11,FALSE)),"") -> 19.13109296 | AL22: 0 | AM22: 1 | AN22: 0 | AO22: 11 | AP22: =VLOOKUP(C22,'Starter Calc'!$B$2:$BO$600,66,FALSE) -> Bench | AQ22: =VLOOKUP(C22,'Starter Calc'!$B$2:$AM$600,38,FALSE) -> Yes | AR22: =IFERROR(IF(ISTEXT($A22),"",IF((OR($D22="RP",$D22="SP")),ABS(VLOOKUP(D22,'Filtered-P'!$V$3:$Z$4,5,FALSE))+L22,ABS(VLOOKUP(D22,Filtered!$AE$3:$AI$14,5,FALSE))+L22)),"") -> 7.513148715 | AS22: 9.450221972 | AT22: N
C23: Tim Lincecum | D23: =IFERROR(IF(VLOOKUP(C23,'ADP-Rank'!$A$2:$B$600,2,FALSE)="OF",VLOOKUP(C23,'Starter Calc'!$B$2:$AN$600,39,FALSE),(VLOOKUP(C23,'ADP-Rank'!$A$2:$B$600,2,FALSE))),"") -> SP | E23: =IFERROR(IF(VLOOKUP(C23,'Starter Calc'!$B$2:$E$600,4,FALSE)="","",VLOOKUP(C23,'Starter Calc'!$B$2:$E$600,4,FALSE)),"") ->  | F23: =IFERROR(VLOOKUP($C23,'ADP-Rank'!$A$2:$D$600,3,FALSE),"") -> SF | G23: =IFERROR(VLOOKUP($C23,'ADP-Rank'!$A$2:$W$600,23,FALSE),"") -> 28 | H23: =IFERROR(IF(ISBLANK($B23),ROUND(((AS23/$AS$1)*(Personalize!$A$3-$AQ$1))+1,0),""),"") -> 24 | I23: =IFERROR(CHOOSE(Personalize!$E$32,VLOOKUP($C23,'ADP-Rank'!$A$2:$U$600,13,FALSE),VLOOKUP($C23,'ADP-Rank'!$A$2:$U$600,14,FALSE),VLOOKUP($C23,'ADP-Rank'!$A$2:$U$600,15,FALSE),VLOOKUP($C23,'ADP-Rank'!$A$2:$U$600,16,FALSE),VLOOKUP($C23,'ADP-Rank'!$A$2:$U$600,17,FALSE),VLOOKUP($C23,'ADP-Rank'!$A$2:$U$600,18,FALSE),VLOOKUP($C23,'ADP-Rank'!$A$2:$U$600,19,FALSE),VLOOKUP($C23,'ADP-Rank'!$A$2:$U$600,20,FALSE)),"") -> 36.85714286 | J23: =IF(ISBLANK($B23),IFERROR(CHOOSE(Personalize!$E$31,(VLOOKUP(C23,'ADP-Rank'!$A$2:$E$600,5,FALSE)*(Personalize!$A$3-$AQ$1)+1),(VLOOKUP(C23,'ADP-Rank'!$A$2:$E$600,4,FALSE)*(Personalize!$A$3-$AQ$1)+1),(VLOOKUP(C23,'ADP-Rank'!$A$2:$G$600,6,FALSE)*(Personalize!$A$3-$AQ$1)+1),(VLOOKUP(C23,'ADP-Rank'!$A$2:$Z$600,7,FALSE)*(Personalize!$A$3-$AQ$1)+1),(VLOOKUP(C23,'ADP-Rank'!$A$2:$Z$600,8,FALSE)*(Personalize!$A$3-$AQ$1)+1),(VLOOKUP(C23,'ADP-Rank'!$A$2:$Z$600,9,FALSE)*(Personalize!$A$3-$AQ$1)+1),(VLOOKUP(C23,'ADP-Rank'!$A$2:$Z$600,10,FALSE)*(Personalize!$A$3-$AQ$1)+1)),""),"") -> 24.48000802 | K23: 21 | L23: 5.091320253 | M23: =IFERROR(IF((OR($D23="RP",$D23="SP")),VLOOKUP($D23,'Filtered-P'!$V$3:$Y$4,4,FALSE), VLOOKUP($D23,Filtered!$AE$3:$AH$14,4,FALSE)),"") -> 0.655283346 | N23: =IFERROR(IF((OR($D23="RP",$D23="SP")),IF(Personalize!$E$10=TRUE,(((VLOOKUP($C23,Pitcher!$A$1:$P$600,2,FALSE))-'Filtered-P'!$W$8)/'Filtered-P'!$X$8),""),IF(Personalize!$E$4=TRUE,(((VLOOKUP($C23,Hitter!$A$1:$AD$600,21,FALSE))-Filtered!$AF$35)/Filtered!$AG$35),"")),"") -> 1.206260469 | O23: =IFERROR(IF((OR($D23="RP",$D23="SP")),IF(Personalize!$E$12=TRUE,(((VLOOKUP($C23,Pitcher!$A$1:$P$600,9,FALSE))-'Filtered-P'!$W$15)/'Filtered-P'!$X$15),""),IF(Personalize!$E$3=TRUE,(((VLOOKUP($C23,Hitter!$A$1:$AB$600,9,FALSE))-Filtered!$AF$25)/Filtered!$AG$25),"")),"") -> -0.5372019451 | P23: =IFERROR(IF((OR($D23="RP",$D23="SP")),IF(Personalize!$E$11=TRUE,(((VLOOKUP($C23,Pitcher!$A$1:$P$600,7,FALSE))-'Filtered-P'!$W$13)/'Filtered-P'!$X$13),""),IF(Personalize!$E$2=TRUE,(((VLOOKUP($C23,Hitter!$A$1:$AB$600,4,FALSE))-Filtered!$AF$20)/Filtered!$AG$20),"")),"") -> 1.841132102 | Q23: =IFERROR(IF((OR($D23="RP",$D23="SP")),IF(Personalize!$E$13=TRUE,(((VLOOKUP($C23,Pitcher!$A$1:$P$600,13,FALSE))-'Filtered-P'!$W$19)/'Filtered-P'!$X$19),""),IF(Personalize!$E$5=TRUE,(((VLOOKUP($C23,Hitter!$A$1:$AB$600,10,FALSE))-Filtered!$AF$26)/Filtered!$AG$26),"")),"") -> 2.110679095 | R23: =IFERROR(IF((OR($D23="RP",$D23="SP")),IF(Personalize!$E$14=TRUE,(((VLOOKUP($C23,Pitcher!$A$1:$P$600,14,FALSE))-'Filtered-P'!$W$20)/'Filtered-P'!$X$20),""),IF(Personalize!$E$6=TRUE,(((VLOOKUP($C23,Hitter!$A$1:$AB$600,11,FALSE))-Filtered!$AF$27)/Filtered!$AG$27),"")),"") -> 0.4704505326 | S23: =IFERROR(IF((OR($D23="RP",$D23="SP")),IF(Personalize!$E$16=TRUE,(((VLOOKUP($C23,Pitcher!$A$1:$P$600,3,FALSE))-'Filtered-P'!$W$9)/'Filtered-P'!$X$9),""),IF(Personalize!$E$7=TRUE,(((VLOOKUP($C23,Hitter!$A$1:$AD$600,23,FALSE))-Filtered!$AF$37)/Filtered!$AG$37),"")),"") ->  | T23: =IFERROR(IF((OR($D23="RP",$D23="SP")),IF(Personalize!$E$15=TRUE,(((VLOOKUP($C23,Pitcher!$A$1:$P$600,15,FALSE))-'Filtered-P'!$W$21)/'Filtered-P'!$X$21),""),IF(Personalize!$E$8=TRUE,(((VLOOKUP($C23,Hitter!$A$1:$AD$600,22,FALSE))-Filtered!$AF$36)/Filtered!$AG$36),"")),"") ->  | U23: =IFERROR(IF((OR($D23="RP",$D23="SP")),IF(Personalize!$E$17=TRUE,(((VLOOKUP($C23,Pitcher!$A$1:$P$600,16,FALSE))-'Filtered-P'!$W$22)/'Filtered-P'!$X$22),""),IF(Personalize!$E$9=TRUE,(((VLOOKUP($C23,Hitter!$A$1:$AD$600,24,FALSE))-Filtered!$AF$38)/Filtered!$AG$38),"")),"") ->  | V23: =IFERROR(IF((OR($D23="RP",$D23="SP")),IF(Personalize!$E$37=TRUE,(((VLOOKUP($C23,Pitcher!$A$1:$Z$600,17,FALSE))-'Filtered-P'!$W$25)/'Filtered-P'!$X$25),""),IF(Personalize!$E$39=TRUE,(((VLOOKUP($C23,Hitter!$A$1:$X$600,5,FALSE))-Filtered!$AF$21)/Filtered!$AG$21),"")),"") ->  | W23: =IFERROR(IF((OR($D23="RP",$D23="SP")),IF(Personalize!$E$38=TRUE,(((VLOOKUP($C23,Pitcher!$A$1:$Z$600,18,FALSE))-'Filtered-P'!$W$26)/'Filtered-P'!$X$26),""),IF(Personalize!$E$40=TRUE,(((VLOOKUP($C23,Hitter!$A$1:$X$600,13,FALSE))-Filtered!$AF$29)/Filtered!$AG$29),"")),"") ->  | X23: =IFERROR(IF((OR($D23="RP",$D23="SP")),IF(Personalize!$E$45=TRUE,(((VLOOKUP($C23,Pitcher!$A$1:$Z$600,4,FALSE))-'Filtered-P'!$W$10)/'Filtered-P'!$X$10),""),IF(Personalize!$E$41=TRUE,(((VLOOKUP($C23,Hitter!$A$1:$AD$600,19,FALSE))-Filtered!$AF$43)/Filtered!$AG$43),"")),"") ->  | Y23: =IFERROR(IF((OR($D23="RP",$D23="SP")),IF(Personalize!$E$46=TRUE,(((VLOOKUP($C23,Pitcher!$A$1:$Z$600,19,FALSE))-'Filtered-P'!$W$27)/'Filtered-P'!$X$27),""),IF(Personalize!$E$44=TRUE,(((VLOOKUP($C23,Hitter!$A$1:$AD$600,20,FALSE))-Filtered!$AF$44)/Filtered!$AG$44),"")),"") ->  | Z23: =IFERROR(IF((OR($D23="RP",$D23="SP")),IF(Personalize!$E$47=TRUE,(((VLOOKUP($C23,Pitcher!$A$1:$Z$600,6,FALSE))-'Filtered-P'!$W$12)/'Filtered-P'!$X$12),""),IF(Personalize!$E$42=TRUE,(((VLOOKUP($C23,Hitter!$A$1:$AD$600,7,FALSE))-Filtered!$AF$23)/Filtered!$AG$23),"")),"") ->  | AA23: =IFERROR(IF((OR($D23="RP",$D23="SP")),IF(Personalize!$E$48=TRUE,(((VLOOKUP($C23,Pitcher!$A$1:$Z$600,5,FALSE))-'Filtered-P'!$W$11)/'Filtered-P'!$X$11),""),IF(Personalize!$E$43=TRUE,(((VLOOKUP($C23,Hitter!$A$1:$AD$600,8,FALSE))-Filtered!$AF$24)/Filtered!$AG$24),"")),"") ->  | AB23: =IFERROR(IF((OR($D23="RP",$D23="SP")),VLOOKUP($C23,Pitcher!$A$1:$P$600,2,FALSE),""),"") -> 13.69376151 | AC23: =IFERROR(IF((OR($D23="RP",$D23="SP")),VLOOKUP($C23,Pitcher!$A$1:$P$600,9,FALSE),""),"") -> 0 | AD23: =IFERROR(IF((OR($D23="RP",$D23="SP")),VLOOKUP($C23,Pitcher!$A$1:$P$600,7,FALSE),""),"") -> 211.6205414 | AE23: =IFERROR(IF((OR($D23="RP",$D23="SP")),VLOOKUP($C23,Pitcher!$A$1:$P$600,10,FALSE),""),"") -> 3.106134001 | AF23: =IFERROR(IF((OR($D23="RP",$D23="SP")),VLOOKUP($C23,Pitcher!$A$1:$P$600,11,FALSE),""),"") -> 1.203406933 | AG23: =IFERROR(IF((OR($D23="RP",$D23="SP")),"",VLOOKUP($C23,Hitter!$A$1:$X$600,15,FALSE)),"") ->  | AH23: =IFERROR(IF((OR($D23="RP",$D23="SP")),"",VLOOKUP($C23,Hitter!$A$1:$X$600,9,FALSE)),"") ->  | AI23: =IFERROR(IF((OR($D23="RP",$D23="SP")),"",VLOOKUP($C23,Hitter!$A$1:$X$600,10,FALSE)),"") ->  | AJ23: =IFERROR(IF((OR($D23="RP",$D23="SP")),"",VLOOKUP($C23,Hitter!$A$1:$X$600,4,FALSE)),"") ->  | AK23: =IFERROR(IF((OR($D23="RP",$D23="SP")),"",VLOOKUP($C23,Hitter!$A$1:$X$600,11,FALSE)),"") ->  | AL23: 0 | AM23: 1 | AN23: 0 | AO23: 13 | AP23: =VLOOKUP(C23,'Starter Calc'!$B$2:$BO$600,66,FALSE) -> Bench | AQ23: =VLOOKUP(C23,'Starter Calc'!$B$2:$AM$600,38,FALSE) -> Yes | AR23: =IFERROR(IF(ISTEXT($A23),"",IF((OR($D23="RP",$D23="SP")),ABS(VLOOKUP(D23,'Filtered-P'!$V$3:$Z$4,5,FALSE))+L23,ABS(VLOOKUP(D23,Filtered!$AE$3:$AI$14,5,FALSE))+L23)),"") -> 7.709977611 | AS23: 9.647050868 | AT23: N
C24: Jered Weaver | D24: =IFERROR(IF(VLOOKUP(C24,'ADP-Rank'!$A$2:$B$600,2,FALSE)="OF",VLOOKUP(C24,'Starter Calc'!$B$2:$AN$600,39,FALSE),(VLOOKUP(C24,'ADP-Rank'!$A$2:$B$600,2,FALSE))),"") -> SP | E24: =IFERROR(IF(VLOOKUP(C24,'Starter Calc'!$B$2:$E$600,4,FALSE)="","",VLOOKUP(C24,'Starter Calc'!$B$2:$E$600,4,FALSE)),"") ->  | F24: =IFERROR(VLOOKUP($C24,'ADP-Rank'!$A$2:$D$600,3,FALSE),"") -> ANA | G24: =IFERROR(VLOOKUP($C24,'ADP-Rank'!$A$2:$W$600,23,FALSE),"") -> 30 | H24: =IFERROR(IF(ISBLANK($B24),ROUND(((AS24/$AS$1)*(Personalize!$A$3-$AQ$1))+1,0),""),"") -> 24 | I24: =IFERROR(CHOOSE(Personalize!$E$32,VLOOKUP($C24,'ADP-Rank'!$A$2:$U$600,13,FALSE),VLOOKUP($C24,'ADP-Rank'!$A$2:$U$600,14,FALSE),VLOOKUP($C24,'ADP-Rank'!$A$2:$U$600,15,FALSE),VLOOKUP($C24,'ADP-Rank'!$A$2:$U$600,16,FALSE),VLOOKUP($C24,'ADP-Rank'!$A$2:$U$600,17,FALSE),VLOOKUP($C24,'ADP-Rank'!$A$2:$U$600,18,FALSE),VLOOKUP($C24,'ADP-Rank'!$A$2:$U$600,19,FALSE),VLOOKUP($C24,'ADP-Rank'!$A$2:$U$600,20,FALSE)),"") -> 41.28571429 | J24: =IF(ISBLANK($B24),IFERROR(CHOOSE(Personalize!$E$31,(VLOOKUP(C24,'ADP-Rank'!$A$2:$E$600,5,FALSE)*(Personalize!$A$3-$AQ$1)+1),(VLOOKUP(C24,'ADP-Rank'!$A$2:$E$600,4,FALSE)*(Personalize!$A$3-$AQ$1)+1),(VLOOKUP(C24,'ADP-Rank'!$A$2:$G$600,6,FALSE)*(Personalize!$A$3-$AQ$1)+1),(VLOOKUP(C24,'ADP-Rank'!$A$2:$Z$600,7,FALSE)*(Personalize!$A$3-$AQ$1)+1),(VLOOKUP(C24,'ADP-Rank'!$A$2:$Z$600,8,FALSE)*(Personalize!$A$3-$AQ$1)+1),(VLOOKUP(C24,'ADP-Rank'!$A$2:$Z$600,9,FALSE)*(Personalize!$A$3-$AQ$1)+1),(VLOOKUP(C24,'ADP-Rank'!$A$2:$Z$600,10,FALSE)*(Personalize!$A$3-$AQ$1)+1)),""),"") -> 25.42677251 | K24: 18 | L24: 5.170600576 | M24: =IFERROR(IF((OR($D24="RP",$D24="SP")),VLOOKUP($D24,'Filtered-P'!$V$3:$Y$4,4,FALSE), VLOOKUP($D24,Filtered!$AE$3:$AH$14,4,FALSE)),"") -> 0.655283346 | N24: =IFERROR(IF((OR($D24="RP",$D24="SP")),IF(Personalize!$E$10=TRUE,(((VLOOKUP($C24,Pitcher!$A$1:$P$600,2,FALSE))-'Filtered-P'!$W$8)/'Filtered-P'!$X$8),""),IF(Personalize!$E$4=TRUE,(((VLOOKUP($C24,Hitter!$A$1:$AD$600,21,FALSE))-Filtered!$AF$35)/Filtered!$AG$35),"")),"") -> 1.474438924 | O24: =IFERROR(IF((OR($D24="RP",$D24="SP")),IF(Personalize!$E$12=TRUE,(((VLOOKUP($C24,Pitcher!$A$1:$P$600,9,FALSE))-'Filtered-P'!$W$15)/'Filtered-P'!$X$15),""),IF(Personalize!$E$3=TRUE,(((VLOOKUP($C24,Hitter!$A$1:$AB$600,9,FALSE))-Filtered!$AF$25)/Filtered!$AG$25),"")),"") -> -0.5372019451 | P24: =IFERROR(IF((OR($D24="RP",$D24="SP")),IF(Personalize!$E$11=TRUE,(((VLOOKUP($C24,Pitcher!$A$1:$P$600,7,FALSE))-'Filtered-P'!$W$13)/'Filtered-P'!$X$13),""),IF(Personalize!$E$2=TRUE,(((VLOOKUP($C24,Hitter!$A$1:$AB$600,4,FALSE))-Filtered!$AF$20)/Filtered!$AG$20),"")),"") -> 1.3262933 | Q24: =IFERROR(IF((OR($D24="RP",$D24="SP")),IF(Personalize!$E$13=TRUE,(((VLOOKUP($C24,Pitcher!$A$1:$P$600,13,FALSE))-'Filtered-P'!$W$19)/'Filtered-P'!$X$19),""),IF(Personalize!$E$5=TRUE,(((VLOOKUP($C24,Hitter!$A$1:$AB$600,10,FALSE))-Filtered!$AF$26)/Filtered!$AG$26),"")),"") -> 1.330499668 | R24: =IFERROR(IF((OR($D24="RP",$D24="SP")),IF(Personalize!$E$14=TRUE,(((VLOOKUP($C24,Pitcher!$A$1:$P$600,14,FALSE))-'Filtered-P'!$W$20)/'Filtered-P'!$X$20),""),IF(Personalize!$E$6=TRUE,(((VLOOKUP($C24,Hitter!$A$1:$AB$600,11,FALSE))-Filtered!$AF$27)/Filtered!$AG$27),"")),"") -> 1.576570629 | S24: =IFERROR(IF((OR($D24="RP",$D24="SP")),IF(Personalize!$E$16=TRUE,(((VLOOKUP($C24,Pitcher!$A$1:$P$600,3,FALSE))-'Filtered-P'!$W$9)/'Filtered-P'!$X$9),""),IF(Personalize!$E$7=TRUE,(((VLOOKUP($C24,Hitter!$A$1:$AD$600,23,FALSE))-Filtered!$AF$37)/Filtered!$AG$37),"")),"") ->  | T24: =IFERROR(IF((OR($D24="RP",$D24="SP")),IF(Personalize!$E$15=TRUE,(((VLOOKUP($C24,Pitcher!$A$1:$P$600,15,FALSE))-'Filtered-P'!$W$21)/'Filtered-P'!$X$21),""),IF(Personalize!$E$8=TRUE,(((VLOOKUP($C24,Hitter!$A$1:$AD$600,22,FALSE))-Filtered!$AF$36)/Filtered!$AG$36),"")),"") ->  | U24: =IFERROR(IF((OR($D24="RP",$D24="SP")),IF(Personalize!$E$17=TRUE,(((VLOOKUP($C24,Pitcher!$A$1:$P$600,16,FALSE))-'Filtered-P'!$W$22)/'Filtered-P'!$X$22),""),IF(Personalize!$E$9=TRUE,(((VLOOKUP($C24,Hitter!$A$1:$AD$600,24,FALSE))-Filtered!$AF$38)/Filtered!$AG$38),"")),"") ->  | V24: =IFERROR(IF((OR($D24="RP",$D24="SP")),IF(Personalize!$E$37=TRUE,(((VLOOKUP($C24,Pitcher!$A$1:$Z$600,17,FALSE))-'Filtered-P'!$W$25)/'Filtered-P'!$X$25),""),IF(Personalize!$E$39=TRUE,(((VLOOKUP($C24,Hitter!$A$1:$X$600,5,FALSE))-Filtered!$AF$21)/Filtered!$AG$21),"")),"") ->  | W24: =IFERROR(IF((OR($D24="RP",$D24="SP")),IF(Personalize!$E$38=TRUE,(((VLOOKUP($C24,Pitcher!$A$1:$Z$600,18,FALSE))-'Filtered-P'!$W$26)/'Filtered-P'!$X$26),""),IF(Personalize!$E$40=TRUE,(((VLOOKUP($C24,Hitter!$A$1:$X$600,13,FALSE))-Filtered!$AF$29)/Filtered!$AG$29),"")),"") ->  | X24: =IFERROR(IF((OR($D24="RP",$D24="SP")),IF(Personalize!$E$45=TRUE,(((VLOOKUP($C24,Pitcher!$A$1:$Z$600,4,FALSE))-'Filtered-P'!$W$10)/'Filtered-P'!$X$10),""),IF(Personalize!$E$41=TRUE,(((VLOOKUP($C24,Hitter!$A$1:$AD$600,19,FALSE))-Filtered!$AF$43)/Filtered!$AG$43),"")),"") ->  | Y24: =IFERROR(IF((OR($D24="RP",$D24="SP")),IF(Personalize!$E$46=TRUE,(((VLOOKUP($C24,Pitcher!$A$1:$Z$600,19,FALSE))-'Filtered-P'!$W$27)/'Filtered-P'!$X$27),""),IF(Personalize!$E$44=TRUE,(((VLOOKUP($C24,Hitter!$A$1:$AD$600,20,FALSE))-Filtered!$AF$44)/Filtered!$AG$44),"")),"") ->  | Z24: =IFERROR(IF((OR($D24="RP",$D24="SP")),IF(Personalize!$E$47=TRUE,(((VLOOKUP($C24,Pitcher!$A$1:$Z$600,6,FALSE))-'Filtered-P'!$W$12)/'Filtered-P'!$X$12),""),IF(Personalize!$E$42=TRUE,(((VLOOKUP($C24,Hitter!$A$1:$AD$600,7,FALSE))-Filtered!$AF$23)/Filtered!$AG$23),"")),"") ->  | AA24: =IFERROR(IF((OR($D24="RP",$D24="SP")),IF(Personalize!$E$48=TRUE,(((VLOOKUP($C24,Pitcher!$A$1:$Z$600,5,FALSE))-'Filtered-P'!$W$11)/'Filtered-P'!$X$11),""),IF(Personalize!$E$43=TRUE,(((VLOOKUP($C24,Hitter!$A$1:$AD$600,8,FALSE))-Filtered!$AF$24)/Filtered!$AG$24),"")),"") ->  | AB24: =IFERROR(IF((OR($D24="RP",$D24="SP")),VLOOKUP($C24,Pitcher!$A$1:$P$600,2,FALSE),""),"") -> 14.77422604 | AC24: =IFERROR(IF((OR($D24="RP",$D24="SP")),VLOOKUP($C24,Pitcher!$A$1:$P$600,9,FALSE),""),"") -> 0 | AD24: =IFERROR(IF((OR($D24="RP",$D24="SP")),VLOOKUP($C24,Pitcher!$A$1:$P$600,7,FALSE),""),"") -> 186.8127083 | AE24: =IFERROR(IF((OR($D24="RP",$D24="SP")),VLOOKUP($C24,Pitcher!$A$1:$P$600,10,FALSE),""),"") -> 3.316215291 | AF24: =IFERROR(IF((OR($D24="RP",$D24="SP")),VLOOKUP($C24,Pitcher!$A$1:$P$600,11,FALSE),""),"") -> 1.150244194 | AG24: =IFERROR(IF((OR($D24="RP",$D24="SP")),"",VLOOKUP($C24,Hitter!$A$1:$X$600,15,FALSE)),"") ->  | AH24: =IFERROR(IF((OR($D24="RP",$D24="SP")),"",VLOOKUP($C24,Hitter!$A$1:$X$600,9,FALSE)),"") ->  | AI24: =IFERROR(IF((OR($D24="RP",$D24="SP")),"",VLOOKUP($C24,Hitter!$A$1:$X$600,10,FALSE)),"") ->  | AJ24: =IFERROR(IF((OR($D24="RP",$D24="SP")),"",VLOOKUP($C24,Hitter!$A$1:$X$600,4,FALSE)),"") ->  | AK24: =IFERROR(IF((OR($D24="RP",$D24="SP")),"",VLOOKUP($C24,Hitter!$A$1:$X$600,11,FALSE)),"") ->  | AL24: 0 | AM24: 1 | AN24: 0 | AO24: 13 | AP24: =VLOOKUP(C24,'Starter Calc'!$B$2:$BO$600,66,FALSE) -> Bench | AQ24: =VLOOKUP(C24,'Starter Calc'!$B$2:$AM$600,38,FALSE) -> Yes | AR24: =IFERROR(IF(ISTEXT($A24),"",IF((OR($D24="RP",$D24="SP")),ABS(VLOOKUP(D24,'Filtered-P'!$V$3:$Z$4,5,FALSE))+L24,ABS(VLOOKUP(D24,Filtered!$AE$3:$AI$14,5,FALSE))+L24)),"") -> 7.789257934 | AS24: 9.726331191 | AT24: N
C25: Jacoby Ellsbury | D25: =IFERROR(IF(VLOOKUP(C25,'ADP-Rank'!$A$2:$B$600,2,FALSE)="OF",VLOOKUP(C25,'Starter Calc'!$B$2:$AN$600,39,FALSE),(VLOOKUP(C25,'ADP-Rank'!$A$2:$B$600,2,FALSE))),"") -> OF | E25: =IFERROR(IF(VLOOKUP(C25,'Starter Calc'!$B$2:$E$600,4,FALSE)="","",VLOOKUP(C25,'Starter Calc'!$B$2:$E$600,4,FALSE)),"") -> CF | F25: =IFERROR(VLOOKUP($C25,'ADP-Rank'!$A$2:$D$600,3,FALSE),"") -> BOS | G25: =IFERROR(VLOOKUP($C25,'ADP-Rank'!$A$2:$W$600,23,FALSE),"") -> 29 | H25: =IFERROR(IF(ISBLANK($B25),ROUND(((AS25/$AS$1)*(Personalize!$A$3-$AQ$1))+1,0),""),"") -> 23 | I25: =IFERROR(CHOOSE(Personalize!$E$32,VLOOKUP($C25,'ADP-Rank'!$A$2:$U$600,13,FALSE),VLOOKUP($C25,'ADP-Rank'!$A$2:$U$600,14,FALSE),VLOOKUP($C25,'ADP-Rank'!$A$2:$U$600,15,FALSE),VLOOKUP($C25,'ADP-Rank'!$A$2:$U$600,16,FALSE),VLOOKUP($C25,'ADP-Rank'!$A$2:$U$600,17,FALSE),VLOOKUP($C25,'ADP-Rank'!$A$2:$U$600,18,FALSE),VLOOKUP($C25,'ADP-Rank'!$A$2:$U$600,19,FALSE),VLOOKUP($C25,'ADP-Rank'!$A$2:$U$600,20,FALSE)),"") -> 9.428571429 | J25: =IF(ISBLANK($B25),IFERROR(CHOOSE(Personalize!$E$31,(VLOOKUP(C25,'ADP-Rank'!$A$2:$E$600,5,FALSE)*(Personalize!$A$3-$AQ$1)+1),(VLOOKUP(C25,'ADP-Rank'!$A$2:$E$600,4,FALSE)*(Personalize!$A$3-$AQ$1)+1),(VLOOKUP(C25,'ADP-Rank'!$A$2:$G$600,6,FALSE)*(Personalize!$A$3-$AQ$1)+1),(VLOOKUP(C25,'ADP-Rank'!$A$2:$Z$600,7,FALSE)*(Personalize!$A$3-$AQ$1)+1),(VLOOKUP(C25,'ADP-Rank'!$A$2:$Z$600,8,FALSE)*(Personalize!$A$3-$AQ$1)+1),(VLOOKUP(C25,'ADP-Rank'!$A$2:$Z$600,9,FALSE)*(Personalize!$A$3-$AQ$1)+1),(VLOOKUP(C25,'ADP-Rank'!$A$2:$Z$600,10,FALSE)*(Personalize!$A$3-$AQ$1)+1)),""),"") -> 36.12950846 | K25: 17 | L25: 5.453153052 | M25: =IFERROR(IF((OR($D25="RP",$D25="SP")),VLOOKUP($D25,'Filtered-P'!$V$3:$Y$4,4,FALSE), VLOOKUP($D25,Filtered!$AE$3:$AH$14,4,FALSE)),"") -> 0.337703352 | N25: =IFERROR(IF((OR($D25="RP",$D25="SP")),IF(Personalize!$E$10=TRUE,(((VLOOKUP($C25,Pitcher!$A$1:$P$600,2,FALSE))-'Filtered-P'!$W$8)/'Filtered-P'!$X$8),""),IF(Personalize!$E$4=TRUE,(((VLOOKUP($C25,Hitter!$A$1:$AD$600,21,FALSE))-Filtered!$AF$35)/Filtered!$AG$35),"")),"") -> 1.50419154 | O25: =IFERROR(IF((OR($D25="RP",$D25="SP")),IF(Personalize!$E$12=TRUE,(((VLOOKUP($C25,Pitcher!$A$1:$P$600,9,FALSE))-'Filtered-P'!$W$15)/'Filtered-P'!$X$15),""),IF(Personalize!$E$3=TRUE,(((VLOOKUP($C25,Hitter!$A$1:$AB$600,9,FALSE))-Filtered!$AF$25)/Filtered!$AG$25),"")),"") -> -0.1637885215 | P25: =IFERROR(IF((OR($D25="RP",$D25="SP")),IF(Personalize!$E$11=TRUE,(((VLOOKUP($C25,Pitcher!$A$1:$P$600,7,FALSE))-'Filtered-P'!$W$13)/'Filtered-P'!$X$13),""),IF(Personalize!$E$2=TRUE,(((VLOOKUP($C25,Hitter!$A$1:$AB$600,4,FALSE))-Filtered!$AF$20)/Filtered!$AG$20),"")),"") -> 1.349185836 | Q25: =IFERROR(IF((OR($D25="RP",$D25="SP")),IF(Personalize!$E$13=TRUE,(((VLOOKUP($C25,Pitcher!$A$1:$P$600,13,FALSE))-'Filtered-P'!$W$19)/'Filtered-P'!$X$19),""),IF(Personalize!$E$5=TRUE,(((VLOOKUP($C25,Hitter!$A$1:$AB$600,10,FALSE))-Filtered!$AF$26)/Filtered!$AG$26),"")),"") -> -0.02443821177 | R25: =IFERROR(IF((OR($D25="RP",$D25="SP")),IF(Personalize!$E$14=TRUE,(((VLOOKUP($C25,Pitcher!$A$1:$P$600,14,FALSE))-'Filtered-P'!$W$20)/'Filtered-P'!$X$20),""),IF(Personalize!$E$6=TRUE,(((VLOOKUP($C25,Hitter!$A$1:$AB$600,11,FALSE))-Filtered!$AF$27)/Filtered!$AG$27),"")),"") -> 2.78800241 | S25: =IFERROR(IF((OR($D25="RP",$D25="SP")),IF(Personalize!$E$16=TRUE,(((VLOOKUP($C25,Pitcher!$A$1:$P$600,3,FALSE))-'Filtered-P'!$W$9)/'Filtered-P'!$X$9),""),IF(Personalize!$E$7=TRUE,(((VLOOKUP($C25,Hitter!$A$1:$AD$600,23,FALSE))-Filtered!$AF$37)/Filtered!$AG$37),"")),"") ->  | T25: =IFERROR(IF((OR($D25="RP",$D25="SP")),IF(Personalize!$E$15=TRUE,(((VLOOKUP($C25,Pitcher!$A$1:$P$600,15,FALSE))-'Filtered-P'!$W$21)/'Filtered-P'!$X$21),""),IF(Personalize!$E$8=TRUE,(((VLOOKUP($C25,Hitter!$A$1:$AD$600,22,FALSE))-Filtered!$AF$36)/Filtered!$AG$36),"")),"") ->  | U25: =IFERROR(IF((OR($D25="RP",$D25="SP")),IF(Personalize!$E$17=TRUE,(((VLOOKUP($C25,Pitcher!$A$1:$P$600,16,FALSE))-'Filtered-P'!$W$22)/'Filtered-P'!$X$22),""),IF(Personalize!$E$9=TRUE,(((VLOOKUP($C25,Hitter!$A$1:$AD$600,24,FALSE))-Filtered!$AF$38)/Filtered!$AG$38),"")),"") ->  | V25: =IFERROR(IF((OR($D25="RP",$D25="SP")),IF(Personalize!$E$37=TRUE,(((VLOOKUP($C25,Pitcher!$A$1:$Z$600,17,FALSE))-'Filtered-P'!$W$25)/'Filtered-P'!$X$25),""),IF(Personalize!$E$39=TRUE,(((VLOOKUP($C25,Hitter!$A$1:$X$600,5,FALSE))-Filtered!$AF$21)/Filtered!$AG$21),"")),"") ->  | W25: =IFERROR(IF((OR($D25="RP",$D25="SP")),IF(Personalize!$E$38=TRUE,(((VLOOKUP($C25,Pitcher!$A$1:$Z$600,18,FALSE))-'Filtered-P'!$W$26)/'Filtered-P'!$X$26),""),IF(Personalize!$E$40=TRUE,(((VLOOKUP($C25,Hitter!$A$1:$X$600,13,FALSE))-Filtered!$AF$29)/Filtered!$AG$29),"")),"") ->  | X25: =IFERROR(IF((OR($D25="RP",$D25="SP")),IF(Personalize!$E$45=TRUE,(((VLOOKUP($C25,Pitcher!$A$1:$Z$600,4,FALSE))-'Filtered-P'!$W$10)/'Filtered-P'!$X$10),""),IF(Personalize!$E$41=TRUE,(((VLOOKUP($C25,Hitter!$A$1:$AD$600,19,FALSE))-Filtered!$AF$43)/Filtered!$AG$43),"")),"") ->  | Y25: =IFERROR(IF((OR($D25="RP",$D25="SP")),IF(Personalize!$E$46=TRUE,(((VLOOKUP($C25,Pitcher!$A$1:$Z$600,19,FALSE))-'Filtered-P'!$W$27)/'Filtered-P'!$X$27),""),IF(Personalize!$E$44=TRUE,(((VLOOKUP($C25,Hitter!$A$1:$AD$600,20,FALSE))-Filtered!$AF$44)/Filtered!$AG$44),"")),"") ->  | Z25: =IFERROR(IF((OR($D25="RP",$D25="SP")),IF(Personalize!$E$47=TRUE,(((VLOOKUP($C25,Pitcher!$A$1:$Z$600,6,FALSE))-'Filtered-P'!$W$12)/'Filtered-P'!$X$12),""),IF(Personalize!$E$42=TRUE,(((VLOOKUP($C25,Hitter!$A$1:$AD$600,7,FALSE))-Filtered!$AF$23)/Filtered!$AG$23),"")),"") ->  | AA25: =IFERROR(IF((OR($D25="RP",$D25="SP")),IF(Personalize!$E$48=TRUE,(((VLOOKUP($C25,Pitcher!$A$1:$Z$600,5,FALSE))-'Filtered-P'!$W$11)/'Filtered-P'!$X$11),""),IF(Personalize!$E$43=TRUE,(((VLOOKUP($C25,Hitter!$A$1:$AD$600,8,FALSE))-Filtered!$AF$24)/Filtered!$AG$24),"")),"") ->  | AB25: =IFERROR(IF((OR($D25="RP",$D25="SP")),VLOOKUP($C25,Pitcher!$A$1:$P$600,2,FALSE),""),"") ->  | AC25: =IFERROR(IF((OR($D25="RP",$D25="SP")),VLOOKUP($C25,Pitcher!$A$1:$P$600,9,FALSE),""),"") ->  | AD25: =IFERROR(IF((OR($D25="RP",$D25="SP")),VLOOKUP($C25,Pitcher!$A$1:$P$600,7,FALSE),""),"") ->  | AE25: =IFERROR(IF((OR($D25="RP",$D25="SP")),VLOOKUP($C25,Pitcher!$A$1:$P$600,10,FALSE),""),"") ->  | AF25: =IFERROR(IF((OR($D25="RP",$D25="SP")),VLOOKUP($C25,Pitcher!$A$1:$P$600,11,FALSE),""),"") ->  | AG25: =IFERROR(IF((OR($D25="RP",$D25="SP")),"",VLOOKUP($C25,Hitter!$A$1:$X$600,15,FALSE)),"") -> 0.2946946843 | AH25: =IFERROR(IF((OR($D25="RP",$D25="SP")),"",VLOOKUP($C25,Hitter!$A$1:$X$600,9,FALSE)),"") -> 16.2822239 | AI25: =IFERROR(IF((OR($D25="RP",$D25="SP")),"",VLOOKUP($C25,Hitter!$A$1:$X$600,10,FALSE)),"") -> 67.75751863 | AJ25: =IFERROR(IF((OR($D25="RP",$D25="SP")),"",VLOOKUP($C25,Hitter!$A$1:$X$600,4,FALSE)),"") -> 86.80512888 | AK25: =IFERROR(IF((OR($D25="RP",$D25="SP")),"",VLOOKUP($C25,Hitter!$A$1:$X$600,11,FALSE)),"") -> 37.81333529 | AL25: 0 | AM25: 1 | AN25: 0 | AO25: 11 | AP25: =VLOOKUP(C25,'Starter Calc'!$B$2:$BO$600,66,FALSE) -> Bench | AQ25: =VLOOKUP(C25,'Starter Calc'!$B$2:$AM$600,38,FALSE) -> Yes | AR25: =IFERROR(IF(ISTEXT($A25),"",IF((OR($D25="RP",$D25="SP")),ABS(VLOOKUP(D25,'Filtered-P'!$V$3:$Z$4,5,FALSE))+L25,ABS(VLOOKUP(D25,Filtered!$AE$3:$AI$14,5,FALSE))+L25)),"") -> 7.165040877 | AS25: 9.102114134 | AT25: N
C26: Justin Upton | D26: =IFERROR(IF(VLOOKUP(C26,'ADP-Rank'!$A$2:$B$600,2,FALSE)="OF",VLOOKUP(C26,'Starter Calc'!$B$2:$AN$600,39,FALSE),(VLOOKUP(C26,'ADP-Rank'!$A$2:$B$600,2,FALSE))),"") -> OF | E26: =IFERROR(IF(VLOOKUP(C26,'Starter Calc'!$B$2:$E$600,4,FALSE)="","",VLOOKUP(C26,'Starter Calc'!$B$2:$E$600,4,FALSE)),"") -> RF | F26: =IFERROR(VLOOKUP($C26,'ADP-Rank'!$A$2:$D$600,3,FALSE),"") -> ARI | G26: =IFERROR(VLOOKUP($C26,'ADP-Rank'!$A$2:$W$600,23,FALSE),"") -> 25 | H26: =IFERROR(IF(ISBLANK($B26),ROUND(((AS26/$AS$1)*(Personalize!$A$3-$AQ$1))+1,0),""),"") -> 23 | I26: =IFERROR(CHOOSE(Personalize!$E$32,VLOOKUP($C26,'ADP-Rank'!$A$2:$U$600,13,FALSE),VLOOKUP($C26,'ADP-Rank'!$A$2:$U$600,14,FALSE),VLOOKUP($C26,'ADP-Rank'!$A$2:$U$600,15,FALSE),VLOOKUP($C26,'ADP-Rank'!$A$2:$U$600,16,FALSE),VLOOKUP($C26,'ADP-Rank'!$A$2:$U$600,17,FALSE),VLOOKUP($C26,'ADP-Rank'!$A$2:$U$600,18,FALSE),VLOOKUP($C26,'ADP-Rank'!$A$2:$U$600,19,FALSE),VLOOKUP($C26,'ADP-Rank'!$A$2:$U$600,20,FALSE)),"") -> 11.71428571 | J26: =IF(ISBLANK($B26),IFERROR(CHOOSE(Personalize!$E$31,(VLOOKUP(C26,'ADP-Rank'!$A$2:$E$600,5,FALSE)*(Personalize!$A$3-$AQ$1)+1),(VLOOKUP(C26,'ADP-Rank'!$A$2:$E$600,4,FALSE)*(Personalize!$A$3-$AQ$1)+1),(VLOOKUP(C26,'ADP-Rank'!$A$2:$G$600,6,FALSE)*(Personalize!$A$3-$AQ$1)+1),(VLOOKUP(C26,'ADP-Rank'!$A$2:$Z$600,7,FALSE)*(Personalize!$A$3-$AQ$1)+1),(VLOOKUP(C26,'ADP-Rank'!$A$2:$Z$600,8,FALSE)*(Personalize!$A$3-$AQ$1)+1),(VLOOKUP(C26,'ADP-Rank'!$A$2:$Z$600,9,FALSE)*(Personalize!$A$3-$AQ$1)+1),(VLOOKUP(C26,'ADP-Rank'!$A$2:$Z$600,10,FALSE)*(Personalize!$A$3-$AQ$1)+1)),""),"") -> 33.35804551 | K26: 13 | L26: 5.692475173 | M26: =IFERROR(IF((OR($D26="RP",$D26="SP")),VLOOKUP($D26,'Filtered-P'!$V$3:$Y$4,4,FALSE), VLOOKUP($D26,Filtered!$AE$3:$AH$14,4,FALSE)),"") -> 0.337703352 | N26: =IFERROR(IF((OR($D26="RP",$D26="SP")),IF(Personalize!$E$10=TRUE,(((VLOOKUP($C26,Pitcher!$A$1:$P$600,2,FALSE))-'Filtered-P'!$W$8)/'Filtered-P'!$X$8),""),IF(Personalize!$E$4=TRUE,(((VLOOKUP($C26,Hitter!$A$1:$AD$600,21,FALSE))-Filtered!$AF$35)/Filtered!$AG$35),"")),"") -> 0.9314632911 | O26: =IFERROR(IF((OR($D26="RP",$D26="SP")),IF(Personalize!$E$12=TRUE,(((VLOOKUP($C26,Pitcher!$A$1:$P$600,9,FALSE))-'Filtered-P'!$W$15)/'Filtered-P'!$X$15),""),IF(Personalize!$E$3=TRUE,(((VLOOKUP($C26,Hitter!$A$1:$AB$600,9,FALSE))-Filtered!$AF$25)/Filtered!$AG$25),"")),"") -> 1.252229809 | P26: =IFERROR(IF((OR($D26="RP",$D26="SP")),IF(Personalize!$E$11=TRUE,(((VLOOKUP($C26,Pitcher!$A$1:$P$600,7,FALSE))-'Filtered-P'!$W$13)/'Filtered-P'!$X$13),""),IF(Personalize!$E$2=TRUE,(((VLOOKUP($C26,Hitter!$A$1:$AB$600,4,FALSE))-Filtered!$AF$20)/Filtered!$AG$20),"")),"") -> 1.663532531 | Q26: =IFERROR(IF((OR($D26="RP",$D26="SP")),IF(Personalize!$E$13=TRUE,(((VLOOKUP($C26,Pitcher!$A$1:$P$600,13,FALSE))-'Filtered-P'!$W$19)/'Filtered-P'!$X$19),""),IF(Personalize!$E$5=TRUE,(((VLOOKUP($C26,Hitter!$A$1:$AB$600,10,FALSE))-Filtered!$AF$26)/Filtered!$AG$26),"")),"") -> 1.052181922 | R26: =IFERROR(IF((OR($D26="RP",$D26="SP")),IF(Personalize!$E$14=TRUE,(((VLOOKUP($C26,Pitcher!$A$1:$P$600,14,FALSE))-'Filtered-P'!$W$20)/'Filtered-P'!$X$20),""),IF(Personalize!$E$6=TRUE,(((VLOOKUP($C26,Hitter!$A$1:$AB$600,11,FALSE))-Filtered!$AF$27)/Filtered!$AG$27),"")),"") -> 0.7930676198 | S26: =IFERROR(IF((OR($D26="RP",$D26="SP")),IF(Personalize!$E$16=TRUE,(((VLOOKUP($C26,Pitcher!$A$1:$P$600,3,FALSE))-'Filtered-P'!$W$9)/'Filtered-P'!$X$9),""),IF(Personalize!$E$7=TRUE,(((VLOOKUP($C26,Hitter!$A$1:$AD$600,23,FALSE))-Filtered!$AF$37)/Filtered!$AG$37),"")),"") ->  | T26: =IFERROR(IF((OR($D26="RP",$D26="SP")),IF(Personalize!$E$15=TRUE,(((VLOOKUP($C26,Pitcher!$A$1:$P$600,15,FALSE))-'Filtered-P'!$W$21)/'Filtered-P'!$X$21),""),IF(Personalize!$E$8=TRUE,(((VLOOKUP($C26,Hitter!$A$1:$AD$600,22,FALSE))-Filtered!$AF$36)/Filtered!$AG$36),"")),"") ->  | U26: =IFERROR(IF((OR($D26="RP",$D26="SP")),IF(Personalize!$E$17=TRUE,(((VLOOKUP($C26,Pitcher!$A$1:$P$600,16,FALSE))-'Filtered-P'!$W$22)/'Filtered-P'!$X$22),""),IF(Personalize!$E$9=TRUE,(((VLOOKUP($C26,Hitter!$A$1:$AD$600,24,FALSE))-Filtered!$AF$38)/Filtered!$AG$38),"")),"") ->  | V26: =IFERROR(IF((OR($D26="RP",$D26="SP")),IF(Personalize!$E$37=TRUE,(((VLOOKUP($C26,Pitcher!$A$1:$Z$600,17,FALSE))-'Filtered-P'!$W$25)/'Filtered-P'!$X$25),""),IF(Personalize!$E$39=TRUE,(((VLOOKUP($C26,Hitter!$A$1:$X$600,5,FALSE))-Filtered!$AF$21)/Filtered!$AG$21),"")),"") ->  | W26: =IFERROR(IF((OR($D26="RP",$D26="SP")),IF(Personalize!$E$38=TRUE,(((VLOOKUP($C26,Pitcher!$A$1:$Z$600,18,FALSE))-'Filtered-P'!$W$26)/'Filtered-P'!$X$26),""),IF(Personalize!$E$40=TRUE,(((VLOOKUP($C26,Hitter!$A$1:$X$600,13,FALSE))-Filtered!$AF$29)/Filtered!$AG$29),"")),"") ->  | X26: =IFERROR(IF((OR($D26="RP",$D26="SP")),IF(Personalize!$E$45=TRUE,(((VLOOKUP($C26,Pitcher!$A$1:$Z$600,4,FALSE))-'Filtered-P'!$W$10)/'Filtered-P'!$X$10),""),IF(Personalize!$E$41=TRUE,(((VLOOKUP($C26,Hitter!$A$1:$AD$600,19,FALSE))-Filtered!$AF$43)/Filtered!$AG$43),"")),"") ->  | Y26: =IFERROR(IF((OR($D26="RP",$D26="SP")),IF(Personalize!$E$46=TRUE,(((VLOOKUP($C26,Pitcher!$A$1:$Z$600,19,FALSE))-'Filtered-P'!$W$27)/'Filtered-P'!$X$27),""),IF(Personalize!$E$44=TRUE,(((VLOOKUP($C26,Hitter!$A$1:$AD$600,20,FALSE))-Filtered!$AF$44)/Filtered!$AG$44),"")),"") ->  | Z26: =IFERROR(IF((OR($D26="RP",$D26="SP")),IF(Personalize!$E$47=TRUE,(((VLOOKUP($C26,Pitcher!$A$1:$Z$600,6,FALSE))-'Filtered-P'!$W$12)/'Filtered-P'!$X$12),""),IF(Personalize!$E$42=TRUE,(((VLOOKUP($C26,Hitter!$A$1:$AD$600,7,FALSE))-Filtered!$AF$23)/Filtered!$AG$23),"")),"") ->  | AA26: =IFERROR(IF((OR($D26="RP",$D26="SP")),IF(Personalize!$E$48=TRUE,(((VLOOKUP($C26,Pitcher!$A$1:$Z$600,5,FALSE))-'Filtered-P'!$W$11)/'Filtered-P'!$X$11),""),IF(Personalize!$E$43=TRUE,(((VLOOKUP($C26,Hitter!$A$1:$AD$600,8,FALSE))-Filtered!$AF$24)/Filtered!$AG$24),"")),"") ->  | AB26: =IFERROR(IF((OR($D26="RP",$D26="SP")),VLOOKUP($C26,Pitcher!$A$1:$P$600,2,FALSE),""),"") ->  | AC26: =IFERROR(IF((OR($D26="RP",$D26="SP")),VLOOKUP($C26,Pitcher!$A$1:$P$600,9,FALSE),""),"") ->  | AD26: =IFERROR(IF((OR($D26="RP",$D26="SP")),VLOOKUP($C26,Pitcher!$A$1:$P$600,7,FALSE),""),"") ->  | AE26: =IFERROR(IF((OR($D26="RP",$D26="SP")),VLOOKUP($C26,Pitcher!$A$1:$P$600,10,FALSE),""),"") ->  | AF26: =IFERROR(IF((OR($D26="RP",$D26="SP")),VLOOKUP($C26,Pitcher!$A$1:$P$600,11,FALSE),""),"") ->  | AG26: =IFERROR(IF((OR($D26="RP",$D26="SP")),"",VLOOKUP($C26,Hitter!$A$1:$X$600,15,FALSE)),"") -> 0.2847713524 | AH26: =IFERROR(IF((OR($D26="RP",$D26="SP")),"",VLOOKUP($C26,Hitter!$A$1:$X$600,9,FALSE)),"") -> 26.25253642 | AI26: =IFERROR(IF((OR($D26="RP",$D26="SP")),"",VLOOKUP($C26,Hitter!$A$1:$X$600,10,FALSE)),"") -> 84.60737593 | AJ26: =IFERROR(IF((OR($D26="RP",$D26="SP")),"",VLOOKUP($C26,Hitter!$A$1:$X$600,4,FALSE)),"") -> 90.42748095 | AK26: =IFERROR(IF((OR($D26="RP",$D26="SP")),"",VLOOKUP($C26,Hitter!$A$1:$X$600,11,FALSE)),"") -> 18.74672144 | AL26: 0 | AM26: 1 | AN26: 0 | AO26: 11 | AP26: =VLOOKUP(C26,'Starter Calc'!$B$2:$BO$600,66,FALSE) -> Bench | AQ26: =VLOOKUP(C26,'Starter Calc'!$B$2:$AM$600,38,FALSE) -> Yes | AR26: =IFERROR(IF(ISTEXT($A26),"",IF((OR($D26="RP",$D26="SP")),ABS(VLOOKUP(D26,'Filtered-P'!$V$3:$Z$4,5,FALSE))+L26,ABS(VLOOKUP(D26,Filtered!$AE$3:$AI$14,5,FALSE))+L26)),"") -> 7.404362998 | AS26: 9.341436255 | AT26: N
C27: Cole Hamels | D27: =IFERROR(IF(VLOOKUP(C27,'ADP-Rank'!$A$2:$B$600,2,FALSE)="OF",VLOOKUP(C27,'Starter Calc'!$B$2:$AN$600,39,FALSE),(VLOOKUP(C27,'ADP-Rank'!$A$2:$B$600,2,FALSE))),"") -> SP | E27: =IFERROR(IF(VLOOKUP(C27,'Starter Calc'!$B$2:$E$600,4,FALSE)="","",VLOOKUP(C27,'Starter Calc'!$B$2:$E$600,4,FALSE)),"") ->  | F27: =IFERROR(VLOOKUP($C27,'ADP-Rank'!$A$2:$D$600,3,FALSE),"") -> PHI | G27: =IFERROR(VLOOKUP($C27,'ADP-Rank'!$A$2:$W$600,23,FALSE),"") -> 29 | H27: =IFERROR(IF(ISBLANK($B27),ROUND(((AS27/$AS$1)*(Personalize!$A$3-$AQ$1))+1,0),""),"") -> 23 | I27: =IFERROR(CHOOSE(Personalize!$E$32,VLOOKUP($C27,'ADP-Rank'!$A$2:$U$600,13,FALSE),VLOOKUP($C27,'ADP-Rank'!$A$2:$U$600,14,FALSE),VLOOKUP($C27,'ADP-Rank'!$A$2:$U$600,15,FALSE),VLOOKUP($C27,'ADP-Rank'!$A$2:$U$600,16,FALSE),VLOOKUP($C27,'ADP-Rank'!$A$2:$U$600,17,FALSE),VLOOKUP($C27,'ADP-Rank'!$A$2:$U$600,18,FALSE),VLOOKUP($C27,'ADP-Rank'!$A$2:$U$600,19,FALSE),VLOOKUP($C27,'ADP-Rank'!$A$2:$U$600,20,FALSE)),"") -> 42.42857143 | J27: =IF(ISBLANK($B27),IFERROR(CHOOSE(Personalize!$E$31,(VLOOKUP(C27,'ADP-Rank'!$A$2:$E$600,5,FALSE)*(Personalize!$A$3-$AQ$1)+1),(VLOOKUP(C27,'ADP-Rank'!$A$2:$E$600,4,FALSE)*(Personalize!$A$3-$AQ$1)+1),(VLOOKUP(C27,'ADP-Rank'!$A$2:$G$600,6,FALSE)*(Personalize!$A$3-$AQ$1)+1),(VLOOKUP(C27,'ADP-Rank'!$A$2:$Z$600,7,FALSE)*(Personalize!$A$3-$AQ$1)+1),(VLOOKUP(C27,'ADP-Rank'!$A$2:$Z$600,8,FALSE)*(Personalize!$A$3-$AQ$1)+1),(VLOOKUP(C27,'ADP-Rank'!$A$2:$Z$600,9,FALSE)*(Personalize!$A$3-$AQ$1)+1),(VLOOKUP(C27,'ADP-Rank'!$A$2:$Z$600,10,FALSE)*(Personalize!$A$3-$AQ$1)+1)),""),"") -> 24.50624181 | K27: 23 | L27: 4.56622698 | M27: =IFERROR(IF((OR($D27="RP",$D27="SP")),VLOOKUP($D27,'Filtered-P'!$V$3:$Y$4,4,FALSE), VLOOKUP($D27,Filtered!$AE$3:$AH$14,4,FALSE)),"") -> 0.655283346 | N27: =IFERROR(IF((OR($D27="RP",$D27="SP")),IF(Personalize!$E$10=TRUE,(((VLOOKUP($C27,Pitcher!$A$1:$P$600,2,FALSE))-'Filtered-P'!$W$8)/'Filtered-P'!$X$8),""),IF(Personalize!$E$4=TRUE,(((VLOOKUP($C27,Hitter!$A$1:$AD$600,21,FALSE))-Filtered!$AF$35)/Filtered!$AG$35),"")),"") -> 1.009344576 | O27: =IFERROR(IF((OR($D27="RP",$D27="SP")),IF(Personalize!$E$12=TRUE,(((VLOOKUP($C27,Pitcher!$A$1:$P$600,9,FALSE))-'Filtered-P'!$W$15)/'Filtered-P'!$X$15),""),IF(Personalize!$E$3=TRUE,(((VLOOKUP($C27,Hitter!$A$1:$AB$600,9,FALSE))-Filtered!$AF$25)/Filtered!$AG$25),"")),"") -> -0.5372019451 | P27: =IFERROR(IF((OR($D27="RP",$D27="SP")),IF(Personalize!$E$11=TRUE,(((VLOOKUP($C27,Pitcher!$A$1:$P$600,7,FALSE))-'Filtered-P'!$W$13)/'Filtered-P'!$X$13),""),IF(Personalize!$E$2=TRUE,(((VLOOKUP($C27,Hitter!$A$1:$AB$600,4,FALSE))-Filtered!$AF$20)/Filtered!$AG$20),"")),"") -> 1.205551388 | Q27: =IFERROR(IF((OR($D27="RP",$D27="SP")),IF(Personalize!$E$13=TRUE,(((VLOOKUP($C27,Pitcher!$A$1:$P$600,13,FALSE))-'Filtered-P'!$W$19)/'Filtered-P'!$X$19),""),IF(Personalize!$E$5=TRUE,(((VLOOKUP($C27,Hitter!$A$1:$AB$600,10,FALSE))-Filtered!$AF$26)/Filtered!$AG$26),"")),"") -> 1.113072432 | R27: =IFERROR(IF((OR($D27="RP",$D27="SP")),IF(Personalize!$E$14=TRUE,(((VLOOKUP($C27,Pitcher!$A$1:$P$600,14,FALSE))-'Filtered-P'!$W$20)/'Filtered-P'!$X$20),""),IF(Personalize!$E$6=TRUE,(((VLOOKUP($C27,Hitter!$A$1:$AB$600,11,FALSE))-Filtered!$AF$27)/Filtered!$AG$27),"")),"") -> 1.775460529 | S27: =IFERROR(IF((OR($D27="RP",$D27="SP")),IF(Personalize!$E$16=TRUE,(((VLOOKUP($C27,Pitcher!$A$1:$P$600,3,FALSE))-'Filtered-P'!$W$9)/'Filtered-P'!$X$9),""),IF(Personalize!$E$7=TRUE,(((VLOOKUP($C27,Hitter!$A$1:$AD$600,23,FALSE))-Filtered!$AF$37)/Filtered!$AG$37),"")),"") ->  | T27: =IFERROR(IF((OR($D27="RP",$D27="SP")),IF(Personalize!$E$15=TRUE,(((VLOOKUP($C27,Pitcher!$A$1:$P$600,15,FALSE))-'Filtered-P'!$W$21)/'Filtered-P'!$X$21),""),IF(Personalize!$E$8=TRUE,(((VLOOKUP($C27,Hitter!$A$1:$AD$600,22,FALSE))-Filtered!$AF$36)/Filtered!$AG$36),"")),"") ->  | U27: =IFERROR(IF((OR($D27="RP",$D27="SP")),IF(Personalize!$E$17=TRUE,(((VLOOKUP($C27,Pitcher!$A$1:$P$600,16,FALSE))-'Filtered-P'!$W$22)/'Filtered-P'!$X$22),""),IF(Personalize!$E$9=TRUE,(((VLOOKUP($C27,Hitter!$A$1:$AD$600,24,FALSE))-Filtered!$AF$38)/Filtered!$AG$38),"")),"") ->  | V27: =IFERROR(IF((OR($D27="RP",$D27="SP")),IF(Personalize!$E$37=TRUE,(((VLOOKUP($C27,Pitcher!$A$1:$Z$600,17,FALSE))-'Filtered-P'!$W$25)/'Filtered-P'!$X$25),""),IF(Personalize!$E$39=TRUE,(((VLOOKUP($C27,Hitter!$A$1:$X$600,5,FALSE))-Filtered!$AF$21)/Filtered!$AG$21),"")),"") ->  | W27: =IFERROR(IF((OR($D27="RP",$D27="SP")),IF(Personalize!$E$38=TRUE,(((VLOOKUP($C27,Pitcher!$A$1:$Z$600,18,FALSE))-'Filtered-P'!$W$26)/'Filtered-P'!$X$26),""),IF(Personalize!$E$40=TRUE,(((VLOOKUP($C27,Hitter!$A$1:$X$600,13,FALSE))-Filtered!$AF$29)/Filtered!$AG$29),"")),"") ->  | X27: =IFERROR(IF((OR($D27="RP",$D27="SP")),IF(Personalize!$E$45=TRUE,(((VLOOKUP($C27,Pitcher!$A$1:$Z$600,4,FALSE))-'Filtered-P'!$W$10)/'Filtered-P'!$X$10),""),IF(Personalize!$E$41=TRUE,(((VLOOKUP($C27,Hitter!$A$1:$AD$600,19,FALSE))-Filtered!$AF$43)/Filtered!$AG$43),"")),"") ->  | Y27: =IFERROR(IF((OR($D27="RP",$D27="SP")),IF(Personalize!$E$46=TRUE,(((VLOOKUP($C27,Pitcher!$A$1:$Z$600,19,FALSE))-'Filtered-P'!$W$27)/'Filtered-P'!$X$27),""),IF(Personalize!$E$44=TRUE,(((VLOOKUP($C27,Hitter!$A$1:$AD$600,20,FALSE))-Filtered!$AF$44)/Filtered!$AG$44),"")),"") ->  | Z27: =IFERROR(IF((OR($D27="RP",$D27="SP")),IF(Personalize!$E$47=TRUE,(((VLOOKUP($C27,Pitcher!$A$1:$Z$600,6,FALSE))-'Filtered-P'!$W$12)/'Filtered-P'!$X$12),""),IF(Personalize!$E$42=TRUE,(((VLOOKUP($C27,Hitter!$A$1:$AD$600,7,FALSE))-Filtered!$AF$23)/Filtered!$AG$23),"")),"") ->  | AA27: =IFERROR(IF((OR($D27="RP",$D27="SP")),IF(Personalize!$E$48=TRUE,(((VLOOKUP($C27,Pitcher!$A$1:$Z$600,5,FALSE))-'Filtered-P'!$W$11)/'Filtered-P'!$X$11),""),IF(Personalize!$E$43=TRUE,(((VLOOKUP($C27,Hitter!$A$1:$AD$600,8,FALSE))-Filtered!$AF$24)/Filtered!$AG$24),"")),"") ->  | AB27: =IFERROR(IF((OR($D27="RP",$D27="SP")),VLOOKUP($C27,Pitcher!$A$1:$P$600,2,FALSE),""),"") -> 12.90040682 | AC27: =IFERROR(IF((OR($D27="RP",$D27="SP")),VLOOKUP($C27,Pitcher!$A$1:$P$600,9,FALSE),""),"") -> 0 | AD27: =IFERROR(IF((OR($D27="RP",$D27="SP")),VLOOKUP($C27,Pitcher!$A$1:$P$600,7,FALSE),""),"") -> 180.9946829 | AE27: =IFERROR(IF((OR($D27="RP",$D27="SP")),VLOOKUP($C27,Pitcher!$A$1:$P$600,10,FALSE),""),"") -> 3.332980369 | AF27: =IFERROR(IF((OR($D27="RP",$D27="SP")),VLOOKUP($C27,Pitcher!$A$1:$P$600,11,FALSE),""),"") -> 1.134115553 | AG27: =IFERROR(IF((OR($D27="RP",$D27="SP")),"",VLOOKUP($C27,Hitter!$A$1:$X$600,15,FALSE)),"") ->  | AH27: =IFERROR(IF((OR($D27="RP",$D27="SP")),"",VLOOKUP($C27,Hitter!$A$1:$X$600,9,FALSE)),"") ->  | AI27: =IFERROR(IF((OR($D27="RP",$D27="SP")),"",VLOOKUP($C27,Hitter!$A$1:$X$600,10,FALSE)),"") ->  | AJ27: =IFERROR(IF((OR($D27="RP",$D27="SP")),"",VLOOKUP($C27,Hitter!$A$1:$X$600,4,FALSE)),"") ->  | AK27: =IFERROR(IF((OR($D27="RP",$D27="SP")),"",VLOOKUP($C27,Hitter!$A$1:$X$600,11,FALSE)),"") ->  | AL27: 0 | AM27: 1 | AN27: 0 | AO27: 13 | AP27: =VLOOKUP(C27,'Starter Calc'!$B$2:$BO$600,66,FALSE) -> Bench | AQ27: =VLOOKUP(C27,'Starter Calc'!$B$2:$AM$600,38,FALSE) -> Yes | AR27: =IFERROR(IF(ISTEXT($A27),"",IF((OR($D27="RP",$D27="SP")),ABS(VLOOKUP(D27,'Filtered-P'!$V$3:$Z$4,5,FALSE))+L27,ABS(VLOOKUP(D27,Filtered!$AE$3:$AI$14,5,FALSE))+L27)),"") -> 7.184884338 | AS27: 9.121957595 | AT27: N
C28: Brandon Phillips | D28: =IFERROR(IF(VLOOKUP(C28,'ADP-Rank'!$A$2:$B$600,2,FALSE)="OF",VLOOKUP(C28,'Starter Calc'!$B$2:$AN$600,39,FALSE),(VLOOKUP(C28,'ADP-Rank'!$A$2:$B$600,2,FALSE))),"") -> 2B | E28: =IFERROR(IF(VLOOKUP(C28,'Starter Calc'!$B$2:$E$600,4,FALSE)="","",VLOOKUP(C28,'Starter Calc'!$B$2:$E$600,4,FALSE)),"") ->  | F28: =IFERROR(VLOOKUP($C28,'ADP-Rank'!$A$2:$D$600,3,FALSE),"") -> CIN | G28: =IFERROR(VLOOKUP($C28,'ADP-Rank'!$A$2:$W$600,23,FALSE),"") -> 31 | H28: =IFERROR(IF(ISBLANK($B28),ROUND(((AS28/$AS$1)*(Personalize!$A$3-$AQ$1))+1,0),""),"") -> 23 | I28: =IFERROR(CHOOSE(Personalize!$E$32,VLOOKUP($C28,'ADP-Rank'!$A$2:$U$600,13,FALSE),VLOOKUP($C28,'ADP-Rank'!$A$2:$U$600,14,FALSE),VLOOKUP($C28,'ADP-Rank'!$A$2:$U$600,15,FALSE),VLOOKUP($C28,'ADP-Rank'!$A$2:$U$600,16,FALSE),VLOOKUP($C28,'ADP-Rank'!$A$2:$U$600,17,FALSE),VLOOKUP($C28,'ADP-Rank'!$A$2:$U$600,18,FALSE),VLOOKUP($C28,'ADP-Rank'!$A$2:$U$600,19,FALSE),VLOOKUP($C28,'ADP-Rank'!$A$2:$U$600,20,FALSE)),"") -> 54.28571429 | J28: =IF(ISBLANK($B28),IFERROR(CHOOSE(Personalize!$E$31,(VLOOKUP(C28,'ADP-Rank'!$A$2:$E$600,5,FALSE)*(Personalize!$A$3-$AQ$1)+1),(VLOOKUP(C28,'ADP-Rank'!$A$2:$E$600,4,FALSE)*(Personalize!$A$3-$AQ$1)+1),(VLOOKUP(C28,'ADP-Rank'!$A$2:$G$600,6,FALSE)*(Personalize!$A$3-$AQ$1)+1),(VLOOKUP(C28,'ADP-Rank'!$A$2:$Z$600,7,FALSE)*(Personalize!$A$3-$AQ$1)+1),(VLOOKUP(C28,'ADP-Rank'!$A$2:$Z$600,8,FALSE)*(Personalize!$A$3-$AQ$1)+1),(VLOOKUP(C28,'ADP-Rank'!$A$2:$Z$600,9,FALSE)*(Personalize!$A$3-$AQ$1)+1),(VLOOKUP(C28,'ADP-Rank'!$A$2:$Z$600,10,FALSE)*(Personalize!$A$3-$AQ$1)+1)),""),"") -> 17.71928542 | K28: 35 | L28: 3.00310345 | M28: =IFERROR(IF((OR($D28="RP",$D28="SP")),VLOOKUP($D28,'Filtered-P'!$V$3:$Y$4,4,FALSE), VLOOKUP($D28,Filtered!$AE$3:$AH$14,4,FALSE)),"") -> -0.2209507435 | N28: =IFERROR(IF((OR($D28="RP",$D28="SP")),IF(Personalize!$E$10=TRUE,(((VLOOKUP($C28,Pitcher!$A$1:$P$600,2,FALSE))-'Filtered-P'!$W$8)/'Filtered-P'!$X$8),""),IF(Personalize!$E$4=TRUE,(((VLOOKUP($C28,Hitter!$A$1:$AD$600,21,FALSE))-Filtered!$AF$35)/Filtered!$AG$35),"")),"") -> 0.506732805 | O28: =IFERROR(IF((OR($D28="RP",$D28="SP")),IF(Personalize!$E$12=TRUE,(((VLOOKUP($C28,Pitcher!$A$1:$P$600,9,FALSE))-'Filtered-P'!$W$15)/'Filtered-P'!$X$15),""),IF(Personalize!$E$3=TRUE,(((VLOOKUP($C28,Hitter!$A$1:$AB$600,9,FALSE))-Filtered!$AF$25)/Filtered!$AG$25),"")),"") -> 0.1089874827 | P28: =IFERROR(IF((OR($D28="RP",$D28="SP")),IF(Personalize!$E$11=TRUE,(((VLOOKUP($C28,Pitcher!$A$1:$P$600,7,FALSE))-'Filtered-P'!$W$13)/'Filtered-P'!$X$13),""),IF(Personalize!$E$2=TRUE,(((VLOOKUP($C28,Hitter!$A$1:$AB$600,4,FALSE))-Filtered!$AF$20)/Filtered!$AG$20),"")),"") -> 1.388126256 | Q28: =IFERROR(IF((OR($D28="RP",$D28="SP")),IF(Personalize!$E$13=TRUE,(((VLOOKUP($C28,Pitcher!$A$1:$P$600,13,FALSE))-'Filtered-P'!$W$19)/'Filtered-P'!$X$19),""),IF(Personalize!$E$5=TRUE,(((VLOOKUP($C28,Hitter!$A$1:$AB$600,10,FALSE))-Filtered!$AF$26)/Filtered!$AG$26),"")),"") -> 0.4954176495 | R28: =IFERROR(IF((OR($D28="RP",$D28="SP")),IF(Personalize!$E$14=TRUE,(((VLOOKUP($C28,Pitcher!$A$1:$P$600,14,FALSE))-'Filtered-P'!$W$20)/'Filtered-P'!$X$20),""),IF(Personalize!$E$6=TRUE,(((VLOOKUP($C28,Hitter!$A$1:$AB$600,11,FALSE))-Filtered!$AF$27)/Filtered!$AG$27),"")),"") -> 0.5038392572 | S28: =IFERROR(IF((OR($D28="RP",$D28="SP")),IF(Personalize!$E$16=TRUE,(((VLOOKUP($C28,Pitcher!$A$1:$P$600,3,FALSE))-'Filtered-P'!$W$9)/'Filtered-P'!$X$9),""),IF(Personalize!$E$7=TRUE,(((VLOOKUP($C28,Hitter!$A$1:$AD$600,23,FALSE))-Filtered!$AF$37)/Filtered!$AG$37),"")),"") ->  | T28: =IFERROR(IF((OR($D28="RP",$D28="SP")),IF(Personalize!$E$15=TRUE,(((VLOOKUP($C28,Pitcher!$A$1:$P$600,15,FALSE))-'Filtered-P'!$W$21)/'Filtered-P'!$X$21),""),IF(Personalize!$E$8=TRUE,(((VLOOKUP($C28,Hitter!$A$1:$AD$600,22,FALSE))-Filtered!$AF$36)/Filtered!$AG$36),"")),"") ->  | U28: =IFERROR(IF((OR($D28="RP",$D28="SP")),IF(Personalize!$E$17=TRUE,(((VLOOKUP($C28,Pitcher!$A$1:$P$600,16,FALSE))-'Filtered-P'!$W$22)/'Filtered-P'!$X$22),""),IF(Personalize!$E$9=TRUE,(((VLOOKUP($C28,Hitter!$A$1:$AD$600,24,FALSE))-Filtered!$AF$38)/Filtered!$AG$38),"")),"") ->  | V28: =IFERROR(IF((OR($D28="RP",$D28="SP")),IF(Personalize!$E$37=TRUE,(((VLOOKUP($C28,Pitcher!$A$1:$Z$600,17,FALSE))-'Filtered-P'!$W$25)/'Filtered-P'!$X$25),""),IF(Personalize!$E$39=TRUE,(((VLOOKUP($C28,Hitter!$A$1:$X$600,5,FALSE))-Filtered!$AF$21)/Filtered!$AG$21),"")),"") ->  | W28: =IFERROR(IF((OR($D28="RP",$D28="SP")),IF(Personalize!$E$38=TRUE,(((VLOOKUP($C28,Pitcher!$A$1:$Z$600,18,FALSE))-'Filtered-P'!$W$26)/'Filtered-P'!$X$26),""),IF(Personalize!$E$40=TRUE,(((VLOOKUP($C28,Hitter!$A$1:$X$600,13,FALSE))-Filtered!$AF$29)/Filtered!$AG$29),"")),"") ->  | X28: =IFERROR(IF((OR($D28="RP",$D28="SP")),IF(Personalize!$E$45=TRUE,(((VLOOKUP($C28,Pitcher!$A$1:$Z$600,4,FALSE))-'Filtered-P'!$W$10)/'Filtered-P'!$X$10),""),IF(Personalize!$E$41=TRUE,(((VLOOKUP($C28,Hitter!$A$1:$AD$600,19,FALSE))-Filtered!$AF$43)/Filtered!$AG$43),"")),"") ->  | Y28: =IFERROR(IF((OR($D28="RP",$D28="SP")),IF(Personalize!$E$46=TRUE,(((VLOOKUP($C28,Pitcher!$A$1:$Z$600,19,FALSE))-'Filtered-P'!$W$27)/'Filtered-P'!$X$27),""),IF(Personalize!$E$44=TRUE,(((VLOOKUP($C28,Hitter!$A$1:$AD$600,20,FALSE))-Filtered!$AF$44)/Filtered!$AG$44),"")),"") ->  | Z28: =IFERROR(IF((OR($D28="RP",$D28="SP")),IF(Personalize!$E$47=TRUE,(((VLOOKUP($C28,Pitcher!$A$1:$Z$600,6,FALSE))-'Filtered-P'!$W$12)/'Filtered-P'!$X$12),""),IF(Personalize!$E$42=TRUE,(((VLOOKUP($C28,Hitter!$A$1:$AD$600,7,FALSE))-Filtered!$AF$23)/Filtered!$AG$23),"")),"") ->  | AA28: =IFERROR(IF((OR($D28="RP",$D28="SP")),IF(Personalize!$E$48=TRUE,(((VLOOKUP($C28,Pitcher!$A$1:$Z$600,5,FALSE))-'Filtered-P'!$W$11)/'Filtered-P'!$X$11),""),IF(Personalize!$E$43=TRUE,(((VLOOKUP($C28,Hitter!$A$1:$AD$600,8,FALSE))-Filtered!$AF$24)/Filtered!$AG$24),"")),"") ->  | AB28: =IFERROR(IF((OR($D28="RP",$D28="SP")),VLOOKUP($C28,Pitcher!$A$1:$P$600,2,FALSE),""),"") ->  | AC28: =IFERROR(IF((OR($D28="RP",$D28="SP")),VLOOKUP($C28,Pitcher!$A$1:$P$600,9,FALSE),""),"") ->  | AD28: =IFERROR(IF((OR($D28="RP",$D28="SP")),VLOOKUP($C28,Pitcher!$A$1:$P$600,7,FALSE),""),"") ->  | AE28: =IFERROR(IF((OR($D28="RP",$D28="SP")),VLOOKUP($C28,Pitcher!$A$1:$P$600,10,FALSE),""),"") ->  | AF28: =IFERROR(IF((OR($D28="RP",$D28="SP")),VLOOKUP($C28,Pitcher!$A$1:$P$600,11,FALSE),""),"") ->  | AG28: =IFERROR(IF((OR($D28="RP",$D28="SP")),"",VLOOKUP($C28,Hitter!$A$1:$X$600,15,FALSE)),"") -> 0.2774886227 | AH28: =IFERROR(IF((OR($D28="RP",$D28="SP")),"",VLOOKUP($C28,Hitter!$A$1:$X$600,9,FALSE)),"") -> 18.2028643 | AI28: =IFERROR(IF((OR($D28="RP",$D28="SP")),"",VLOOKUP($C28,Hitter!$A$1:$X$600,10,FALSE)),"") -> 75.89362606 | AJ28: =IFERROR(IF((OR($D28="RP",$D28="SP")),"",VLOOKUP($C28,Hitter!$A$1:$X$600,4,FALSE)),"") -> 87.25385607 | AK28: =IFERROR(IF((OR($D28="RP",$D28="SP")),"",VLOOKUP($C28,Hitter!$A$1:$X$600,11,FALSE)),"") -> 15.9824178 | AL28: 0 | AM28: 1 | AN28: 0 | AO28: 3 | AP28: =VLOOKUP(C28,'Starter Calc'!$B$2:$BO$600,66,FALSE) -> Bench | AQ28: =VLOOKUP(C28,'Starter Calc'!$B$2:$AM$600,38,FALSE) -> Yes | AR28: =IFERROR(IF(ISTEXT($A28),"",IF((OR($D28="RP",$D28="SP")),ABS(VLOOKUP(D28,'Filtered-P'!$V$3:$Z$4,5,FALSE))+L28,ABS(VLOOKUP(D28,Filtered!$AE$3:$AI$14,5,FALSE))+L28)),"") -> 7.153566931 | AS28: 9.090640188 | AT28: N
C29: Zack Greinke | D29: =IFERROR(IF(VLOOKUP(C29,'ADP-Rank'!$A$2:$B$600,2,FALSE)="OF",VLOOKUP(C29,'Starter Calc'!$B$2:$AN$600,39,FALSE),(VLOOKUP(C29,'ADP-Rank'!$A$2:$B$600,2,FALSE))),"") -> SP | E29: =IFERROR(IF(VLOOKUP(C29,'Starter Calc'!$B$2:$E$600,4,FALSE)="","",VLOOKUP(C29,'Starter Calc'!$B$2:$E$600,4,FALSE)),"") ->  | F29: =IFERROR(VLOOKUP($C29,'ADP-Rank'!$A$2:$D$600,3,FALSE),"") -> MIL | G29: =IFERROR(VLOOKUP($C29,'ADP-Rank'!$A$2:$W$600,23,FALSE),"") -> 29 | H29: =IFERROR(IF(ISBLANK($B29),ROUND(((AS29/$AS$1)*(Personalize!$A$3-$AQ$1))+1,0),""),"") -> 22 | I29: =IFERROR(CHOOSE(Personalize!$E$32,VLOOKUP($C29,'ADP-Rank'!$A$2:$U$600,13,FALSE),VLOOKUP($C29,'ADP-Rank'!$A$2:$U$600,14,FALSE),VLOOKUP($C29,'ADP-Rank'!$A$2:$U$600,15,FALSE),VLOOKUP($C29,'ADP-Rank'!$A$2:$U$600,16,FALSE),VLOOKUP($C29,'ADP-Rank'!$A$2:$U$600,17,FALSE),VLOOKUP($C29,'ADP-Rank'!$A$2:$U$600,18,FALSE),VLOOKUP($C29,'ADP-Rank'!$A$2:$U$600,19,FALSE),VLOOKUP($C29,'ADP-Rank'!$A$2:$U$600,20,FALSE)),"") -> 44.57142857 | J29: =IF(ISBLANK($B29),IFERROR(CHOOSE(Personalize!$E$31,(VLOOKUP(C29,'ADP-Rank'!$A$2:$E$600,5,FALSE)*(Personalize!$A$3-$AQ$1)+1),(VLOOKUP(C29,'ADP-Rank'!$A$2:$E$600,4,FALSE)*(Personalize!$A$3-$AQ$1)+1),(VLOOKUP(C29,'ADP-Rank'!$A$2:$G$600,6,FALSE)*(Personalize!$A$3-$AQ$1)+1),(VLOOKUP(C29,'ADP-Rank'!$A$2:$Z$600,7,FALSE)*(Personalize!$A$3-$AQ$1)+1),(VLOOKUP(C29,'ADP-Rank'!$A$2:$Z$600,8,FALSE)*(Personalize!$A$3-$AQ$1)+1),(VLOOKUP(C29,'ADP-Rank'!$A$2:$Z$600,9,FALSE)*(Personalize!$A$3-$AQ$1)+1),(VLOOKUP(C29,'ADP-Rank'!$A$2:$Z$600,10,FALSE)*(Personalize!$A$3-$AQ$1)+1)),""),"") -> 22.48342709 | K29: 25 | L29: 4.3388383 | M29: =IFERROR(IF((OR($D29="RP",$D29="SP")),VLOOKUP($D29,'Filtered-P'!$V$3:$Y$4,4,FALSE), VLOOKUP($D29,Filtered!$AE$3:$AH$14,4,FALSE)),"") -> 0.655283346 | N29: =IFERROR(IF((OR($D29="RP",$D29="SP")),IF(Personalize!$E$10=TRUE,(((VLOOKUP($C29,Pitcher!$A$1:$P$600,2,FALSE))-'Filtered-P'!$W$8)/'Filtered-P'!$X$8),""),IF(Personalize!$E$4=TRUE,(((VLOOKUP($C29,Hitter!$A$1:$AD$600,21,FALSE))-Filtered!$AF$35)/Filtered!$AG$35),"")),"") -> 0.9669133063 | O29: =IFERROR(IF((OR($D29="RP",$D29="SP")),IF(Personalize!$E$12=TRUE,(((VLOOKUP($C29,Pitcher!$A$1:$P$600,9,FALSE))-'Filtered-P'!$W$15)/'Filtered-P'!$X$15),""),IF(Personalize!$E$3=TRUE,(((VLOOKUP($C29,Hitter!$A$1:$AB$600,9,FALSE))-Filtered!$AF$25)/Filtered!$AG$25),"")),"") -> -0.5372019451 | P29: =IFERROR(IF((OR($D29="RP",$D29="SP")),IF(Personalize!$E$11=TRUE,(((VLOOKUP($C29,Pitcher!$A$1:$P$600,7,FALSE))-'Filtered-P'!$W$13)/'Filtered-P'!$X$13),""),IF(Personalize!$E$2=TRUE,(((VLOOKUP($C29,Hitter!$A$1:$AB$600,4,FALSE))-Filtered!$AF$20)/Filtered!$AG$20),"")),"") -> 1.333229798 | Q29: =IFERROR(IF((OR($D29="RP",$D29="SP")),IF(Personalize!$E$13=TRUE,(((VLOOKUP($C29,Pitcher!$A$1:$P$600,13,FALSE))-'Filtered-P'!$W$19)/'Filtered-P'!$X$19),""),IF(Personalize!$E$5=TRUE,(((VLOOKUP($C29,Hitter!$A$1:$AB$600,10,FALSE))-Filtered!$AF$26)/Filtered!$AG$26),"")),"") -> 1.314537747 | R29: =IFERROR(IF((OR($D29="RP",$D29="SP")),IF(Personalize!$E$14=TRUE,(((VLOOKUP($C29,Pitcher!$A$1:$P$600,14,FALSE))-'Filtered-P'!$W$20)/'Filtered-P'!$X$20),""),IF(Personalize!$E$6=TRUE,(((VLOOKUP($C29,Hitter!$A$1:$AB$600,11,FALSE))-Filtered!$AF$27)/Filtered!$AG$27),"")),"") -> 1.261359394 | S29: =IFERROR(IF((OR($D29="RP",$D29="SP")),IF(Personalize!$E$16=TRUE,(((VLOOKUP($C29,Pitcher!$A$1:$P$600,3,FALSE))-'Filtered-P'!$W$9)/'Filtered-P'!$X$9),""),IF(Personalize!$E$7=TRUE,(((VLOOKUP($C29,Hitter!$A$1:$AD$600,23,FALSE))-Filtered!$AF$37)/Filtered!$AG$37),"")),"") ->  | T29: =IFERROR(IF((OR($D29="RP",$D29="SP")),IF(Personalize!$E$15=TRUE,(((VLOOKUP($C29,Pitcher!$A$1:$P$600,15,FALSE))-'Filtered-P'!$W$21)/'Filtered-P'!$X$21),""),IF(Personalize!$E$8=TRUE,(((VLOOKUP($C29,Hitter!$A$1:$AD$600,22,FALSE))-Filtered!$AF$36)/Filtered!$AG$36),"")),"") ->  | U29: =IFERROR(IF((OR($D29="RP",$D29="SP")),IF(Personalize!$E$17=TRUE,(((VLOOKUP($C29,Pitcher!$A$1:$P$600,16,FALSE))-'Filtered-P'!$W$22)/'Filtered-P'!$X$22),""),IF(Personalize!$E$9=TRUE,(((VLOOKUP($C29,Hitter!$A$1:$AD$600,24,FALSE))-Filtered!$AF$38)/Filtered!$AG$38),"")),"") ->  | V29: =IFERROR(IF((OR($D29="RP",$D29="SP")),IF(Personalize!$E$37=TRUE,(((VLOOKUP($C29,Pitcher!$A$1:$Z$600,17,FALSE))-'Filtered-P'!$W$25)/'Filtered-P'!$X$25),""),IF(Personalize!$E$39=TRUE,(((VLOOKUP($C29,Hitter!$A$1:$X$600,5,FALSE))-Filtered!$AF$21)/Filtered!$AG$21),"")),"") ->  | W29: =IFERROR(IF((OR($D29="RP",$D29="SP")),IF(Personalize!$E$38=TRUE,(((VLOOKUP($C29,Pitcher!$A$1:$Z$600,18,FALSE))-'Filtered-P'!$W$26)/'Filtered-P'!$X$26),""),IF(Personalize!$E$40=TRUE,(((VLOOKUP($C29,Hitter!$A$1:$X$600,13,FALSE))-Filtered!$AF$29)/Filtered!$AG$29),"")),"") ->  | X29: =IFERROR(IF((OR($D29="RP",$D29="SP")),IF(Personalize!$E$45=TRUE,(((VLOOKUP($C29,Pitcher!$A$1:$Z$600,4,FALSE))-'Filtered-P'!$W$10)/'Filtered-P'!$X$10),""),IF(Personalize!$E$41=TRUE,(((VLOOKUP($C29,Hitter!$A$1:$AD$600,19,FALSE))-Filtered!$AF$43)/Filtered!$AG$43),"")),"") ->  | Y29: =IFERROR(IF((OR($D29="RP",$D29="SP")),IF(Personalize!$E$46=TRUE,(((VLOOKUP($C29,Pitcher!$A$1:$Z$600,19,FALSE))-'Filtered-P'!$W$27)/'Filtered-P'!$X$27),""),IF(Personalize!$E$44=TRUE,(((VLOOKUP($C29,Hitter!$A$1:$AD$600,20,FALSE))-Filtered!$AF$44)/Filtered!$AG$44),"")),"") ->  | Z29: =IFERROR(IF((OR($D29="RP",$D29="SP")),IF(Personalize!$E$47=TRUE,(((VLOOKUP($C29,Pitcher!$A$1:$Z$600,6,FALSE))-'Filtered-P'!$W$12)/'Filtered-P'!$X$12),""),IF(Personalize!$E$42=TRUE,(((VLOOKUP($C29,Hitter!$A$1:$AD$600,7,FALSE))-Filtered!$AF$23)/Filtered!$AG$23),"")),"") ->  | AA29: =IFERROR(IF((OR($D29="RP",$D29="SP")),IF(Personalize!$E$48=TRUE,(((VLOOKUP($C29,Pitcher!$A$1:$Z$600,5,FALSE))-'Filtered-P'!$W$11)/'Filtered-P'!$X$11),""),IF(Personalize!$E$43=TRUE,(((VLOOKUP($C29,Hitter!$A$1:$AD$600,8,FALSE))-Filtered!$AF$24)/Filtered!$AG$24),"")),"") ->  | AB29: =IFERROR(IF((OR($D29="RP",$D29="SP")),VLOOKUP($C29,Pitcher!$A$1:$P$600,2,FALSE),""),"") -> 12.72945542 | AC29: =IFERROR(IF((OR($D29="RP",$D29="SP")),VLOOKUP($C29,Pitcher!$A$1:$P$600,9,FALSE),""),"") -> 0 | AD29: =IFERROR(IF((OR($D29="RP",$D29="SP")),VLOOKUP($C29,Pitcher!$A$1:$P$600,7,FALSE),""),"") -> 187.1469478 | AE29: =IFERROR(IF((OR($D29="RP",$D29="SP")),VLOOKUP($C29,Pitcher!$A$1:$P$600,10,FALSE),""),"") -> 3.222597904 | AF29: =IFERROR(IF((OR($D29="RP",$D29="SP")),VLOOKUP($C29,Pitcher!$A$1:$P$600,11,FALSE),""),"") -> 1.154250916 | AG29: =IFERROR(IF((OR($D29="RP",$D29="SP")),"",VLOOKUP($C29,Hitter!$A$1:$X$600,15,FALSE)),"") ->  | AH29: =IFERROR(IF((OR($D29="RP",$D29="SP")),"",VLOOKUP($C29,Hitter!$A$1:$X$600,9,FALSE)),"") ->  | AI29: =IFERROR(IF((OR($D29="RP",$D29="SP")),"",VLOOKUP($C29,Hitter!$A$1:$X$600,10,FALSE)),"") ->  | AJ29: =IFERROR(IF((OR($D29="RP",$D29="SP")),"",VLOOKUP($C29,Hitter!$A$1:$X$600,4,FALSE)),"") ->  | AK29: =IFERROR(IF((OR($D29="RP",$D29="SP")),"",VLOOKUP($C29,Hitter!$A$1:$X$600,11,FALSE)),"") ->  | AL29: 0 | AM29: 1 | AN29: 0 | AO29: 13 | AP29: =VLOOKUP(C29,'Starter Calc'!$B$2:$BO$600,66,FALSE) -> Bench | AQ29: =VLOOKUP(C29,'Starter Calc'!$B$2:$AM$600,38,FALSE) -> Yes | AR29: =IFERROR(IF(ISTEXT($A29),"",IF((OR($D29="RP",$D29="SP")),ABS(VLOOKUP(D29,'Filtered-P'!$V$3:$Z$4,5,FALSE))+L29,ABS(VLOOKUP(D29,Filtered!$AE$3:$AI$14,5,FALSE))+L29)),"") -> 6.957495658 | AS29: 8.894568915 | AT29: N
C30: Jose Bautista | D30: =IFERROR(IF(VLOOKUP(C30,'ADP-Rank'!$A$2:$B$600,2,FALSE)="OF",VLOOKUP(C30,'Starter Calc'!$B$2:$AN$600,39,FALSE),(VLOOKUP(C30,'ADP-Rank'!$A$2:$B$600,2,FALSE))),"") -> OF | E30: =IFERROR(IF(VLOOKUP(C30,'Starter Calc'!$B$2:$E$600,4,FALSE)="","",VLOOKUP(C30,'Starter Calc'!$B$2:$E$600,4,FALSE)),"") -> RF | F30: =IFERROR(VLOOKUP($C30,'ADP-Rank'!$A$2:$D$600,3,FALSE),"") -> TOR | G30: =IFERROR(VLOOKUP($C30,'ADP-Rank'!$A$2:$W$600,23,FALSE),"") -> 32 | H30: =IFERROR(IF(ISBLANK($B30),ROUND(((AS30/$AS$1)*(Personalize!$A$3-$AQ$1))+1,0),""),"") -> 22 | I30: =IFERROR(CHOOSE(Personalize!$E$32,VLOOKUP($C30,'ADP-Rank'!$A$2:$U$600,13,FALSE),VLOOKUP($C30,'ADP-Rank'!$A$2:$U$600,14,FALSE),VLOOKUP($C30,'ADP-Rank'!$A$2:$U$600,15,FALSE),VLOOKUP($C30,'ADP-Rank'!$A$2:$U$600,16,FALSE),VLOOKUP($C30,'ADP-Rank'!$A$2:$U$600,17,FALSE),VLOOKUP($C30,'ADP-Rank'!$A$2:$U$600,18,FALSE),VLOOKUP($C30,'ADP-Rank'!$A$2:$U$600,19,FALSE),VLOOKUP($C30,'ADP-Rank'!$A$2:$U$600,20,FALSE)),"") -> 5.857142857 | J30: =IF(ISBLANK($B30),IFERROR(CHOOSE(Personalize!$E$31,(VLOOKUP(C30,'ADP-Rank'!$A$2:$E$600,5,FALSE)*(Personalize!$A$3-$AQ$1)+1),(VLOOKUP(C30,'ADP-Rank'!$A$2:$E$600,4,FALSE)*(Personalize!$A$3-$AQ$1)+1),(VLOOKUP(C30,'ADP-Rank'!$A$2:$G$600,6,FALSE)*(Personalize!$A$3-$AQ$1)+1),(VLOOKUP(C30,'ADP-Rank'!$A$2:$Z$600,7,FALSE)*(Personalize!$A$3-$AQ$1)+1),(VLOOKUP(C30,'ADP-Rank'!$A$2:$Z$600,8,FALSE)*(Personalize!$A$3-$AQ$1)+1),(VLOOKUP(C30,'ADP-Rank'!$A$2:$Z$600,9,FALSE)*(Personalize!$A$3-$AQ$1)+1),(VLOOKUP(C30,'ADP-Rank'!$A$2:$Z$600,10,FALSE)*(Personalize!$A$3-$AQ$1)+1)),""),"") -> 40.41693324 | K30: 20 | L30: 5.127946819 | M30: =IFERROR(IF((OR($D30="RP",$D30="SP")),VLOOKUP($D30,'Filtered-P'!$V$3:$Y$4,4,FALSE), VLOOKUP($D30,Filtered!$AE$3:$AH$14,4,FALSE)),"") -> 0.337703352 | N30: =IFERROR(IF((OR($D30="RP",$D30="SP")),IF(Personalize!$E$10=TRUE,(((VLOOKUP($C30,Pitcher!$A$1:$P$600,2,FALSE))-'Filtered-P'!$W$8)/'Filtered-P'!$X$8),""),IF(Personalize!$E$4=TRUE,(((VLOOKUP($C30,Hitter!$A$1:$AD$600,21,FALSE))-Filtered!$AF$35)/Filtered!$AG$35),"")),"") -> -0.1128468834 | O30: =IFERROR(IF((OR($D30="RP",$D30="SP")),IF(Personalize!$E$12=TRUE,(((VLOOKUP($C30,Pitcher!$A$1:$P$600,9,FALSE))-'Filtered-P'!$W$15)/'Filtered-P'!$X$15),""),IF(Personalize!$E$3=TRUE,(((VLOOKUP($C30,Hitter!$A$1:$AB$600,9,FALSE))-Filtered!$AF$25)/Filtered!$AG$25),"")),"") -> 2.452506857 | P30: =IFERROR(IF((OR($D30="RP",$D30="SP")),IF(Personalize!$E$11=TRUE,(((VLOOKUP($C30,Pitcher!$A$1:$P$600,7,FALSE))-'Filtered-P'!$W$13)/'Filtered-P'!$X$13),""),IF(Personalize!$E$2=TRUE,(((VLOOKUP($C30,Hitter!$A$1:$AB$600,4,FALSE))-Filtered!$AF$20)/Filtered!$AG$20),"")),"") -> 1.713909659 | Q30: =IFERROR(IF((OR($D30="RP",$D30="SP")),IF(Personalize!$E$13=TRUE,(((VLOOKUP($C30,Pitcher!$A$1:$P$600,13,FALSE))-'Filtered-P'!$W$19)/'Filtered-P'!$X$19),""),IF(Personalize!$E$5=TRUE,(((VLOOKUP($C30,Hitter!$A$1:$AB$600,10,FALSE))-Filtered!$AF$26)/Filtered!$AG$26),"")),"") -> 1.490781459 | R30: =IFERROR(IF((OR($D30="RP",$D30="SP")),IF(Personalize!$E$14=TRUE,(((VLOOKUP($C30,Pitcher!$A$1:$P$600,14,FALSE))-'Filtered-P'!$W$20)/'Filtered-P'!$X$20),""),IF(Personalize!$E$6=TRUE,(((VLOOKUP($C30,Hitter!$A$1:$AB$600,11,FALSE))-Filtered!$AF$27)/Filtered!$AG$27),"")),"") -> -0.4164042716 | S30: =IFERROR(IF((OR($D30="RP",$D30="SP")),IF(Personalize!$E$16=TRUE,(((VLOOKUP($C30,Pitcher!$A$1:$P$600,3,FALSE))-'Filtered-P'!$W$9)/'Filtered-P'!$X$9),""),IF(Personalize!$E$7=TRUE,(((VLOOKUP($C30,Hitter!$A$1:$AD$600,23,FALSE))-Filtered!$AF$37)/Filtered!$AG$37),"")),"") ->  | T30: =IFERROR(IF((OR($D30="RP",$D30="SP")),IF(Personalize!$E$15=TRUE,(((VLOOKUP($C30,Pitcher!$A$1:$P$600,15,FALSE))-'Filtered-P'!$W$21)/'Filtered-P'!$X$21),""),IF(Personalize!$E$8=TRUE,(((VLOOKUP($C30,Hitter!$A$1:$AD$600,22,FALSE))-Filtered!$AF$36)/Filtered!$AG$36),"")),"") ->  | U30: =IFERROR(IF((OR($D30="RP",$D30="SP")),IF(Personalize!$E$17=TRUE,(((VLOOKUP($C30,Pitcher!$A$1:$P$600,16,FALSE))-'Filtered-P'!$W$22)/'Filtered-P'!$X$22),""),IF(Personalize!$E$9=TRUE,(((VLOOKUP($C30,Hitter!$A$1:$AD$600,24,FALSE))-Filtered!$AF$38)/Filtered!$AG$38),"")),"") ->  | V30: =IFERROR(IF((OR($D30="RP",$D30="SP")),IF(Personalize!$E$37=TRUE,(((VLOOKUP($C30,Pitcher!$A$1:$Z$600,17,FALSE))-'Filtered-P'!$W$25)/'Filtered-P'!$X$25),""),IF(Personalize!$E$39=TRUE,(((VLOOKUP($C30,Hitter!$A$1:$X$600,5,FALSE))-Filtered!$AF$21)/Filtered!$AG$21),"")),"") ->  | W30: =IFERROR(IF((OR($D30="RP",$D30="SP")),IF(Personalize!$E$38=TRUE,(((VLOOKUP($C30,Pitcher!$A$1:$Z$600,18,FALSE))-'Filtered-P'!$W$26)/'Filtered-P'!$X$26),""),IF(Personalize!$E$40=TRUE,(((VLOOKUP($C30,Hitter!$A$1:$X$600,13,FALSE))-Filtered!$AF$29)/Filtered!$AG$29),"")),"") ->  | X30: =IFERROR(IF((OR($D30="RP",$D30="SP")),IF(Personalize!$E$45=TRUE,(((VLOOKUP($C30,Pitcher!$A$1:$Z$600,4,FALSE))-'Filtered-P'!$W$10)/'Filtered-P'!$X$10),""),IF(Personalize!$E$41=TRUE,(((VLOOKUP($C30,Hitter!$A$1:$AD$600,19,FALSE))-Filtered!$AF$43)/Filtered!$AG$43),"")),"") ->  | Y30: =IFERROR(IF((OR($D30="RP",$D30="SP")),IF(Personalize!$E$46=TRUE,(((VLOOKUP($C30,Pitcher!$A$1:$Z$600,19,FALSE))-'Filtered-P'!$W$27)/'Filtered-P'!$X$27),""),IF(Personalize!$E$44=TRUE,(((VLOOKUP($C30,Hitter!$A$1:$AD$600,20,FALSE))-Filtered!$AF$44)/Filtered!$AG$44),"")),"") ->  | Z30: =IFERROR(IF((OR($D30="RP",$D30="SP")),IF(Personalize!$E$47=TRUE,(((VLOOKUP($C30,Pitcher!$A$1:$Z$600,6,FALSE))-'Filtered-P'!$W$12)/'Filtered-P'!$X$12),""),IF(Personalize!$E$42=TRUE,(((VLOOKUP($C30,Hitter!$A$1:$AD$600,7,FALSE))-Filtered!$AF$23)/Filtered!$AG$23),"")),"") ->  | AA30: =IFERROR(IF((OR($D30="RP",$D30="SP")),IF(Personalize!$E$48=TRUE,(((VLOOKUP($C30,Pitcher!$A$1:$Z$600,5,FALSE))-'Filtered-P'!$W$11)/'Filtered-P'!$X$11),""),IF(Personalize!$E$43=TRUE,(((VLOOKUP($C30,Hitter!$A$1:$AD$600,8,FALSE))-Filtered!$AF$24)/Filtered!$AG$24),"")),"") ->  | AB30: =IFERROR(IF((OR($D30="RP",$D30="SP")),VLOOKUP($C30,Pitcher!$A$1:$P$600,2,FALSE),""),"") ->  | AC30: =IFERROR(IF((OR($D30="RP",$D30="SP")),VLOOKUP($C30,Pitcher!$A$1:$P$600,9,FALSE),""),"") ->  | AD30: =IFERROR(IF((OR($D30="RP",$D30="SP")),VLOOKUP($C30,Pitcher!$A$1:$P$600,7,FALSE),""),"") ->  | AE30: =IFERROR(IF((OR($D30="RP",$D30="SP")),VLOOKUP($C30,Pitcher!$A$1:$P$600,10,FALSE),""),"") ->  | AF30: =IFERROR(IF((OR($D30="RP",$D30="SP")),VLOOKUP($C30,Pitcher!$A$1:$P$600,11,FALSE),""),"") ->  | AG30: =IFERROR(IF((OR($D30="RP",$D30="SP")),"",VLOOKUP($C30,Hitter!$A$1:$X$600,15,FALSE)),"") -> 0.2680421986 | AH30: =IFERROR(IF((OR($D30="RP",$D30="SP")),"",VLOOKUP($C30,Hitter!$A$1:$X$600,9,FALSE)),"") -> 34.70379515 | AI30: =IFERROR(IF((OR($D30="RP",$D30="SP")),"",VLOOKUP($C30,Hitter!$A$1:$X$600,10,FALSE)),"") -> 91.47176511 | AJ30: =IFERROR(IF((OR($D30="RP",$D30="SP")),"",VLOOKUP($C30,Hitter!$A$1:$X$600,4,FALSE)),"") -> 91.00799825 | AK30: =IFERROR(IF((OR($D30="RP",$D30="SP")),"",VLOOKUP($C30,Hitter!$A$1:$X$600,11,FALSE)),"") -> 7.187178925 | AL30: 0 | AM30: 1 | AN30: 0 | AO30: 11 | AP30: =VLOOKUP(C30,'Starter Calc'!$B$2:$BO$600,66,FALSE) -> Bench | AQ30: =VLOOKUP(C30,'Starter Calc'!$B$2:$AM$600,38,FALSE) -> Yes | AR30: =IFERROR(IF(ISTEXT($A30),"",IF((OR($D30="RP",$D30="SP")),ABS(VLOOKUP(D30,'Filtered-P'!$V$3:$Z$4,5,FALSE))+L30,ABS(VLOOKUP(D30,Filtered!$AE$3:$AI$14,5,FALSE))+L30)),"") -> 6.839834644 | AS30: 8.776907901 | AT30: N
C31: Curtis Granderson | D31: =IFERROR(IF(VLOOKUP(C31,'ADP-Rank'!$A$2:$B$600,2,FALSE)="OF",VLOOKUP(C31,'Starter Calc'!$B$2:$AN$600,39,FALSE),(VLOOKUP(C31,'ADP-Rank'!$A$2:$B$600,2,FALSE))),"") -> OF | E31: =IFERROR(IF(VLOOKUP(C31,'Starter Calc'!$B$2:$E$600,4,FALSE)="","",VLOOKUP(C31,'Starter Calc'!$B$2:$E$600,4,FALSE)),"") -> CF | F31: =IFERROR(VLOOKUP($C31,'ADP-Rank'!$A$2:$D$600,3,FALSE),"") -> NYY | G31: =IFERROR(VLOOKUP($C31,'ADP-Rank'!$A$2:$W$600,23,FALSE),"") -> 31 | H31: =IFERROR(IF(ISBLANK($B31),ROUND(((AS31/$AS$1)*(Personalize!$A$3-$AQ$1))+1,0),""),"") -> 22 | I31: =IFERROR(CHOOSE(Personalize!$E$32,VLOOKUP($C31,'ADP-Rank'!$A$2:$U$600,13,FALSE),VLOOKUP($C31,'ADP-Rank'!$A$2:$U$600,14,FALSE),VLOOKUP($C31,'ADP-Rank'!$A$2:$U$600,15,FALSE),VLOOKUP($C31,'ADP-Rank'!$A$2:$U$600,16,FALSE),VLOOKUP($C31,'ADP-Rank'!$A$2:$U$600,17,FALSE),VLOOKUP($C31,'ADP-Rank'!$A$2:$U$600,18,FALSE),VLOOKUP($C31,'ADP-Rank'!$A$2:$U$600,19,FALSE),VLOOKUP($C31,'ADP-Rank'!$A$2:$U$600,20,FALSE)),"") -> 21.71428571 | J31: =IF(ISBLANK($B31),IFERROR(CHOOSE(Personalize!$E$31,(VLOOKUP(C31,'ADP-Rank'!$A$2:$E$600,5,FALSE)*(Personalize!$A$3-$AQ$1)+1),(VLOOKUP(C31,'ADP-Rank'!$A$2:$E$600,4,FALSE)*(Personalize!$A$3-$AQ$1)+1),(VLOOKUP(C31,'ADP-Rank'!$A$2:$G$600,6,FALSE)*(Personalize!$A$3-$AQ$1)+1),(VLOOKUP(C31,'ADP-Rank'!$A$2:$Z$600,7,FALSE)*(Personalize!$A$3-$AQ$1)+1),(VLOOKUP(C31,'ADP-Rank'!$A$2:$Z$600,8,FALSE)*(Personalize!$A$3-$AQ$1)+1),(VLOOKUP(C31,'ADP-Rank'!$A$2:$Z$600,9,FALSE)*(Personalize!$A$3-$AQ$1)+1),(VLOOKUP(C31,'ADP-Rank'!$A$2:$Z$600,10,FALSE)*(Personalize!$A$3-$AQ$1)+1)),""),"") -> 28.8570838 | K31: 19 | L31: 5.136931189 | M31: =IFERROR(IF((OR($D31="RP",$D31="SP")),VLOOKUP($D31,'Filtered-P'!$V$3:$Y$4,4,FALSE), VLOOKUP($D31,Filtered!$AE$3:$AH$14,4,FALSE)),"") -> 0.337703352 | N31: =IFERROR(IF((OR($D31="RP",$D31="SP")),IF(Personalize!$E$10=TRUE,(((VLOOKUP($C31,Pitcher!$A$1:$P$600,2,FALSE))-'Filtered-P'!$W$8)/'Filtered-P'!$X$8),""),IF(Personalize!$E$4=TRUE,(((VLOOKUP($C31,Hitter!$A$1:$AD$600,21,FALSE))-Filtered!$AF$35)/Filtered!$AG$35),"")),"") -> -0.8941463784 | O31: =IFERROR(IF((OR($D31="RP",$D31="SP")),IF(Personalize!$E$12=TRUE,(((VLOOKUP($C31,Pitcher!$A$1:$P$600,9,FALSE))-'Filtered-P'!$W$15)/'Filtered-P'!$X$15),""),IF(Personalize!$E$3=TRUE,(((VLOOKUP($C31,Hitter!$A$1:$AB$600,9,FALSE))-Filtered!$AF$25)/Filtered!$AG$25),"")),"") -> 1.745670398 | P31: =IFERROR(IF((OR($D31="RP",$D31="SP")),IF(Personalize!$E$11=TRUE,(((VLOOKUP($C31,Pitcher!$A$1:$P$600,7,FALSE))-'Filtered-P'!$W$13)/'Filtered-P'!$X$13),""),IF(Personalize!$E$2=TRUE,(((VLOOKUP($C31,Hitter!$A$1:$AB$600,4,FALSE))-Filtered!$AF$20)/Filtered!$AG$20),"")),"") -> 2.532712299 | Q31: =IFERROR(IF((OR($D31="RP",$D31="SP")),IF(Personalize!$E$13=TRUE,(((VLOOKUP($C31,Pitcher!$A$1:$P$600,13,FALSE))-'Filtered-P'!$W$19)/'Filtered-P'!$X$19),""),IF(Personalize!$E$5=TRUE,(((VLOOKUP($C31,Hitter!$A$1:$AB$600,10,FALSE))-Filtered!$AF$26)/Filtered!$AG$26),"")),"") -> 1.136777264 | R31: =IFERROR(IF((OR($D31="RP",$D31="SP")),IF(Personalize!$E$14=TRUE,(((VLOOKUP($C31,Pitcher!$A$1:$P$600,14,FALSE))-'Filtered-P'!$W$20)/'Filtered-P'!$X$20),""),IF(Personalize!$E$6=TRUE,(((VLOOKUP($C31,Hitter!$A$1:$AB$600,11,FALSE))-Filtered!$AF$27)/Filtered!$AG$27),"")),"") -> 0.6159176062 | S31: =IFERROR(IF((OR($D31="RP",$D31="SP")),IF(Personalize!$E$16=TRUE,(((VLOOKUP($C31,Pitcher!$A$1:$P$600,3,FALSE))-'Filtered-P'!$W$9)/'Filtered-P'!$X$9),""),IF(Personalize!$E$7=TRUE,(((VLOOKUP($C31,Hitter!$A$1:$AD$600,23,FALSE))-Filtered!$AF$37)/Filtered!$AG$37),"")),"") ->  | T31: =IFERROR(IF((OR($D31="RP",$D31="SP")),IF(Personalize!$E$15=TRUE,(((VLOOKUP($C31,Pitcher!$A$1:$P$600,15,FALSE))-'Filtered-P'!$W$21)/'Filtered-P'!$X$21),""),IF(Personalize!$E$8=TRUE,(((VLOOKUP($C31,Hitter!$A$1:$AD$600,22,FALSE))-Filtered!$AF$36)/Filtered!$AG$36),"")),"") ->  | U31: =IFERROR(IF((OR($D31="RP",$D31="SP")),IF(Personalize!$E$17=TRUE,(((VLOOKUP($C31,Pitcher!$A$1:$P$600,16,FALSE))-'Filtered-P'!$W$22)/'Filtered-P'!$X$22),""),IF(Personalize!$E$9=TRUE,(((VLOOKUP($C31,Hitter!$A$1:$AD$600,24,FALSE))-Filtered!$AF$38)/Filtered!$AG$38),"")),"") ->  | V31: =IFERROR(IF((OR($D31="RP",$D31="SP")),IF(Personalize!$E$37=TRUE,(((VLOOKUP($C31,Pitcher!$A$1:$Z$600,17,FALSE))-'Filtered-P'!$W$25)/'Filtered-P'!$X$25),""),IF(Personalize!$E$39=TRUE,(((VLOOKUP($C31,Hitter!$A$1:$X$600,5,FALSE))-Filtered!$AF$21)/Filtered!$AG$21),"")),"") ->  | W31: =IFERROR(IF((OR($D31="RP",$D31="SP")),IF(Personalize!$E$38=TRUE,(((VLOOKUP($C31,Pitcher!$A$1:$Z$600,18,FALSE))-'Filtered-P'!$W$26)/'Filtered-P'!$X$26),""),IF(Personalize!$E$40=TRUE,(((VLOOKUP($C31,Hitter!$A$1:$X$600,13,FALSE))-Filtered!$AF$29)/Filtered!$AG$29),"")),"") ->  | X31: =IFERROR(IF((OR($D31="RP",$D31="SP")),IF(Personalize!$E$45=TRUE,(((VLOOKUP($C31,Pitcher!$A$1:$Z$600,4,FALSE))-'Filtered-P'!$W$10)/'Filtered-P'!$X$10),""),IF(Personalize!$E$41=TRUE,(((VLOOKUP($C31,Hitter!$A$1:$AD$600,19,FALSE))-Filtered!$AF$43)/Filtered!$AG$43),"")),"") ->  | Y31: =IFERROR(IF((OR($D31="RP",$D31="SP")),IF(Personalize!$E$46=TRUE,(((VLOOKUP($C31,Pitcher!$A$1:$Z$600,19,FALSE))-'Filtered-P'!$W$27)/'Filtered-P'!$X$27),""),IF(Personalize!$E$44=TRUE,(((VLOOKUP($C31,Hitter!$A$1:$AD$600,20,FALSE))-Filtered!$AF$44)/Filtered!$AG$44),"")),"") ->  | Z31: =IFERROR(IF((OR($D31="RP",$D31="SP")),IF(Personalize!$E$47=TRUE,(((VLOOKUP($C31,Pitcher!$A$1:$Z$600,6,FALSE))-'Filtered-P'!$W$12)/'Filtered-P'!$X$12),""),IF(Personalize!$E$42=TRUE,(((VLOOKUP($C31,Hitter!$A$1:$AD$600,7,FALSE))-Filtered!$AF$23)/Filtered!$AG$23),"")),"") ->  | AA31: =IFERROR(IF((OR($D31="RP",$D31="SP")),IF(Personalize!$E$48=TRUE,(((VLOOKUP($C31,Pitcher!$A$1:$Z$600,5,FALSE))-'Filtered-P'!$W$11)/'Filtered-P'!$X$11),""),IF(Personalize!$E$43=TRUE,(((VLOOKUP($C31,Hitter!$A$1:$AD$600,8,FALSE))-Filtered!$AF$24)/Filtered!$AG$24),"")),"") ->  | AB31: =IFERROR(IF((OR($D31="RP",$D31="SP")),VLOOKUP($C31,Pitcher!$A$1:$P$600,2,FALSE),""),"") ->  | AC31: =IFERROR(IF((OR($D31="RP",$D31="SP")),VLOOKUP($C31,Pitcher!$A$1:$P$600,9,FALSE),""),"") ->  | AD31: =IFERROR(IF((OR($D31="RP",$D31="SP")),VLOOKUP($C31,Pitcher!$A$1:$P$600,7,FALSE),""),"") ->  | AE31: =IFERROR(IF((OR($D31="RP",$D31="SP")),VLOOKUP($C31,Pitcher!$A$1:$P$600,10,FALSE),""),"") ->  | AF31: =IFERROR(IF((OR($D31="RP",$D31="SP")),VLOOKUP($C31,Pitcher!$A$1:$P$600,11,FALSE),""),"") ->  | AG31: =IFERROR(IF((OR($D31="RP",$D31="SP")),"",VLOOKUP($C31,Hitter!$A$1:$X$600,15,FALSE)),"") -> 0.2557979418 | AH31: =IFERROR(IF((OR($D31="RP",$D31="SP")),"",VLOOKUP($C31,Hitter!$A$1:$X$600,9,FALSE)),"") -> 29.72689603 | AI31: =IFERROR(IF((OR($D31="RP",$D31="SP")),"",VLOOKUP($C31,Hitter!$A$1:$X$600,10,FALSE)),"") -> 85.93135213 | AJ31: =IFERROR(IF((OR($D31="RP",$D31="SP")),"",VLOOKUP($C31,Hitter!$A$1:$X$600,4,FALSE)),"") -> 100.443413 | AK31: =IFERROR(IF((OR($D31="RP",$D31="SP")),"",VLOOKUP($C31,Hitter!$A$1:$X$600,11,FALSE)),"") -> 17.053608 | AL31: 0 | AM31: 1 | AN31: 0 | AO31: 11 | AP31: =VLOOKUP(C31,'Starter Calc'!$B$2:$BO$600,66,FALSE) -> Bench | AQ31: =VLOOKUP(C31,'Starter Calc'!$B$2:$AM$600,38,FALSE) -> Yes | AR31: =IFERROR(IF(ISTEXT($A31),"",IF((OR($D31="RP",$D31="SP")),ABS(VLOOKUP(D31,'Filtered-P'!$V$3:$Z$4,5,FALSE))+L31,ABS(VLOOKUP(D31,Filtered!$AE$3:$AI$14,5,FALSE))+L31)),"") -> 6.848819014 | AS31: 8.785892271 | AT31: N
C32: Paul Konerko | D32: =IFERROR(IF(VLOOKUP(C32,'ADP-Rank'!$A$2:$B$600,2,FALSE)="OF",VLOOKUP(C32,'Starter Calc'!$B$2:$AN$600,39,FALSE),(VLOOKUP(C32,'ADP-Rank'!$A$2:$B$600,2,FALSE))),"") -> 1B | E32: =IFERROR(IF(VLOOKUP(C32,'Starter Calc'!$B$2:$E$600,4,FALSE)="","",VLOOKUP(C32,'Starter Calc'!$B$2:$E$600,4,FALSE)),"") ->  | F32: =IFERROR(VLOOKUP($C32,'ADP-Rank'!$A$2:$D$600,3,FALSE),"") -> CHW | G32: =IFERROR(VLOOKUP($C32,'ADP-Rank'!$A$2:$W$600,23,FALSE),"") -> 36 | H32: =IFERROR(IF(ISBLANK($B32),ROUND(((AS32/$AS$1)*(Personalize!$A$3-$AQ$1))+1,0),""),"") -> 22 | I32: =IFERROR(CHOOSE(Personalize!$E$32,VLOOKUP($C32,'ADP-Rank'!$A$2:$U$600,13,FALSE),VLOOKUP($C32,'ADP-Rank'!$A$2:$U$600,14,FALSE),VLOOKUP($C32,'ADP-Rank'!$A$2:$U$600,15,FALSE),VLOOKUP($C32,'ADP-Rank'!$A$2:$U$600,16,FALSE),VLOOKUP($C32,'ADP-Rank'!$A$2:$U$600,17,FALSE),VLOOKUP($C32,'ADP-Rank'!$A$2:$U$600,18,FALSE),VLOOKUP($C32,'ADP-Rank'!$A$2:$U$600,19,FALSE),VLOOKUP($C32,'ADP-Rank'!$A$2:$U$600,20,FALSE)),"") -> 47.57142857 | J32: =IF(ISBLANK($B32),IFERROR(CHOOSE(Personalize!$E$31,(VLOOKUP(C32,'ADP-Rank'!$A$2:$E$600,5,FALSE)*(Personalize!$A$3-$AQ$1)+1),(VLOOKUP(C32,'ADP-Rank'!$A$2:$E$600,4,FALSE)*(Personalize!$A$3-$AQ$1)+1),(VLOOKUP(C32,'ADP-Rank'!$A$2:$G$600,6,FALSE)*(Personalize!$A$3-$AQ$1)+1),(VLOOKUP(C32,'ADP-Rank'!$A$2:$Z$600,7,FALSE)*(Personalize!$A$3-$AQ$1)+1),(VLOOKUP(C32,'ADP-Rank'!$A$2:$Z$600,8,FALSE)*(Personalize!$A$3-$AQ$1)+1),(VLOOKUP(C32,'ADP-Rank'!$A$2:$Z$600,9,FALSE)*(Personalize!$A$3-$AQ$1)+1),(VLOOKUP(C32,'ADP-Rank'!$A$2:$Z$600,10,FALSE)*(Personalize!$A$3-$AQ$1)+1)),""),"") -> 19.66158715 | K32: 37 | L32: 2.806370094 | M32: =IFERROR(IF((OR($D32="RP",$D32="SP")),VLOOKUP($D32,'Filtered-P'!$V$3:$Y$4,4,FALSE), VLOOKUP($D32,Filtered!$AE$3:$AH$14,4,FALSE)),"") -> 1.344129608 | N32: =IFERROR(IF((OR($D32="RP",$D32="SP")),IF(Personalize!$E$10=TRUE,(((VLOOKUP($C32,Pitcher!$A$1:$P$600,2,FALSE))-'Filtered-P'!$W$8)/'Filtered-P'!$X$8),""),IF(Personalize!$E$4=TRUE,(((VLOOKUP($C32,Hitter!$A$1:$AD$600,21,FALSE))-Filtered!$AF$35)/Filtered!$AG$35),"")),"") -> 0.546452868 | O32: =IFERROR(IF((OR($D32="RP",$D32="SP")),IF(Personalize!$E$12=TRUE,(((VLOOKUP($C32,Pitcher!$A$1:$P$600,9,FALSE))-'Filtered-P'!$W$15)/'Filtered-P'!$X$15),""),IF(Personalize!$E$3=TRUE,(((VLOOKUP($C32,Hitter!$A$1:$AB$600,9,FALSE))-Filtered!$AF$25)/Filtered!$AG$25),"")),"") -> 1.502158185 | P32: =IFERROR(IF((OR($D32="RP",$D32="SP")),IF(Personalize!$E$11=TRUE,(((VLOOKUP($C32,Pitcher!$A$1:$P$600,7,FALSE))-'Filtered-P'!$W$13)/'Filtered-P'!$X$13),""),IF(Personalize!$E$2=TRUE,(((VLOOKUP($C32,Hitter!$A$1:$AB$600,4,FALSE))-Filtered!$AF$20)/Filtered!$AG$20),"")),"") -> 0.268216771 | Q32: =IFERROR(IF((OR($D32="RP",$D32="SP")),IF(Personalize!$E$13=TRUE,(((VLOOKUP($C32,Pitcher!$A$1:$P$600,13,FALSE))-'Filtered-P'!$W$19)/'Filtered-P'!$X$19),""),IF(Personalize!$E$5=TRUE,(((VLOOKUP($C32,Hitter!$A$1:$AB$600,10,FALSE))-Filtered!$AF$26)/Filtered!$AG$26),"")),"") -> 1.506377379 | R32: =IFERROR(IF((OR($D32="RP",$D32="SP")),IF(Personalize!$E$14=TRUE,(((VLOOKUP($C32,Pitcher!$A$1:$P$600,14,FALSE))-'Filtered-P'!$W$20)/'Filtered-P'!$X$20),""),IF(Personalize!$E$6=TRUE,(((VLOOKUP($C32,Hitter!$A$1:$AB$600,11,FALSE))-Filtered!$AF$27)/Filtered!$AG$27),"")),"") -> -1.016835109 | S32: =IFERROR(IF((OR($D32="RP",$D32="SP")),IF(Personalize!$E$16=TRUE,(((VLOOKUP($C32,Pitcher!$A$1:$P$600,3,FALSE))-'Filtered-P'!$W$9)/'Filtered-P'!$X$9),""),IF(Personalize!$E$7=TRUE,(((VLOOKUP($C32,Hitter!$A$1:$AD$600,23,FALSE))-Filtered!$AF$37)/Filtered!$AG$37),"")),"") ->  | T32: =IFERROR(IF((OR($D32="RP",$D32="SP")),IF(Personalize!$E$15=TRUE,(((VLOOKUP($C32,Pitcher!$A$1:$P$600,15,FALSE))-'Filtered-P'!$W$21)/'Filtered-P'!$X$21),""),IF(Personalize!$E$8=TRUE,(((VLOOKUP($C32,Hitter!$A$1:$AD$600,22,FALSE))-Filtered!$AF$36)/Filtered!$AG$36),"")),"") ->  | U32: =IFERROR(IF((OR($D32="RP",$D32="SP")),IF(Personalize!$E$17=TRUE,(((VLOOKUP($C32,Pitcher!$A$1:$P$600,16,FALSE))-'Filtered-P'!$W$22)/'Filtered-P'!$X$22),""),IF(Personalize!$E$9=TRUE,(((VLOOKUP($C32,Hitter!$A$1:$AD$600,24,FALSE))-Filtered!$AF$38)/Filtered!$AG$38),"")),"") ->  | V32: =IFERROR(IF((OR($D32="RP",$D32="SP")),IF(Personalize!$E$37=TRUE,(((VLOOKUP($C32,Pitcher!$A$1:$Z$600,17,FALSE))-'Filtered-P'!$W$25)/'Filtered-P'!$X$25),""),IF(Personalize!$E$39=TRUE,(((VLOOKUP($C32,Hitter!$A$1:$X$600,5,FALSE))-Filtered!$AF$21)/Filtered!$AG$21),"")),"") ->  | W32: =IFERROR(IF((OR($D32="RP",$D32="SP")),IF(Personalize!$E$38=TRUE,(((VLOOKUP($C32,Pitcher!$A$1:$Z$600,18,FALSE))-'Filtered-P'!$W$26)/'Filtered-P'!$X$26),""),IF(Personalize!$E$40=TRUE,(((VLOOKUP($C32,Hitter!$A$1:$X$600,13,FALSE))-Filtered!$AF$29)/Filtered!$AG$29),"")),"") ->  | X32: =IFERROR(IF((OR($D32="RP",$D32="SP")),IF(Personalize!$E$45=TRUE,(((VLOOKUP($C32,Pitcher!$A$1:$Z$600,4,FALSE))-'Filtered-P'!$W$10)/'Filtered-P'!$X$10),""),IF(Personalize!$E$41=TRUE,(((VLOOKUP($C32,Hitter!$A$1:$AD$600,19,FALSE))-Filtered!$AF$43)/Filtered!$AG$43),"")),"") ->  | Y32: =IFERROR(IF((OR($D32="RP",$D32="SP")),IF(Personalize!$E$46=TRUE,(((VLOOKUP($C32,Pitcher!$A$1:$Z$600,19,FALSE))-'Filtered-P'!$W$27)/'Filtered-P'!$X$27),""),IF(Personalize!$E$44=TRUE,(((VLOOKUP($C32,Hitter!$A$1:$AD$600,20,FALSE))-Filtered!$AF$44)/Filtered!$AG$44),"")),"") ->  | Z32: =IFERROR(IF((OR($D32="RP",$D32="SP")),IF(Personalize!$E$47=TRUE,(((VLOOKUP($C32,Pitcher!$A$1:$Z$600,6,FALSE))-'Filtered-P'!$W$12)/'Filtered-P'!$X$12),""),IF(Personalize!$E$42=TRUE,(((VLOOKUP($C32,Hitter!$A$1:$AD$600,7,FALSE))-Filtered!$AF$23)/Filtered!$AG$23),"")),"") ->  | AA32: =IFERROR(IF((OR($D32="RP",$D32="SP")),IF(Personalize!$E$48=TRUE,(((VLOOKUP($C32,Pitcher!$A$1:$Z$600,5,FALSE))-'Filtered-P'!$W$11)/'Filtered-P'!$X$11),""),IF(Personalize!$E$43=TRUE,(((VLOOKUP($C32,Hitter!$A$1:$AD$600,8,FALSE))-Filtered!$AF$24)/Filtered!$AG$24),"")),"") ->  | AB32: =IFERROR(IF((OR($D32="RP",$D32="SP")),VLOOKUP($C32,Pitcher!$A$1:$P$600,2,FALSE),""),"") ->  | AC32: =IFERROR(IF((OR($D32="RP",$D32="SP")),VLOOKUP($C32,Pitcher!$A$1:$P$600,9,FALSE),""),"") ->  | AD32: =IFERROR(IF((OR($D32="RP",$D32="SP")),VLOOKUP($C32,Pitcher!$A$1:$P$600,7,FALSE),""),"") ->  | AE32: =IFERROR(IF((OR($D32="RP",$D32="SP")),VLOOKUP($C32,Pitcher!$A$1:$P$600,10,FALSE),""),"") ->  | AF32: =IFERROR(IF((OR($D32="RP",$D32="SP")),VLOOKUP($C32,Pitcher!$A$1:$P$600,11,FALSE),""),"") ->  | AG32: =IFERROR(IF((OR($D32="RP",$D32="SP")),"",VLOOKUP($C32,Hitter!$A$1:$X$600,15,FALSE)),"") -> 0.2792281064 | AH32: =IFERROR(IF((OR($D32="RP",$D32="SP")),"",VLOOKUP($C32,Hitter!$A$1:$X$600,9,FALSE)),"") -> 28.01230461 | AI32: =IFERROR(IF((OR($D32="RP",$D32="SP")),"",VLOOKUP($C32,Hitter!$A$1:$X$600,10,FALSE)),"") -> 91.71585215 | AJ32: =IFERROR(IF((OR($D32="RP",$D32="SP")),"",VLOOKUP($C32,Hitter!$A$1:$X$600,4,FALSE)),"") -> 74.34865775 | AK32: =IFERROR(IF((OR($D32="RP",$D32="SP")),"",VLOOKUP($C32,Hitter!$A$1:$X$600,11,FALSE)),"") -> 1.448553798 | AL32: 0 | AM32: 1 | AN32: 0 | AO32: 2 | AP32: =VLOOKUP(C32,'Starter Calc'!$B$2:$BO$600,66,FALSE) -> Bench | AQ32: =VLOOKUP(C32,'Starter Calc'!$B$2:$AM$600,38,FALSE) -> Yes | AR32: =IFERROR(IF(ISTEXT($A32),"",IF((OR($D32="RP",$D32="SP")),ABS(VLOOKUP(D32,'Filtered-P'!$V$3:$Z$4,5,FALSE))+L32,ABS(VLOOKUP(D32,Filtered!$AE$3:$AI$14,5,FALSE))+L32)),"") -> 6.757579825 | AS32: 8.694653081 | AT32: N
C33: Dan Haren | D33: =IFERROR(IF(VLOOKUP(C33,'ADP-Rank'!$A$2:$B$600,2,FALSE)="OF",VLOOKUP(C33,'Starter Calc'!$B$2:$AN$600,39,FALSE),(VLOOKUP(C33,'ADP-Rank'!$A$2:$B$600,2,FALSE))),"") -> SP | E33: =IFERROR(IF(VLOOKUP(C33,'Starter Calc'!$B$2:$E$600,4,FALSE)="","",VLOOKUP(C33,'Starter Calc'!$B$2:$E$600,4,FALSE)),"") ->  | F33: =IFERROR(VLOOKUP($C33,'ADP-Rank'!$A$2:$D$600,3,FALSE),"") -> ANA | G33: =IFERROR(VLOOKUP($C33,'ADP-Rank'!$A$2:$W$600,23,FALSE),"") -> 32 | H33: =IFERROR(IF(ISBLANK($B33),ROUND(((AS33/$AS$1)*(Personalize!$A$3-$AQ$1))+1,0),""),"") -> 21 | I33: =IFERROR(CHOOSE(Personalize!$E$32,VLOOKUP($C33,'ADP-Rank'!$A$2:$U$600,13,FALSE),VLOOKUP($C33,'ADP-Rank'!$A$2:$U$600,14,FALSE),VLOOKUP($C33,'ADP-Rank'!$A$2:$U$600,15,FALSE),VLOOKUP($C33,'ADP-Rank'!$A$2:$U$600,16,FALSE),VLOOKUP($C33,'ADP-Rank'!$A$2:$U$600,17,FALSE),VLOOKUP($C33,'ADP-Rank'!$A$2:$U$600,18,FALSE),VLOOKUP($C33,'ADP-Rank'!$A$2:$U$600,19,FALSE),VLOOKUP($C33,'ADP-Rank'!$A$2:$U$600,20,FALSE)),"") -> 47 | J33: =IF(ISBLANK($B33),IFERROR(CHOOSE(Personalize!$E$31,(VLOOKUP(C33,'ADP-Rank'!$A$2:$E$600,5,FALSE)*(Personalize!$A$3-$AQ$1)+1),(VLOOKUP(C33,'ADP-Rank'!$A$2:$E$600,4,FALSE)*(Personalize!$A$3-$AQ$1)+1),(VLOOKUP(C33,'ADP-Rank'!$A$2:$G$600,6,FALSE)*(Personalize!$A$3-$AQ$1)+1),(VLOOKUP(C33,'ADP-Rank'!$A$2:$Z$600,7,FALSE)*(Personalize!$A$3-$AQ$1)+1),(VLOOKUP(C33,'ADP-Rank'!$A$2:$Z$600,8,FALSE)*(Personalize!$A$3-$AQ$1)+1),(VLOOKUP(C33,'ADP-Rank'!$A$2:$Z$600,9,FALSE)*(Personalize!$A$3-$AQ$1)+1),(VLOOKUP(C33,'ADP-Rank'!$A$2:$Z$600,10,FALSE)*(Personalize!$A$3-$AQ$1)+1)),""),"") -> 21.99914373 | K33: 29 | L33: 3.574812904 | M33: =IFERROR(IF((OR($D33="RP",$D33="SP")),VLOOKUP($D33,'Filtered-P'!$V$3:$Y$4,4,FALSE), VLOOKUP($D33,Filtered!$AE$3:$AH$14,4,FALSE)),"") -> 0.655283346 | N33: =IFERROR(IF((OR($D33="RP",$D33="SP")),IF(Personalize!$E$10=TRUE,(((VLOOKUP($C33,Pitcher!$A$1:$P$600,2,FALSE))-'Filtered-P'!$W$8)/'Filtered-P'!$X$8),""),IF(Personalize!$E$4=TRUE,(((VLOOKUP($C33,Hitter!$A$1:$AD$600,21,FALSE))-Filtered!$AF$35)/Filtered!$AG$35),"")),"") -> 1.202100823 | O33: =IFERROR(IF((OR($D33="RP",$D33="SP")),IF(Personalize!$E$12=TRUE,(((VLOOKUP($C33,Pitcher!$A$1:$P$600,9,FALSE))-'Filtered-P'!$W$15)/'Filtered-P'!$X$15),""),IF(Personalize!$E$3=TRUE,(((VLOOKUP($C33,Hitter!$A$1:$AB$600,9,FALSE))-Filtered!$AF$25)/Filtered!$AG$25),"")),"") -> -0.5372019451 | P33: =IFERROR(IF((OR($D33="RP",$D33="SP")),IF(Personalize!$E$11=TRUE,(((VLOOKUP($C33,Pitcher!$A$1:$P$600,7,FALSE))-'Filtered-P'!$W$13)/'Filtered-P'!$X$13),""),IF(Personalize!$E$2=TRUE,(((VLOOKUP($C33,Hitter!$A$1:$AB$600,4,FALSE))-Filtered!$AF$20)/Filtered!$AG$20),"")),"") -> 1.113399234 | Q33: =IFERROR(IF((OR($D33="RP",$D33="SP")),IF(Personalize!$E$13=TRUE,(((VLOOKUP($C33,Pitcher!$A$1:$P$600,13,FALSE))-'Filtered-P'!$W$19)/'Filtered-P'!$X$19),""),IF(Personalize!$E$5=TRUE,(((VLOOKUP($C33,Hitter!$A$1:$AB$600,10,FALSE))-Filtered!$AF$26)/Filtered!$AG$26),"")),"") -> 0.4072439023 | R33: =IFERROR(IF((OR($D33="RP",$D33="SP")),IF(Personalize!$E$14=TRUE,(((VLOOKUP($C33,Pitcher!$A$1:$P$600,14,FALSE))-'Filtered-P'!$W$20)/'Filtered-P'!$X$20),""),IF(Personalize!$E$6=TRUE,(((VLOOKUP($C33,Hitter!$A$1:$AB$600,11,FALSE))-Filtered!$AF$27)/Filtered!$AG$27),"")),"") -> 1.38927089 | S33: =IFERROR(IF((OR($D33="RP",$D33="SP")),IF(Personalize!$E$16=TRUE,(((VLOOKUP($C33,Pitcher!$A$1:$P$600,3,FALSE))-'Filtered-P'!$W$9)/'Filtered-P'!$X$9),""),IF(Personalize!$E$7=TRUE,(((VLOOKUP($C33,Hitter!$A$1:$AD$600,23,FALSE))-Filtered!$AF$37)/Filtered!$AG$37),"")),"") ->  | T33: =IFERROR(IF((OR($D33="RP",$D33="SP")),IF(Personalize!$E$15=TRUE,(((VLOOKUP($C33,Pitcher!$A$1:$P$600,15,FALSE))-'Filtered-P'!$W$21)/'Filtered-P'!$X$21),""),IF(Personalize!$E$8=TRUE,(((VLOOKUP($C33,Hitter!$A$1:$AD$600,22,FALSE))-Filtered!$AF$36)/Filtered!$AG$36),"")),"") ->  | U33: =IFERROR(IF((OR($D33="RP",$D33="SP")),IF(Personalize!$E$17=TRUE,(((VLOOKUP($C33,Pitcher!$A$1:$P$600,16,FALSE))-'Filtered-P'!$W$22)/'Filtered-P'!$X$22),""),IF(Personalize!$E$9=TRUE,(((VLOOKUP($C33,Hitter!$A$1:$AD$600,24,FALSE))-Filtered!$AF$38)/Filtered!$AG$38),"")),"") ->  | V33: =IFERROR(IF((OR($D33="RP",$D33="SP")),IF(Personalize!$E$37=TRUE,(((VLOOKUP($C33,Pitcher!$A$1:$Z$600,17,FALSE))-'Filtered-P'!$W$25)/'Filtered-P'!$X$25),""),IF(Personalize!$E$39=TRUE,(((VLOOKUP($C33,Hitter!$A$1:$X$600,5,FALSE))-Filtered!$AF$21)/Filtered!$AG$21),"")),"") ->  | W33: =IFERROR(IF((OR($D33="RP",$D33="SP")),IF(Personalize!$E$38=TRUE,(((VLOOKUP($C33,Pitcher!$A$1:$Z$600,18,FALSE))-'Filtered-P'!$W$26)/'Filtered-P'!$X$26),""),IF(Personalize!$E$40=TRUE,(((VLOOKUP($C33,Hitter!$A$1:$X$600,13,FALSE))-Filtered!$AF$29)/Filtered!$AG$29),"")),"") ->  | X33: =IFERROR(IF((OR($D33="RP",$D33="SP")),IF(Personalize!$E$45=TRUE,(((VLOOKUP($C33,Pitcher!$A$1:$Z$600,4,FALSE))-'Filtered-P'!$W$10)/'Filtered-P'!$X$10),""),IF(Personalize!$E$41=TRUE,(((VLOOKUP($C33,Hitter!$A$1:$AD$600,19,FALSE))-Filtered!$AF$43)/Filtered!$AG$43),"")),"") ->  | Y33: =IFERROR(IF((OR($D33="RP",$D33="SP")),IF(Personalize!$E$46=TRUE,(((VLOOKUP($C33,Pitcher!$A$1:$Z$600,19,FALSE))-'Filtered-P'!$W$27)/'Filtered-P'!$X$27),""),IF(Personalize!$E$44=TRUE,(((VLOOKUP($C33,Hitter!$A$1:$AD$600,20,FALSE))-Filtered!$AF$44)/Filtered!$AG$44),"")),"") ->  | Z33: =IFERROR(IF((OR($D33="RP",$D33="SP")),IF(Personalize!$E$47=TRUE,(((VLOOKUP($C33,Pitcher!$A$1:$Z$600,6,FALSE))-'Filtered-P'!$W$12)/'Filtered-P'!$X$12),""),IF(Personalize!$E$42=TRUE,(((VLOOKUP($C33,Hitter!$A$1:$AD$600,7,FALSE))-Filtered!$AF$23)/Filtered!$AG$23),"")),"") ->  | AA33: =IFERROR(IF((OR($D33="RP",$D33="SP")),IF(Personalize!$E$48=TRUE,(((VLOOKUP($C33,Pitcher!$A$1:$Z$600,5,FALSE))-'Filtered-P'!$W$11)/'Filtered-P'!$X$11),""),IF(Personalize!$E$43=TRUE,(((VLOOKUP($C33,Hitter!$A$1:$AD$600,8,FALSE))-Filtered!$AF$24)/Filtered!$AG$24),"")),"") ->  | AB33: =IFERROR(IF((OR($D33="RP",$D33="SP")),VLOOKUP($C33,Pitcher!$A$1:$P$600,2,FALSE),""),"") -> 13.67700271 | AC33: =IFERROR(IF((OR($D33="RP",$D33="SP")),VLOOKUP($C33,Pitcher!$A$1:$P$600,9,FALSE),""),"") -> 0 | AD33: =IFERROR(IF((OR($D33="RP",$D33="SP")),VLOOKUP($C33,Pitcher!$A$1:$P$600,7,FALSE),""),"") -> 176.5542732 | AE33: =IFERROR(IF((OR($D33="RP",$D33="SP")),VLOOKUP($C33,Pitcher!$A$1:$P$600,10,FALSE),""),"") -> 3.545336014 | AF33: =IFERROR(IF((OR($D33="RP",$D33="SP")),VLOOKUP($C33,Pitcher!$A$1:$P$600,11,FALSE),""),"") -> 1.160722042 | AG33: =IFERROR(IF((OR($D33="RP",$D33="SP")),"",VLOOKUP($C33,Hitter!$A$1:$X$600,15,FALSE)),"") ->  | AH33: =IFERROR(IF((OR($D33="RP",$D33="SP")),"",VLOOKUP($C33,Hitter!$A$1:$X$600,9,FALSE)),"") ->  | AI33: =IFERROR(IF((OR($D33="RP",$D33="SP")),"",VLOOKUP($C33,Hitter!$A$1:$X$600,10,FALSE)),"") ->  | AJ33: =IFERROR(IF((OR($D33="RP",$D33="SP")),"",VLOOKUP($C33,Hitter!$A$1:$X$600,4,FALSE)),"") ->  | AK33: =IFERROR(IF((OR($D33="RP",$D33="SP")),"",VLOOKUP($C33,Hitter!$A$1:$X$600,11,FALSE)),"") ->  | AL33: 0 | AM33: 1 | AN33: 0 | AO33: 13 | AP33: =VLOOKUP(C33,'Starter Calc'!$B$2:$BO$600,66,FALSE) -> Bench | AQ33: =VLOOKUP(C33,'Starter Calc'!$B$2:$AM$600,38,FALSE) -> Yes | AR33: =IFERROR(IF(ISTEXT($A33),"",IF((OR($D33="RP",$D33="SP")),ABS(VLOOKUP(D33,'Filtered-P'!$V$3:$Z$4,5,FALSE))+L33,ABS(VLOOKUP(D33,Filtered!$AE$3:$AI$14,5,FALSE))+L33)),"") -> 6.193470262 | AS33: 8.130543519 | AT33: N
C34: Adrian Beltre | D34: =IFERROR(IF(VLOOKUP(C34,'ADP-Rank'!$A$2:$B$600,2,FALSE)="OF",VLOOKUP(C34,'Starter Calc'!$B$2:$AN$600,39,FALSE),(VLOOKUP(C34,'ADP-Rank'!$A$2:$B$600,2,FALSE))),"") -> 3B | E34: =IFERROR(IF(VLOOKUP(C34,'Starter Calc'!$B$2:$E$600,4,FALSE)="","",VLOOKUP(C34,'Starter Calc'!$B$2:$E$600,4,FALSE)),"") ->  | F34: =IFERROR(VLOOKUP($C34,'ADP-Rank'!$A$2:$D$600,3,FALSE),"") -> TEX | G34: =IFERROR(VLOOKUP($C34,'ADP-Rank'!$A$2:$W$600,23,FALSE),"") -> 33 | H34: =IFERROR(IF(ISBLANK($B34),ROUND(((AS34/$AS$1)*(Personalize!$A$3-$AQ$1))+1,0),""),"") -> 21 | I34: =IFERROR(CHOOSE(Personalize!$E$32,VLOOKUP($C34,'ADP-Rank'!$A$2:$U$600,13,FALSE),VLOOKUP($C34,'ADP-Rank'!$A$2:$U$600,14,FALSE),VLOOKUP($C34,'ADP-Rank'!$A$2:$U$600,15,FALSE),VLOOKUP($C34,'ADP-Rank'!$A$2:$U$600,16,FALSE),VLOOKUP($C34,'ADP-Rank'!$A$2:$U$600,17,FALSE),VLOOKUP($C34,'ADP-Rank'!$A$2:$U$600,18,FALSE),VLOOKUP($C34,'ADP-Rank'!$A$2:$U$600,19,FALSE),VLOOKUP($C34,'ADP-Rank'!$A$2:$U$600,20,FALSE)),"") -> 32.57142857 | J34: =IF(ISBLANK($B34),IFERROR(CHOOSE(Personalize!$E$31,(VLOOKUP(C34,'ADP-Rank'!$A$2:$E$600,5,FALSE)*(Personalize!$A$3-$AQ$1)+1),(VLOOKUP(C34,'ADP-Rank'!$A$2:$E$600,4,FALSE)*(Personalize!$A$3-$AQ$1)+1),(VLOOKUP(C34,'ADP-Rank'!$A$2:$G$600,6,FALSE)*(Personalize!$A$3-$AQ$1)+1),(VLOOKUP(C34,'ADP-Rank'!$A$2:$Z$600,7,FALSE)*(Personalize!$A$3-$AQ$1)+1),(VLOOKUP(C34,'ADP-Rank'!$A$2:$Z$600,8,FALSE)*(Personalize!$A$3-$AQ$1)+1),(VLOOKUP(C34,'ADP-Rank'!$A$2:$Z$600,9,FALSE)*(Personalize!$A$3-$AQ$1)+1),(VLOOKUP(C34,'ADP-Rank'!$A$2:$Z$600,10,FALSE)*(Personalize!$A$3-$AQ$1)+1)),""),"") -> 23.98268241 | K34: 51 | L34: 1.991932433 | M34: =IFERROR(IF((OR($D34="RP",$D34="SP")),VLOOKUP($D34,'Filtered-P'!$V$3:$Y$4,4,FALSE), VLOOKUP($D34,Filtered!$AE$3:$AH$14,4,FALSE)),"") -> -0.4103695081 | N34: =IFERROR(IF((OR($D34="RP",$D34="SP")),IF(Personalize!$E$10=TRUE,(((VLOOKUP($C34,Pitcher!$A$1:$P$600,2,FALSE))-'Filtered-P'!$W$8)/'Filtered-P'!$X$8),""),IF(Personalize!$E$4=TRUE,(((VLOOKUP($C34,Hitter!$A$1:$AD$600,21,FALSE))-Filtered!$AF$35)/Filtered!$AG$35),"")),"") -> 1.00682213 | O34: =IFERROR(IF((OR($D34="RP",$D34="SP")),IF(Personalize!$E$12=TRUE,(((VLOOKUP($C34,Pitcher!$A$1:$P$600,9,FALSE))-'Filtered-P'!$W$15)/'Filtered-P'!$X$15),""),IF(Personalize!$E$3=TRUE,(((VLOOKUP($C34,Hitter!$A$1:$AB$600,9,FALSE))-Filtered!$AF$25)/Filtered!$AG$25),"")),"") -> 0.7733192045 | P34: =IFERROR(IF((OR($D34="RP",$D34="SP")),IF(Personalize!$E$11=TRUE,(((VLOOKUP($C34,Pitcher!$A$1:$P$600,7,FALSE))-'Filtered-P'!$W$13)/'Filtered-P'!$X$13),""),IF(Personalize!$E$2=TRUE,(((VLOOKUP($C34,Hitter!$A$1:$AB$600,4,FALSE))-Filtered!$AF$20)/Filtered!$AG$20),"")),"") -> -0.0200195259 | Q34: =IFERROR(IF((OR($D34="RP",$D34="SP")),IF(Personalize!$E$13=TRUE,(((VLOOKUP($C34,Pitcher!$A$1:$P$600,13,FALSE))-'Filtered-P'!$W$19)/'Filtered-P'!$X$19),""),IF(Personalize!$E$5=TRUE,(((VLOOKUP($C34,Hitter!$A$1:$AB$600,10,FALSE))-Filtered!$AF$26)/Filtered!$AG$26),"")),"") -> 0.9852697151 | R34: =IFERROR(IF((OR($D34="RP",$D34="SP")),IF(Personalize!$E$14=TRUE,(((VLOOKUP($C34,Pitcher!$A$1:$P$600,14,FALSE))-'Filtered-P'!$W$20)/'Filtered-P'!$X$20),""),IF(Personalize!$E$6=TRUE,(((VLOOKUP($C34,Hitter!$A$1:$AB$600,11,FALSE))-Filtered!$AF$27)/Filtered!$AG$27),"")),"") -> -0.7534590916 | S34: =IFERROR(IF((OR($D34="RP",$D34="SP")),IF(Personalize!$E$16=TRUE,(((VLOOKUP($C34,Pitcher!$A$1:$P$600,3,FALSE))-'Filtered-P'!$W$9)/'Filtered-P'!$X$9),""),IF(Personalize!$E$7=TRUE,(((VLOOKUP($C34,Hitter!$A$1:$AD$600,23,FALSE))-Filtered!$AF$37)/Filtered!$AG$37),"")),"") ->  | T34: =IFERROR(IF((OR($D34="RP",$D34="SP")),IF(Personalize!$E$15=TRUE,(((VLOOKUP($C34,Pitcher!$A$1:$P$600,15,FALSE))-'Filtered-P'!$W$21)/'Filtered-P'!$X$21),""),IF(Personalize!$E$8=TRUE,(((VLOOKUP($C34,Hitter!$A$1:$AD$600,22,FALSE))-Filtered!$AF$36)/Filtered!$AG$36),"")),"") ->  | U34: =IFERROR(IF((OR($D34="RP",$D34="SP")),IF(Personalize!$E$17=TRUE,(((VLOOKUP($C34,Pitcher!$A$1:$P$600,16,FALSE))-'Filtered-P'!$W$22)/'Filtered-P'!$X$22),""),IF(Personalize!$E$9=TRUE,(((VLOOKUP($C34,Hitter!$A$1:$AD$600,24,FALSE))-Filtered!$AF$38)/Filtered!$AG$38),"")),"") ->  | V34: =IFERROR(IF((OR($D34="RP",$D34="SP")),IF(Personalize!$E$37=TRUE,(((VLOOKUP($C34,Pitcher!$A$1:$Z$600,17,FALSE))-'Filtered-P'!$W$25)/'Filtered-P'!$X$25),""),IF(Personalize!$E$39=TRUE,(((VLOOKUP($C34,Hitter!$A$1:$X$600,5,FALSE))-Filtered!$AF$21)/Filtered!$AG$21),"")),"") ->  | W34: =IFERROR(IF((OR($D34="RP",$D34="SP")),IF(Personalize!$E$38=TRUE,(((VLOOKUP($C34,Pitcher!$A$1:$Z$600,18,FALSE))-'Filtered-P'!$W$26)/'Filtered-P'!$X$26),""),IF(Personalize!$E$40=TRUE,(((VLOOKUP($C34,Hitter!$A$1:$X$600,13,FALSE))-Filtered!$AF$29)/Filtered!$AG$29),"")),"") ->  | X34: =IFERROR(IF((OR($D34="RP",$D34="SP")),IF(Personalize!$E$45=TRUE,(((VLOOKUP($C34,Pitcher!$A$1:$Z$600,4,FALSE))-'Filtered-P'!$W$10)/'Filtered-P'!$X$10),""),IF(Personalize!$E$41=TRUE,(((VLOOKUP($C34,Hitter!$A$1:$AD$600,19,FALSE))-Filtered!$AF$43)/Filtered!$AG$43),"")),"") ->  | Y34: =IFERROR(IF((OR($D34="RP",$D34="SP")),IF(Personalize!$E$46=TRUE,(((VLOOKUP($C34,Pitcher!$A$1:$Z$600,19,FALSE))-'Filtered-P'!$W$27)/'Filtered-P'!$X$27),""),IF(Personalize!$E$44=TRUE,(((VLOOKUP($C34,Hitter!$A$1:$AD$600,20,FALSE))-Filtered!$AF$44)/Filtered!$AG$44),"")),"") ->  | Z34: =IFERROR(IF((OR($D34="RP",$D34="SP")),IF(Personalize!$E$47=TRUE,(((VLOOKUP($C34,Pitcher!$A$1:$Z$600,6,FALSE))-'Filtered-P'!$W$12)/'Filtered-P'!$X$12),""),IF(Personalize!$E$42=TRUE,(((VLOOKUP($C34,Hitter!$A$1:$AD$600,7,FALSE))-Filtered!$AF$23)/Filtered!$AG$23),"")),"") ->  | AA34: =IFERROR(IF((OR($D34="RP",$D34="SP")),IF(Personalize!$E$48=TRUE,(((VLOOKUP($C34,Pitcher!$A$1:$Z$600,5,FALSE))-'Filtered-P'!$W$11)/'Filtered-P'!$X$11),""),IF(Personalize!$E$43=TRUE,(((VLOOKUP($C34,Hitter!$A$1:$AD$600,8,FALSE))-Filtered!$AF$24)/Filtered!$AG$24),"")),"") ->  | AB34: =IFERROR(IF((OR($D34="RP",$D34="SP")),VLOOKUP($C34,Pitcher!$A$1:$P$600,2,FALSE),""),"") ->  | AC34: =IFERROR(IF((OR($D34="RP",$D34="SP")),VLOOKUP($C34,Pitcher!$A$1:$P$600,9,FALSE),""),"") ->  | AD34: =IFERROR(IF((OR($D34="RP",$D34="SP")),VLOOKUP($C34,Pitcher!$A$1:$P$600,7,FALSE),""),"") ->  | AE34: =IFERROR(IF((OR($D34="RP",$D34="SP")),VLOOKUP($C34,Pitcher!$A$1:$P$600,10,FALSE),""),"") ->  | AF34: =IFERROR(IF((OR($D34="RP",$D34="SP")),VLOOKUP($C34,Pitcher!$A$1:$P$600,11,FALSE),""),"") ->  | AG34: =IFERROR(IF((OR($D34="RP",$D34="SP")),"",VLOOKUP($C34,Hitter!$A$1:$X$600,15,FALSE)),"") -> 0.2876372642 | AH34: =IFERROR(IF((OR($D34="RP",$D34="SP")),"",VLOOKUP($C34,Hitter!$A$1:$X$600,9,FALSE)),"") -> 22.88048375 | AI34: =IFERROR(IF((OR($D34="RP",$D34="SP")),"",VLOOKUP($C34,Hitter!$A$1:$X$600,10,FALSE)),"") -> 83.56015314 | AJ34: =IFERROR(IF((OR($D34="RP",$D34="SP")),"",VLOOKUP($C34,Hitter!$A$1:$X$600,4,FALSE)),"") -> 71.02718702 | AK34: =IFERROR(IF((OR($D34="RP",$D34="SP")),"",VLOOKUP($C34,Hitter!$A$1:$X$600,11,FALSE)),"") -> 3.965773327 | AL34: 0 | AM34: 1 | AN34: 0 | AO34: 4 | AP34: =VLOOKUP(C34,'Starter Calc'!$B$2:$BO$600,66,FALSE) -> Bench | AQ34: =VLOOKUP(C34,'Starter Calc'!$B$2:$AM$600,38,FALSE) -> Yes | AR34: =IFERROR(IF(ISTEXT($A34),"",IF((OR($D34="RP",$D34="SP")),ABS(VLOOKUP(D34,'Filtered-P'!$V$3:$Z$4,5,FALSE))+L34,ABS(VLOOKUP(D34,Filtered!$AE$3:$AI$14,5,FALSE))+L34)),"") -> 6.20200868 | AS34: 8.139081937 | AT34: N
C35: Matt Cain | D35: =IFERROR(IF(VLOOKUP(C35,'ADP-Rank'!$A$2:$B$600,2,FALSE)="OF",VLOOKUP(C35,'Starter Calc'!$B$2:$AN$600,39,FALSE),(VLOOKUP(C35,'ADP-Rank'!$A$2:$B$600,2,FALSE))),"") -> SP | E35: =IFERROR(IF(VLOOKUP(C35,'Starter Calc'!$B$2:$E$600,4,FALSE)="","",VLOOKUP(C35,'Starter Calc'!$B$2:$E$600,4,FALSE)),"") ->  | F35: =IFERROR(VLOOKUP($C35,'ADP-Rank'!$A$2:$D$600,3,FALSE),"") -> SF | G35: =IFERROR(VLOOKUP($C35,'ADP-Rank'!$A$2:$W$600,23,FALSE),"") -> 28 | H35: =IFERROR(IF(ISBLANK($B35),ROUND(((AS35/$AS$1)*(Personalize!$A$3-$AQ$1))+1,0),""),"") -> 21 | I35: =IFERROR(CHOOSE(Personalize!$E$32,VLOOKUP($C35,'ADP-Rank'!$A$2:$U$600,13,FALSE),VLOOKUP($C35,'ADP-Rank'!$A$2:$U$600,14,FALSE),VLOOKUP($C35,'ADP-Rank'!$A$2:$U$600,15,FALSE),VLOOKUP($C35,'ADP-Rank'!$A$2:$U$600,16,FALSE),VLOOKUP($C35,'ADP-Rank'!$A$2:$U$600,17,FALSE),VLOOKUP($C35,'ADP-Rank'!$A$2:$U$600,18,FALSE),VLOOKUP($C35,'ADP-Rank'!$A$2:$U$600,19,FALSE),VLOOKUP($C35,'ADP-Rank'!$A$2:$U$600,20,FALSE)),"") -> 62.42857143 | J35: =IF(ISBLANK($B35),IFERROR(CHOOSE(Personalize!$E$31,(VLOOKUP(C35,'ADP-Rank'!$A$2:$E$600,5,FALSE)*(Personalize!$A$3-$AQ$1)+1),(VLOOKUP(C35,'ADP-Rank'!$A$2:$E$600,4,FALSE)*(Personalize!$A$3-$AQ$1)+1),(VLOOKUP(C35,'ADP-Rank'!$A$2:$G$600,6,FALSE)*(Personalize!$A$3-$AQ$1)+1),(VLOOKUP(C35,'ADP-Rank'!$A$2:$Z$600,7,FALSE)*(Personalize!$A$3-$AQ$1)+1),(VLOOKUP(C35,'ADP-Rank'!$A$2:$Z$600,8,FALSE)*(Personalize!$A$3-$AQ$1)+1),(VLOOKUP(C35,'ADP-Rank'!$A$2:$Z$600,9,FALSE)*(Personalize!$A$3-$AQ$1)+1),(VLOOKUP(C35,'ADP-Rank'!$A$2:$Z$600,10,FALSE)*(Personalize!$A$3-$AQ$1)+1)),""),"") -> 19.09467886 | K35: 28 | L35: 3.750380488 | M35: =IFERROR(IF((OR($D35="RP",$D35="SP")),VLOOKUP($D35,'Filtered-P'!$V$3:$Y$4,4,FALSE), VLOOKUP($D35,Filtered!$AE$3:$AH$14,4,FALSE)),"") -> 0.655283346 | N35: =IFERROR(IF((OR($D35="RP",$D35="SP")),IF(Personalize!$E$10=TRUE,(((VLOOKUP($C35,Pitcher!$A$1:$P$600,2,FALSE))-'Filtered-P'!$W$8)/'Filtered-P'!$X$8),""),IF(Personalize!$E$4=TRUE,(((VLOOKUP($C35,Hitter!$A$1:$AD$600,21,FALSE))-Filtered!$AF$35)/Filtered!$AG$35),"")),"") -> 0.925824147 | O35: =IFERROR(IF((OR($D35="RP",$D35="SP")),IF(Personalize!$E$12=TRUE,(((VLOOKUP($C35,Pitcher!$A$1:$P$600,9,FALSE))-'Filtered-P'!$W$15)/'Filtered-P'!$X$15),""),IF(Personalize!$E$3=TRUE,(((VLOOKUP($C35,Hitter!$A$1:$AB$600,9,FALSE))-Filtered!$AF$25)/Filtered!$AG$25),"")),"") -> -0.5372019451 | P35: =IFERROR(IF((OR($D35="RP",$D35="SP")),IF(Personalize!$E$11=TRUE,(((VLOOKUP($C35,Pitcher!$A$1:$P$600,7,FALSE))-'Filtered-P'!$W$13)/'Filtered-P'!$X$13),""),IF(Personalize!$E$2=TRUE,(((VLOOKUP($C35,Hitter!$A$1:$AB$600,4,FALSE))-Filtered!$AF$20)/Filtered!$AG$20),"")),"") -> 0.9000860426 | Q35: =IFERROR(IF((OR($D35="RP",$D35="SP")),IF(Personalize!$E$13=TRUE,(((VLOOKUP($C35,Pitcher!$A$1:$P$600,13,FALSE))-'Filtered-P'!$W$19)/'Filtered-P'!$X$19),""),IF(Personalize!$E$5=TRUE,(((VLOOKUP($C35,Hitter!$A$1:$AB$600,10,FALSE))-Filtered!$AF$26)/Filtered!$AG$26),"")),"") -> 1.290810714 | R35: =IFERROR(IF((OR($D35="RP",$D35="SP")),IF(Personalize!$E$14=TRUE,(((VLOOKUP($C35,Pitcher!$A$1:$P$600,14,FALSE))-'Filtered-P'!$W$20)/'Filtered-P'!$X$20),""),IF(Personalize!$E$6=TRUE,(((VLOOKUP($C35,Hitter!$A$1:$AB$600,11,FALSE))-Filtered!$AF$27)/Filtered!$AG$27),"")),"") -> 1.170861529 | S35: =IFERROR(IF((OR($D35="RP",$D35="SP")),IF(Personalize!$E$16=TRUE,(((VLOOKUP($C35,Pitcher!$A$1:$P$600,3,FALSE))-'Filtered-P'!$W$9)/'Filtered-P'!$X$9),""),IF(Personalize!$E$7=TRUE,(((VLOOKUP($C35,Hitter!$A$1:$AD$600,23,FALSE))-Filtered!$AF$37)/Filtered!$AG$37),"")),"") ->  | T35: =IFERROR(IF((OR($D35="RP",$D35="SP")),IF(Personalize!$E$15=TRUE,(((VLOOKUP($C35,Pitcher!$A$1:$P$600,15,FALSE))-'Filtered-P'!$W$21)/'Filtered-P'!$X$21),""),IF(Personalize!$E$8=TRUE,(((VLOOKUP($C35,Hitter!$A$1:$AD$600,22,FALSE))-Filtered!$AF$36)/Filtered!$AG$36),"")),"") ->  | U35: =IFERROR(IF((OR($D35="RP",$D35="SP")),IF(Personalize!$E$17=TRUE,(((VLOOKUP($C35,Pitcher!$A$1:$P$600,16,FALSE))-'Filtered-P'!$W$22)/'Filtered-P'!$X$22),""),IF(Personalize!$E$9=TRUE,(((VLOOKUP($C35,Hitter!$A$1:$AD$600,24,FALSE))-Filtered!$AF$38)/Filtered!$AG$38),"")),"") ->  | V35: =IFERROR(IF((OR($D35="RP",$D35="SP")),IF(Personalize!$E$37=TRUE,(((VLOOKUP($C35,Pitcher!$A$1:$Z$600,17,FALSE))-'Filtered-P'!$W$25)/'Filtered-P'!$X$25),""),IF(Personalize!$E$39=TRUE,(((VLOOKUP($C35,Hitter!$A$1:$X$600,5,FALSE))-Filtered!$AF$21)/Filtered!$AG$21),"")),"") ->  | W35: =IFERROR(IF((OR($D35="RP",$D35="SP")),IF(Personalize!$E$38=TRUE,(((VLOOKUP($C35,Pitcher!$A$1:$Z$600,18,FALSE))-'Filtered-P'!$W$26)/'Filtered-P'!$X$26),""),IF(Personalize!$E$40=TRUE,(((VLOOKUP($C35,Hitter!$A$1:$X$600,13,FALSE))-Filtered!$AF$29)/Filtered!$AG$29),"")),"") ->  | X35: =IFERROR(IF((OR($D35="RP",$D35="SP")),IF(Personalize!$E$45=TRUE,(((VLOOKUP($C35,Pitcher!$A$1:$Z$600,4,FALSE))-'Filtered-P'!$W$10)/'Filtered-P'!$X$10),""),IF(Personalize!$E$41=TRUE,(((VLOOKUP($C35,Hitter!$A$1:$AD$600,19,FALSE))-Filtered!$AF$43)/Filtered!$AG$43),"")),"") ->  | Y35: =IFERROR(IF((OR($D35="RP",$D35="SP")),IF(Personalize!$E$46=TRUE,(((VLOOKUP($C35,Pitcher!$A$1:$Z$600,19,FALSE))-'Filtered-P'!$W$27)/'Filtered-P'!$X$27),""),IF(Personalize!$E$44=TRUE,(((VLOOKUP($C35,Hitter!$A$1:$AD$600,20,FALSE))-Filtered!$AF$44)/Filtered!$AG$44),"")),"") ->  | Z35: =IFERROR(IF((OR($D35="RP",$D35="SP")),IF(Personalize!$E$47=TRUE,(((VLOOKUP($C35,Pitcher!$A$1:$Z$600,6,FALSE))-'Filtered-P'!$W$12)/'Filtered-P'!$X$12),""),IF(Personalize!$E$42=TRUE,(((VLOOKUP($C35,Hitter!$A$1:$AD$600,7,FALSE))-Filtered!$AF$23)/Filtered!$AG$23),"")),"") ->  | AA35: =IFERROR(IF((OR($D35="RP",$D35="SP")),IF(Personalize!$E$48=TRUE,(((VLOOKUP($C35,Pitcher!$A$1:$Z$600,5,FALSE))-'Filtered-P'!$W$11)/'Filtered-P'!$X$11),""),IF(Personalize!$E$43=TRUE,(((VLOOKUP($C35,Hitter!$A$1:$AD$600,8,FALSE))-Filtered!$AF$24)/Filtered!$AG$24),"")),"") ->  | AB35: =IFERROR(IF((OR($D35="RP",$D35="SP")),VLOOKUP($C35,Pitcher!$A$1:$P$600,2,FALSE),""),"") -> 12.56391125 | AC35: =IFERROR(IF((OR($D35="RP",$D35="SP")),VLOOKUP($C35,Pitcher!$A$1:$P$600,9,FALSE),""),"") -> 0 | AD35: =IFERROR(IF((OR($D35="RP",$D35="SP")),VLOOKUP($C35,Pitcher!$A$1:$P$600,7,FALSE),""),"") -> 166.2756422 | AE35: =IFERROR(IF((OR($D35="RP",$D35="SP")),VLOOKUP($C35,Pitcher!$A$1:$P$600,10,FALSE),""),"") -> 3.313692211 | AF35: =IFERROR(IF((OR($D35="RP",$D35="SP")),VLOOKUP($C35,Pitcher!$A$1:$P$600,11,FALSE),""),"") -> 1.168675114 | AG35: =IFERROR(IF((OR($D35="RP",$D35="SP")),"",VLOOKUP($C35,Hitter!$A$1:$X$600,15,FALSE)),"") ->  | AH35: =IFERROR(IF((OR($D35="RP",$D35="SP")),"",VLOOKUP($C35,Hitter!$A$1:$X$600,9,FALSE)),"") ->  | AI35: =IFERROR(IF((OR($D35="RP",$D35="SP")),"",VLOOKUP($C35,Hitter!$A$1:$X$600,10,FALSE)),"") ->  | AJ35: =IFERROR(IF((OR($D35="RP",$D35="SP")),"",VLOOKUP($C35,Hitter!$A$1:$X$600,4,FALSE)),"") ->  | AK35: =IFERROR(IF((OR($D35="RP",$D35="SP")),"",VLOOKUP($C35,Hitter!$A$1:$X$600,11,FALSE)),"") ->  | AL35: 0 | AM35: 1 | AN35: 0 | AO35: 13 | AP35: =VLOOKUP(C35,'Starter Calc'!$B$2:$BO$600,66,FALSE) -> Bench | AQ35: =VLOOKUP(C35,'Starter Calc'!$B$2:$AM$600,38,FALSE) -> Yes | AR35: =IFERROR(IF(ISTEXT($A35),"",IF((OR($D35="RP",$D35="SP")),ABS(VLOOKUP(D35,'Filtered-P'!$V$3:$Z$4,5,FALSE))+L35,ABS(VLOOKUP(D35,Filtered!$AE$3:$AI$14,5,FALSE))+L35)),"") -> 6.369037846 | AS35: 8.306111103 | AT35: N
C36: Ryan Howard | D36: =IFERROR(IF(VLOOKUP(C36,'ADP-Rank'!$A$2:$B$600,2,FALSE)="OF",VLOOKUP(C36,'Starter Calc'!$B$2:$AN$600,39,FALSE),(VLOOKUP(C36,'ADP-Rank'!$A$2:$B$600,2,FALSE))),"") -> 1B | E36: =IFERROR(IF(VLOOKUP(C36,'Starter Calc'!$B$2:$E$600,4,FALSE)="","",VLOOKUP(C36,'Starter Calc'!$B$2:$E$600,4,FALSE)),"") ->  | F36: =IFERROR(VLOOKUP($C36,'ADP-Rank'!$A$2:$D$600,3,FALSE),"") -> PHI | G36: =IFERROR(VLOOKUP($C36,'ADP-Rank'!$A$2:$W$600,23,FALSE),"") -> 33 | H36: =IFERROR(IF(ISBLANK($B36),ROUND(((AS36/$AS$1)*(Personalize!$A$3-$AQ$1))+1,0),""),"") -> 21 | I36: =IFERROR(CHOOSE(Personalize!$E$32,VLOOKUP($C36,'ADP-Rank'!$A$2:$U$600,13,FALSE),VLOOKUP($C36,'ADP-Rank'!$A$2:$U$600,14,FALSE),VLOOKUP($C36,'ADP-Rank'!$A$2:$U$600,15,FALSE),VLOOKUP($C36,'ADP-Rank'!$A$2:$U$600,16,FALSE),VLOOKUP($C36,'ADP-Rank'!$A$2:$U$600,17,FALSE),VLOOKUP($C36,'ADP-Rank'!$A$2:$U$600,18,FALSE),VLOOKUP($C36,'ADP-Rank'!$A$2:$U$600,19,FALSE),VLOOKUP($C36,'ADP-Rank'!$A$2:$U$600,20,FALSE)),"") -> 147.1666667 | J36: =IF(ISBLANK($B36),IFERROR(CHOOSE(Personalize!$E$31,(VLOOKUP(C36,'ADP-Rank'!$A$2:$E$600,5,FALSE)*(Personalize!$A$3-$AQ$1)+1),(VLOOKUP(C36,'ADP-Rank'!$A$2:$E$600,4,FALSE)*(Personalize!$A$3-$AQ$1)+1),(VLOOKUP(C36,'ADP-Rank'!$A$2:$G$600,6,FALSE)*(Personalize!$A$3-$AQ$1)+1),(VLOOKUP(C36,'ADP-Rank'!$A$2:$Z$600,7,FALSE)*(Personalize!$A$3-$AQ$1)+1),(VLOOKUP(C36,'ADP-Rank'!$A$2:$Z$600,8,FALSE)*(Personalize!$A$3-$AQ$1)+1),(VLOOKUP(C36,'ADP-Rank'!$A$2:$Z$600,9,FALSE)*(Personalize!$A$3-$AQ$1)+1),(VLOOKUP(C36,'ADP-Rank'!$A$2:$Z$600,10,FALSE)*(Personalize!$A$3-$AQ$1)+1)),""),"") -> 9.407121956 | K36: 40 | L36: 2.601145656 | M36: =IFERROR(IF((OR($D36="RP",$D36="SP")),VLOOKUP($D36,'Filtered-P'!$V$3:$Y$4,4,FALSE), VLOOKUP($D36,Filtered!$AE$3:$AH$14,4,FALSE)),"") -> 1.344129608 | N36: =IFERROR(IF((OR($D36="RP",$D36="SP")),IF(Personalize!$E$10=TRUE,(((VLOOKUP($C36,Pitcher!$A$1:$P$600,2,FALSE))-'Filtered-P'!$W$8)/'Filtered-P'!$X$8),""),IF(Personalize!$E$4=TRUE,(((VLOOKUP($C36,Hitter!$A$1:$AD$600,21,FALSE))-Filtered!$AF$35)/Filtered!$AG$35),"")),"") -> -0.8517592975 | O36: =IFERROR(IF((OR($D36="RP",$D36="SP")),IF(Personalize!$E$12=TRUE,(((VLOOKUP($C36,Pitcher!$A$1:$P$600,9,FALSE))-'Filtered-P'!$W$15)/'Filtered-P'!$X$15),""),IF(Personalize!$E$3=TRUE,(((VLOOKUP($C36,Hitter!$A$1:$AB$600,9,FALSE))-Filtered!$AF$25)/Filtered!$AG$25),"")),"") -> 1.731074259 | P36: =IFERROR(IF((OR($D36="RP",$D36="SP")),IF(Personalize!$E$11=TRUE,(((VLOOKUP($C36,Pitcher!$A$1:$P$600,7,FALSE))-'Filtered-P'!$W$13)/'Filtered-P'!$X$13),""),IF(Personalize!$E$2=TRUE,(((VLOOKUP($C36,Hitter!$A$1:$AB$600,4,FALSE))-Filtered!$AF$20)/Filtered!$AG$20),"")),"") -> 0.5033045819 | Q36: =IFERROR(IF((OR($D36="RP",$D36="SP")),IF(Personalize!$E$13=TRUE,(((VLOOKUP($C36,Pitcher!$A$1:$P$600,13,FALSE))-'Filtered-P'!$W$19)/'Filtered-P'!$X$19),""),IF(Personalize!$E$5=TRUE,(((VLOOKUP($C36,Hitter!$A$1:$AB$600,10,FALSE))-Filtered!$AF$26)/Filtered!$AG$26),"")),"") -> 2.123499868 | R36: =IFERROR(IF((OR($D36="RP",$D36="SP")),IF(Personalize!$E$14=TRUE,(((VLOOKUP($C36,Pitcher!$A$1:$P$600,14,FALSE))-'Filtered-P'!$W$20)/'Filtered-P'!$X$20),""),IF(Personalize!$E$6=TRUE,(((VLOOKUP($C36,Hitter!$A$1:$AB$600,11,FALSE))-Filtered!$AF$27)/Filtered!$AG$27),"")),"") -> -0.9049737552 | S36: =IFERROR(IF((OR($D36="RP",$D36="SP")),IF(Personalize!$E$16=TRUE,(((VLOOKUP($C36,Pitcher!$A$1:$P$600,3,FALSE))-'Filtered-P'!$W$9)/'Filtered-P'!$X$9),""),IF(Personalize!$E$7=TRUE,(((VLOOKUP($C36,Hitter!$A$1:$AD$600,23,FALSE))-Filtered!$AF$37)/Filtered!$AG$37),"")),"") ->  | T36: =IFERROR(IF((OR($D36="RP",$D36="SP")),IF(Personalize!$E$15=TRUE,(((VLOOKUP($C36,Pitcher!$A$1:$P$600,15,FALSE))-'Filtered-P'!$W$21)/'Filtered-P'!$X$21),""),IF(Personalize!$E$8=TRUE,(((VLOOKUP($C36,Hitter!$A$1:$AD$600,22,FALSE))-Filtered!$AF$36)/Filtered!$AG$36),"")),"") ->  | U36: =IFERROR(IF((OR($D36="RP",$D36="SP")),IF(Personalize!$E$17=TRUE,(((VLOOKUP($C36,Pitcher!$A$1:$P$600,16,FALSE))-'Filtered-P'!$W$22)/'Filtered-P'!$X$22),""),IF(Personalize!$E$9=TRUE,(((VLOOKUP($C36,Hitter!$A$1:$AD$600,24,FALSE))-Filtered!$AF$38)/Filtered!$AG$38),"")),"") ->  | V36: =IFERROR(IF((OR($D36="RP",$D36="SP")),IF(Personalize!$E$37=TRUE,(((VLOOKUP($C36,Pitcher!$A$1:$Z$600,17,FALSE))-'Filtered-P'!$W$25)/'Filtered-P'!$X$25),""),IF(Personalize!$E$39=TRUE,(((VLOOKUP($C36,Hitter!$A$1:$X$600,5,FALSE))-Filtered!$AF$21)/Filtered!$AG$21),"")),"") ->  | W36: =IFERROR(IF((OR($D36="RP",$D36="SP")),IF(Personalize!$E$38=TRUE,(((VLOOKUP($C36,Pitcher!$A$1:$Z$600,18,FALSE))-'Filtered-P'!$W$26)/'Filtered-P'!$X$26),""),IF(Personalize!$E$40=TRUE,(((VLOOKUP($C36,Hitter!$A$1:$X$600,13,FALSE))-Filtered!$AF$29)/Filtered!$AG$29),"")),"") ->  | X36: =IFERROR(IF((OR($D36="RP",$D36="SP")),IF(Personalize!$E$45=TRUE,(((VLOOKUP($C36,Pitcher!$A$1:$Z$600,4,FALSE))-'Filtered-P'!$W$10)/'Filtered-P'!$X$10),""),IF(Personalize!$E$41=TRUE,(((VLOOKUP($C36,Hitter!$A$1:$AD$600,19,FALSE))-Filtered!$AF$43)/Filtered!$AG$43),"")),"") ->  | Y36: =IFERROR(IF((OR($D36="RP",$D36="SP")),IF(Personalize!$E$46=TRUE,(((VLOOKUP($C36,Pitcher!$A$1:$Z$600,19,FALSE))-'Filtered-P'!$W$27)/'Filtered-P'!$X$27),""),IF(Personalize!$E$44=TRUE,(((VLOOKUP($C36,Hitter!$A$1:$AD$600,20,FALSE))-Filtered!$AF$44)/Filtered!$AG$44),"")),"") ->  | Z36: =IFERROR(IF((OR($D36="RP",$D36="SP")),IF(Personalize!$E$47=TRUE,(((VLOOKUP($C36,Pitcher!$A$1:$Z$600,6,FALSE))-'Filtered-P'!$W$12)/'Filtered-P'!$X$12),""),IF(Personalize!$E$42=TRUE,(((VLOOKUP($C36,Hitter!$A$1:$AD$600,7,FALSE))-Filtered!$AF$23)/Filtered!$AG$23),"")),"") ->  | AA36: =IFERROR(IF((OR($D36="RP",$D36="SP")),IF(Personalize!$E$48=TRUE,(((VLOOKUP($C36,Pitcher!$A$1:$Z$600,5,FALSE))-'Filtered-P'!$W$11)/'Filtered-P'!$X$11),""),IF(Personalize!$E$43=TRUE,(((VLOOKUP($C36,Hitter!$A$1:$AD$600,8,FALSE))-Filtered!$AF$24)/Filtered!$AG$24),"")),"") ->  | AB36: =IFERROR(IF((OR($D36="RP",$D36="SP")),VLOOKUP($C36,Pitcher!$A$1:$P$600,2,FALSE),""),"") ->  | AC36: =IFERROR(IF((OR($D36="RP",$D36="SP")),VLOOKUP($C36,Pitcher!$A$1:$P$600,9,FALSE),""),"") ->  | AD36: =IFERROR(IF((OR($D36="RP",$D36="SP")),VLOOKUP($C36,Pitcher!$A$1:$P$600,7,FALSE),""),"") ->  | AE36: =IFERROR(IF((OR($D36="RP",$D36="SP")),VLOOKUP($C36,Pitcher!$A$1:$P$600,10,FALSE),""),"") ->  | AF36: =IFERROR(IF((OR($D36="RP",$D36="SP")),VLOOKUP($C36,Pitcher!$A$1:$P$600,11,FALSE),""),"") ->  | AG36: =IFERROR(IF((OR($D36="RP",$D36="SP")),"",VLOOKUP($C36,Hitter!$A$1:$X$600,15,FALSE)),"") -> 0.255408755 | AH36: =IFERROR(IF((OR($D36="RP",$D36="SP")),"",VLOOKUP($C36,Hitter!$A$1:$X$600,9,FALSE)),"") -> 29.62412329 | AI36: =IFERROR(IF((OR($D36="RP",$D36="SP")),"",VLOOKUP($C36,Hitter!$A$1:$X$600,10,FALSE)),"") -> 101.3742503 | AJ36: =IFERROR(IF((OR($D36="RP",$D36="SP")),"",VLOOKUP($C36,Hitter!$A$1:$X$600,4,FALSE)),"") -> 77.05767563 | AK36: =IFERROR(IF((OR($D36="RP",$D36="SP")),"",VLOOKUP($C36,Hitter!$A$1:$X$600,11,FALSE)),"") -> 2.517670062 | AL36: 0 | AM36: 1 | AN36: 0 | AO36: 2 | AP36: =VLOOKUP(C36,'Starter Calc'!$B$2:$BO$600,66,FALSE) -> Bench | AQ36: =VLOOKUP(C36,'Starter Calc'!$B$2:$AM$600,38,FALSE) -> Yes | AR36: =IFERROR(IF(ISTEXT($A36),"",IF((OR($D36="RP",$D36="SP")),ABS(VLOOKUP(D36,'Filtered-P'!$V$3:$Z$4,5,FALSE))+L36,ABS(VLOOKUP(D36,Filtered!$AE$3:$AI$14,5,FALSE))+L36)),"") -> 6.552355387 | AS36: 8.489428644 | AT36: N
C37: CC Sabathia | D37: =IFERROR(IF(VLOOKUP(C37,'ADP-Rank'!$A$2:$B$600,2,FALSE)="OF",VLOOKUP(C37,'Starter Calc'!$B$2:$AN$600,39,FALSE),(VLOOKUP(C37,'ADP-Rank'!$A$2:$B$600,2,FALSE))),"") -> SP | E37: =IFERROR(IF(VLOOKUP(C37,'Starter Calc'!$B$2:$E$600,4,FALSE)="","",VLOOKUP(C37,'Starter Calc'!$B$2:$E$600,4,FALSE)),"") ->  | F37: =IFERROR(VLOOKUP($C37,'ADP-Rank'!$A$2:$D$600,3,FALSE),"") -> NYY | G37: =IFERROR(VLOOKUP($C37,'ADP-Rank'!$A$2:$W$600,23,FALSE),"") -> 32 | H37: =IFERROR(IF(ISBLANK($B37),ROUND(((AS37/$AS$1)*(Personalize!$A$3-$AQ$1))+1,0),""),"") -> 20 | I37: =IFERROR(CHOOSE(Personalize!$E$32,VLOOKUP($C37,'ADP-Rank'!$A$2:$U$600,13,FALSE),VLOOKUP($C37,'ADP-Rank'!$A$2:$U$600,14,FALSE),VLOOKUP($C37,'ADP-Rank'!$A$2:$U$600,15,FALSE),VLOOKUP($C37,'ADP-Rank'!$A$2:$U$600,16,FALSE),VLOOKUP($C37,'ADP-Rank'!$A$2:$U$600,17,FALSE),VLOOKUP($C37,'ADP-Rank'!$A$2:$U$600,18,FALSE),VLOOKUP($C37,'ADP-Rank'!$A$2:$U$600,19,FALSE),VLOOKUP($C37,'ADP-Rank'!$A$2:$U$600,20,FALSE)),"") -> 36.42857143 | J37: =IF(ISBLANK($B37),IFERROR(CHOOSE(Personalize!$E$31,(VLOOKUP(C37,'ADP-Rank'!$A$2:$E$600,5,FALSE)*(Personalize!$A$3-$AQ$1)+1),(VLOOKUP(C37,'ADP-Rank'!$A$2:$E$600,4,FALSE)*(Personalize!$A$3-$AQ$1)+1),(VLOOKUP(C37,'ADP-Rank'!$A$2:$G$600,6,FALSE)*(Personalize!$A$3-$AQ$1)+1),(VLOOKUP(C37,'ADP-Rank'!$A$2:$Z$600,7,FALSE)*(Personalize!$A$3-$AQ$1)+1),(VLOOKUP(C37,'ADP-Rank'!$A$2:$Z$600,8,FALSE)*(Personalize!$A$3-$AQ$1)+1),(VLOOKUP(C37,'ADP-Rank'!$A$2:$Z$600,9,FALSE)*(Personalize!$A$3-$AQ$1)+1),(VLOOKUP(C37,'ADP-Rank'!$A$2:$Z$600,10,FALSE)*(Personalize!$A$3-$AQ$1)+1)),""),"") -> 25.2266597 | K37: 32 | L37: 3.382796667 | M37: =IFERROR(IF((OR($D37="RP",$D37="SP")),VLOOKUP($D37,'Filtered-P'!$V$3:$Y$4,4,FALSE), VLOOKUP($D37,Filtered!$AE$3:$AH$14,4,FALSE)),"") -> 0.655283346 | N37: =IFERROR(IF((OR($D37="RP",$D37="SP")),IF(Personalize!$E$10=TRUE,(((VLOOKUP($C37,Pitcher!$A$1:$P$600,2,FALSE))-'Filtered-P'!$W$8)/'Filtered-P'!$X$8),""),IF(Personalize!$E$4=TRUE,(((VLOOKUP($C37,Hitter!$A$1:$AD$600,21,FALSE))-Filtered!$AF$35)/Filtered!$AG$35),"")),"") -> 1.774333009 | O37: =IFERROR(IF((OR($D37="RP",$D37="SP")),IF(Personalize!$E$12=TRUE,(((VLOOKUP($C37,Pitcher!$A$1:$P$600,9,FALSE))-'Filtered-P'!$W$15)/'Filtered-P'!$X$15),""),IF(Personalize!$E$3=TRUE,(((VLOOKUP($C37,Hitter!$A$1:$AB$600,9,FALSE))-Filtered!$AF$25)/Filtered!$AG$25),"")),"") -> -0.5372019451 | P37: =IFERROR(IF((OR($D37="RP",$D37="SP")),IF(Personalize!$E$11=TRUE,(((VLOOKUP($C37,Pitcher!$A$1:$P$600,7,FALSE))-'Filtered-P'!$W$13)/'Filtered-P'!$X$13),""),IF(Personalize!$E$2=TRUE,(((VLOOKUP($C37,Hitter!$A$1:$AB$600,4,FALSE))-Filtered!$AF$20)/Filtered!$AG$20),"")),"") -> 1.413899262 | Q37: =IFERROR(IF((OR($D37="RP",$D37="SP")),IF(Personalize!$E$13=TRUE,(((VLOOKUP($C37,Pitcher!$A$1:$P$600,13,FALSE))-'Filtered-P'!$W$19)/'Filtered-P'!$X$19),""),IF(Personalize!$E$5=TRUE,(((VLOOKUP($C37,Hitter!$A$1:$AB$600,10,FALSE))-Filtered!$AF$26)/Filtered!$AG$26),"")),"") -> 0.9135223011 | R37: =IFERROR(IF((OR($D37="RP",$D37="SP")),IF(Personalize!$E$14=TRUE,(((VLOOKUP($C37,Pitcher!$A$1:$P$600,14,FALSE))-'Filtered-P'!$W$20)/'Filtered-P'!$X$20),""),IF(Personalize!$E$6=TRUE,(((VLOOKUP($C37,Hitter!$A$1:$AB$600,11,FALSE))-Filtered!$AF$27)/Filtered!$AG$27),"")),"") -> -0.1817559604 | S37: =IFERROR(IF((OR($D37="RP",$D37="SP")),IF(Personalize!$E$16=TRUE,(((VLOOKUP($C37,Pitcher!$A$1:$P$600,3,FALSE))-'Filtered-P'!$W$9)/'Filtered-P'!$X$9),""),IF(Personalize!$E$7=TRUE,(((VLOOKUP($C37,Hitter!$A$1:$AD$600,23,FALSE))-Filtered!$AF$37)/Filtered!$AG$37),"")),"") ->  | T37: =IFERROR(IF((OR($D37="RP",$D37="SP")),IF(Personalize!$E$15=TRUE,(((VLOOKUP($C37,Pitcher!$A$1:$P$600,15,FALSE))-'Filtered-P'!$W$21)/'Filtered-P'!$X$21),""),IF(Personalize!$E$8=TRUE,(((VLOOKUP($C37,Hitter!$A$1:$AD$600,22,FALSE))-Filtered!$AF$36)/Filtered!$AG$36),"")),"") ->  | U37: =IFERROR(IF((OR($D37="RP",$D37="SP")),IF(Personalize!$E$17=TRUE,(((VLOOKUP($C37,Pitcher!$A$1:$P$600,16,FALSE))-'Filtered-P'!$W$22)/'Filtered-P'!$X$22),""),IF(Personalize!$E$9=TRUE,(((VLOOKUP($C37,Hitter!$A$1:$AD$600,24,FALSE))-Filtered!$AF$38)/Filtered!$AG$38),"")),"") ->  | V37: =IFERROR(IF((OR($D37="RP",$D37="SP")),IF(Personalize!$E$37=TRUE,(((VLOOKUP($C37,Pitcher!$A$1:$Z$600,17,FALSE))-'Filtered-P'!$W$25)/'Filtered-P'!$X$25),""),IF(Personalize!$E$39=TRUE,(((VLOOKUP($C37,Hitter!$A$1:$X$600,5,FALSE))-Filtered!$AF$21)/Filtered!$AG$21),"")),"") ->  | W37: =IFERROR(IF((OR($D37="RP",$D37="SP")),IF(Personalize!$E$38=TRUE,(((VLOOKUP($C37,Pitcher!$A$1:$Z$600,18,FALSE))-'Filtered-P'!$W$26)/'Filtered-P'!$X$26),""),IF(Personalize!$E$40=TRUE,(((VLOOKUP($C37,Hitter!$A$1:$X$600,13,FALSE))-Filtered!$AF$29)/Filtered!$AG$29),"")),"") ->  | X37: =IFERROR(IF((OR($D37="RP",$D37="SP")),IF(Personalize!$E$45=TRUE,(((VLOOKUP($C37,Pitcher!$A$1:$Z$600,4,FALSE))-'Filtered-P'!$W$10)/'Filtered-P'!$X$10),""),IF(Personalize!$E$41=TRUE,(((VLOOKUP($C37,Hitter!$A$1:$AD$600,19,FALSE))-Filtered!$AF$43)/Filtered!$AG$43),"")),"") ->  | Y37: =IFERROR(IF((OR($D37="RP",$D37="SP")),IF(Personalize!$E$46=TRUE,(((VLOOKUP($C37,Pitcher!$A$1:$Z$600,19,FALSE))-'Filtered-P'!$W$27)/'Filtered-P'!$X$27),""),IF(Personalize!$E$44=TRUE,(((VLOOKUP($C37,Hitter!$A$1:$AD$600,20,FALSE))-Filtered!$AF$44)/Filtered!$AG$44),"")),"") ->  | Z37: =IFERROR(IF((OR($D37="RP",$D37="SP")),IF(Personalize!$E$47=TRUE,(((VLOOKUP($C37,Pitcher!$A$1:$Z$600,6,FALSE))-'Filtered-P'!$W$12)/'Filtered-P'!$X$12),""),IF(Personalize!$E$42=TRUE,(((VLOOKUP($C37,Hitter!$A$1:$AD$600,7,FALSE))-Filtered!$AF$23)/Filtered!$AG$23),"")),"") ->  | AA37: =IFERROR(IF((OR($D37="RP",$D37="SP")),IF(Personalize!$E$48=TRUE,(((VLOOKUP($C37,Pitcher!$A$1:$Z$600,5,FALSE))-'Filtered-P'!$W$11)/'Filtered-P'!$X$11),""),IF(Personalize!$E$43=TRUE,(((VLOOKUP($C37,Hitter!$A$1:$AD$600,8,FALSE))-Filtered!$AF$24)/Filtered!$AG$24),"")),"") ->  | AB37: =IFERROR(IF((OR($D37="RP",$D37="SP")),VLOOKUP($C37,Pitcher!$A$1:$P$600,2,FALSE),""),"") -> 15.9824697 | AC37: =IFERROR(IF((OR($D37="RP",$D37="SP")),VLOOKUP($C37,Pitcher!$A$1:$P$600,9,FALSE),""),"") -> 0 | AD37: =IFERROR(IF((OR($D37="RP",$D37="SP")),VLOOKUP($C37,Pitcher!$A$1:$P$600,7,FALSE),""),"") -> 191.034057 | AE37: =IFERROR(IF((OR($D37="RP",$D37="SP")),VLOOKUP($C37,Pitcher!$A$1:$P$600,10,FALSE),""),"") -> 3.428000578 | AF37: =IFERROR(IF((OR($D37="RP",$D37="SP")),VLOOKUP($C37,Pitcher!$A$1:$P$600,11,FALSE),""),"") -> 1.23562319 | AG37: =IFERROR(IF((OR($D37="RP",$D37="SP")),"",VLOOKUP($C37,Hitter!$A$1:$X$600,15,FALSE)),"") ->  | AH37: =IFERROR(IF((OR($D37="RP",$D37="SP")),"",VLOOKUP($C37,Hitter!$A$1:$X$600,9,FALSE)),"") ->  | AI37: =IFERROR(IF((OR($D37="RP",$D37="SP")),"",VLOOKUP($C37,Hitter!$A$1:$X$600,10,FALSE)),"") ->  | AJ37: =IFERROR(IF((OR($D37="RP",$D37="SP")),"",VLOOKUP($C37,Hitter!$A$1:$X$600,4,FALSE)),"") ->  | AK37: =IFERROR(IF((OR($D37="RP",$D37="SP")),"",VLOOKUP($C37,Hitter!$A$1:$X$600,11,FALSE)),"") ->  | AL37: 0 | AM37: 1 | AN37: 0 | AO37: 13 | AP37: =VLOOKUP(C37,'Starter Calc'!$B$2:$BO$600,66,FALSE) -> Bench | AQ37: =VLOOKUP(C37,'Starter Calc'!$B$2:$AM$600,38,FALSE) -> Yes | AR37: =IFERROR(IF(ISTEXT($A37),"",IF((OR($D37="RP",$D37="SP")),ABS(VLOOKUP(D37,'Filtered-P'!$V$3:$Z$4,5,FALSE))+L37,ABS(VLOOKUP(D37,Filtered!$AE$3:$AI$14,5,FALSE))+L37)),"") -> 6.001454025 | AS37: 7.938527282 | AT37: N
C38: Hanley Ramirez | D38: =IFERROR(IF(VLOOKUP(C38,'ADP-Rank'!$A$2:$B$600,2,FALSE)="OF",VLOOKUP(C38,'Starter Calc'!$B$2:$AN$600,39,FALSE),(VLOOKUP(C38,'ADP-Rank'!$A$2:$B$600,2,FALSE))),"") -> SS | E38: =IFERROR(IF(VLOOKUP(C38,'Starter Calc'!$B$2:$E$600,4,FALSE)="","",VLOOKUP(C38,'Starter Calc'!$B$2:$E$600,4,FALSE)),"") ->  | F38: =IFERROR(VLOOKUP($C38,'ADP-Rank'!$A$2:$D$600,3,FALSE),"") -> MIA | G38: =IFERROR(VLOOKUP($C38,'ADP-Rank'!$A$2:$W$600,23,FALSE),"") -> 29 | H38: =IFERROR(IF(ISBLANK($B38),ROUND(((AS38/$AS$1)*(Personalize!$A$3-$AQ$1))+1,0),""),"") -> 20 | I38: =IFERROR(CHOOSE(Personalize!$E$32,VLOOKUP($C38,'ADP-Rank'!$A$2:$U$600,13,FALSE),VLOOKUP($C38,'ADP-Rank'!$A$2:$U$600,14,FALSE),VLOOKUP($C38,'ADP-Rank'!$A$2:$U$600,15,FALSE),VLOOKUP($C38,'ADP-Rank'!$A$2:$U$600,16,FALSE),VLOOKUP($C38,'ADP-Rank'!$A$2:$U$600,17,FALSE),VLOOKUP($C38,'ADP-Rank'!$A$2:$U$600,18,FALSE),VLOOKUP($C38,'ADP-Rank'!$A$2:$U$600,19,FALSE),VLOOKUP($C38,'ADP-Rank'!$A$2:$U$600,20,FALSE)),"") -> 17.14285714 | J38: =IF(ISBLANK($B38),IFERROR(CHOOSE(Personalize!$E$31,(VLOOKUP(C38,'ADP-Rank'!$A$2:$E$600,5,FALSE)*(Personalize!$A$3-$AQ$1)+1),(VLOOKUP(C38,'ADP-Rank'!$A$2:$E$600,4,FALSE)*(Personalize!$A$3-$AQ$1)+1),(VLOOKUP(C38,'ADP-Rank'!$A$2:$G$600,6,FALSE)*(Personalize!$A$3-$AQ$1)+1),(VLOOKUP(C38,'ADP-Rank'!$A$2:$Z$600,7,FALSE)*(Personalize!$A$3-$AQ$1)+1),(VLOOKUP(C38,'ADP-Rank'!$A$2:$Z$600,8,FALSE)*(Personalize!$A$3-$AQ$1)+1),(VLOOKUP(C38,'ADP-Rank'!$A$2:$Z$600,9,FALSE)*(Personalize!$A$3-$AQ$1)+1),(VLOOKUP(C38,'ADP-Rank'!$A$2:$Z$600,10,FALSE)*(Personalize!$A$3-$AQ$1)+1)),""),"") -> 29.0338296 | K38: 41 | L38: 2.544602767 | M38: =IFERROR(IF((OR($D38="RP",$D38="SP")),VLOOKUP($D38,'Filtered-P'!$V$3:$Y$4,4,FALSE), VLOOKUP($D38,Filtered!$AE$3:$AH$14,4,FALSE)),"") -> -0.505851952 | N38: =IFERROR(IF((OR($D38="RP",$D38="SP")),IF(Personalize!$E$10=TRUE,(((VLOOKUP($C38,Pitcher!$A$1:$P$600,2,FALSE))-'Filtered-P'!$W$8)/'Filtered-P'!$X$8),""),IF(Personalize!$E$4=TRUE,(((VLOOKUP($C38,Hitter!$A$1:$AD$600,21,FALSE))-Filtered!$AF$35)/Filtered!$AG$35),"")),"") -> 0.8842455937 | O38: =IFERROR(IF((OR($D38="RP",$D38="SP")),IF(Personalize!$E$12=TRUE,(((VLOOKUP($C38,Pitcher!$A$1:$P$600,9,FALSE))-'Filtered-P'!$W$15)/'Filtered-P'!$X$15),""),IF(Personalize!$E$3=TRUE,(((VLOOKUP($C38,Hitter!$A$1:$AB$600,9,FALSE))-Filtered!$AF$25)/Filtered!$AG$25),"")),"") -> -0.01704811471 | P38: =IFERROR(IF((OR($D38="RP",$D38="SP")),IF(Personalize!$E$11=TRUE,(((VLOOKUP($C38,Pitcher!$A$1:$P$600,7,FALSE))-'Filtered-P'!$W$13)/'Filtered-P'!$X$13),""),IF(Personalize!$E$2=TRUE,(((VLOOKUP($C38,Hitter!$A$1:$AB$600,4,FALSE))-Filtered!$AF$20)/Filtered!$AG$20),"")),"") -> 0.4216205008 | Q38: =IFERROR(IF((OR($D38="RP",$D38="SP")),IF(Personalize!$E$13=TRUE,(((VLOOKUP($C38,Pitcher!$A$1:$P$600,13,FALSE))-'Filtered-P'!$W$19)/'Filtered-P'!$X$19),""),IF(Personalize!$E$5=TRUE,(((VLOOKUP($C38,Hitter!$A$1:$AB$600,10,FALSE))-Filtered!$AF$26)/Filtered!$AG$26),"")),"") -> -0.1284505973 | R38: =IFERROR(IF((OR($D38="RP",$D38="SP")),IF(Personalize!$E$14=TRUE,(((VLOOKUP($C38,Pitcher!$A$1:$P$600,14,FALSE))-'Filtered-P'!$W$20)/'Filtered-P'!$X$20),""),IF(Personalize!$E$6=TRUE,(((VLOOKUP($C38,Hitter!$A$1:$AB$600,11,FALSE))-Filtered!$AF$27)/Filtered!$AG$27),"")),"") -> 1.384235385 | S38: =IFERROR(IF((OR($D38="RP",$D38="SP")),IF(Personalize!$E$16=TRUE,(((VLOOKUP($C38,Pitcher!$A$1:$P$600,3,FALSE))-'Filtered-P'!$W$9)/'Filtered-P'!$X$9),""),IF(Personalize!$E$7=TRUE,(((VLOOKUP($C38,Hitter!$A$1:$AD$600,23,FALSE))-Filtered!$AF$37)/Filtered!$AG$37),"")),"") ->  | T38: =IFERROR(IF((OR($D38="RP",$D38="SP")),IF(Personalize!$E$15=TRUE,(((VLOOKUP($C38,Pitcher!$A$1:$P$600,15,FALSE))-'Filtered-P'!$W$21)/'Filtered-P'!$X$21),""),IF(Personalize!$E$8=TRUE,(((VLOOKUP($C38,Hitter!$A$1:$AD$600,22,FALSE))-Filtered!$AF$36)/Filtered!$AG$36),"")),"") ->  | U38: =IFERROR(IF((OR($D38="RP",$D38="SP")),IF(Personalize!$E$17=TRUE,(((VLOOKUP($C38,Pitcher!$A$1:$P$600,16,FALSE))-'Filtered-P'!$W$22)/'Filtered-P'!$X$22),""),IF(Personalize!$E$9=TRUE,(((VLOOKUP($C38,Hitter!$A$1:$AD$600,24,FALSE))-Filtered!$AF$38)/Filtered!$AG$38),"")),"") ->  | V38: =IFERROR(IF((OR($D38="RP",$D38="SP")),IF(Personalize!$E$37=TRUE,(((VLOOKUP($C38,Pitcher!$A$1:$Z$600,17,FALSE))-'Filtered-P'!$W$25)/'Filtered-P'!$X$25),""),IF(Personalize!$E$39=TRUE,(((VLOOKUP($C38,Hitter!$A$1:$X$600,5,FALSE))-Filtered!$AF$21)/Filtered!$AG$21),"")),"") ->  | W38: =IFERROR(IF((OR($D38="RP",$D38="SP")),IF(Personalize!$E$38=TRUE,(((VLOOKUP($C38,Pitcher!$A$1:$Z$600,18,FALSE))-'Filtered-P'!$W$26)/'Filtered-P'!$X$26),""),IF(Personalize!$E$40=TRUE,(((VLOOKUP($C38,Hitter!$A$1:$X$600,13,FALSE))-Filtered!$AF$29)/Filtered!$AG$29),"")),"") ->  | X38: =IFERROR(IF((OR($D38="RP",$D38="SP")),IF(Personalize!$E$45=TRUE,(((VLOOKUP($C38,Pitcher!$A$1:$Z$600,4,FALSE))-'Filtered-P'!$W$10)/'Filtered-P'!$X$10),""),IF(Personalize!$E$41=TRUE,(((VLOOKUP($C38,Hitter!$A$1:$AD$600,19,FALSE))-Filtered!$AF$43)/Filtered!$AG$43),"")),"") ->  | Y38: =IFERROR(IF((OR($D38="RP",$D38="SP")),IF(Personalize!$E$46=TRUE,(((VLOOKUP($C38,Pitcher!$A$1:$Z$600,19,FALSE))-'Filtered-P'!$W$27)/'Filtered-P'!$X$27),""),IF(Personalize!$E$44=TRUE,(((VLOOKUP($C38,Hitter!$A$1:$AD$600,20,FALSE))-Filtered!$AF$44)/Filtered!$AG$44),"")),"") ->  | Z38: =IFERROR(IF((OR($D38="RP",$D38="SP")),IF(Personalize!$E$47=TRUE,(((VLOOKUP($C38,Pitcher!$A$1:$Z$600,6,FALSE))-'Filtered-P'!$W$12)/'Filtered-P'!$X$12),""),IF(Personalize!$E$42=TRUE,(((VLOOKUP($C38,Hitter!$A$1:$AD$600,7,FALSE))-Filtered!$AF$23)/Filtered!$AG$23),"")),"") ->  | AA38: =IFERROR(IF((OR($D38="RP",$D38="SP")),IF(Personalize!$E$48=TRUE,(((VLOOKUP($C38,Pitcher!$A$1:$Z$600,5,FALSE))-'Filtered-P'!$W$11)/'Filtered-P'!$X$11),""),IF(Personalize!$E$43=TRUE,(((VLOOKUP($C38,Hitter!$A$1:$AD$600,8,FALSE))-Filtered!$AF$24)/Filtered!$AG$24),"")),"") ->  | AB38: =IFERROR(IF((OR($D38="RP",$D38="SP")),VLOOKUP($C38,Pitcher!$A$1:$P$600,2,FALSE),""),"") ->  | AC38: =IFERROR(IF((OR($D38="RP",$D38="SP")),VLOOKUP($C38,Pitcher!$A$1:$P$600,9,FALSE),""),"") ->  | AD38: =IFERROR(IF((OR($D38="RP",$D38="SP")),VLOOKUP($C38,Pitcher!$A$1:$P$600,7,FALSE),""),"") ->  | AE38: =IFERROR(IF((OR($D38="RP",$D38="SP")),VLOOKUP($C38,Pitcher!$A$1:$P$600,10,FALSE),""),"") ->  | AF38: =IFERROR(IF((OR($D38="RP",$D38="SP")),VLOOKUP($C38,Pitcher!$A$1:$P$600,11,FALSE),""),"") ->  | AG38: =IFERROR(IF((OR($D38="RP",$D38="SP")),"",VLOOKUP($C38,Hitter!$A$1:$X$600,15,FALSE)),"") -> 0.286905763 | AH38: =IFERROR(IF((OR($D38="RP",$D38="SP")),"",VLOOKUP($C38,Hitter!$A$1:$X$600,9,FALSE)),"") -> 17.31543631 | AI38: =IFERROR(IF((OR($D38="RP",$D38="SP")),"",VLOOKUP($C38,Hitter!$A$1:$X$600,10,FALSE)),"") -> 66.12965212 | AJ38: =IFERROR(IF((OR($D38="RP",$D38="SP")),"",VLOOKUP($C38,Hitter!$A$1:$X$600,4,FALSE)),"") -> 76.11639486 | AK38: =IFERROR(IF((OR($D38="RP",$D38="SP")),"",VLOOKUP($C38,Hitter!$A$1:$X$600,11,FALSE)),"") -> 24.39681464 | AL38: 0 | AM38: 1 | AN38: 0 | AO38: 5 | AP38: =VLOOKUP(C38,'Starter Calc'!$B$2:$BO$600,66,FALSE) -> Bench | AQ38: =VLOOKUP(C38,'Starter Calc'!$B$2:$AM$600,38,FALSE) -> Yes | AR38: =IFERROR(IF(ISTEXT($A38),"",IF((OR($D38="RP",$D38="SP")),ABS(VLOOKUP(D38,'Filtered-P'!$V$3:$Z$4,5,FALSE))+L38,ABS(VLOOKUP(D38,Filtered!$AE$3:$AI$14,5,FALSE))+L38)),"") -> 6.012333715 | AS38: 7.949406972 | AT38: N
C39: Dan Uggla | D39: =IFERROR(IF(VLOOKUP(C39,'ADP-Rank'!$A$2:$B$600,2,FALSE)="OF",VLOOKUP(C39,'Starter Calc'!$B$2:$AN$600,39,FALSE),(VLOOKUP(C39,'ADP-Rank'!$A$2:$B$600,2,FALSE))),"") -> 2B | E39: =IFERROR(IF(VLOOKUP(C39,'Starter Calc'!$B$2:$E$600,4,FALSE)="","",VLOOKUP(C39,'Starter Calc'!$B$2:$E$600,4,FALSE)),"") ->  | F39: =IFERROR(VLOOKUP($C39,'ADP-Rank'!$A$2:$D$600,3,FALSE),"") -> ATL | G39: =IFERROR(VLOOKUP($C39,'ADP-Rank'!$A$2:$W$600,23,FALSE),"") -> 32 | H39: =IFERROR(IF(ISBLANK($B39),ROUND(((AS39/$AS$1)*(Personalize!$A$3-$AQ$1))+1,0),""),"") -> 20 | I39: =IFERROR(CHOOSE(Personalize!$E$32,VLOOKUP($C39,'ADP-Rank'!$A$2:$U$600,13,FALSE),VLOOKUP($C39,'ADP-Rank'!$A$2:$U$600,14,FALSE),VLOOKUP($C39,'ADP-Rank'!$A$2:$U$600,15,FALSE),VLOOKUP($C39,'ADP-Rank'!$A$2:$U$600,16,FALSE),VLOOKUP($C39,'ADP-Rank'!$A$2:$U$600,17,FALSE),VLOOKUP($C39,'ADP-Rank'!$A$2:$U$600,18,FALSE),VLOOKUP($C39,'ADP-Rank'!$A$2:$U$600,19,FALSE),VLOOKUP($C39,'ADP-Rank'!$A$2:$U$600,20,FALSE)),"") -> 45 | J39: =IF(ISBLANK($B39),IFERROR(CHOOSE(Personalize!$E$31,(VLOOKUP(C39,'ADP-Rank'!$A$2:$E$600,5,FALSE)*(Personalize!$A$3-$AQ$1)+1),(VLOOKUP(C39,'ADP-Rank'!$A$2:$E$600,4,FALSE)*(Personalize!$A$3-$AQ$1)+1),(VLOOKUP(C39,'ADP-Rank'!$A$2:$G$600,6,FALSE)*(Personalize!$A$3-$AQ$1)+1),(VLOOKUP(C39,'ADP-Rank'!$A$2:$Z$600,7,FALSE)*(Personalize!$A$3-$AQ$1)+1),(VLOOKUP(C39,'ADP-Rank'!$A$2:$Z$600,8,FALSE)*(Personalize!$A$3-$AQ$1)+1),(VLOOKUP(C39,'ADP-Rank'!$A$2:$Z$600,9,FALSE)*(Personalize!$A$3-$AQ$1)+1),(VLOOKUP(C39,'ADP-Rank'!$A$2:$Z$600,10,FALSE)*(Personalize!$A$3-$AQ$1)+1)),""),"") -> 20.68798058 | K39: 52 | L39: 1.837285041 | M39: =IFERROR(IF((OR($D39="RP",$D39="SP")),VLOOKUP($D39,'Filtered-P'!$V$3:$Y$4,4,FALSE), VLOOKUP($D39,Filtered!$AE$3:$AH$14,4,FALSE)),"") -> -0.2209507435 | N39: =IFERROR(IF((OR($D39="RP",$D39="SP")),IF(Personalize!$E$10=TRUE,(((VLOOKUP($C39,Pitcher!$A$1:$P$600,2,FALSE))-'Filtered-P'!$W$8)/'Filtered-P'!$X$8),""),IF(Personalize!$E$4=TRUE,(((VLOOKUP($C39,Hitter!$A$1:$AD$600,21,FALSE))-Filtered!$AF$35)/Filtered!$AG$35),"")),"") -> -1.280859368 | O39: =IFERROR(IF((OR($D39="RP",$D39="SP")),IF(Personalize!$E$12=TRUE,(((VLOOKUP($C39,Pitcher!$A$1:$P$600,9,FALSE))-'Filtered-P'!$W$15)/'Filtered-P'!$X$15),""),IF(Personalize!$E$3=TRUE,(((VLOOKUP($C39,Hitter!$A$1:$AB$600,9,FALSE))-Filtered!$AF$25)/Filtered!$AG$25),"")),"") -> 1.707357487 | P39: =IFERROR(IF((OR($D39="RP",$D39="SP")),IF(Personalize!$E$11=TRUE,(((VLOOKUP($C39,Pitcher!$A$1:$P$600,7,FALSE))-'Filtered-P'!$W$13)/'Filtered-P'!$X$13),""),IF(Personalize!$E$2=TRUE,(((VLOOKUP($C39,Hitter!$A$1:$AB$600,4,FALSE))-Filtered!$AF$20)/Filtered!$AG$20),"")),"") -> 1.079264499 | Q39: =IFERROR(IF((OR($D39="RP",$D39="SP")),IF(Personalize!$E$13=TRUE,(((VLOOKUP($C39,Pitcher!$A$1:$P$600,13,FALSE))-'Filtered-P'!$W$19)/'Filtered-P'!$X$19),""),IF(Personalize!$E$5=TRUE,(((VLOOKUP($C39,Hitter!$A$1:$AB$600,10,FALSE))-Filtered!$AF$26)/Filtered!$AG$26),"")),"") -> 1.223893346 | R39: =IFERROR(IF((OR($D39="RP",$D39="SP")),IF(Personalize!$E$14=TRUE,(((VLOOKUP($C39,Pitcher!$A$1:$P$600,14,FALSE))-'Filtered-P'!$W$20)/'Filtered-P'!$X$20),""),IF(Personalize!$E$6=TRUE,(((VLOOKUP($C39,Hitter!$A$1:$AB$600,11,FALSE))-Filtered!$AF$27)/Filtered!$AG$27),"")),"") -> -0.8923709229 | S39: =IFERROR(IF((OR($D39="RP",$D39="SP")),IF(Personalize!$E$16=TRUE,(((VLOOKUP($C39,Pitcher!$A$1:$P$600,3,FALSE))-'Filtered-P'!$W$9)/'Filtered-P'!$X$9),""),IF(Personalize!$E$7=TRUE,(((VLOOKUP($C39,Hitter!$A$1:$AD$600,23,FALSE))-Filtered!$AF$37)/Filtered!$AG$37),"")),"") ->  | T39: =IFERROR(IF((OR($D39="RP",$D39="SP")),IF(Personalize!$E$15=TRUE,(((VLOOKUP($C39,Pitcher!$A$1:$P$600,15,FALSE))-'Filtered-P'!$W$21)/'Filtered-P'!$X$21),""),IF(Personalize!$E$8=TRUE,(((VLOOKUP($C39,Hitter!$A$1:$AD$600,22,FALSE))-Filtered!$AF$36)/Filtered!$AG$36),"")),"") ->  | U39: =IFERROR(IF((OR($D39="RP",$D39="SP")),IF(Personalize!$E$17=TRUE,(((VLOOKUP($C39,Pitcher!$A$1:$P$600,16,FALSE))-'Filtered-P'!$W$22)/'Filtered-P'!$X$22),""),IF(Personalize!$E$9=TRUE,(((VLOOKUP($C39,Hitter!$A$1:$AD$600,24,FALSE))-Filtered!$AF$38)/Filtered!$AG$38),"")),"") ->  | V39: =IFERROR(IF((OR($D39="RP",$D39="SP")),IF(Personalize!$E$37=TRUE,(((VLOOKUP($C39,Pitcher!$A$1:$Z$600,17,FALSE))-'Filtered-P'!$W$25)/'Filtered-P'!$X$25),""),IF(Personalize!$E$39=TRUE,(((VLOOKUP($C39,Hitter!$A$1:$X$600,5,FALSE))-Filtered!$AF$21)/Filtered!$AG$21),"")),"") ->  | W39: =IFERROR(IF((OR($D39="RP",$D39="SP")),IF(Personalize!$E$38=TRUE,(((VLOOKUP($C39,Pitcher!$A$1:$Z$600,18,FALSE))-'Filtered-P'!$W$26)/'Filtered-P'!$X$26),""),IF(Personalize!$E$40=TRUE,(((VLOOKUP($C39,Hitter!$A$1:$X$600,13,FALSE))-Filtered!$AF$29)/Filtered!$AG$29),"")),"") ->  | X39: =IFERROR(IF((OR($D39="RP",$D39="SP")),IF(Personalize!$E$45=TRUE,(((VLOOKUP($C39,Pitcher!$A$1:$Z$600,4,FALSE))-'Filtered-P'!$W$10)/'Filtered-P'!$X$10),""),IF(Personalize!$E$41=TRUE,(((VLOOKUP($C39,Hitter!$A$1:$AD$600,19,FALSE))-Filtered!$AF$43)/Filtered!$AG$43),"")),"") ->  | Y39: =IFERROR(IF((OR($D39="RP",$D39="SP")),IF(Personalize!$E$46=TRUE,(((VLOOKUP($C39,Pitcher!$A$1:$Z$600,19,FALSE))-'Filtered-P'!$W$27)/'Filtered-P'!$X$27),""),IF(Personalize!$E$44=TRUE,(((VLOOKUP($C39,Hitter!$A$1:$AD$600,20,FALSE))-Filtered!$AF$44)/Filtered!$AG$44),"")),"") ->  | Z39: =IFERROR(IF((OR($D39="RP",$D39="SP")),IF(Personalize!$E$47=TRUE,(((VLOOKUP($C39,Pitcher!$A$1:$Z$600,6,FALSE))-'Filtered-P'!$W$12)/'Filtered-P'!$X$12),""),IF(Personalize!$E$42=TRUE,(((VLOOKUP($C39,Hitter!$A$1:$AD$600,7,FALSE))-Filtered!$AF$23)/Filtered!$AG$23),"")),"") ->  | AA39: =IFERROR(IF((OR($D39="RP",$D39="SP")),IF(Personalize!$E$48=TRUE,(((VLOOKUP($C39,Pitcher!$A$1:$Z$600,5,FALSE))-'Filtered-P'!$W$11)/'Filtered-P'!$X$11),""),IF(Personalize!$E$43=TRUE,(((VLOOKUP($C39,Hitter!$A$1:$AD$600,8,FALSE))-Filtered!$AF$24)/Filtered!$AG$24),"")),"") ->  | AB39: =IFERROR(IF((OR($D39="RP",$D39="SP")),VLOOKUP($C39,Pitcher!$A$1:$P$600,2,FALSE),""),"") ->  | AC39: =IFERROR(IF((OR($D39="RP",$D39="SP")),VLOOKUP($C39,Pitcher!$A$1:$P$600,9,FALSE),""),"") ->  | AD39: =IFERROR(IF((OR($D39="RP",$D39="SP")),VLOOKUP($C39,Pitcher!$A$1:$P$600,7,FALSE),""),"") ->  | AE39: =IFERROR(IF((OR($D39="RP",$D39="SP")),VLOOKUP($C39,Pitcher!$A$1:$P$600,10,FALSE),""),"") ->  | AF39: =IFERROR(IF((OR($D39="RP",$D39="SP")),VLOOKUP($C39,Pitcher!$A$1:$P$600,11,FALSE),""),"") ->  | AG39: =IFERROR(IF((OR($D39="RP",$D39="SP")),"",VLOOKUP($C39,Hitter!$A$1:$X$600,15,FALSE)),"") -> 0.250159992 | AH39: =IFERROR(IF((OR($D39="RP",$D39="SP")),"",VLOOKUP($C39,Hitter!$A$1:$X$600,9,FALSE)),"") -> 29.45713137 | AI39: =IFERROR(IF((OR($D39="RP",$D39="SP")),"",VLOOKUP($C39,Hitter!$A$1:$X$600,10,FALSE)),"") -> 87.29477967 | AJ39: =IFERROR(IF((OR($D39="RP",$D39="SP")),"",VLOOKUP($C39,Hitter!$A$1:$X$600,4,FALSE)),"") -> 83.6947093 | AK39: =IFERROR(IF((OR($D39="RP",$D39="SP")),"",VLOOKUP($C39,Hitter!$A$1:$X$600,11,FALSE)),"") -> 2.638121788 | AL39: 0 | AM39: 1 | AN39: 0 | AO39: 3 | AP39: =VLOOKUP(C39,'Starter Calc'!$B$2:$BO$600,66,FALSE) -> Bench | AQ39: =VLOOKUP(C39,'Starter Calc'!$B$2:$AM$600,38,FALSE) -> Yes | AR39: =IFERROR(IF(ISTEXT($A39),"",IF((OR($D39="RP",$D39="SP")),ABS(VLOOKUP(D39,'Filtered-P'!$V$3:$Z$4,5,FALSE))+L39,ABS(VLOOKUP(D39,Filtered!$AE$3:$AI$14,5,FALSE))+L39)),"") -> 5.987748522 | AS39: 7.924821779 | AT39: N
C40: Mark Reynolds | D40: =IFERROR(IF(VLOOKUP(C40,'ADP-Rank'!$A$2:$B$600,2,FALSE)="OF",VLOOKUP(C40,'Starter Calc'!$B$2:$AN$600,39,FALSE),(VLOOKUP(C40,'ADP-Rank'!$A$2:$B$600,2,FALSE))),"") -> 3B | E40: =IFERROR(IF(VLOOKUP(C40,'Starter Calc'!$B$2:$E$600,4,FALSE)="","",VLOOKUP(C40,'Starter Calc'!$B$2:$E$600,4,FALSE)),"") ->  | F40: =IFERROR(VLOOKUP($C40,'ADP-Rank'!$A$2:$D$600,3,FALSE),"") -> BAL | G40: =IFERROR(VLOOKUP($C40,'ADP-Rank'!$A$2:$W$600,23,FALSE),"") -> 29 | H40: =IFERROR(IF(ISBLANK($B40),ROUND(((AS40/$AS$1)*(Personalize!$A$3-$AQ$1))+1,0),""),"") -> 20 | I40: =IFERROR(CHOOSE(Personalize!$E$32,VLOOKUP($C40,'ADP-Rank'!$A$2:$U$600,13,FALSE),VLOOKUP($C40,'ADP-Rank'!$A$2:$U$600,14,FALSE),VLOOKUP($C40,'ADP-Rank'!$A$2:$U$600,15,FALSE),VLOOKUP($C40,'ADP-Rank'!$A$2:$U$600,16,FALSE),VLOOKUP($C40,'ADP-Rank'!$A$2:$U$600,17,FALSE),VLOOKUP($C40,'ADP-Rank'!$A$2:$U$600,18,FALSE),VLOOKUP($C40,'ADP-Rank'!$A$2:$U$600,19,FALSE),VLOOKUP($C40,'ADP-Rank'!$A$2:$U$600,20,FALSE)),"") -> 123.8571429 | J40: =IF(ISBLANK($B40),IFERROR(CHOOSE(Personalize!$E$31,(VLOOKUP(C40,'ADP-Rank'!$A$2:$E$600,5,FALSE)*(Personalize!$A$3-$AQ$1)+1),(VLOOKUP(C40,'ADP-Rank'!$A$2:$E$600,4,FALSE)*(Personalize!$A$3-$AQ$1)+1),(VLOOKUP(C40,'ADP-Rank'!$A$2:$G$600,6,FALSE)*(Personalize!$A$3-$AQ$1)+1),(VLOOKUP(C40,'ADP-Rank'!$A$2:$Z$600,7,FALSE)*(Personalize!$A$3-$AQ$1)+1),(VLOOKUP(C40,'ADP-Rank'!$A$2:$Z$600,8,FALSE)*(Personalize!$A$3-$AQ$1)+1),(VLOOKUP(C40,'ADP-Rank'!$A$2:$Z$600,9,FALSE)*(Personalize!$A$3-$AQ$1)+1),(VLOOKUP(C40,'ADP-Rank'!$A$2:$Z$600,10,FALSE)*(Personalize!$A$3-$AQ$1)+1)),""),"") -> 9.954220877 | K40: 55 | L40: 1.729526738 | M40: =IFERROR(IF((OR($D40="RP",$D40="SP")),VLOOKUP($D40,'Filtered-P'!$V$3:$Y$4,4,FALSE), VLOOKUP($D40,Filtered!$AE$3:$AH$14,4,FALSE)),"") -> -0.4103695081 | N40: =IFERROR(IF((OR($D40="RP",$D40="SP")),IF(Personalize!$E$10=TRUE,(((VLOOKUP($C40,Pitcher!$A$1:$P$600,2,FALSE))-'Filtered-P'!$W$8)/'Filtered-P'!$X$8),""),IF(Personalize!$E$4=TRUE,(((VLOOKUP($C40,Hitter!$A$1:$AD$600,21,FALSE))-Filtered!$AF$35)/Filtered!$AG$35),"")),"") -> -2.805059929 | O40: =IFERROR(IF((OR($D40="RP",$D40="SP")),IF(Personalize!$E$12=TRUE,(((VLOOKUP($C40,Pitcher!$A$1:$P$600,9,FALSE))-'Filtered-P'!$W$15)/'Filtered-P'!$X$15),""),IF(Personalize!$E$3=TRUE,(((VLOOKUP($C40,Hitter!$A$1:$AB$600,9,FALSE))-Filtered!$AF$25)/Filtered!$AG$25),"")),"") -> 2.416704055 | P40: =IFERROR(IF((OR($D40="RP",$D40="SP")),IF(Personalize!$E$11=TRUE,(((VLOOKUP($C40,Pitcher!$A$1:$P$600,7,FALSE))-'Filtered-P'!$W$13)/'Filtered-P'!$X$13),""),IF(Personalize!$E$2=TRUE,(((VLOOKUP($C40,Hitter!$A$1:$AB$600,4,FALSE))-Filtered!$AF$20)/Filtered!$AG$20),"")),"") -> 1.085276835 | Q40: =IFERROR(IF((OR($D40="RP",$D40="SP")),IF(Personalize!$E$13=TRUE,(((VLOOKUP($C40,Pitcher!$A$1:$P$600,13,FALSE))-'Filtered-P'!$W$19)/'Filtered-P'!$X$19),""),IF(Personalize!$E$5=TRUE,(((VLOOKUP($C40,Hitter!$A$1:$AB$600,10,FALSE))-Filtered!$AF$26)/Filtered!$AG$26),"")),"") -> 1.145945988 | R40: =IFERROR(IF((OR($D40="RP",$D40="SP")),IF(Personalize!$E$14=TRUE,(((VLOOKUP($C40,Pitcher!$A$1:$P$600,14,FALSE))-'Filtered-P'!$W$20)/'Filtered-P'!$X$20),""),IF(Personalize!$E$6=TRUE,(((VLOOKUP($C40,Hitter!$A$1:$AB$600,11,FALSE))-Filtered!$AF$27)/Filtered!$AG$27),"")),"") -> -0.1133402107 | S40: =IFERROR(IF((OR($D40="RP",$D40="SP")),IF(Personalize!$E$16=TRUE,(((VLOOKUP($C40,Pitcher!$A$1:$P$600,3,FALSE))-'Filtered-P'!$W$9)/'Filtered-P'!$X$9),""),IF(Personalize!$E$7=TRUE,(((VLOOKUP($C40,Hitter!$A$1:$AD$600,23,FALSE))-Filtered!$AF$37)/Filtered!$AG$37),"")),"") ->  | T40: =IFERROR(IF((OR($D40="RP",$D40="SP")),IF(Personalize!$E$15=TRUE,(((VLOOKUP($C40,Pitcher!$A$1:$P$600,15,FALSE))-'Filtered-P'!$W$21)/'Filtered-P'!$X$21),""),IF(Personalize!$E$8=TRUE,(((VLOOKUP($C40,Hitter!$A$1:$AD$600,22,FALSE))-Filtered!$AF$36)/Filtered!$AG$36),"")),"") ->  | U40: =IFERROR(IF((OR($D40="RP",$D40="SP")),IF(Personalize!$E$17=TRUE,(((VLOOKUP($C40,Pitcher!$A$1:$P$600,16,FALSE))-'Filtered-P'!$W$22)/'Filtered-P'!$X$22),""),IF(Personalize!$E$9=TRUE,(((VLOOKUP($C40,Hitter!$A$1:$AD$600,24,FALSE))-Filtered!$AF$38)/Filtered!$AG$38),"")),"") ->  | V40: =IFERROR(IF((OR($D40="RP",$D40="SP")),IF(Personalize!$E$37=TRUE,(((VLOOKUP($C40,Pitcher!$A$1:$Z$600,17,FALSE))-'Filtered-P'!$W$25)/'Filtered-P'!$X$25),""),IF(Personalize!$E$39=TRUE,(((VLOOKUP($C40,Hitter!$A$1:$X$600,5,FALSE))-Filtered!$AF$21)/Filtered!$AG$21),"")),"") ->  | W40: =IFERROR(IF((OR($D40="RP",$D40="SP")),IF(Personalize!$E$38=TRUE,(((VLOOKUP($C40,Pitcher!$A$1:$Z$600,18,FALSE))-'Filtered-P'!$W$26)/'Filtered-P'!$X$26),""),IF(Personalize!$E$40=TRUE,(((VLOOKUP($C40,Hitter!$A$1:$X$600,13,FALSE))-Filtered!$AF$29)/Filtered!$AG$29),"")),"") ->  | X40: =IFERROR(IF((OR($D40="RP",$D40="SP")),IF(Personalize!$E$45=TRUE,(((VLOOKUP($C40,Pitcher!$A$1:$Z$600,4,FALSE))-'Filtered-P'!$W$10)/'Filtered-P'!$X$10),""),IF(Personalize!$E$41=TRUE,(((VLOOKUP($C40,Hitter!$A$1:$AD$600,19,FALSE))-Filtered!$AF$43)/Filtered!$AG$43),"")),"") ->  | Y40: =IFERROR(IF((OR($D40="RP",$D40="SP")),IF(Personalize!$E$46=TRUE,(((VLOOKUP($C40,Pitcher!$A$1:$Z$600,19,FALSE))-'Filtered-P'!$W$27)/'Filtered-P'!$X$27),""),IF(Personalize!$E$44=TRUE,(((VLOOKUP($C40,Hitter!$A$1:$AD$600,20,FALSE))-Filtered!$AF$44)/Filtered!$AG$44),"")),"") ->  | Z40: =IFERROR(IF((OR($D40="RP",$D40="SP")),IF(Personalize!$E$47=TRUE,(((VLOOKUP($C40,Pitcher!$A$1:$Z$600,6,FALSE))-'Filtered-P'!$W$12)/'Filtered-P'!$X$12),""),IF(Personalize!$E$42=TRUE,(((VLOOKUP($C40,Hitter!$A$1:$AD$600,7,FALSE))-Filtered!$AF$23)/Filtered!$AG$23),"")),"") ->  | AA40: =IFERROR(IF((OR($D40="RP",$D40="SP")),IF(Personalize!$E$48=TRUE,(((VLOOKUP($C40,Pitcher!$A$1:$Z$600,5,FALSE))-'Filtered-P'!$W$11)/'Filtered-P'!$X$11),""),IF(Personalize!$E$43=TRUE,(((VLOOKUP($C40,Hitter!$A$1:$AD$600,8,FALSE))-Filtered!$AF$24)/Filtered!$AG$24),"")),"") ->  | AB40: =IFERROR(IF((OR($D40="RP",$D40="SP")),VLOOKUP($C40,Pitcher!$A$1:$P$600,2,FALSE),""),"") ->  | AC40: =IFERROR(IF((OR($D40="RP",$D40="SP")),VLOOKUP($C40,Pitcher!$A$1:$P$600,9,FALSE),""),"") ->  | AD40: =IFERROR(IF((OR($D40="RP",$D40="SP")),VLOOKUP($C40,Pitcher!$A$1:$P$600,7,FALSE),""),"") ->  | AE40: =IFERROR(IF((OR($D40="RP",$D40="SP")),VLOOKUP($C40,Pitcher!$A$1:$P$600,10,FALSE),""),"") ->  | AF40: =IFERROR(IF((OR($D40="RP",$D40="SP")),VLOOKUP($C40,Pitcher!$A$1:$P$600,11,FALSE),""),"") ->  | AG40: =IFERROR(IF((OR($D40="RP",$D40="SP")),"",VLOOKUP($C40,Hitter!$A$1:$X$600,15,FALSE)),"") -> 0.2237172795 | AH40: =IFERROR(IF((OR($D40="RP",$D40="SP")),"",VLOOKUP($C40,Hitter!$A$1:$X$600,9,FALSE)),"") -> 34.4517044 | AI40: =IFERROR(IF((OR($D40="RP",$D40="SP")),"",VLOOKUP($C40,Hitter!$A$1:$X$600,10,FALSE)),"") -> 86.07484907 | AJ40: =IFERROR(IF((OR($D40="RP",$D40="SP")),"",VLOOKUP($C40,Hitter!$A$1:$X$600,4,FALSE)),"") -> 83.76399203 | AK40: =IFERROR(IF((OR($D40="RP",$D40="SP")),"",VLOOKUP($C40,Hitter!$A$1:$X$600,11,FALSE)),"") -> 10.08371742 | AL40: 0 | AM40: 1 | AN40: 0 | AO40: 4 | AP40: =VLOOKUP(C40,'Starter Calc'!$B$2:$BO$600,66,FALSE) -> Bench | AQ40: =VLOOKUP(C40,'Starter Calc'!$B$2:$AM$600,38,FALSE) -> Yes | AR40: =IFERROR(IF(ISTEXT($A40),"",IF((OR($D40="RP",$D40="SP")),ABS(VLOOKUP(D40,'Filtered-P'!$V$3:$Z$4,5,FALSE))+L40,ABS(VLOOKUP(D40,Filtered!$AE$3:$AI$14,5,FALSE))+L40)),"") -> 5.939602986 | AS40: 7.876676243 | AT40: N
C41: Ben Zobrist | D41: =IFERROR(IF(VLOOKUP(C41,'ADP-Rank'!$A$2:$B$600,2,FALSE)="OF",VLOOKUP(C41,'Starter Calc'!$B$2:$AN$600,39,FALSE),(VLOOKUP(C41,'ADP-Rank'!$A$2:$B$600,2,FALSE))),"") -> 2B | E41: =IFERROR(IF(VLOOKUP(C41,'Starter Calc'!$B$2:$E$600,4,FALSE)="","",VLOOKUP(C41,'Starter Calc'!$B$2:$E$600,4,FALSE)),"") -> RF | F41: =IFERROR(VLOOKUP($C41,'ADP-Rank'!$A$2:$D$600,3,FALSE),"") -> TB | G41: =IFERROR(VLOOKUP($C41,'ADP-Rank'!$A$2:$W$600,23,FALSE),"") -> 31 | H41: =IFERROR(IF(ISBLANK($B41),ROUND(((AS41/$AS$1)*(Personalize!$A$3-$AQ$1))+1,0),""),"") -> 20 | I41: =IFERROR(CHOOSE(Personalize!$E$32,VLOOKUP($C41,'ADP-Rank'!$A$2:$U$600,13,FALSE),VLOOKUP($C41,'ADP-Rank'!$A$2:$U$600,14,FALSE),VLOOKUP($C41,'ADP-Rank'!$A$2:$U$600,15,FALSE),VLOOKUP($C41,'ADP-Rank'!$A$2:$U$600,16,FALSE),VLOOKUP($C41,'ADP-Rank'!$A$2:$U$600,17,FALSE),VLOOKUP($C41,'ADP-Rank'!$A$2:$U$600,18,FALSE),VLOOKUP($C41,'ADP-Rank'!$A$2:$U$600,19,FALSE),VLOOKUP($C41,'ADP-Rank'!$A$2:$U$600,20,FALSE)),"") -> 63.57142857 | J41: =IF(ISBLANK($B41),IFERROR(CHOOSE(Personalize!$E$31,(VLOOKUP(C41,'ADP-Rank'!$A$2:$E$600,5,FALSE)*(Personalize!$A$3-$AQ$1)+1),(VLOOKUP(C41,'ADP-Rank'!$A$2:$E$600,4,FALSE)*(Personalize!$A$3-$AQ$1)+1),(VLOOKUP(C41,'ADP-Rank'!$A$2:$G$600,6,FALSE)*(Personalize!$A$3-$AQ$1)+1),(VLOOKUP(C41,'ADP-Rank'!$A$2:$Z$600,7,FALSE)*(Personalize!$A$3-$AQ$1)+1),(VLOOKUP(C41,'ADP-Rank'!$A$2:$Z$600,8,FALSE)*(Personalize!$A$3-$AQ$1)+1),(VLOOKUP(C41,'ADP-Rank'!$A$2:$Z$600,9,FALSE)*(Personalize!$A$3-$AQ$1)+1),(VLOOKUP(C41,'ADP-Rank'!$A$2:$Z$600,10,FALSE)*(Personalize!$A$3-$AQ$1)+1)),""),"") -> 17.52440234 | K41: 60 | L41: 1.626019119 | M41: =IFERROR(IF((OR($D41="RP",$D41="SP")),VLOOKUP($D41,'Filtered-P'!$V$3:$Y$4,4,FALSE), VLOOKUP($D41,Filtered!$AE$3:$AH$14,4,FALSE)),"") -> -0.2209507435 | N41: =IFERROR(IF((OR($D41="RP",$D41="SP")),IF(Personalize!$E$10=TRUE,(((VLOOKUP($C41,Pitcher!$A$1:$P$600,2,FALSE))-'Filtered-P'!$W$8)/'Filtered-P'!$X$8),""),IF(Personalize!$E$4=TRUE,(((VLOOKUP($C41,Hitter!$A$1:$AD$600,21,FALSE))-Filtered!$AF$35)/Filtered!$AG$35),"")),"") -> -0.6503282763 | O41: =IFERROR(IF((OR($D41="RP",$D41="SP")),IF(Personalize!$E$12=TRUE,(((VLOOKUP($C41,Pitcher!$A$1:$P$600,9,FALSE))-'Filtered-P'!$W$15)/'Filtered-P'!$X$15),""),IF(Personalize!$E$3=TRUE,(((VLOOKUP($C41,Hitter!$A$1:$AB$600,9,FALSE))-Filtered!$AF$25)/Filtered!$AG$25),"")),"") -> 0.01049032376 | P41: =IFERROR(IF((OR($D41="RP",$D41="SP")),IF(Personalize!$E$11=TRUE,(((VLOOKUP($C41,Pitcher!$A$1:$P$600,7,FALSE))-'Filtered-P'!$W$13)/'Filtered-P'!$X$13),""),IF(Personalize!$E$2=TRUE,(((VLOOKUP($C41,Hitter!$A$1:$AB$600,4,FALSE))-Filtered!$AF$20)/Filtered!$AG$20),"")),"") -> 0.9196123897 | Q41: =IFERROR(IF((OR($D41="RP",$D41="SP")),IF(Personalize!$E$13=TRUE,(((VLOOKUP($C41,Pitcher!$A$1:$P$600,13,FALSE))-'Filtered-P'!$W$19)/'Filtered-P'!$X$19),""),IF(Personalize!$E$5=TRUE,(((VLOOKUP($C41,Hitter!$A$1:$AB$600,10,FALSE))-Filtered!$AF$26)/Filtered!$AG$26),"")),"") -> 0.7363812097 | R41: =IFERROR(IF((OR($D41="RP",$D41="SP")),IF(Personalize!$E$14=TRUE,(((VLOOKUP($C41,Pitcher!$A$1:$P$600,14,FALSE))-'Filtered-P'!$W$20)/'Filtered-P'!$X$20),""),IF(Personalize!$E$6=TRUE,(((VLOOKUP($C41,Hitter!$A$1:$AB$600,11,FALSE))-Filtered!$AF$27)/Filtered!$AG$27),"")),"") -> 0.6098634719 | S41: =IFERROR(IF((OR($D41="RP",$D41="SP")),IF(Personalize!$E$16=TRUE,(((VLOOKUP($C41,Pitcher!$A$1:$P$600,3,FALSE))-'Filtered-P'!$W$9)/'Filtered-P'!$X$9),""),IF(Personalize!$E$7=TRUE,(((VLOOKUP($C41,Hitter!$A$1:$AD$600,23,FALSE))-Filtered!$AF$37)/Filtered!$AG$37),"")),"") ->  | T41: =IFERROR(IF((OR($D41="RP",$D41="SP")),IF(Personalize!$E$15=TRUE,(((VLOOKUP($C41,Pitcher!$A$1:$P$600,15,FALSE))-'Filtered-P'!$W$21)/'Filtered-P'!$X$21),""),IF(Personalize!$E$8=TRUE,(((VLOOKUP($C41,Hitter!$A$1:$AD$600,22,FALSE))-Filtered!$AF$36)/Filtered!$AG$36),"")),"") ->  | U41: =IFERROR(IF((OR($D41="RP",$D41="SP")),IF(Personalize!$E$17=TRUE,(((VLOOKUP($C41,Pitcher!$A$1:$P$600,16,FALSE))-'Filtered-P'!$W$22)/'Filtered-P'!$X$22),""),IF(Personalize!$E$9=TRUE,(((VLOOKUP($C41,Hitter!$A$1:$AD$600,24,FALSE))-Filtered!$AF$38)/Filtered!$AG$38),"")),"") ->  | V41: =IFERROR(IF((OR($D41="RP",$D41="SP")),IF(Personalize!$E$37=TRUE,(((VLOOKUP($C41,Pitcher!$A$1:$Z$600,17,FALSE))-'Filtered-P'!$W$25)/'Filtered-P'!$X$25),""),IF(Personalize!$E$39=TRUE,(((VLOOKUP($C41,Hitter!$A$1:$X$600,5,FALSE))-Filtered!$AF$21)/Filtered!$AG$21),"")),"") ->  | W41: =IFERROR(IF((OR($D41="RP",$D41="SP")),IF(Personalize!$E$38=TRUE,(((VLOOKUP($C41,Pitcher!$A$1:$Z$600,18,FALSE))-'Filtered-P'!$W$26)/'Filtered-P'!$X$26),""),IF(Personalize!$E$40=TRUE,(((VLOOKUP($C41,Hitter!$A$1:$X$600,13,FALSE))-Filtered!$AF$29)/Filtered!$AG$29),"")),"") ->  | X41: =IFERROR(IF((OR($D41="RP",$D41="SP")),IF(Personalize!$E$45=TRUE,(((VLOOKUP($C41,Pitcher!$A$1:$Z$600,4,FALSE))-'Filtered-P'!$W$10)/'Filtered-P'!$X$10),""),IF(Personalize!$E$41=TRUE,(((VLOOKUP($C41,Hitter!$A$1:$AD$600,19,FALSE))-Filtered!$AF$43)/Filtered!$AG$43),"")),"") ->  | Y41: =IFERROR(IF((OR($D41="RP",$D41="SP")),IF(Personalize!$E$46=TRUE,(((VLOOKUP($C41,Pitcher!$A$1:$Z$600,19,FALSE))-'Filtered-P'!$W$27)/'Filtered-P'!$X$27),""),IF(Personalize!$E$44=TRUE,(((VLOOKUP($C41,Hitter!$A$1:$AD$600,20,FALSE))-Filtered!$AF$44)/Filtered!$AG$44),"")),"") ->  | Z41: =IFERROR(IF((OR($D41="RP",$D41="SP")),IF(Personalize!$E$47=TRUE,(((VLOOKUP($C41,Pitcher!$A$1:$Z$600,6,FALSE))-'Filtered-P'!$W$12)/'Filtered-P'!$X$12),""),IF(Personalize!$E$42=TRUE,(((VLOOKUP($C41,Hitter!$A$1:$AD$600,7,FALSE))-Filtered!$AF$23)/Filtered!$AG$23),"")),"") ->  | AA41: =IFERROR(IF((OR($D41="RP",$D41="SP")),IF(Personalize!$E$48=TRUE,(((VLOOKUP($C41,Pitcher!$A$1:$Z$600,5,FALSE))-'Filtered-P'!$W$11)/'Filtered-P'!$X$11),""),IF(Personalize!$E$43=TRUE,(((VLOOKUP($C41,Hitter!$A$1:$AD$600,8,FALSE))-Filtered!$AF$24)/Filtered!$AG$24),"")),"") ->  | AB41: =IFERROR(IF((OR($D41="RP",$D41="SP")),VLOOKUP($C41,Pitcher!$A$1:$P$600,2,FALSE),""),"") ->  | AC41: =IFERROR(IF((OR($D41="RP",$D41="SP")),VLOOKUP($C41,Pitcher!$A$1:$P$600,9,FALSE),""),"") ->  | AD41: =IFERROR(IF((OR($D41="RP",$D41="SP")),VLOOKUP($C41,Pitcher!$A$1:$P$600,7,FALSE),""),"") ->  | AE41: =IFERROR(IF((OR($D41="RP",$D41="SP")),VLOOKUP($C41,Pitcher!$A$1:$P$600,10,FALSE),""),"") ->  | AF41: =IFERROR(IF((OR($D41="RP",$D41="SP")),VLOOKUP($C41,Pitcher!$A$1:$P$600,11,FALSE),""),"") ->  | AG41: =IFERROR(IF((OR($D41="RP",$D41="SP")),"",VLOOKUP($C41,Hitter!$A$1:$X$600,15,FALSE)),"") -> 0.2592598048 | AH41: =IFERROR(IF((OR($D41="RP",$D41="SP")),"",VLOOKUP($C41,Hitter!$A$1:$X$600,9,FALSE)),"") -> 17.50933694 | AI41: =IFERROR(IF((OR($D41="RP",$D41="SP")),"",VLOOKUP($C41,Hitter!$A$1:$X$600,10,FALSE)),"") -> 79.66487413 | AJ41: =IFERROR(IF((OR($D41="RP",$D41="SP")),"",VLOOKUP($C41,Hitter!$A$1:$X$600,4,FALSE)),"") -> 81.85496943 | AK41: =IFERROR(IF((OR($D41="RP",$D41="SP")),"",VLOOKUP($C41,Hitter!$A$1:$X$600,11,FALSE)),"") -> 16.99574554 | AL41: 0 | AM41: 1 | AN41: 0 | AO41: 3 | AP41: =VLOOKUP(C41,'Starter Calc'!$B$2:$BO$600,66,FALSE) -> Bench | AQ41: =VLOOKUP(C41,'Starter Calc'!$B$2:$AM$600,38,FALSE) -> Yes | AR41: =IFERROR(IF(ISTEXT($A41),"",IF((OR($D41="RP",$D41="SP")),ABS(VLOOKUP(D41,'Filtered-P'!$V$3:$Z$4,5,FALSE))+L41,ABS(VLOOKUP(D41,Filtered!$AE$3:$AI$14,5,FALSE))+L41)),"") -> 5.7764826 | AS41: 7.713555857 | AT41: N
C42: Michael Young | D42: =IFERROR(IF(VLOOKUP(C42,'ADP-Rank'!$A$2:$B$600,2,FALSE)="OF",VLOOKUP(C42,'Starter Calc'!$B$2:$AN$600,39,FALSE),(VLOOKUP(C42,'ADP-Rank'!$A$2:$B$600,2,FALSE))),"") -> DH | E42: =IFERROR(IF(VLOOKUP(C42,'Starter Calc'!$B$2:$E$600,4,FALSE)="","",VLOOKUP(C42,'Starter Calc'!$B$2:$E$600,4,FALSE)),"") ->  | F42: =IFERROR(VLOOKUP($C42,'ADP-Rank'!$A$2:$D$600,3,FALSE),"") -> TEX | G42: =IFERROR(VLOOKUP($C42,'ADP-Rank'!$A$2:$W$600,23,FALSE),"") -> 36 | H42: =IFERROR(IF(ISBLANK($B42),ROUND(((AS42/$AS$1)*(Personalize!$A$3-$AQ$1))+1,0),""),"") -> 19 | I42: =IFERROR(CHOOSE(Personalize!$E$32,VLOOKUP($C42,'ADP-Rank'!$A$2:$U$600,13,FALSE),VLOOKUP($C42,'ADP-Rank'!$A$2:$U$600,14,FALSE),VLOOKUP($C42,'ADP-Rank'!$A$2:$U$600,15,FALSE),VLOOKUP($C42,'ADP-Rank'!$A$2:$U$600,16,FALSE),VLOOKUP($C42,'ADP-Rank'!$A$2:$U$600,17,FALSE),VLOOKUP($C42,'ADP-Rank'!$A$2:$U$600,18,FALSE),VLOOKUP($C42,'ADP-Rank'!$A$2:$U$600,19,FALSE),VLOOKUP($C42,'ADP-Rank'!$A$2:$U$600,20,FALSE)),"") -> 60.85714286 | J42: =IF(ISBLANK($B42),IFERROR(CHOOSE(Personalize!$E$31,(VLOOKUP(C42,'ADP-Rank'!$A$2:$E$600,5,FALSE)*(Personalize!$A$3-$AQ$1)+1),(VLOOKUP(C42,'ADP-Rank'!$A$2:$E$600,4,FALSE)*(Personalize!$A$3-$AQ$1)+1),(VLOOKUP(C42,'ADP-Rank'!$A$2:$G$600,6,FALSE)*(Personalize!$A$3-$AQ$1)+1),(VLOOKUP(C42,'ADP-Rank'!$A$2:$Z$600,7,FALSE)*(Personalize!$A$3-$AQ$1)+1),(VLOOKUP(C42,'ADP-Rank'!$A$2:$Z$600,8,FALSE)*(Personalize!$A$3-$AQ$1)+1),(VLOOKUP(C42,'ADP-Rank'!$A$2:$Z$600,9,FALSE)*(Personalize!$A$3-$AQ$1)+1),(VLOOKUP(C42,'ADP-Rank'!$A$2:$Z$600,10,FALSE)*(Personalize!$A$3-$AQ$1)+1)),""),"") -> 17.68238506 | K42: 42 | L42: 2.49004286 | M42: =IFERROR(IF((OR($D42="RP",$D42="SP")),VLOOKUP($D42,'Filtered-P'!$V$3:$Y$4,4,FALSE), VLOOKUP($D42,Filtered!$AE$3:$AH$14,4,FALSE)),"") -> -0.1258871399 | N42: =IFERROR(IF((OR($D42="RP",$D42="SP")),IF(Personalize!$E$10=TRUE,(((VLOOKUP($C42,Pitcher!$A$1:$P$600,2,FALSE))-'Filtered-P'!$W$8)/'Filtered-P'!$X$8),""),IF(Personalize!$E$4=TRUE,(((VLOOKUP($C42,Hitter!$A$1:$AD$600,21,FALSE))-Filtered!$AF$35)/Filtered!$AG$35),"")),"") -> 1.780793734 | O42: =IFERROR(IF((OR($D42="RP",$D42="SP")),IF(Personalize!$E$12=TRUE,(((VLOOKUP($C42,Pitcher!$A$1:$P$600,9,FALSE))-'Filtered-P'!$W$15)/'Filtered-P'!$X$15),""),IF(Personalize!$E$3=TRUE,(((VLOOKUP($C42,Hitter!$A$1:$AB$600,9,FALSE))-Filtered!$AF$25)/Filtered!$AG$25),"")),"") -> -0.3414103934 | P42: =IFERROR(IF((OR($D42="RP",$D42="SP")),IF(Personalize!$E$11=TRUE,(((VLOOKUP($C42,Pitcher!$A$1:$P$600,7,FALSE))-'Filtered-P'!$W$13)/'Filtered-P'!$X$13),""),IF(Personalize!$E$2=TRUE,(((VLOOKUP($C42,Hitter!$A$1:$AB$600,4,FALSE))-Filtered!$AF$20)/Filtered!$AG$20),"")),"") -> 0.6478780296 | Q42: =IFERROR(IF((OR($D42="RP",$D42="SP")),IF(Personalize!$E$13=TRUE,(((VLOOKUP($C42,Pitcher!$A$1:$P$600,13,FALSE))-'Filtered-P'!$W$19)/'Filtered-P'!$X$19),""),IF(Personalize!$E$5=TRUE,(((VLOOKUP($C42,Hitter!$A$1:$AB$600,10,FALSE))-Filtered!$AF$26)/Filtered!$AG$26),"")),"") -> 0.9781836912 | R42: =IFERROR(IF((OR($D42="RP",$D42="SP")),IF(Personalize!$E$14=TRUE,(((VLOOKUP($C42,Pitcher!$A$1:$P$600,14,FALSE))-'Filtered-P'!$W$20)/'Filtered-P'!$X$20),""),IF(Personalize!$E$6=TRUE,(((VLOOKUP($C42,Hitter!$A$1:$AB$600,11,FALSE))-Filtered!$AF$27)/Filtered!$AG$27),"")),"") -> -0.5754022016 | S42: =IFERROR(IF((OR($D42="RP",$D42="SP")),IF(Personalize!$E$16=TRUE,(((VLOOKUP($C42,Pitcher!$A$1:$P$600,3,FALSE))-'Filtered-P'!$W$9)/'Filtered-P'!$X$9),""),IF(Personalize!$E$7=TRUE,(((VLOOKUP($C42,Hitter!$A$1:$AD$600,23,FALSE))-Filtered!$AF$37)/Filtered!$AG$37),"")),"") ->  | T42: =IFERROR(IF((OR($D42="RP",$D42="SP")),IF(Personalize!$E$15=TRUE,(((VLOOKUP($C42,Pitcher!$A$1:$P$600,15,FALSE))-'Filtered-P'!$W$21)/'Filtered-P'!$X$21),""),IF(Personalize!$E$8=TRUE,(((VLOOKUP($C42,Hitter!$A$1:$AD$600,22,FALSE))-Filtered!$AF$36)/Filtered!$AG$36),"")),"") ->  | U42: =IFERROR(IF((OR($D42="RP",$D42="SP")),IF(Personalize!$E$17=TRUE,(((VLOOKUP($C42,Pitcher!$A$1:$P$600,16,FALSE))-'Filtered-P'!$W$22)/'Filtered-P'!$X$22),""),IF(Personalize!$E$9=TRUE,(((VLOOKUP($C42,Hitter!$A$1:$AD$600,24,FALSE))-Filtered!$AF$38)/Filtered!$AG$38),"")),"") ->  | V42: =IFERROR(IF((OR($D42="RP",$D42="SP")),IF(Personalize!$E$37=TRUE,(((VLOOKUP($C42,Pitcher!$A$1:$Z$600,17,FALSE))-'Filtered-P'!$W$25)/'Filtered-P'!$X$25),""),IF(Personalize!$E$39=TRUE,(((VLOOKUP($C42,Hitter!$A$1:$X$600,5,FALSE))-Filtered!$AF$21)/Filtered!$AG$21),"")),"") ->  | W42: =IFERROR(IF((OR($D42="RP",$D42="SP")),IF(Personalize!$E$38=TRUE,(((VLOOKUP($C42,Pitcher!$A$1:$Z$600,18,FALSE))-'Filtered-P'!$W$26)/'Filtered-P'!$X$26),""),IF(Personalize!$E$40=TRUE,(((VLOOKUP($C42,Hitter!$A$1:$X$600,13,FALSE))-Filtered!$AF$29)/Filtered!$AG$29),"")),"") ->  | X42: =IFERROR(IF((OR($D42="RP",$D42="SP")),IF(Personalize!$E$45=TRUE,(((VLOOKUP($C42,Pitcher!$A$1:$Z$600,4,FALSE))-'Filtered-P'!$W$10)/'Filtered-P'!$X$10),""),IF(Personalize!$E$41=TRUE,(((VLOOKUP($C42,Hitter!$A$1:$AD$600,19,FALSE))-Filtered!$AF$43)/Filtered!$AG$43),"")),"") ->  | Y42: =IFERROR(IF((OR($D42="RP",$D42="SP")),IF(Personalize!$E$46=TRUE,(((VLOOKUP($C42,Pitcher!$A$1:$Z$600,19,FALSE))-'Filtered-P'!$W$27)/'Filtered-P'!$X$27),""),IF(Personalize!$E$44=TRUE,(((VLOOKUP($C42,Hitter!$A$1:$AD$600,20,FALSE))-Filtered!$AF$44)/Filtered!$AG$44),"")),"") ->  | Z42: =IFERROR(IF((OR($D42="RP",$D42="SP")),IF(Personalize!$E$47=TRUE,(((VLOOKUP($C42,Pitcher!$A$1:$Z$600,6,FALSE))-'Filtered-P'!$W$12)/'Filtered-P'!$X$12),""),IF(Personalize!$E$42=TRUE,(((VLOOKUP($C42,Hitter!$A$1:$AD$600,7,FALSE))-Filtered!$AF$23)/Filtered!$AG$23),"")),"") ->  | AA42: =IFERROR(IF((OR($D42="RP",$D42="SP")),IF(Personalize!$E$48=TRUE,(((VLOOKUP($C42,Pitcher!$A$1:$Z$600,5,FALSE))-'Filtered-P'!$W$11)/'Filtered-P'!$X$11),""),IF(Personalize!$E$43=TRUE,(((VLOOKUP($C42,Hitter!$A$1:$AD$600,8,FALSE))-Filtered!$AF$24)/Filtered!$AG$24),"")),"") ->  | AB42: =IFERROR(IF((OR($D42="RP",$D42="SP")),VLOOKUP($C42,Pitcher!$A$1:$P$600,2,FALSE),""),"") ->  | AC42: =IFERROR(IF((OR($D42="RP",$D42="SP")),VLOOKUP($C42,Pitcher!$A$1:$P$600,9,FALSE),""),"") ->  | AD42: =IFERROR(IF((OR($D42="RP",$D42="SP")),VLOOKUP($C42,Pitcher!$A$1:$P$600,7,FALSE),""),"") ->  | AE42: =IFERROR(IF((OR($D42="RP",$D42="SP")),VLOOKUP($C42,Pitcher!$A$1:$P$600,10,FALSE),""),"") ->  | AF42: =IFERROR(IF((OR($D42="RP",$D42="SP")),VLOOKUP($C42,Pitcher!$A$1:$P$600,11,FALSE),""),"") ->  | AG42: =IFERROR(IF((OR($D42="RP",$D42="SP")),"",VLOOKUP($C42,Hitter!$A$1:$X$600,15,FALSE)),"") -> 0.2967033978 | AH42: =IFERROR(IF((OR($D42="RP",$D42="SP")),"",VLOOKUP($C42,Hitter!$A$1:$X$600,9,FALSE)),"") -> 15.03157231 | AI42: =IFERROR(IF((OR($D42="RP",$D42="SP")),"",VLOOKUP($C42,Hitter!$A$1:$X$600,10,FALSE)),"") -> 83.44925191 | AJ42: =IFERROR(IF((OR($D42="RP",$D42="SP")),"",VLOOKUP($C42,Hitter!$A$1:$X$600,4,FALSE)),"") -> 78.72365761 | AK42: =IFERROR(IF((OR($D42="RP",$D42="SP")),"",VLOOKUP($C42,Hitter!$A$1:$X$600,11,FALSE)),"") -> 5.667554248 | AL42: 0 | AM42: 1 | AN42: 0 | AO42: 12 | AP42: =VLOOKUP(C42,'Starter Calc'!$B$2:$BO$600,66,FALSE) -> Bench | AQ42: =VLOOKUP(C42,'Starter Calc'!$B$2:$AM$600,38,FALSE) -> Yes | AR42: =IFERROR(IF(ISTEXT($A42),"",IF((OR($D42="RP",$D42="SP")),ABS(VLOOKUP(D42,'Filtered-P'!$V$3:$Z$4,5,FALSE))+L42,ABS(VLOOKUP(D42,Filtered!$AE$3:$AI$14,5,FALSE))+L42)),"") -> 5.562269035 | AS42: 7.499342292 | AT42: N
C43: Pablo Sandoval | D43: =IFERROR(IF(VLOOKUP(C43,'ADP-Rank'!$A$2:$B$600,2,FALSE)="OF",VLOOKUP(C43,'Starter Calc'!$B$2:$AN$600,39,FALSE),(VLOOKUP(C43,'ADP-Rank'!$A$2:$B$600,2,FALSE))),"") -> 3B | E43: =IFERROR(IF(VLOOKUP(C43,'Starter Calc'!$B$2:$E$600,4,FALSE)="","",VLOOKUP(C43,'Starter Calc'!$B$2:$E$600,4,FALSE)),"") ->  | F43: =IFERROR(VLOOKUP($C43,'ADP-Rank'!$A$2:$D$600,3,FALSE),"") -> SF | G43: =IFERROR(VLOOKUP($C43,'ADP-Rank'!$A$2:$W$600,23,FALSE),"") -> 26 | H43: =IFERROR(IF(ISBLANK($B43),ROUND(((AS43/$AS$1)*(Personalize!$A$3-$AQ$1))+1,0),""),"") -> 19 | I43: =IFERROR(CHOOSE(Personalize!$E$32,VLOOKUP($C43,'ADP-Rank'!$A$2:$U$600,13,FALSE),VLOOKUP($C43,'ADP-Rank'!$A$2:$U$600,14,FALSE),VLOOKUP($C43,'ADP-Rank'!$A$2:$U$600,15,FALSE),VLOOKUP($C43,'ADP-Rank'!$A$2:$U$600,16,FALSE),VLOOKUP($C43,'ADP-Rank'!$A$2:$U$600,17,FALSE),VLOOKUP($C43,'ADP-Rank'!$A$2:$U$600,18,FALSE),VLOOKUP($C43,'ADP-Rank'!$A$2:$U$600,19,FALSE),VLOOKUP($C43,'ADP-Rank'!$A$2:$U$600,20,FALSE)),"") -> 43 | J43: =IF(ISBLANK($B43),IFERROR(CHOOSE(Personalize!$E$31,(VLOOKUP(C43,'ADP-Rank'!$A$2:$E$600,5,FALSE)*(Personalize!$A$3-$AQ$1)+1),(VLOOKUP(C43,'ADP-Rank'!$A$2:$E$600,4,FALSE)*(Personalize!$A$3-$AQ$1)+1),(VLOOKUP(C43,'ADP-Rank'!$A$2:$G$600,6,FALSE)*(Personalize!$A$3-$AQ$1)+1),(VLOOKUP(C43,'ADP-Rank'!$A$2:$Z$600,7,FALSE)*(Personalize!$A$3-$AQ$1)+1),(VLOOKUP(C43,'ADP-Rank'!$A$2:$Z$600,8,FALSE)*(Personalize!$A$3-$AQ$1)+1),(VLOOKUP(C43,'ADP-Rank'!$A$2:$Z$600,9,FALSE)*(Personalize!$A$3-$AQ$1)+1),(VLOOKUP(C43,'ADP-Rank'!$A$2:$Z$600,10,FALSE)*(Personalize!$A$3-$AQ$1)+1)),""),"") -> 20.08834867 | K43: 69 | L43: 1.260318952 | M43: =IFERROR(IF((OR($D43="RP",$D43="SP")),VLOOKUP($D43,'Filtered-P'!$V$3:$Y$4,4,FALSE), VLOOKUP($D43,Filtered!$AE$3:$AH$14,4,FALSE)),"") -> -0.4103695081 | N43: =IFERROR(IF((OR($D43="RP",$D43="SP")),IF(Personalize!$E$10=TRUE,(((VLOOKUP($C43,Pitcher!$A$1:$P$600,2,FALSE))-'Filtered-P'!$W$8)/'Filtered-P'!$X$8),""),IF(Personalize!$E$4=TRUE,(((VLOOKUP($C43,Hitter!$A$1:$AD$600,21,FALSE))-Filtered!$AF$35)/Filtered!$AG$35),"")),"") -> 1.693894013 | O43: =IFERROR(IF((OR($D43="RP",$D43="SP")),IF(Personalize!$E$12=TRUE,(((VLOOKUP($C43,Pitcher!$A$1:$P$600,9,FALSE))-'Filtered-P'!$W$15)/'Filtered-P'!$X$15),""),IF(Personalize!$E$3=TRUE,(((VLOOKUP($C43,Hitter!$A$1:$AB$600,9,FALSE))-Filtered!$AF$25)/Filtered!$AG$25),"")),"") -> 0.3797128054 | P43: =IFERROR(IF((OR($D43="RP",$D43="SP")),IF(Personalize!$E$11=TRUE,(((VLOOKUP($C43,Pitcher!$A$1:$P$600,7,FALSE))-'Filtered-P'!$W$13)/'Filtered-P'!$X$13),""),IF(Personalize!$E$2=TRUE,(((VLOOKUP($C43,Hitter!$A$1:$AB$600,4,FALSE))-Filtered!$AF$20)/Filtered!$AG$20),"")),"") -> -0.3860115082 | Q43: =IFERROR(IF((OR($D43="RP",$D43="SP")),IF(Personalize!$E$13=TRUE,(((VLOOKUP($C43,Pitcher!$A$1:$P$600,13,FALSE))-'Filtered-P'!$W$19)/'Filtered-P'!$X$19),""),IF(Personalize!$E$5=TRUE,(((VLOOKUP($C43,Hitter!$A$1:$AB$600,10,FALSE))-Filtered!$AF$26)/Filtered!$AG$26),"")),"") -> 0.3813603937 | R43: =IFERROR(IF((OR($D43="RP",$D43="SP")),IF(Personalize!$E$14=TRUE,(((VLOOKUP($C43,Pitcher!$A$1:$P$600,14,FALSE))-'Filtered-P'!$W$20)/'Filtered-P'!$X$20),""),IF(Personalize!$E$6=TRUE,(((VLOOKUP($C43,Hitter!$A$1:$AB$600,11,FALSE))-Filtered!$AF$27)/Filtered!$AG$27),"")),"") -> -0.808636752 | S43: =IFERROR(IF((OR($D43="RP",$D43="SP")),IF(Personalize!$E$16=TRUE,(((VLOOKUP($C43,Pitcher!$A$1:$P$600,3,FALSE))-'Filtered-P'!$W$9)/'Filtered-P'!$X$9),""),IF(Personalize!$E$7=TRUE,(((VLOOKUP($C43,Hitter!$A$1:$AD$600,23,FALSE))-Filtered!$AF$37)/Filtered!$AG$37),"")),"") ->  | T43: =IFERROR(IF((OR($D43="RP",$D43="SP")),IF(Personalize!$E$15=TRUE,(((VLOOKUP($C43,Pitcher!$A$1:$P$600,15,FALSE))-'Filtered-P'!$W$21)/'Filtered-P'!$X$21),""),IF(Personalize!$E$8=TRUE,(((VLOOKUP($C43,Hitter!$A$1:$AD$600,22,FALSE))-Filtered!$AF$36)/Filtered!$AG$36),"")),"") ->  | U43: =IFERROR(IF((OR($D43="RP",$D43="SP")),IF(Personalize!$E$17=TRUE,(((VLOOKUP($C43,Pitcher!$A$1:$P$600,16,FALSE))-'Filtered-P'!$W$22)/'Filtered-P'!$X$22),""),IF(Personalize!$E$9=TRUE,(((VLOOKUP($C43,Hitter!$A$1:$AD$600,24,FALSE))-Filtered!$AF$38)/Filtered!$AG$38),"")),"") ->  | V43: =IFERROR(IF((OR($D43="RP",$D43="SP")),IF(Personalize!$E$37=TRUE,(((VLOOKUP($C43,Pitcher!$A$1:$Z$600,17,FALSE))-'Filtered-P'!$W$25)/'Filtered-P'!$X$25),""),IF(Personalize!$E$39=TRUE,(((VLOOKUP($C43,Hitter!$A$1:$X$600,5,FALSE))-Filtered!$AF$21)/Filtered!$AG$21),"")),"") ->  | W43: =IFERROR(IF((OR($D43="RP",$D43="SP")),IF(Personalize!$E$38=TRUE,(((VLOOKUP($C43,Pitcher!$A$1:$Z$600,18,FALSE))-'Filtered-P'!$W$26)/'Filtered-P'!$X$26),""),IF(Personalize!$E$40=TRUE,(((VLOOKUP($C43,Hitter!$A$1:$X$600,13,FALSE))-Filtered!$AF$29)/Filtered!$AG$29),"")),"") ->  | X43: =IFERROR(IF((OR($D43="RP",$D43="SP")),IF(Personalize!$E$45=TRUE,(((VLOOKUP($C43,Pitcher!$A$1:$Z$600,4,FALSE))-'Filtered-P'!$W$10)/'Filtered-P'!$X$10),""),IF(Personalize!$E$41=TRUE,(((VLOOKUP($C43,Hitter!$A$1:$AD$600,19,FALSE))-Filtered!$AF$43)/Filtered!$AG$43),"")),"") ->  | Y43: =IFERROR(IF((OR($D43="RP",$D43="SP")),IF(Personalize!$E$46=TRUE,(((VLOOKUP($C43,Pitcher!$A$1:$Z$600,19,FALSE))-'Filtered-P'!$W$27)/'Filtered-P'!$X$27),""),IF(Personalize!$E$44=TRUE,(((VLOOKUP($C43,Hitter!$A$1:$AD$600,20,FALSE))-Filtered!$AF$44)/Filtered!$AG$44),"")),"") ->  | Z43: =IFERROR(IF((OR($D43="RP",$D43="SP")),IF(Personalize!$E$47=TRUE,(((VLOOKUP($C43,Pitcher!$A$1:$Z$600,6,FALSE))-'Filtered-P'!$W$12)/'Filtered-P'!$X$12),""),IF(Personalize!$E$42=TRUE,(((VLOOKUP($C43,Hitter!$A$1:$AD$600,7,FALSE))-Filtered!$AF$23)/Filtered!$AG$23),"")),"") ->  | AA43: =IFERROR(IF((OR($D43="RP",$D43="SP")),IF(Personalize!$E$48=TRUE,(((VLOOKUP($C43,Pitcher!$A$1:$Z$600,5,FALSE))-'Filtered-P'!$W$11)/'Filtered-P'!$X$11),""),IF(Personalize!$E$43=TRUE,(((VLOOKUP($C43,Hitter!$A$1:$AD$600,8,FALSE))-Filtered!$AF$24)/Filtered!$AG$24),"")),"") ->  | AB43: =IFERROR(IF((OR($D43="RP",$D43="SP")),VLOOKUP($C43,Pitcher!$A$1:$P$600,2,FALSE),""),"") ->  | AC43: =IFERROR(IF((OR($D43="RP",$D43="SP")),VLOOKUP($C43,Pitcher!$A$1:$P$600,9,FALSE),""),"") ->  | AD43: =IFERROR(IF((OR($D43="RP",$D43="SP")),VLOOKUP($C43,Pitcher!$A$1:$P$600,7,FALSE),""),"") ->  | AE43: =IFERROR(IF((OR($D43="RP",$D43="SP")),VLOOKUP($C43,Pitcher!$A$1:$P$600,10,FALSE),""),"") ->  | AF43: =IFERROR(IF((OR($D43="RP",$D43="SP")),VLOOKUP($C43,Pitcher!$A$1:$P$600,11,FALSE),""),"") ->  | AG43: =IFERROR(IF((OR($D43="RP",$D43="SP")),"",VLOOKUP($C43,Hitter!$A$1:$X$600,15,FALSE)),"") -> 0.2997452183 | AH43: =IFERROR(IF((OR($D43="RP",$D43="SP")),"",VLOOKUP($C43,Hitter!$A$1:$X$600,9,FALSE)),"") -> 20.10906566 | AI43: =IFERROR(IF((OR($D43="RP",$D43="SP")),"",VLOOKUP($C43,Hitter!$A$1:$X$600,10,FALSE)),"") -> 74.10855032 | AJ43: =IFERROR(IF((OR($D43="RP",$D43="SP")),"",VLOOKUP($C43,Hitter!$A$1:$X$600,4,FALSE)),"") -> 66.8097041 | AK43: =IFERROR(IF((OR($D43="RP",$D43="SP")),"",VLOOKUP($C43,Hitter!$A$1:$X$600,11,FALSE)),"") -> 3.438412158 | AL43: 0 | AM43: 1 | AN43: 0 | AO43: 4 | AP43: =VLOOKUP(C43,'Starter Calc'!$B$2:$BO$600,66,FALSE) -> Bench | AQ43: =VLOOKUP(C43,'Starter Calc'!$B$2:$AM$600,38,FALSE) -> Yes | AR43: =IFERROR(IF(ISTEXT($A43),"",IF((OR($D43="RP",$D43="SP")),ABS(VLOOKUP(D43,'Filtered-P'!$V$3:$Z$4,5,FALSE))+L43,ABS(VLOOKUP(D43,Filtered!$AE$3:$AI$14,5,FALSE))+L43)),"") -> 5.4703952 | AS43: 7.407468457 | AT43: N
